Workbook

Sheet Readme
A1: MOSM: quick start guide
B3: General rule | N3: acronyms
C4: green cells are for user inputs | N4: MO | O4: Management option
C5: yellow cells are for model outputs | N5: TLMO | O5: Tillage and cropping MO
N6: AFMO | O6: Agricultural field MO
N7: BFMO | O7: Buffer MO
N8: WCMO | O8: Water conservation MO
N9: ICMO | O9: In Channel MO
B10: Contents of tabs | N10: RAMO | O10: Ravine MO
B11: Readme: | C11: Provides a quick information about the model | N11: NCMO | O11: Near-channel MO (bluff)
B12: CONTROL: | C12: Management Option input scenarios are entered in this tab.
C13: Summary model outputs can be found in this tab. | N13: Overview
B14: Reference Scenario Chart: | C14: Reference and user scenarios' simulated sediment loading reductions are plotted against cost. | N14: Management Option Simulation Model (MOSM) consists of a (1) Management Option (MO) allocation, (2) water routing, and (3) sediment routing algorithms.
B15: Your Scenarios: | C15: User scenarios are archived in this tab whenever "Save your scenarios" button is pressed on the CONTROL tab after running the model.
B16: Reference Scenarios: | C16: Contains the default reference scenarios consisting of implementation of individual MOs at various extents
B17: I|O Detail: | C17: Detailed input and output information can be found in this tab.
C18: Total MO extent as well as number of sites across the watershed can be found here.
C19: User can specify site selection criteria as well as MO design elements.
B20: Output detail: | C20: Simulated sediment loading is displayed against observed values from five gage locations.
C21: Simulated sediment deposition rates on field and along stream can be found.
B25: How do you run the model?
B26: How do you run a deterministic simulation?
B27: 1. Go to CONTROL tab.
B28: 2. Specify MO scenarios by entering various extents of managements in different zones of the watershed.
B29: 3. Press "Run MOSM" button. When the model completes the simulation, it alerts the user.
B30: 4. Examine model outputs on the Reference Scenario Chart and Output Detail tabs.
B31: 5. If necessary, save scenario outputs by pressing "Save your scenarios" on CONTROL tab.
B32: 6. If you want to save the entire sceanrio input for a future reference, press "Export all INPUT & OUTPUT." This will create a new workbook.
B34: How do you run a stochastic simulation?
B35: You can enter the number (2-1000) of Monte Carlo simulation in cell M2 on CONTROL tab.
B36: Entering 1 will execute a deterministic simulation.

Sheet MO cost example
B4: Tillage Management Option (TLMO) ALLOCATION | G4: Install range | H4: Install assumptions | I4: Maintenance details
B5: Extent of all farm land (ac) | C5: Install. ($/ac) | D5: Mntnc [$/(ac*yr)] | E5: Mntnc [$/(ac*yr)] | F5: (yr)
B6: Continuous corn9 | C6: 39 | E6: 90 | F6: 1
B7: Corn-soyben rotation9 | C7: 41 | E7: 86 | F7: 1
B8: Winter rye cover crop10 | C8: =13.1+7.5 -> 20.6 | E8: =20.6 -> 20.6 | F8: 1 | H8: Drilling and seeding | I8: Establishing cover
B9: Agricultural Field Management Option (AFMO) ALLOCATION
B10: Extent of all MOs (ft) | C10: Install. ($/ac) | D10: Mntnc [$/(ac*yr)] | E10: Mntnc [$/(ac*yr)] | F10: Life Span
B11: Input extent (ft) | C11: 3200 | D11: =17.45*2+12.25+16.6 -> 63.75 | E11: 64 7 | F11: 10 | G11: 1,900-4500/acre 3 2000-3000/acre 4 | H11: 35' width | I11: Mow 2x per year. Inspect/seed after heavy rain. Control weeds. Control vermin.
B12: Buffer Strip Management Option (BFMO) ALLOCATION
B13: Extent of all MOs (ft) | C13: Install. ($/ac) | D13: Mntnc [$/(ac*yr)] | E13: Mntnc [$/(ac*yr)] | F13: Life Span
B14: Input extent (ft) | C14: 1000 | D14: =17.45*2+10 -> 44.9 | E14: 45 7 | F14: 10 | G14: 500-2000/acre 4 750-1150/acre 3 | I14: Mowing 2x per year.Remove sediment at upper end of gradient every 2 years.
B15: Water Conservation Management Option (WCMO) ALLOCATION
B16: Extent of all MOs (ac) | C16: Install. ($/ac) | D16: Mntnc [$/(ac*yr)] | E16: Mntnc [$/(ac*yr)] | F16: Life Span
B17: Input extent (ac) | C17: 3000 | D17: =94.45*16/3+4*17.45 -> 573.5333333 | E17: 574 5,7 | F17: 25 | G17: 6000 (ea) 2 300-5,300/acre 3 100-150/ln ft, 12,000-17,000/acre 4 | I17: Inspect embankment/ridge and repair if necessary after heavy rain. Control weeds. Control vermin. Periodically clean channel with heavy equipment.
B18: In-Channel Management Option (ICMO) ALLOCATION
B19: Extent of all MOs (ft) | C19: Install. ($/ft) | D19: Mntnc [$/(ft*yr)] | E19: Mntnc [$/(ft*yr)] | F19: Life Span
B20: Input extent (ft) | C20: 250 | D20: =17.45*2/25 -> 1.396 | E20: 1.4 7 | F20: 10 | G20: 1000-3000 (ea) for structure 3 15,000-20,000 (ea) for rate control weir 4 | H20: cost based on flap gate structure | I20: Grease gate annually. Paint every few years.
B21: Ravine Management Option (RAMO) ALLOCATION
B22: number of ravine tips | C22: Install. ($/TIP) | D22: Mntnc [$/(tip*yr)] | E22: Mntnc [$/(tip*yr)] | F22: Life Span
B23: Input number of tips | C23: 6000 | D23: =17.45*2 -> 34.9 | E23: 35 7 | F23: 10 | G23: 1,000-11,500 (ea) 2 571-2,100/ft; 3,750-60,000 (ea) 1 1,000-21,000 (ea) 3 | I23: Check for pipe blockage
B24: Near-Channel Source Management Option (NCMO) ALLOCATION
B25: Extent of all MOs (ft) | C25: Install. ($/ft) | D25: Mntnc [$/(ft*yr)] | E25: Mntnc [$/(ft*yr)] | F25: Life Span
B26: Input extent (ft) | C26: 200 | D26: =17.45*2/50 -> 0.698 | E26: 0.7 7 | F26: 5 | G26: 11-77/ft 3 500-1000/ft 4 26-208/ft 6 62-226/ft 2 | H26: see the types of management and corresponding cost in the table below. | I26: Inspection, planting shrubs
G27: Treatment | H27: $ per LF
G28: Grade and shape | H28: $20 – 50
D29: Notes | G29: LWD toe | H29: $30 – 100
D30: Depends on height and toe treatment | G30: Cribwall | H30: $50-100
D31: Depends on height of bank | G31: Engineered log jam | H31: $30 – 100
D32: Depends on height of bank | G32: Geocell | H32: $50 - 100
D33: Depends on log size needed | G33: Coarse wood and lifts | H33: $30 – 100
D34: Depends on height of bank | G34: Encapsulated soil lifts | H34: $80 - 160
D35: Depends on height of bank
D36: Depends on height of bank
B39: References:
A40: 1 | B40: Miller, T.P., J.R.Peterson, C.F. Lenhart, and Y. Nomura. 2012. The Agricultural BMP Handbook for Minnesota. Minnesota Department of Agriculture.
A41: 2 | B41: Nelson, Paul. July 26, 2016. Personal Communication.
A42: 3 | B42: USDA-NRCS MN-WI-MI Regional Rates for Environmental Quality Incentive Program (EQIP). 2016. Accessed at http://www.nrcs.usda.gov/wps/portal/nrcs/detail/mn/programs/financial/eqip/
A43: 4 | B43: Lewandowski, A., Everett, L., Lenhart, C., Terry, K., Origer, M., & Moore, R. (2015). Fields to Streams: Managing Water in Rural Landscapes. Part Two, Managing Sediment and Water.
A44: 5 | B44: Iowa State University. 2016 Iowa Farm Custom Rate Survey. March 2016. Accessed at https://www.extension.iastate.edu/agdm/crops/pdf/a3-10.pdf
A45: 6 | B45: Melchoir, Marty. Jan 19, 2014. Personal Communication.
A46: 7 | B46: Center for Watershed Protection (2004). Stormwater Pond and Wetland Maintenance Guidebook. Accessed at http://www.stormwatercenter.net/Manual_Builder/Maintenance_Manual/pondwetlandguidebookdraft.pdf
A47: 8 | B47: Ambrosini, K. (2014). Analysis Of Flap Gate Design and Implementations for Water Delivery Systems in California and Nevada. Accessed athttp://digitalcommons.calpoly.edu/cgi/viewcontent.cgi?article=1125&context=braesp
A48: 9 | B48: Daberkow et al. (2008). Comparing continuous corn and corn-soybean cropping systems. Western Economics Forum, Spring 2008. http://ageconsearch.tind.io//bitstream/92853/2/0701001.pdf
A49: 10 | B49: Schnitkey et al. (2016). Farmdoc Daily, University of illinois at Urbana-Champaign. Costs and benefits of cover crops: an example with cereal rye. http://farmdocdaily.illinois.edu/2016/07/costs-and-benefits-of-cover-crops-example.html

Sheet CONTROL
A1: Welcome to the Management Options Simulation Model for the Le Sueur River Basin (MOSM-LSRB) | H1: Press this button to clear previous inputs | I1: ---> | M1: User input only in Green Cells
A2: The model estimates average annual sediment loading at the mouth of the watershed | H2: Press this button to clear previous inputs | L2: # MC runs: | M2: 1 | O2: Interest rate = | P2: 0.05 | Q2: per year | T2: Default cost of operation: default TLMO and no other MOs | X2: TLMO | Y2: =Q9+Q10+Q11-V5 -> 0 | Z2: =Y2/(V$17) -> 
A3: Col. B:J - Specify location, extent of management options (ALLOCATION) | H3: and implement X% BFMO | I3: ---> | O3: Cost of agricultural land = | P3: 8297 | Q3: $/ac | U3: Upfront installation cost ($) | V3: 22542108.61 | X3: AFMO | Y3: =Q14 -> 0 | Z3: =Y3/(V$17) -> 
A4: Col. M:P - Specify EFFECTIVENESS & COST of management options | G4: Buffers (X%)= | H4: 30 | O4: Cost of marginal land = | P4: =P3 -> 8297 | Q4: $/ac | U4: Annual Maintenance Cost ($/yr) | V4: 50810681.36 | X4: BFMO | Y4: =Q17 -> 0
A5: River | B5: LeSueur | E5: Cobb | H5: Maple | K5: Extent | L5: Extent | M5: MO efficiency | N5: Installation | O5: Ann. Maintenance | P5: Life Span | Q5: Total | U5: Annual Cost of MOs ($/yr) | V5: =V3+V4 -> 73352789.97 | X5: WCMO | Y5: =Q20 -> 0
A6: Zone | B6: Upland | C6: Trans | D6: Incised | E6: Upland | F6: Trans | G6: Incised | H6: Upland | I6: Trans | J6: Incised | K6: Input | L6: selected | M6: % | N6: Cost | O6: Cost | P6: (yr) | Q6: Cost ($/yr) | X6: ICMO | Y6: =Q23 -> 0
A7: Cover and Tillage Management Option (TLMO) ALLOCATION | M7: Tillage Management (TLMO) EFFECTIVENESS & COST | X7: RAMO | Y7: =Q26 -> 0
A8: Extent of all farm land (ac) | B8: 131976.3072 | C8: 37735.9335 | D8: 50961.04158 | E8: 76825.277 | F8: 58505.54501 | G8: 28587.70727 | H8: 84279.75257 | I8: 81555.55418 | J8: 19710.68862 | K8: =SUM(B8:J8) -> 570137.807 | L8: acre | N8: Install. ($/ac) | O8: Mntnc [$/(ac*yr)] | P8: (yr) | Q8: Total ($/yr) | T8: Simulation output summary | X8: NCMO | Y8: =Q29 -> 0
A9: Corn-Soy Rotation with conventional tillage (%) | B9: 80 | C9: 80 | D9: 80 | E9: 80 | F9: 80 | G9: 80 | H9: 80 | I9: 80 | J9: 80 | K9: =SUMPRODUCT(B$8:J$8,(B9:J9)/100) -> 456110.2456 | L9: ='I|O Detail'!K14 -> 456110.2456 | N9: 39.14 | O9: =25.72+64.12 -> 89.84 | P9: 1 | Q9: =(N9/(1+$P$2)*((1+$P$2)^P9*$P$2)/((1+$P$2)^P9-1)+O9)*L9 -> 58829099.48 | U9: Present Sediment Load at Red Jacket (Mg/yr) | V9: ='Output Detail'!C19 -> 186235.155 | Y9: =SUM(Y2:Y8) -> 0
A10: Continuous Corn with conventional tillage (%) | B10: 20 | C10: 20 | D10: 20 | E10: 20 | F10: 20 | G10: 20 | H10: 20 | I10: 20 | J10: 20 | K10: =SUMPRODUCT(B$8:J$8,(B10:J10)/100) -> 114027.5614 | L10: ='I|O Detail'!K15 -> 114027.5614 | N10: 41.13 | O10: =27.74+58.5 -> 86.24 | P10: 1 | Q10: =(N10/(1+$P$2)*((1+$P$2)^P10*$P$2)/((1+$P$2)^P10-1)+O10)*L10 -> 14523690.5 | U10: Sediment Load w/ All MO (Mg/yr) | V10: ='Output Detail'!C27 -> 186235.155 | X10: +error | Y10: -error
A11: Corn-Soy Rotation with Winter Rye Cover Crop (%) | B11: 0 | C11: 0 | D11: 0 | E11: 0 | F11: 0 | G11: 0 | H11: 0 | I11: 0 | J11: 0 | K11: 0 | L11: ='I|O Detail'!K16 -> 0 | N11: =N9+7.5+13.1 -> 59.74 | O11: =O9+20.6 -> 110.44 | P11: 1 | Q11: =(N11/(1+$P$2)*((1+$P$2)^P11*$P$2)/((1+$P$2)^P11-1)+O11)*L11 -> 0 | U11: Reduction in Sediment Load (Mg/yr) | V11: =V9-V10 -> 0 | X11: =IF(M2=1,0,ABS(V11-'Output Detail'!G29)) -> 0 | Y11: =IF(M2=1,0,ABS(V11-'Output Detail'!H29)) -> 0
A12: Agricultural Field Management Option (AFMO) ALLOCATION | M12: Agricultural Field Management (AFMO) EFFECTIVENESS & COST | U12: Percent Reduction in Sediment Load | V12: =(V9-V10)/V9 -> 0
A13: Extent of all MOs (ft) | B13: 489638.4991 | C13: 153344.0383 | D13: 163290.961 | E13: 259759.3392 | F13: 192324.5412 | G13: 94595.77358 | H13: 254012.8137 | I13: 230363.2549 | J13: 44848.50993 | K13: =SUM(B13:J13) -> 1882177.731 | L13: AFMO*W [ac] | M13: Sed. Delivery | N13: Install. ($/ac) | O13: Mntnc [$/(ac*yr)] | P13: Life Span | Q13: Cost ($/yr) | T13: Cost summary
A14: Input extent (ft) | B14: 0 | C14: 0 | D14: 0 | E14: 0 | F14: 0 | G14: 0 | H14: 0 | I14: 0 | J14: 0 | K14: =SUM(B14:J14) -> 0 | L14: ='I|O Detail'!K30*'I|O Detail'!M28*0.0000229568 -> 0 | M14: 75 | N14: 3200 | O14: 64 | P14: 10 | Q14: =((N14+P3)/(1+$P$2)*((1+$P$2)^P14*$P$2)/((1+$P$2)^P14-1)+O14)*L14 -> 0 | U14: Upfront Land Acquisition Cost ($) | V14: =(L14+L17+L20)*P3 -> 0
A15: Buffer Strip Management Option (BFMO) ALLOCATION | M15: Buffer Strip Management (BFMO) EFFECTIVENESS & COST | U15: Upfront installation cost ($) | V15: =N9*L9+N10*L10+N11*L11+N14*L14+N17*L17+N20*L20+N23*L23+N26*L26+N29*L29-V3 -> 0
A16: Extent of all MOs (ft) | B16: 1070388.96 | C16: 332417.4384 | D16: 600050.4627 | E16: 615745.2147 | F16: 475116.9582 | G16: 379554.7766 | H16: 647512.0763 | I16: 647400.0214 | J16: 175287.2146 | K16: =SUM(B16:J16) -> 4943473.123 | L16: BFMO*W [ac] | M16: Sed. Delivery | N16: Install. ($/ac) | O16: Mntnc [$/(ac*yr)] | P16: Life Span | Q16: Cost ($/yr) | U16: Annual Maintenance Cost ($/yr) | V16: =O9*L9+O10*L10+O11*L11+O14*L14+O17*L17+O20*L20+O23*L23+O26*L26+O29*L29-V4 -> 0
A17: Input extent (ft) | B17: 0 | C17: 0 | D17: 0 | E17: 0 | F17: 0 | G17: 0 | H17: 0 | I17: 0 | J17: 0 | K17: =SUM(B17:J17) -> 0 | L17: ='I|O Detail'!K48 -> 0 | M17: 65 | N17: 1000 | O17: 45 | P17: 10 | Q17: =((N17+P4)/(1+$P$2)*((1+$P$2)^P17*$P$2)/((1+$P$2)^P17-1)+O17)*L17 -> 0 | U17: Annual Cost of MOs ($/yr) | V17: =Q9+Q10+Q11+Q14+Q17+Q20+Q23+Q26+Q29-V5 -> 0
A18: Water Conservation Management Option (WCMO) ALLOCATION | M18: Water Conservation Management (WCMO) COST | U18: Unit Cost ($/Mg) | V18: =IF(V11=0,"No sediment reduction",V17/V11) -> No sediment reduction
A19: Extent of all MOs (ac) | B19: 15424.07614 | C19: 4676.01331 | D19: 6637.162874 | E19: 7791.177575 | F19: 5142.403278 | G19: 3324.011444 | H19: 7870.591497 | I19: 8158.400063 | J19: 1553.000804 | K19: =SUM(B19:J19) -> 60576.83698 | L19: WCMO [ac] | M19: Sed. Delivery | N19: Install. ($/ac) | O19: Mntnc [$/(ac*yr)] | P19: Life Span | Q19: Cost ($/yr)
A20: Input extent (ac) | B20: 0 | C20: 0 | D20: 0 | E20: 0 | F20: 0 | G20: 0 | H20: 0 | I20: 0 | J20: 0 | K20: =SUM(B20:J20) -> 0 | L20: ='I|O Detail'!K58 -> 0 | M20: 90 | N20: 1500 | O20: 250 | P20: 25 | Q20: =((N20+P3)/(1+$P$2)*((1+$P$2)^P20*$P$2)/((1+$P$2)^P20-1)+O20)*L20 -> 0
A21: In-Channel Management Option (ICMO) ALLOCATION | M21: In-Channel Management (ICMO) COST
A22: Extent of all MOs (ft) | B22: 358396.0369 | C22: 196427.4921 | D22: 154817.9528 | E22: 146695.6534 | F22: 135844.5593 | G22: 34959.45956 | H22: 293606.5999 | I22: 181222.0239 | J22: 3063.821783 | K22: =SUM(B22:J22) -> 1505033.6 | L22: ICMO [ft] | N22: Install. ($/ft) | O22: Mntnc [$/(ft*yr)] | P22: Life Span | Q22: Total ($/yr)
A23: Input extent (ft) | B23: 0 | C23: 0 | D23: 0 | E23: 0 | F23: 0 | G23: 0 | H23: 0 | I23: 0 | J23: 0 | K23: =SUM(B23:J23) -> 0 | L23: ='I|O Detail'!K72 -> 0 | N23: 250 | O23: 1.4 | P23: 10 | Q23: =(N23/(1+$P$2)*((1+$P$2)^P23*$P$2)/((1+$P$2)^P23-1)+O23)*L23 -> 0
A24: Ravine Management Option (RAMO) ALLOCATION | M24: Ravine Management (RAMO) EFFECTIVENESS & COST
A25: number of ravine tips | B25: 0 | C25: 0 | D25: 275 | E25: 0 | F25: 0 | G25: 132 | H25: 0 | I25: 14 | J25: 196 | K25: =SUM(B25:J25) -> 617 | L25: RAMO [tips] | M25: Sed. Erosion | N25: Install. ($/TIP) | O25: Mntnc [$/(tip*yr)] | P25: Life Span | Q25: Total ($/yr)
A26: Input number of tips | B26: 0 | C26: 0 | D26: 0 | E26: 0 | F26: 0 | G26: 0 | H26: 0 | I26: 0 | J26: 0 | K26: =SUM(B26:J26) -> 0 | L26: ='I|O Detail'!K86 -> 0 | M26: 25 | N26: 6000 | O26: 35 | P26: 10 | Q26: =(N26/(1+$P$2)*((1+$P$2)^P26*$P$2)/((1+$P$2)^P26-1)+O26)*L26 -> 0
A27: Near-Channel Source Management Option (NCMO) ALLOCATION | M27: Near-Channel Source Management (NCMO) EFFECTIVENESS & COST
A28: Extent of all MOs (ft) | B28: 69773.62428 | C28: 3061.02372 | D28: 60675.85496 | E28: 8221.78504 | F28: 4091.20748 | G28: 44996.7206 | H28: 3520.34132 | I28: 11174.54104 | J28: 46830.71016 | K28: =SUM(B28:J28) -> 252345.8086 | L28: NCMO [ft] | M28: Sed. Erosion | N28: Install. ($/ft) | O28: Mntnc [$/(ft*yr)] | P28: Life Span | Q28: Total ($/yr)
A29: Input extent (ft) | B29: 0 | C29: 0 | D29: 0 | E29: 0 | F29: 0 | G29: 0 | H29: 0 | I29: 0 | J29: 0 | K29: =SUM(B29:J29) -> 0 | L29: ='I|O Detail'!K100 -> 0 | M29: 75 | N29: 400 | O29: 0.7 | P29: 5 | Q29: =(N29/(1+$P$2)*((1+$P$2)^P29*$P$2)/((1+$P$2)^P29-1)+O29)*L29 -> 0
T40: Run time
T41: deterministic (MC=1) | U41: ~5 | V41: sec
T42: stochastic (MC=1…N) | U42: ~20 | V42: sec

Sheet I|O Detail
A1: This worksheet contains some more detailed input that typically does not need to be changed for model runs | M1: User input only in Green Cells | S1: TLMO reference condition (2006-2010) set up for soil loss calculation
A2: The worksheet is accessible for purposes of evaluating model sensitivity to various fixed parameters | S2: (a) Percent area allocation of crop-tillage practice for the reference period
A3: The worksheet also contains more detail on the allocation of management options | L3: Percentile output= | M3: 10 | N3: % | O3: An,min (%)= | P3: 5 | S3: River | T3: LeSueur | W3: Cobb | Z3: Maple
A4: List of MOs: | B4: Field: | C4: TLMO | D4: AFMO | E4: BFMO | F4: Water conservation: | G4: WCMO | H4: ICMO | I4: Near-Channel: | J4: RAMO | K4: NCMO | L4: soil density= | M4: 1.3 | N4: Mg/m3 | O4: minimum area that will not be affected by MOs | S4: Zone | T4: Upland | U4: Trans | V4: Incised | W4: Upland | X4: Trans | Y4: Incised | Z4: Upland | AA4: Trans | AB4: Incised
A5: Tillage Management Option (TLMO) allocation and Sediment Loading Model | S5: Reference Period Tillage Management Option (TLMO) Allocation
A6: River | B6: LES | C6: LES | D6: LES | E6: COB | F6: COB | G6: COB | H6: MAP | I6: MAP | J6: MAP | S6: Extent of all farm land (ac) | T6: 132311 | U6: 37856 | V6: 51096 | W6: 77037 | X6: 58601 | Y6: 28643 | Z6: 84943 | AA6: 81737 | AB6: 19785
A7: Zone | B7: 1 | C7: 2 | D7: 3 | E7: 1 | F7: 2 | G7: 3 | H7: 1 | I7: 2 | J7: 3 | K7: Total | S7: Corn-Soy Rotation (%) | T7: 80 | U7: 80 | V7: 80 | W7: 80 | X7: 80 | Y7: 80 | Z7: 80 | AA7: 80 | AB7: 80
A8: Zone acre | B8: 159618.8091 | C8: 56012.20462 | D8: 76171.4012 | E8: 92673.61688 | F8: 68136.9056 | G8: 37074.37392 | H8: 98287.66933 | I8: 97487.17269 | J8: 25761.80818 | K8: =SUM(B8:J8) -> 711223.9615 | S8: Continuous Corn (%) | T8: 20 | U8: 20 | V8: 20 | W8: 20 | X8: 20 | Y8: 20 | Z8: 20 | AA8: 20 | AB8: 20
A9: Extent of potential MO sites (ac) | B9: 131976.3072 | C9: 37735.9335 | D9: 50961.04158 | E9: 76825.277 | F9: 58505.54501 | G9: 28587.70727 | H9: 84279.75257 | I9: 81555.55418 | J9: 19710.68862 | K9: 570137.807 | S9: Corn-Soy Rotation with Winter Rye cover crop (%) | T9: 0 | U9: 0 | V9: 0 | W9: 0 | X9: 0 | Y9: 0 | Z9: 0 | AA9: 0 | AB9: 0
A10: number of potential MO sites | B10: 107 | C10: 53 | D10: 76 | E10: 44 | F10: 68 | G10: 35 | H10: 49 | I10: 71 | J10: 25 | K10: 528 | T10: Note: This sets the baseline tillage practice status at the study site where the baseline soil loss rates corresponding to these three types of TLMO is calculated. Consequently, the changes in the proportions of tillage practice will result in different soil erosion in respect to the baseline tillage option input here. After changing the values in these tables, the use must "Rest Default-TLMO setting" for the subsequent simulations.
A11: Input area for conventional till (ac) | B11: =CONTROL!B9/100*B9 -> 105581.0458 | C11: =CONTROL!C9/100*C9 -> 30188.7468 | D11: =CONTROL!D9/100*D9 -> 40768.83327 | E11: =CONTROL!E9/100*E9 -> 61460.2216 | F11: =CONTROL!F9/100*F9 -> 46804.43601 | G11: =CONTROL!G9/100*G9 -> 22870.16582 | H11: =CONTROL!H9/100*H9 -> 67423.80206 | I11: =CONTROL!I9/100*I9 -> 65244.44334 | J11: =CONTROL!J9/100*J9 -> 15768.5509 | K11: 456110.2456
A12: Input area reduced till (ac) | B12: =CONTROL!B10/100*B9 -> 26395.26145 | C12: =CONTROL!C10/100*C9 -> 7547.186701 | D12: =CONTROL!D10/100*D9 -> 10192.20832 | E12: =CONTROL!E10/100*E9 -> 15365.0554 | F12: =CONTROL!F10/100*F9 -> 11701.109 | G12: =CONTROL!G10/100*G9 -> 5717.541454 | H12: =CONTROL!H10/100*H9 -> 16855.95051 | I12: =CONTROL!I10/100*I9 -> 16311.11084 | J12: =CONTROL!J10/100*J9 -> 3942.137725 | K12: =SUM(B12:J12) -> 114027.5614 | S12: (b) Soil erosion factors of the crop-tillage options
A13: Input area conservation till (ac) | B13: =CONTROL!B11/100*B9 -> 0 | C13: =CONTROL!C11/100*C9 -> 0 | D13: =CONTROL!D11/100*D9 -> 0 | E13: =CONTROL!E11/100*E9 -> 0 | F13: =CONTROL!F11/100*F9 -> 0 | G13: =CONTROL!G11/100*G9 -> 0 | H13: =CONTROL!H11/100*H9 -> 0 | I13: =CONTROL!I11/100*I9 -> 0 | J13: =CONTROL!J11/100*J9 -> 0 | K13: 0 | S13: Crop-tillage options | T13: Soil erosion factor (C-factor of the USLE)
A14: Corn-Soy Rotation (ac) | B14: 105581.0458 | C14: 30188.7468 | D14: 40768.83327 | E14: 61460.2216 | F14: 46804.43601 | G14: 22870.16582 | H14: 67423.80206 | I14: 65244.44334 | J14: 15768.5509 | K14: =SUM(B14:J14) -> 456110.2456 | S14: Corn-Soy rotation with conventional till | T14: 1.31 | U14: "Soil Erosion and the Iowa Soil 2000 Program" by Miller (1988)
A15: Continuous Corn (ac) | B15: 26395.26145 | C15: 7547.186701 | D15: 10192.20832 | E15: 15365.0554 | F15: 11701.109 | G15: 5717.541454 | H15: 16855.95051 | I15: 16311.11084 | J15: 3942.137725 | K15: =SUM(B15:J15) -> 114027.5614 | S15: Continuous corn with conventional till | T15: 1 | U15: "Soil Erosion and the Iowa Soil 2000 Program" by Miller (1988)
A16: Corn-Soy Rotation with Winter Rye Cover Crop (ac) | B16: 0 | C16: 0 | D16: 0 | E16: 0 | F16: 0 | G16: 0 | H16: 0 | I16: 0 | J16: 0 | K16: 0 | S16: Corn-Soy rotation with Winter Rye cover crop | T16: 0.35 | U16: "Assessment of USLE cover-management C-factors for 40 crop rotation systems on arable farms in the Kemmelbeek watershed, Belgium" by Gabriels et al., (2003)
S17: (c ) Soil loss factor for the sediment loading module calculated based on the reference period allocation and soil erosion factor
A18: Corn-Soy Rotation (%) | B18: =B14/B$9 -> 0.8 | C18: =C14/C$9 -> 0.8 | D18: 0.8 | E18: 0.8 | F18: 0.8 | G18: 0.8 | H18: 0.8 | I18: 0.8 | J18: 0.8 | S18: River | T18: LeSueur | W18: Cobb | Z18: Maple
A19: Continuous Corn (%) | B19: =B15/B$9 -> 0.2 | C19: 0.2 | D19: 0.2 | E19: 0.2 | F19: 0.2 | G19: 0.2 | H19: 0.2 | I19: 0.2 | J19: 0.2 | S19: Zone | T19: Upland | U19: Trans | V19: Incised | W19: Upland | X19: Trans | Y19: Incised | Z19: Upland | AA19: Trans | AB19: Incised
A20: Corn-Soy Rotation with Winter Rye Cover Crop (%) | B20: 0 | C20: 0 | D20: 0 | E20: 0 | F20: 0 | G20: 0 | H20: 0 | I20: 0 | J20: 0 | S20: alpha1 | T20: =1/(T$7/100+$T$15/$T$14*T$8/100+$T$16/$T$14*T$9/100) -> 1.049679487 | U20: =1/(U$7/100+$T$15/$T$14*U$8/100+$T$16/$T$14*U$9/100) -> 1.049679487 | V20: 1.049679487 | W20: 1.049679487 | X20: 1.049679487 | Y20: 1.049679487 | Z20: 1.049679487 | AA20: 1.049679487 | AB20: 1.049679487
A21: % zone area selected | B21: =SUM(B14:B16)/B8 -> 0.8268217764 | C21: =SUM(C14:C16)/C8 -> 0.6737091275 | D21: 0.6690311689 | E21: 0.8289875758 | F21: 0.8586469329 | G21: 0.7710907629 | H21: 0.857480426 | I21: 0.8365772843 | J21: =SUM(J14:J16)/J8 -> 0.7651127781 | K21: =(K14+K15+K16)/K8 -> 0.8016290759 | S21: alpha2 | T21: =$T$15/$T$14*T$20 -> 0.8012820513 | U21: =$T$15/$T$14*U$20 -> 0.8012820513 | V21: 0.8012820513 | W21: 0.8012820513 | X21: 0.8012820513 | Y21: 0.8012820513 | Z21: 0.8012820513 | AA21: 0.8012820513 | AB21: 0.8012820513
S22: alpha3 | T22: =$T$16/$T$14*T20 -> 0.2804487179 | U22: =$T$16/$T$14*U20 -> 0.2804487179 | V22: 0.2804487179 | W22: 0.2804487179 | X22: 0.2804487179 | Y22: 0.2804487179 | Z22: 0.2804487179 | AA22: 0.2804487179 | AB22: 0.2804487179
A23: Agricultural Field Management Option (AFMO) allocation and Sediment Loading Model | M23: A | N23: Site Allocation Selection Criterion
A24: River | B24: LES | C24: LES | D24: LES | E24: COB | F24: COB | G24: COB | H24: MAP | I24: MAP | J24: MAP | M24: A*: | N24: Select sites with largest upstream drainage first
A25: Zone | B25: 1 | C25: 2 | D25: 3 | E25: 1 | F25: 2 | G25: 3 | H25: 1 | I25: 2 | J25: 3 | K25: Total | M25: B: | N25: Select larger sites located on hydric soil first
A26: Zone acre | B26: 159618.8091 | C26: 56012.20462 | D26: 76171.4012 | E26: 92673.61688 | F26: 68136.9056 | G26: 37074.37392 | H26: 98287.66933 | I26: 97487.17269 | J26: 25761.80818 | K26: =SUM(B26:J26) -> 711223.9615 | M26: C: | N26: Select sites that are closest to stream network first.
A27: Extent of potential MO sites (ft) | B27: 489638.4991 | C27: 153344.0383 | D27: 163290.961 | E27: 259759.3392 | F27: 192324.5412 | G27: 94595.77358 | H27: 254012.8137 | I27: 230363.2549 | J27: 44848.50993 | K27: 1882177.731
A28: number of potential MO sites | B28: 545 | C28: 195 | D28: 212 | E28: 277 | F28: 231 | G28: 110 | H28: 266 | I28: 234 | J28: 49 | K28: 2119 | L28: Design Width= | M28: 100 | N28: ft
A29: Input area (ft) | B29: =CONTROL!B14 -> 0 | C29: =CONTROL!C14 -> 0 | D29: =CONTROL!D14 -> 0 | E29: =CONTROL!E14 -> 0 | F29: =CONTROL!F14 -> 0 | G29: =CONTROL!G14 -> 0 | H29: =CONTROL!H14 -> 0 | I29: =CONTROL!I14 -> 0 | J29: =CONTROL!J14 -> 0 | K29: 0
A30: extent selected | B30: 0 | C30: 0 | D30: 0 | E30: 0 | F30: 0 | G30: 0 | H30: 0 | I30: 0 | J30: 0 | K30: 0 | L30: Pgw= | M30: 0.5 | N30: [0,1] degree of overlap between AFMO DA and WCMO DA
A31: Extent remaining (ft) | B31: 489638.4991 | C31: 153344.0383 | D31: 163290.961 | E31: 259759.3392 | F31: 192324.5412 | G31: 94595.77358 | H31: 254012.8137 | I31: 230363.2549 | J31: 44848.50993 | K31: 1882177.731 | M31: 0 | N31: no overlap between AFMO DA and WCMO DA
A32: # sites selected | B32: 0 | C32: 0 | D32: 0 | E32: 0 | F32: 0 | G32: 0 | H32: 0 | I32: 0 | J32: 0 | K32: 0 | M32: 1 | N32: Complete overlap (e.g., AFMO DA is subsumed by WCMO DA)
A33: next best AFMO area (ft) | B33: 6039.570794 | C33: 6039.570794 | D33: 6039.570794 | E33: 6039.570794 | F33: 6039.570794 | G33: 6039.570794 | H33: 6039.570794 | I33: 6039.570794 | J33: 6039.570794 | K33: 54356.13714
A34: DA [ac] | B34: 0 | C34: 0 | D34: 0 | E34: 0 | F34: 0 | G34: 0 | H34: 0 | I34: 0 | J34: 0 | K34: 0
A35: % zone area selected | B35: =B30*$M$28*0.0000229568/B26 -> 0 | C35: =C30*$M$28*0.0000229568/C26 -> 0 | D35: 0 | E35: 0 | F35: 0 | G35: 0 | H35: 0 | I35: 0 | J35: 0 | K35: =K30*M28*0.0000229568/K26 -> 0
A37: Buffer Strip Management Option (BFMO) allocation and Sediment Loading Model | M37: B | N37: Allocation Selection Criterion
A38: River | B38: LES | C38: LES | D38: LES | E38: COB | F38: COB | G38: COB | H38: MAP | I38: MAP | J38: MAP | M38: A: | N38: Select sites with largest upstream drainage area first
A39: Zone | B39: 1 | C39: 2 | D39: 3 | E39: 1 | F39: 2 | G39: 3 | H39: 1 | I39: 2 | J39: 3 | K39: Total | M39: B*: | N39: Farthest upstream selected first (i.e. BFMO in zone 1)
A40: River segments length [ft] | B40: 1326765.723 | C40: 410243.199 | D40: 640211.7458 | E40: 803560.1516 | F40: 561875.1298 | G40: 427931.7449 | H40: 820102.9886 | I40: 756569.0974 | J40: 284180.0945 | K40: =SUM(B40:J40) -> 6031439.875 | M40: C: | N40: Select sequentially: stream, canal ditch, connector, then artificial path
A41: Extent of potential MO sites (ft) | B41: 1070388.96 | C41: 332417.4384 | D41: 600050.4627 | E41: 615745.2147 | F41: 475116.9582 | G41: 379554.7766 | H41: 647512.0763 | I41: 647400.0214 | J41: 175287.2146 | K41: =SUM(B41:J41) -> 4943473.123 | T41: Near-channel supply prediction model
A42: number of potential MO sites | B42: 103 | C42: 41 | D42: 67 | E42: 55 | F42: 48 | G42: 63 | H42: 60 | I42: 69 | J42: 11 | K42: 517 | L42: Drainage extent= | M42: 328 | N42: ft | O42: Buffers drains 100m of its surrounding area
A43: Input area (ft) | B43: =CONTROL!B17 -> 0 | C43: =CONTROL!C17 -> 0 | D43: =CONTROL!D17 -> 0 | E43: =CONTROL!E17 -> 0 | F43: =CONTROL!F17 -> 0 | G43: =CONTROL!G17 -> 0 | H43: =CONTROL!H17 -> 0 | I43: =CONTROL!I17 -> 0 | J43: =CONTROL!J17 -> 0 | K43: =SUM(B43:J43) -> 0 | T43: The power function relation on the right plot is derived from an analysis of paired gages in the Le Sueur River Basin. The function expresses the sediment loading from near-channel sources in the incised zone (scaled by incised river length (Lincs)) as a function of river discharge recorded at the lower gage (scaled by the upstream drainge area (DA)). MOSM simulates river discharge in the subbasins (SB) where the lower gages are located to evaluate the effects of water storage on peak flow attenuation and consequent reduction from near-channel sources in the incised zone.
A44: extent selected | B44: 0 | C44: 0 | D44: 0 | E44: 0 | F44: 0 | G44: 0 | H44: 0 | I44: 0 | J44: 0 | K44: =SUM(B44:J44) -> 0 | M44: Buffer width | O44: DNR guideline:
A45: Extent remaining (ft) | B45: 1070388.96 | C45: 332417.4384 | D45: 600050.4627 | E45: 615745.2147 | F45: 475116.9582 | G45: 379554.7766 | H45: 647512.0763 | I45: 647400.0214 | J45: 175287.2146 | K45: 4943473.123 | L45: Natural stream= | M45: 50 | N45: ft | O45: 16.5 feet on either side of the artificial water ways
A46: # sites selected | B46: 0 | C46: 0 | D46: 0 | E46: 0 | F46: 0 | G46: 0 | H46: 0 | I46: 0 | J46: 0 | K46: 0 | L46: Artificial stream= | M46: 16.5 | N46: ft | O46: 50ft on either side of streams and rivers
A47: next best BFMO site (ft) | B47: 269.9912834 | C47: 269.9912834 | D47: 269.9912834 | E47: 269.9912834 | F47: 269.9912834 | G47: 269.9912834 | H47: 269.9912834 | I47: 269.9912834 | J47: 269.9912834 | K47: 2429.921551
A48: selected BFMO area [ac] | B48: 0 | C48: 0 | D48: 0 | E48: 0 | F48: 0 | G48: 0 | H48: 0 | I48: 0 | J48: 0 | K48: 0 | L48: <----------------------- | M48: Buffer width on either side of stream (ac) with standard width
A49: DA [ac] | B49: 0 | C49: 0 | D49: 0 | E49: 0 | F49: 0 | G49: 0 | H49: 0 | I49: 0 | J49: 0 | K49: =SUM(B49:J49) -> 0 | L49: =K48*43560/2/K44 ->  | M49: ft | N49: average width of selected BFMO
A51: Water Conservation Management Option (WCMO) Allocation and Water Routing model | M51: B | N51: Allocation Selection Criterion
A52: River | B52: LES | C52: LES | D52: LES | E52: COB | F52: COB | G52: COB | H52: MAP | I52: MAP | J52: MAP | M52: A: | N52: Select sites with lower CPI value with higher natural depth (Crop Productivity Index (CPI) / Depth of WCMO)
A53: Zone | B53: 1 | C53: 2 | D53: 3 | E53: 1 | F53: 2 | G53: 3 | H53: 1 | I53: 2 | J53: 3 | K53: Total | M53: B*: | N53: Select sites with higher natural depth located on Hydric soil first) | T53: Watershed dimension
A54: Zone acre | B54: 159618.8091 | C54: 56012.20462 | D54: 76171.4012 | E54: 92673.61688 | F54: 68136.9056 | G54: 37074.37392 | H54: 98287.66933 | I54: 97487.17269 | J54: 25761.80818 | K54: =SUM(B54:J54) -> 711223.9615 | M54: C: | N54: Select sites closer to exsiting wetlands and CRP sites first | T54: Le Sueur River Basin DA [km2], Lincs [km] | V54: =SUM(V56:V58) -> 2817.83 | W54: =SUM(W56:W58) -> 108.54
A55: Extent of poential MO sites (ac) | B55: 15424.07614 | C55: 4676.01331 | D55: 6637.162874 | E55: 7791.177575 | F55: 5142.403278 | G55: 3324.011444 | H55: 7870.591497 | I55: 8158.400063 | J55: 1553.000804 | K55: =SUM(B55:J55) -> 60576.83698 | L55: Drainage factor= | M55: 8.9 | O55: Determines the area WCMO drains | U55: SB | V55: Drainage area [km2] | W55: Lincs [km]
A56: number of potential MO sites | B56: 1931 | C56: 540 | D56: 756 | E56: 1068 | F56: 874 | G56: 340 | H56: 1203 | I56: 938 | J56: 233 | K56: =SUM(B56:J56) -> 7883 | L56: Design Depth= | M56: 6.6 | N56: ft | O56: Averge WCMO Depth | T56: Le Sueur | U56: 4 | V56: 1156.558 | W56: 40.84
A57: Input area (ac) | B57: =CONTROL!B20 -> 0 | C57: =CONTROL!C20 -> 0 | D57: =CONTROL!D20 -> 0 | E57: =CONTROL!E20 -> 0 | F57: =CONTROL!F20 -> 0 | G57: =CONTROL!G20 -> 0 | H57: =CONTROL!H20 -> 0 | I57: =CONTROL!I20 -> 0 | J57: =CONTROL!J20 -> 0 | K57: 0 | L57: alpha= | M57: 0.5 | N57: - | O57: Fraction of the WCMO perimeter where water outflows | T57: Cobb | U57: 13 | V57: 784.122 | W57: 35.79
A58: extent selected (ac) | B58: 0 | C58: 0 | D58: 0 | E58: 0 | F58: 0 | G58: 0 | H58: 0 | I58: 0 | J58: 0 | K58: 0 | L58: C= | M58: 2 | N58: m^0.5/hr | O58: variable coefficient of discharge | T58: Maple | U58: 19 | V58: 877.15 | W58: 31.91
A59: Extent remaining (ac) | B59: 15424.07614 | C59: 4676.01331 | D59: 6637.162874 | E59: 7791.177575 | F59: 5142.403278 | G59: 3324.011444 | H59: 7870.591497 | I59: 8158.400063 | J59: 1553.000804 | K59: 60576.83698 | U59: 1985-01-01 | V59: 2009-12-31
A60: # sites selected | B60: 0 | C60: 0 | D60: 0 | E60: 0 | F60: 0 | G60: 0 | H60: 0 | I60: 0 | J60: 0 | K60: 0 | L60: K= | M60: 1e-07 | N60: m/s | O60: Hydraulic conductivity | T60: Qthresh [m3/s-km2] | U60: 0.01 | V60: =U60 -> 0.01 | W60: Power function parameter input from the regression<------------------
A61: next best WCMO area (ac) | B61: 10.53638056 | C61: 10.53638056 | D61: 10.53638056 | E61: 10.53638056 | F61: 10.53638056 | G61: 10.53638056 | H61: 10.53638056 | I61: 10.53638056 | J61: 10.53638056 | K61: 94.82742503 | L61: ET= | M61: 1.15741e-08 | N61: m/s | O61: Evapotranspiration rate | T61: Le Sueur [cms] | U61: =U60*V56 -> 11.56558 | V61: =V$60*$V56 -> 11.56558 | W61: a= | X61: 6867.9
A62: DA [ac] | B62: 0 | C62: 0 | D62: 0 | E62: 0 | F62: 0 | G62: 0 | H62: 0 | I62: 0 | J62: 0 | K62: =SUM(B62:J62) -> 0 | T62: Cobb [cms] | U62: =U60*V57 -> 7.84122 | V62: =V$60*$V57 -> 7.84122 | W62: b= | X62: 2.1572
A63: % zone area selected | B63: =B58/B54 -> 0 | C63: =C58/C54 -> 0 | D63: 0 | E63: 0 | F63: 0 | G63: 0 | H63: 0 | I63: 0 | J63: 0 | K63: =K58/K54 -> 0 | T63: Maple [cms] | U63: =U60*V58 -> 8.7715 | V63: =V$60*$V58 -> 8.7715
T64: LES [cfs] | U64: =LES_Qth*35.3147 -> 408.434988
A65: In-Channel Management Option (ICMO) Allocation and Water Routing model | M65: B | N65: Allocation Selection Criterion | T65: COB [cfs] | U65: =COB_Qth*35.3147 -> 276.9103319
A66: River | B66: LES | C66: LES | D66: LES | E66: COB | F66: COB | G66: COB | H66: MAP | I66: MAP | J66: MAP | M66: A: | N66: Longest ditches selected first | T66: MAP [cfs] | U66: =MAP_Qth*35.3147 -> 309.7628911
A67: Zone | B67: 1 | C67: 2 | D67: 3 | E67: 1 | F67: 2 | G67: 3 | H67: 1 | I67: 2 | J67: 3 | K67: Total | M67: B*: | N67: Closest to SEDSB outlet (i.e., larger flow accumulation)
A68: River segments length [ft] | B68: 1326765.723 | C68: 410243.199 | D68: 640211.7458 | E68: 803560.1516 | F68: 561875.1298 | G68: 427931.7449 | H68: 820102.9886 | I68: 756569.0974 | J68: 284180.0945 | K68: =SUM(B68:J68) -> 6031439.875 | M68: C: | N68: Farthest upstream selected first (i.e. ICMO in zone 1)
A69: Extent of potential MO sites (ft) | B69: 358396.0369 | C69: 196427.4921 | D69: 154817.9528 | E69: 146695.6534 | F69: 135844.5593 | G69: 34959.45956 | H69: 293606.5999 | I69: 181222.0239 | J69: 3063.821783 | K69: =SUM(B69:J69) -> 1505033.6 | T69: ICMO design input reference
A70: number of potential MO sites | B70: 152 | C70: 67 | D70: 45 | E70: 61 | F70: 34 | G70: 12 | H70: 104 | I70: 61 | J70: 1 | K70: 537 | L70: Drainage factor= | M70: 9 | N70: Determines the area ICMO drains
A71: Input length (ft) | B71: =CONTROL!B23 -> 0 | C71: =CONTROL!C23 -> 0 | D71: =CONTROL!D23 -> 0 | E71: =CONTROL!E23 -> 0 | F71: =CONTROL!F23 -> 0 | G71: =CONTROL!G23 -> 0 | H71: =CONTROL!H23 -> 0 | I71: =CONTROL!I23 -> 0 | J71: =CONTROL!J23 -> 0 | K71: 0 | M71: e.g., Default value of 9 incidates that the ICMO drains 9 times its area
A72: extent selected (ft) | B72: 0 | C72: 0 | D72: 0 | E72: 0 | F72: 0 | G72: 0 | H72: 0 | I72: 0 | J72: 0 | K72: 0
A73: Extent remaining (ft) | B73: 358396.0369 | C73: 196427.4921 | D73: 154817.9528 | E73: 146695.6534 | F73: 135844.5593 | G73: 34959.45956 | H73: 293606.5999 | I73: 181222.0239 | J73: 3063.821783 | K73: 1505033.6 | M73: ICMO Geometry
A74: # sites selected | B74: 0 | C74: 0 | D74: 0 | E74: 0 | F74: 0 | G74: 0 | H74: 0 | I74: 0 | J74: 0 | K74: 0 | L74: Design Depth= | M74: 10 | N74: ft
A75: next best ICMO length (ft) | B75: 4612.873175 | C75: 4612.873175 | D75: 4612.873175 | E75: 4612.873175 | F75: 4612.873175 | G75: 4612.873175 | H75: 4612.873175 | I75: 4612.873175 | J75: 4612.873175 | K75: =SUM(B75:J75) -> 41515.85858 | L75: WW = | M75: 100 | N75: ft
A76: DA [ac] | B76: 0 | C76: 0 | D76: 0 | E76: 0 | F76: 0 | G76: 0 | H76: 0 | I76: 0 | J76: 0 | K76: =SUM(B76:J76) -> 0 | L76: NW= | M76: 5 | N76: ft
A77: % river length | B77: =B72/B68 -> 0 | C77: =C72/C68 -> 0 | D77: 0 | E77: 0 | F77: 0 | G77: 0 | H77: 0 | I77: 0 | J77: 0 | K77: =K72/K68 -> 0 | L77: NH= | M77: 1 | N77: ft
U78: A
A79: Ravine Management Option (RAMO) and Sediment Loading Model | M79: A | N79: Allocation Selection Criterion | U79: B
A80: River | B80: LES | C80: LES | D80: LES | E80: COB | F80: COB | G80: COB | H80: MAP | I80: MAP | J80: MAP | M80: A*: | N80: Select the ravines with largest load per tip | U80: C
A81: Zone | B81: 1 | C81: 2 | D81: 3 | E81: 1 | F81: 2 | G81: 3 | H81: 1 | I81: 2 | J81: 3 | K81: Total | M81: B: | N81: Select ravine by its evolution stages (0 first then 1,2, and 3)
A82: Zone acre | B82: 159618.8091 | C82: 56012.20462 | D82: 76171.4012 | E82: 92673.61688 | F82: 68136.9056 | G82: 37074.37392 | H82: 98287.66933 | I82: 97487.17269 | J82: 25761.80818 | K82: =SUM(B82:J82) -> 711223.9615 | N82: 0: ravine empties into channel
A83: number of ravine tips | B83: 0 | C83: 0 | D83: 275 | E83: 0 | F83: 0 | G83: 132 | H83: 0 | I83: 14 | J83: 196 | K83: 617 | N83: 1: ravine ends on a terrace/abandoned channel
A84: number of ravines | B84: 0 | C84: 0 | D84: 29 | E84: 0 | F84: 0 | G84: 33 | H84: 0 | I84: 3 | J84: 41 | K84: 106 | N84: 2: ravine has an alluvial fan
A85: Input number of tips | B85: =CONTROL!B26 -> 0 | C85: =CONTROL!C26 -> 0 | D85: =CONTROL!D26 -> 0 | E85: =CONTROL!E26 -> 0 | F85: =CONTROL!F26 -> 0 | G85: =CONTROL!G26 -> 0 | H85: =CONTROL!H26 -> 0 | I85: =CONTROL!I26 -> 0 | J85: =CONTROL!J26 -> 0 | K85: 0 | N85: 3: ravine captured by another ravine
A86: tips selected | B86: 0 | C86: 0 | D86: 0 | E86: 0 | F86: 0 | G86: 0 | H86: 0 | I86: 0 | J86: 0 | K86: 0 | L86: 80
A87: remaining tips | B87: 0 | C87: 0 | D87: 275 | E87: 0 | F87: 0 | G87: 132 | H87: 0 | I87: 14 | J87: 196 | K87: 617 | L87: Fr= | M87: 80 | N87: % sediment loading addressed from RAMO
A88: number of ravines selected | B88: 0 | C88: 0 | D88: 0 | E88: 0 | F88: 0 | G88: 0 | H88: 0 | I88: 0 | J88: 0 | K88: 0 | M88: e.g. | N88: 0%: just prevents tip expansion
A89: Next ravine's load per tip | B89: 237.88854 | C89: 237.88854 | D89: 237.88854 | E89: 237.88854 | F89: 237.88854 | G89: 237.88854 | H89: 237.88854 | I89: 237.88854 | J89: 237.88854 | N89: 80%: complete stabilization of branch
A91: % tips selected in zone | D91: =D86/D83 -> 0 | G91: 0 | I91: 0 | J91: 0 | K91: =K86/K82 -> 0
A93: Near-Channel Source Management Options (NCMOs) and Sediment Loading Model | M93: B | N93: Allocation Selection Criterion
A94: River | B94: LES | C94: LES | D94: LES | E94: COB | F94: COB | G94: COB | H94: MAP | I94: MAP | J94: MAP | M94: A: | N94: Select tallest bluffs with largest open surface area
A95: Zone | B95: 1 | C95: 2 | D95: 3 | E95: 1 | F95: 2 | G95: 3 | H95: 1 | I95: 2 | J95: 3 | K95: Total | M95: B*: | N95: select bluffs with larger loads first
A96: River segments length [ft] | B96: 1326765.723 | C96: 410243.199 | D96: 640211.7458 | E96: 803560.1516 | F96: 561875.1298 | G96: 427931.7449 | H96: 820102.9886 | I96: 756569.0974 | J96: 284180.0945 | K96: =SUM(B96:J96) -> 6031439.875
A97: Extent of potential MO sites (ft) | B97: 69773.62428 | C97: 3061.02372 | D97: 60675.85496 | E97: 8221.78504 | F97: 4091.20748 | G97: 44996.7206 | H97: 3520.34132 | I97: 11174.54104 | J97: 46830.71016 | K97: 252345.8086
A98: nubmer of potential MO sites | B98: 407 | C98: 24 | D98: 201 | E98: 74 | F98: 36 | G98: 154 | H98: 18 | I98: 50 | J98: 124 | K98: 1088
A99: Input length (ft) | B99: =CONTROL!B29 -> 0 | C99: =CONTROL!C29 -> 0 | D99: =CONTROL!D29 -> 0 | E99: =CONTROL!E29 -> 0 | F99: =CONTROL!F29 -> 0 | G99: =CONTROL!G29 -> 0 | H99: =CONTROL!H29 -> 0 | I99: =CONTROL!I29 -> 0 | J99: =CONTROL!J29 -> 0 | K99: 0
A100: extent selected | B100: 0 | C100: 0 | D100: 0 | E100: 0 | F100: 0 | G100: 0 | H100: 0 | I100: 0 | J100: 0 | K100: 0
A101: Extent remaining (ft) | B101: 69773.62428 | C101: 3061.02372 | D101: 60675.85496 | E101: 8221.78504 | F101: 4091.20748 | G101: 44996.7206 | H101: 3520.34132 | I101: 11174.54104 | J101: 46830.71016 | K101: 252345.8086
A102: # sites selected | B102: 0 | C102: 0 | D102: 0 | E102: 0 | F102: 0 | G102: 0 | H102: 0 | I102: 0 | J102: 0 | K102: 0
A103: Next site (ft) | B103: 1551.83732 | C103: 1551.83732 | D103: 1551.83732 | E103: 1551.83732 | F103: 1551.83732 | G103: 1551.83732 | H103: 1551.83732 | I103: 1551.83732 | J103: 1551.83732
A105: % river length | B105: =B100/B96 -> 0 | C105: =C100/C96 -> 0 | D105: 0 | E105: 0 | F105: 0 | G105: 0 | H105: 0 | I105: 0 | J105: 0 | K105: =K100/K96 -> 0

Sheet Reference Scenarios
A1: 25
H2: AFMO | Q2: BFMO | Z2: WCMO | AI2: RAMO | AR2: NCMO | BA2: % Reduction from NCSS
E3: SL reduction | F3: MO cost | H3: LES | K3: COB | N3: MAP | Q3: LES | T3: COB | W3: MAP | Z3: LES | AC3: COB | AF3: MAP | AI3: LES | AL3: COB | AO3: MAP | AR3: LES | AU3: COB | AX3: MAP | BA3: from WCMO implementation
B4: Test | C4: Strategy | D4: Scenario | E4: Mg/yr | F4: $/yr | G4: TLMO | H4: Zone1 | I4: Zone2 | J4: Zone3 | K4: Zone1 | L4: Zone2 | M4: Zone3 | N4: Zone1 | O4: Zone2 | P4: Zone3 | Q4: Zone1 | R4: Zone2 | S4: Zone3 | T4: Zone1 | U4: Zone2 | V4: Zone3 | W4: Zone1 | X4: Zone2 | Y4: Zone3 | Z4: Zone1 | AA4: Zone2 | AB4: Zone3 | AC4: Zone1 | AD4: Zone2 | AE4: Zone3 | AF4: Zone1 | AG4: Zone2 | AH4: Zone3 | AI4: Zone1 | AJ4: Zone2 | AK4: Zone3 | AL4: Zone1 | AM4: Zone2 | AN4: Zone3 | AO4: Zone1 | AP4: Zone2 | AQ4: Zone3 | AR4: Zone1 | AS4: Zone2 | AT4: Zone3 | AU4: Zone1 | AV4: Zone2 | AW4: Zone3 | AX4: Zone1 | AY4: Zone2 | AZ4: Zone3 | BA4: MAP | BB4: COB | BC4: LES
B5: 1 | C5: Ag Field Management | D5: T1AF2% | E5: 68.34742821 | F5: 166105.7011 | G5: T1:80%-20%-0% | H5: 0.02 | I5: 0.02 | J5: 0.02 | K5: 0.02 | L5: 0.02 | M5: 0.02 | N5: 0.02 | O5: 0.02 | P5: 0.02
B6: =B5+1 -> 2 | C6: Ag Field Management | D6: T1AF5% | E6: 129.8744453 | F6: 353360.1046 | G6: T1:80%-20%-0% | H6: 0.05 | I6: 0.05 | J6: 0.05 | K6: 0.05 | L6: 0.05 | M6: 0.05 | N6: 0.05 | O6: 0.05 | P6: 0.05
B7: =B6+1 -> 3 | C7: Ag Field Management | D7: T1AF10% | E7: 218.8402148 | F7: 667055.9455 | G7: T1:80%-20%-0% | H7: 0.1 | I7: 0.1 | J7: 0.1 | K7: 0.1 | L7: 0.1 | M7: 0.1 | N7: 0.1 | O7: 0.1 | P7: 0.1
B8: 4 | C8: Ag Field Management | D8: T1AF20% | E8: 1008.227885 | F8: 3211682.023 | G8: T1:80%-20%-0% | H8: 0.5 | I8: 0.5 | J8: 0.5 | K8: 0.5 | L8: 0.5 | M8: 0.5 | N8: 0.5 | O8: 0.5 | P8: 0.5
B9: 5 | C9: Ag Field Management | D9: T1AF50% | E9: 1526.57842 | F9: 6403598.876 | G9: T1:80%-20%-0% | H9: 1 | I9: 1 | J9: 1 | K9: 1 | L9: 1 | M9: 1 | N9: 1 | O9: 1 | P9: 1
B10: 6 | C10: Stream Buffer Mgmt | D10: T1BF2% | E10: 167.0896282 | F10: 404472.6863 | G10: T1:80%-20%-0% | Q10: 0.02 | R10: 0.02 | S10: 0.02 | T10: 0.02 | U10: 0.02 | V10: 0.02 | W10: 0.02 | X10: 0.02 | Y10: 0.02
B11: 7 | C11: Stream Buffer Mgmt | D11: T1BF5% | E11: 322.9750289 | F11: 727203.6831 | G11: T1:80%-20%-0% | Q11: 0.05 | R11: 0.05 | S11: 0.05 | T11: 0.05 | U11: 0.05 | V11: 0.05 | W11: 0.05 | X11: 0.05 | Y11: 0.05
B12: 8 | C12: Stream Buffer Mgmt | D12: T1BF10% | E12: 532.5717909 | F12: 1553262.573 | G12: T1:80%-20%-0% | Q12: 0.1 | R12: 0.1 | S12: 0.1 | T12: 0.1 | U12: 0.1 | V12: 0.1 | W12: 0.1 | X12: 0.1 | Y12: 0.1
B13: 9 | C13: Stream Buffer Mgmt | D13: T1BF50% | E13: 2390.060794 | F13: 6174329.627 | G13: T1:80%-20%-0% | Q13: 0.5 | R13: 0.5 | S13: 0.5 | T13: 0.5 | U13: 0.5 | V13: 0.5 | W13: 0.5 | X13: 0.5 | Y13: 0.5
B14: 10 | C14: Stream Buffer Mgmt | D14: T1BF100% | E14: 4846.038193 | F14: 11873977.66 | G14: T1:80%-20%-0% | Q14: 1 | R14: 1 | S14: 1 | T14: 1 | U14: 1 | V14: 1 | W14: 1 | X14: 1 | Y14: 1
B15: 11 | C15: Water Conservation | D15: T1WC2% | E15: 6961.588588 | F15: 1603957.282 | G15: T1:80%-20%-0% | Z15: 0.02 | AA15: 0.02 | AB15: 0.02 | AC15: 0.02 | AD15: 0.02 | AE15: 0.02 | AF15: 0.02 | AG15: 0.02 | AH15: 0.02 | BA15: 0.04705766958 | BB15: 0.05626136002 | BC15: 0.0463560253
B16: 12 | C16: Water Conservation | D16: T1WC5% | E16: 14288.46913 | F16: 3357045.481 | G16: T1:80%-20%-0% | Z16: 0.05 | AA16: 0.05 | AB16: 0.05 | AC16: 0.05 | AD16: 0.05 | AE16: 0.05 | AF16: 0.05 | AG16: 0.05 | AH16: 0.05 | BA16: 0.1269593961 | BB16: 0.08798225157 | BC16: 0.09448439819
B17: 13 | C17: Water Conservation | D17: T1WC10% | E17: 24007.70293 | F17: 5809339.148 | G17: T1:80%-20%-0% | Z17: 0.1 | AA17: 0.1 | AB17: 0.1 | AC17: 0.1 | AD17: 0.1 | AE17: 0.1 | AF17: 0.1 | AG17: 0.1 | AH17: 0.1 | BA17: 0.1716345521 | BB17: 0.1640500298 | BC17: 0.1786940681
B18: 14 | C18: Water Conservation | D18: T1WC50% | E18: 93993.05371 | F18: 27861213.46 | G18: T1:80%-20%-0% | Z18: 0.5 | AA18: 0.5 | AB18: 0.5 | AC18: 0.5 | AD18: 0.5 | AE18: 0.5 | AF18: 0.5 | AG18: 0.5 | AH18: 0.5 | BA18: 0.636291254 | BB18: 0.6350585562 | BC18: 0.7199812095
B19: 15 | C19: Water Conservation | D19: T1WC100% | E19: 136712.5397 | F19: 55247299.8 | G19: T1:80%-20%-0% | Z19: 1 | AA19: 1 | AB19: 1 | AC19: 1 | AD19: 1 | AE19: 1 | AF19: 1 | AG19: 1 | AH19: 1 | BA19: 0.9406548119 | BB19: 0.9401451723 | BC19: 0.9880266009
B20: 16 | C20: Ravine Mgmt | D20: T1RA2% | E20: 361.0356339 | F20: 23250.78428 | G20: T1:80%-20%-0% | AI20: 0.02 | AJ20: 0.02 | AK20: 0.02 | AL20: 0.02 | AM20: 0.02 | AN20: 0.02 | AO20: 0.02 | AP20: 0.02 | AQ20: 0.02
B21: 17 | C21: Ravine Mgmt | D21: T1RA5% | E21: 526.1020782 | F21: 35651.20256 | G21: T1:80%-20%-0% | AI21: 0.05 | AJ21: 0.05 | AK21: 0.05 | AL21: 0.05 | AM21: 0.05 | AN21: 0.05 | AO21: 0.05 | AP21: 0.05 | AQ21: 0.05
B22: 18 | C22: Ravine Mgmt | D22: T1RA10% | E22: 839.5964689 | F22: 62002.09141 | G22: T1:80%-20%-0% | AI22: 0.1 | AJ22: 0.1 | AK22: 0.1 | AL22: 0.1 | AM22: 0.1 | AN22: 0.1 | AO22: 0.1 | AP22: 0.1 | AQ22: 0.1
B23: 19 | C23: Ravine Mgmt | D23: T1RA50% | E23: 2657.709175 | F23: 261958.8362 | G23: T1:80%-20%-0% | AI23: 0.5 | AJ23: 0.5 | AK23: 0.5 | AL23: 0.5 | AM23: 0.5 | AN23: 0.5 | AO23: 0.5 | AP23: 0.5 | AQ23: 0.5
B24: 20 | C24: Ravine Mgmt | D24: T1RA100% | E24: 3653.325043 | F24: 478191.13 | G24: T1:80%-20%-0% | AI24: 1 | AJ24: 1 | AK24: 1 | AL24: 1 | AM24: 1 | AN24: 1 | AO24: 1 | AP24: 1 | AQ24: 1
B25: 21 | C25: Near Channel Mgmt | D25: T1NC2% | E25: 7517.743233 | F25: 718136.1957 | G25: T1:80%-20%-0% | AR25: 0.02 | AS25: 0.02 | AT25: 0.02 | AU25: 0.02 | AV25: 0.02 | AW25: 0.02 | AX25: 0.02 | AY25: 0.02 | AZ25: 0.02
B26: 22 | C26: Near Channel Mgmt | D26: T1NC5% | E26: 13631.26175 | F26: 1357417.08 | G26: T1:80%-20%-0% | AR26: 0.05 | AS26: 0.05 | AT26: 0.05 | AU26: 0.05 | AV26: 0.05 | AW26: 0.05 | AX26: 0.05 | AY26: 0.05 | AZ26: 0.05
B27: 23 | C27: Near Channel Mgmt | D27: T1NC10% | E27: 21423.80675 | F27: 2597860.598 | G27: T1:80%-20%-0% | AR27: 0.1 | AS27: 0.1 | AT27: 0.1 | AU27: 0.1 | AV27: 0.1 | AW27: 0.1 | AX27: 0.1 | AY27: 0.1 | AZ27: 0.1
B28: 24 | C28: Near Channel Mgmt | D28: T1NC50% | E28: 48171.88053 | F28: 11399975.64 | G28: T1:80%-20%-0% | AR28: 0.5 | AS28: 0.5 | AT28: 0.5 | AU28: 0.5 | AV28: 0.5 | AW28: 0.5 | AX28: 0.5 | AY28: 0.5 | AZ28: 0.5
B29: 25 | C29: Near Channel Mgmt | D29: T1NC100% | E29: 59430.41909 | F29: 22380650.52 | G29: T1:80%-20%-0% | AR29: 1 | AS29: 1 | AT29: 1 | AU29: 1 | AV29: 1 | AW29: 1 | AX29: 1 | AY29: 1 | AZ29: 1
B31: Note: The user may create new reference scenarios by chanigning the values in the green cells in the table above. After specifying new scenarios and/or MO cost and effectiveness on the CONTROL tab, press "Run reference scenarios" button to evalaute the reference scenarios.
D37: TMDL goal | E37: SL reduction
E38: Mg/yr
D39: 0.5 | E39: =D39*CONTROL!V9 -> 93117.57748
D40: 0.9 | E40: =D40*CONTROL!V9 -> 167611.6395
B55: T1:80%-20%-0%
B56: T2: 40%-20%-40%
B57: T3: 0%-20%-80%

Sheet Your Scenarios
D3: Your Scenarios | E3: SL reduction | F3: MO cost | G3: TLMO | J3: AFMO | K3: BFMO | L3: WCMO | M3: ICMO | N3: RAMO | O3: NCMO | P3: SL reduc 90% | Q3: SL reduc 10% | R3: +error | S3: -error | T3: Field MO
C4: i | D4: Scenario | E4: Mg/yr | F4: $/yr | G4: conventional (ac) | H4: reduced (ac) | I4: conservation (ac) | J4: ac | K4: ac | L4: ac | M4: ft | N4: tips | O4: ft | P4: Mg/yr | Q4: Mg/yr | T4: ac
R5: =IF(P5=0,"",ABS($E5-P5)) ->  | S5: =IF(Q5=0,"",ABS($E5-Q5)) ->  | T5: =J5+K5 -> 0
R6: =IF(P6=0,"",ABS($E6-P6)) ->  | S6: =IF(Q6=0,"",ABS($E6-Q6)) ->  | T6: =J6+K6 -> 0
T7: 0
T8: 0
T9: 0
T10: 0
T11: 0
T12: 0
T13: 0
T14: 0
T15: 0
T16: 0
T17: 0
T18: 0
T19: 0
T20: 0
T21: 0
T22: 0
T23: 0
T24: 0

Sheet SB I|O Detail (hidden)
A1: i | B1: SBi | C1: SBarea(ac) | D1: SBarea (m2) | F1: Zone | G1: Headwater? | H1: River | I1: i+1 | J1: #up SBs | K1: ReachLength(m) | L1: So, Slope | M1: B, width(m) | N1: h, depth(m) | O1: Pwet_m | P1: XSarea_m2 | Q1: XS+ID referenced | R1: n | S1: n - alternate | T1: Ck | U1: K[sec] | V1: X | W1: C1 | X1: C2 | Y1: C3 | Z1: C1+C2+C3 | AA1: K[hr] | AI1: 0.005 | AK1: LES | AL1: COB | AM1: MAP
A2: 1 | B2: SB1 | C2: 28590.93279 | D2: =C2*4046.86 -> 115703502.3 | F2: 3 | G2: Y | H2: LES | I2: 4 | J2: =COUNTIF(I$2:I$31,A2) -> 0 | K2: 6425.792565 | L2: 0.2175252602 | M2: 17 | N2: 1.54 | O2: 17.89 | P2: 26.13 | Q2: M85.68 | R2: 0.04 | S2: 0.035 | T2: 28.59049008 | U2: 224.7527953 | V2: 0.4996701053 | W2: 0.9948108963 | X2: 0.9999965763 | Y2: -0.9948074726 | Z2: 1 | AA2: =U2/3600 -> 0.06243133203 | AI2: =C2*AI$1 -> 142.9546639 | AJ2: 1 | AK2: =SUMIFS($AI$2:$AI$31,$F$2:$F$31,$AJ2,$H$2:$H$31,AK$1) -> 811.8655957 | AL2: =SUMIFS($AI$2:$AI$31,$F$2:$F$31,$AJ2,$H$2:$H$31,AL$1) -> 465.1634018 | AM2: 491.4142713
A3: 2 | B3: SB2 | C3: 3912.617189 | D3: =C3*4046.86 -> 15833814 | F3: 3 | G3: N | H3: LES | I3: 0 | J3: 1 | K3: 3718.061325 | L3: 0.05183349147 | M3: 47.5 | N3: 2.69 | O3: =M3+2*N3 -> 52.88 | P3: 127.94 | Q3: L1.94 | R3: 0.04 | S3: 0.035 | T3: 19.53870925 | U3: 190.2920647 | V3: 0.4958071727 | W3: 0.9956048524 | X3: 0.9999631438 | Y3: -0.9955679962 | Z3: 1 | AA3: 0.05285890687 | AI3: =C3*AI$1 -> 19.56308595 | AJ3: 2 | AK3: =SUMIFS($AI$2:$AI$31,$F$2:$F$31,$AJ3,$H$2:$H$31,AK$1) -> 275.7980228 | AL3: 337.4808388 | AM3: 487.4079518
A4: 3 | B4: SB3 | C4: 2312.856949 | D4: 9359808.273 | F4: 3 | G4: N | H4: LES | I4: 2 | J4: 2 | K4: 6519.259736 | L4: 0.09616352552 | M4: 41 | N4: 3.28 | O4: =M4+2*N4 -> 47.56 | P4: 134.59 | Q4: L4.49 | R4: 0.04 | S4: 0.035 | T4: 29.5438116 | U4: 220.6641385 | V4: 0.4984291254 | W4: 0.994905087 | X4: 0.9999839931 | Y4: -0.9948890801 | Z4: 1 | AA4: 0.06129559404 | AI4: 11.56428475 | AJ4: 3 | AK4: 393.4898681 | AL4: 184.1795019 | AM4: 128.3944736
A5: 4 | B5: SB4 | C5: 19069.09758 | D5: 77169968.23 | F5: 3 | G5: N | H5: LES | I5: 7 | J5: 2 | K5: 32291.62697 | L5: 0.1123677851 | M5: 30 | N5: 2.44 | O5: 34.88 | P5: 73.09 | Q5: L27.26 | R5: 0.04 | S5: 0.035 | T5: 26.13901829 | U5: 1235.380251 | V5: 0.499798569 | W5: 0.9718065185 | X5: 0.9999886419 | Y5: -0.9717951604 | Z5: 1 | AA5: 0.3431611808 | AI5: 95.3454879
A6: 5 | B6: SB5 | C6: 13281.29649 | D6: 53747547.51 | F6: 3 | G6: N | H6: LES | I6: 4 | J6: 1 | K6: 14294.21356 | L6: 0.04176664896 | M6: 25 | N6: 3.14 | O6: 31.28 | P6: 78.57 | Q6: L50.83 | R6: 0.04 | S6: 0.035 | T6: 17.98272601 | U6: 794.8858009 | V6: 0.4984207601 | W6: 0.9817681299 | X6: 0.999942415 | Y6: -0.9817105449 | Z6: 1 | AA6: 0.2208016114 | AI6: 66.40648245
A7: 6 | B7: SB6 | C7: 551.5145009 | D7: 2231901.973 | F7: 3 | G7: N | H7: LES | I7: 3 | J7: 2 | K7: 3182.497834 | L7: 0.1863563248 | M7: 41 | N7: 1.47 | O7: 41.59 | P7: 60.09 | Q7: L11.53 | R7: 0.04 | S7: 0.035 | T7: 26.27211055 | U7: 121.1359791 | V7: 0.4992586431 | W7: 0.9971998581 | X7: 0.9999958482 | Y7: -0.9971957063 | Z7: 1 | AA7: 0.03364888308 | AI7: 2.757572505
A8: 7 | B8: SB7 | C8: 1647.179762 | D8: 6665905.892 | F8: 3 | G8: N | H8: LES | I8: 6 | J8: 1 | K8: 2849.360749 | L8: 0.08703689068 | M8: 38 | N8: 1.85 | O8: 38.06 | P8: 70.12 | Q8: L15.15 | R8: 0.04 | S8: 0.035 | T8: 21.11289583 | U8: 134.9583104 | V8: 0.4977678223 | W8: 0.9968808589 | X8: 0.999986075 | Y8: -0.996866934 | Z8: 1 | AA8: 0.03748841956 | AI8: 8.23589881
A9: 8 | B9: SB8 | C9: 2148.729555 | D9: 8695607.687 | F9: 3 | G9: N | H9: MAP | I9: 3 | J9: 1 | K9: 5825.29004 | L9: 0.2590098158 | M9: 28.5 | N9: 2.06 | O9: 29.62 | P9: 58.68 | Q9: M2.2 | R9: 0.04 | S9: 0.035 | T9: 38.22746659 | U9: 152.3849357 | V9: 0.4995906142 | W9: 0.9964787864 | X9: 0.9999971169 | Y9: -0.9964759034 | Z9: 1 | AA9: 0.04232914882 | AI9: 10.74364777
A10: 9 | B10: SB9 | C10: 55159.60457 | D10: 223223197.4 | F10: 2 | G10: Y | H10: LES | I10: 10 | J10: 0 | K10: 23503.83476 | L10: 0.05910069629 | M10: 17 | N10: 1.54 | O10: 17.89 | P10: 26.13 | Q10: M85.68 | R10: 0.02 | S10: 0.035 | T10: 14.9026345 | U10: 1577.159714 | V10: 0.4996680441 | W10: 0.964146582 | X10: 0.9999761965 | Y10: -0.9641227784 | Z10: 1 | AA10: 0.4380999206 | AI10: 275.7980228
A11: 10 | B11: SB10 | C11: 9332.478363 | D11: 37767233.39 | F11: 3 | G11: N | H11: LES | I11: 5 | J11: 2 | K11: 9563.208512 | L11: 0.0345151002 | M11: 25.5 | N11: 2.15 | O11: 24.59 | P11: 54.9 | Q11: L58.81 | R11: 0.03 | S11: 0.035 | T11: 15.11220438 | U11: 632.8136037 | V11: 0.4980432261 | W11: 0.9854584594 | X11: 0.999943091 | Y11: -0.9854015504 | Z11: 1 | AA11: 0.1757815566 | AI11: 46.66239181
A12: 11 | B12: SB11 | C12: 3917.855823 | D12: 15855014.02 | F12: 3 | G12: N | H12: COB | I12: 6 | J12: 1 | K12: 9769.797975 | L12: 0.2423308247 | M12: 29 | N12: 2.02 | O12: 30.26 | P12: 58.62 | Q12: L13.66 | R12: 0.04 | S12: 0.035 | T12: 36.42808117 | U12: 268.194142 | V12: 0.4997438615 | W12: 0.9938110233 | X12: 0.9999968295 | Y12: -0.9938078528 | Z12: 1 | AA12: 0.07449837277 | AI12: 19.58927912
A13: 12 | B13: SB12 | C13: 5586.212517 | D13: 22606619.99 | F13: 3 | G13: Y | H13: COB | I13: 13 | J13: 0 | K13: 947.8427125 | L13: 0.7360560891 | M13: 17 | N13: 1.54 | O13: 17.89 | P13: 26.13 | Q13: M85.68 | R13: 0.04 | S13: 0.035 | T13: 52.59230511 | U13: 18.02245995 | V13: 0.4993390562 | W13: 0.9995829005 | X13: 0.9999994486 | Y13: -0.9995823492 | Z13: 1 | AA13: 0.005006238875 | AI13: 27.93106258
A14: 13 | B14: SB13 | C14: 6895.871038 | D14: 27906624.67 | F14: 3 | G14: N | H14: COB | I14: 11 | J14: 2 | K14: 20782.39682 | L14: 0.1020674669 | M14: 33.5 | N14: 2.18 | O14: 34.73 | P14: 72.91 | Q14: M14.92 | R14: 0.04 | S14: 0.035 | T14: 24.94284092 | U14: 833.2008726 | V14: 0.4996921915 | W14: 0.9808972739 | X14: 0.99998824 | Y14: -0.9808855139 | Z14: 1 | AA14: 0.2314446868 | AI14: 34.47935519
A15: 14 | B15: SB14 | C15: 5365.94278 | D15: 21715219.2 | F15: 3 | G15: N | H15: COB | I15: 13 | J15: 2 | K15: 14133.74675 | L15: 0.02237211446 | M15: 23 | N15: 1.98 | O15: 24.78 | P15: 45.58 | Q15: M38.94 | R15: 0.04 | S15: 0.035 | T15: 10.69258966 | U15: 1321.826349 | V15: 0.4981198028 | W15: 0.9698649354 | X15: 0.9998866803 | Y15: -0.9697516156 | Z15: 1 | AA15: 0.3671739857 | AI15: 26.8297139
A16: 15 | B16: SB15 | C16: 13233.23449 | D16: 53553047.33 | F16: 3 | G16: N | H16: COB | I16: 16 | J16: 2 | K16: 29115.97113 | L16: 0.03297402637 | M16: 17 | N16: 1.54 | O16: 17.89 | P16: 26.13 | Q16: M85.68 | R16: 0.04 | S16: 0.035 | T16: 11.13147568 | U16: 2615.643421 | V16: 0.4995197045 | W16: 0.9412334845 | X16: 0.9999435494 | Y16: -0.9411770339 | Z16: 1 | AA16: 0.7265676169 | AI16: 66.16617245
A17: 16 | B17: SB16 | C17: 1836.783722 | D17: 7433206.573 | F17: 3 | G17: N | H17: COB | I17: 14 | J17: 1 | K17: 2886.101731 | L17: 0.04678986141 | M17: 13.3 | N17: 2.28 | O17: 15.38 | P17: 30.32 | Q17: M77.74 | R17: 0.04 | S17: 0.035 | T17: 16.19465967 | U17: 178.2131758 | V17: 0.4949355135 | W17: 0.9958832724 | X17: 0.9999583018 | Y17: -0.9958415742 | Z17: 1 | AA17: 0.04950365995 | AI17: 9.18391861
A18: 17 | B18: SB17 | C18: 27097.47729 | D18: 109659696.9 | F18: 2 | G18: Y | H18: COB | I18: 15 | J18: 0 | K18: 22884.15872 | L18: 0.04433459461 | M18: =M17/2 -> 6.65 | N18: =N17/2 -> 1.14 | O18: =O17/2 -> 7.69 | P18: =P17/2 -> 15.16 | Q18: M77.74/2 | R18: 0.03 | S18: 0.035 | T18: 15.76403234 | U18: 1451.669105 | V18: 0.499325905 | W18: 0.9669525512 | X18: 0.9999554458 | Y18: -0.966907997 | Z18: 1 | AA18: 0.4032414182 | AI18: 135.4873865
A19: 18 | B19: SB18 | C19: 75377.00085 | D19: 305040169.7 | F19: 1 | G19: N | H19: LES | I19: 10 | J19: 2 | K19: 81938.33837 | L19: 0.05385653637 | M19: 23.5 | N19: 3.64 | O19: 22.89 | P19: 85.43 | Q19: L67.14 | R19: 0.02 | S19: 0.035 | T19: 26.58946858 | U19: 3081.608725 | V19: 0.4997528627 | W19: 0.9311242541 | X19: 0.9999659565 | Y19: -0.9310902106 | Z19: 1 | AA19: 0.8560024237 | AI19: 376.8850043
A20: 19 | B20: SB19 | C20: 21696.69265 | D20: 87803477.62 | F20: 3 | G20: N | H20: MAP | I20: 8 | J20: 1 | K20: 42633.49422 | L20: 0.08558451909 | M20: 28 | N20: 2.37 | O20: 30.4 | P20: 66.39 | Q20: M29.55 | R20: 0.04 | S20: 0.035 | T20: 23.44936226 | U20: 1818.1089 | V20: 0.4998050516 | W20: 0.9587818349 | X20: 0.9999839292 | Y20: -0.958765764 | Z20: 1 | AA20: 0.5050302499 | AI20: 108.4834632
A21: 20 | B21: SB20 | C21: 40398.69047 | D21: 163487844.5 | F21: 2 | G21: Y | H21: COB | I21: 15 | J21: 0 | K21: 20491.17316 | L21: 0.05276513412 | M21: =M16/2 -> 8.5 | N21: =N16/2 -> 0.77 | O21: =O16/2 -> 8.945 | P21: =P16/2 -> 13.065 | Q21: M85.68/2 | R21: 0.02 | S21: 0.035 | T21: 14.0812197 | U21: 1455.212943 | V21: 0.4995735208 | W21: 0.9668729416 | X21: 0.999971744 | Y21: -0.9668446856 | Z21: 1 | AA21: 0.4042258174 | AI21: 201.9934524
A22: 21 | B22: SB21 | C22: 1248.129282 | D22: 5051004.466 | F22: 3 | G22: N | H22: MAP | I22: 19 | J22: 2 | K22: 5495.269119 | L22: 0.03695638841 | M22: 25.5 | N22: 2.6 | O22: 28.31 | P22: 66.32 | Q22: M42.73 | R22: 0.04 | S22: 0.035 | T22: 16.14712592 | U22: 340.3249064 | V22: 0.4961580907 | W22: 0.992153254 | X22: 0.999939707 | Y22: -0.9920929611 | Z22: 1 | AA22: 0.09453469623 | AI22: 6.24064641
A23: 22 | B23: SB22 | C23: 585.3432276 | D23: 2368802.094 | F23: 3 | G23: N | H23: MAP | I23: 21 | J23: 2 | K23: 3975.391052 | L23: 0.03715332606 | M23: 17 | N23: 1.9 | O23: 18.03 | P23: 32.25 | Q23: M46.19 | R23: 0.04 | S23: 0.035 | T23: 13.52494631 | U23: 293.9302651 | V23: 0.4961467739 | W23: 0.9932193042 | X23: 0.9999477449 | Y23: -0.9931670491 | Z23: 1 | AA23: 0.08164729585 | AI23: 2.926716138
A24: 23 | B24: SB23 | C24: 17341.28733 | D24: 70177762.04 | F24: 2 | G24: Y | H24: MAP | I24: 21 | J24: 0 | K24: 4449.680374 | L24: 0.1974567443 | M24: 17 | N24: 1.54 | O24: 17.89 | P24: 26.13 | Q24: M85.68 | R24: 0.02 | S24: 0.035 | T24: 27.23972617 | U24: 163.3526103 | V24: 0.4994751793 | W24: 0.9962258327 | X24: 0.9999960385 | Y24: -0.9962218712 | Z24: 1 | AA24: 0.0453757251 | AI24: 86.70643665
A25: 24 | B25: SB24 | C25: 32703.80418 | D25: 132347717 | F25: 1 | G25: Y | H25: LES | I25: 18 | J25: 0 | K25: 17719.92424 | L25: 0.08046082933 | M25: =M17/2 -> 6.65 | N25: =N17/2 -> 1.14 | O25: =O17/2 -> 7.69 | P25: =P17/2 -> 15.16 | Q25: M77.74/2 | R25: 0.02 | S25: 0.035 | T25: 21.23675704 | U25: 834.3987834 | V25: 0.4995203191 | W25: 0.9808701352 | X25: 0.9999816475 | Y25: -0.9808517827 | Z25: 1 | AA25: 0.2317774398 | AI25: 163.5190209
A26: 25 | B26: SB25 | C26: 26722.00066 | D26: 108140195.6 | F26: 2 | G26: N | H26: MAP | I26: 22 | J26: 2 | K26: 34878.27561 | L26: 0.02870159096 | M26: 18.9 | N26: 1.89 | O26: 19.77 | P26: 35.68 | Q26: M70.11 | R26: 0.02 | S26: 0.035 | T26: 11.95856702 | U26: 2916.593231 | V26: 0.4994342516 | W26: 0.9346933114 | X26: 0.9999261057 | Y26: -0.9346194171 | Z26: 1 | AA26: 0.8101647863 | AI26: 133.6100033
A27: 26 | B27: SB26 | C27: 54292.3141 | D27: 219713394.2 | F27: 1 | G27: Y | H27: LES | I27: 18 | J27: 0 | K27: 36881.54942 | L27: 0.1081884591 | M27: =M17/2 -> 6.65 | N27: =N17/2 -> 1.14 | O27: =O17/2 -> 7.69 | P27: =P17/2 -> 15.16 | Q27: M77.74/2 | R27: 0.02 | S27: 0.035 | T27: 24.62557692 | U27: 1497.692807 | V27: 0.4998286008 | W27: 0.9659221076 | X27: 0.9999883182 | Y27: -0.9659104258 | Z27: 1 | AA27: 0.4160257796 | AI27: 271.4615705
A28: 27 | B28: SB27 | C28: 93032.68036 | D28: 376490232.8 | F28: 1 | G28: Y | H28: COB | I28: 14 | J28: 0 | K28: 92124.88166 | L28: 0.06702367796 | M28: =M17/2 -> 6.65 | N28: =N17/2 -> 1.14 | O28: =O17/2 -> 7.69 | P28: =P17/2 -> 15.16 | Q28: M77.74/2 | R28: 0.02 | S28: 0.035 | T28: 19.38251257 | U28: 4752.98965 | V28: 0.4998892373 | W28: 0.8957152197 | X28: 0.9999768983 | Y28: -0.895692118 | Z28: 1 | AA28: 1.320274903 | AI28: 465.1634018
A29: 28 | B29: SB28 | C29: 55650.2323 | D29: 225208699.1 | F29: 1 | G29: Y | H29: MAP | I29: 25 | J29: 0 | K29: 36447.29581 | L29: 0.03646673287 | M29: 17 | N29: 1.54 | O29: 17.89 | P29: 26.13 | Q29: M85.68 | R29: 0.02 | S29: 0.035 | T29: 11.7061795 | U29: 3113.509049 | V29: 0.4996530638 | W29: 0.9304365578 | X29: 0.9999517319 | Y29: -0.9303882896 | Z29: 1 | AA29: 0.8648636248 | AI29: 278.2511615
A30: 29 | B30: SB29 | C30: 53418.30237 | D30: 216176391.1 | F30: 2 | G30: Y | H30: MAP | I30: 22 | J30: 0 | K30: 36103.20418 | L30: 0.04601718429 | M30: 18.9 | N30: 1.89 | O30: 19.77 | P30: 35.68 | Q30: M70.11 | R30: 0.02 | S30: 0.035 | T30: 15.14210233 | U30: 2384.292708 | V30: 0.4996591067 | W30: 0.9462911968 | X30: 0.9999633821 | Y30: -0.9462545788 | Z30: 1 | AA30: 0.6623035301 | AI30: 267.0915119
A31: 30 | B31: SB30 | C31: 42632.62196 | D31: 172528252.5 | F31: 1 | G31: Y | H31: MAP | I31: 25 | J31: 0 | K31: 23150.09668 | L31: 0.04425320612 | M31: =M26/2 -> 9.45 | N31: =N26/2 -> 0.945 | O31: =O26/2 -> 9.885 | P31: =P26/2 -> 17.84 | Q31: M70.11/2 | R31: 0.02 | S31: 0.035 | T31: 14.84904511 | U31: 1559.029319 | V31: 0.4994471762 | W31: 0.964551706 | X31: 0.9999608067 | Y31: -0.9645125126 | Z31: 1 | AA31: 0.4330636998 | AI31: 213.1631098

Sheet Output Detail
A6: Sediment loading from Near-Channel Sources in the incised zone calculated from simulated daily flow from 2000-2009
A7: Sediment Loading [Mg/yr] | B7: Sediment Budget (2000-2010) | C7: SL witn no MOs | D7: SL with MOs | E7: % reduction | F7: Mg/yr reduction
A8: Maple | B8: 15739.41 | C8: 15516.11944 | D8: 15516.11944 | E8: 0 | F8: =C8-D8 -> 0
A9: Cobb | B9: 12091.68 | C9: 17556.90645 | D9: 17556.90645 | E9: 0 | F9: =C9-D9 -> 0
A10: Le Sueur | B10: 16836.46 | C10: 18771.46074 | D10: 18771.46074 | E10: 0 | F10: =C10-D10 -> 0
A12: =CONCATENATE("Statistical summary of ",CONTROL!M2," MC simulation outputs:") -> Statistical summary of 1 MC simulation outputs:
A13: Annual Sediment loading outputs without MOs
A14: Sediment Loading [Mg/yr] | B14: Observed | C14: Average simulated | D14: Standard Deviation | E14: Min | F14: Max | G14: =CONCATENATE('I|O Detail'!$M$3,"th percentile") -> 10th percentile | H14: =CONCATENATE(100-'I|O Detail'!$M$3,"th percentile") -> 90th percentile | J14: lower bound | K14: upper bound
A15: Upper Maple at Sterling Center, CR18 | B15: 10085 | C15: 9971.52314 | J15: =IF(CONTROL!$M$2=1,0,$C15-$G15) -> 0 | K15: =IF(CONTROL!$M$2=1,0,$H15-$C15) -> 0
A16: Main Cobb at confluence with Little Cobb | B16: 5155 | C16: 5153.814136 | J16: =IF(CONTROL!$M$2=1,0,$C16-$G16) -> 0 | K16: =IF(CONTROL!$M$2=1,0,$H16-$C16) -> 0
A17: Little Cobb outlet nr Beauford | B17: 4771 | C17: 4512.968538 | J17: =IF(CONTROL!$M$2=1,0,$C17-$G17) -> 0 | K17: =IF(CONTROL!$M$2=1,0,$H17-$C17) -> 0
A18: Upper Le Sueur at St. Clair gage | B18: 28769 | C18: 29346.55269 | J18: =IF(CONTROL!$M$2=1,0,$C18-$G18) -> 0 | K18: =IF(CONTROL!$M$2=1,0,$H18-$C18) -> 0
A19: Le Sueur outlet nr Rapidan, MN66 | B19: 186081 | C19: 186235.155 | J19: =IF(CONTROL!$M$2=1,0,$C19-$G19) -> 0 | K19: =IF(CONTROL!$M$2=1,0,$H19-$C19) -> 0
A21: Annual Sediment loading with MOs
A22: Sediment Loading [Mg/yr] | B22: short name | C22: Average simulated | D22: Standard Deviation | E22: Min | F22: Max | G22: =CONCATENATE('I|O Detail'!$M$3,"th percentile") -> 10th percentile | H22: =CONCATENATE(100-'I|O Detail'!$M$3,"th percentile") -> 90th percentile | J22: lower bound | K22: upper bound
A23: Upper Maple at Sterling Center, CR18 | B23: U Maple | C23: 9971.52314 | J23: =IF(CONTROL!$M$2=1,0,$C23-$G23) -> 0 | K23: =IF(CONTROL!$M$2=1,0,$H23-$C23) -> 0
A24: Main Cobb at confluence with Little Cobb | B24: U Cobb | C24: 5153.814136 | J24: =IF(CONTROL!$M$2=1,0,$C24-$G24) -> 0 | K24: =IF(CONTROL!$M$2=1,0,$H24-$C24) -> 0
A25: Little Cobb outlet nr Beauford | B25: L Cobb | C25: 4512.968538 | J25: =IF(CONTROL!$M$2=1,0,$C25-$G25) -> 0 | K25: =IF(CONTROL!$M$2=1,0,$H25-$C25) -> 0
A26: Upper Le Sueur at St. Clair gage | B26: U Le Sueur | C26: 29346.55269 | J26: =IF(CONTROL!$M$2=1,0,$C26-$G26) -> 0 | K26: =IF(CONTROL!$M$2=1,0,$H26-$C26) -> 0
A27: Le Sueur outlet nr Rapidan, MN66 | B27: Outlet | C27: 186235.155 | J27: =IF(CONTROL!$M$2=1,0,$C27-$G27) -> 0 | K27: =IF(CONTROL!$M$2=1,0,$H27-$C27) -> 0
B28: Average reduction in Loading= | C28: =(C19-C27)/C19 -> 0 | E28: =(E19-E27)/E19 ->  | F28: =(F19-F27)/F19 ->  | G28: =(G19-G27)/G19 ->  | H28: =(H19-H27)/H19 -> 
A30: Annual Sediment loading reduction with MOs
A31: Sediment Loading [Mg/yr] | B31: short name | C31: Average simulated | D31: Standard Deviation | E31: Min | F31: Max | G31: =CONCATENATE('I|O Detail'!$M$3,"th percentile") -> 10th percentile | H31: =CONCATENATE(100-'I|O Detail'!$M$3,"th percentile") -> 90th percentile
A32: Upper Maple at Sterling Center, CR18 | B32: U Maple | C32: 0
A33: Main Cobb at confluence with Little Cobb | B33: U Cobb | C33: 1.818989404e-12
A34: Little Cobb outlet nr Beauford | B34: L Cobb | C34: 0
A35: Upper Le Sueur at St. Clair gage | B35: U Le Sueur | C35: 0
A36: Le Sueur outlet nr Rapidan, MN66 | B36: Outlet | C36: 0
A39: Average annual sediiment deposition depth on each reach drainage area with MOs
A40: Sediment deposition [mm/yr] | B40: short name | C40: Average simulated | D40: Standard Deviation | E40: Min | F40: Max | G40: =CONCATENATE('I|O Detail'!$M$3,"th percentile") -> 10th percentile | H40: =CONCATENATE(100-'I|O Detail'!$M$3,"th percentile") -> 90th percentile
A41: Upper Maple at Sterling Center, CR18 | B41: U Maple | C41: 0.10854733
A42: Main Cobb at confluence with Little Cobb | B42: U Cobb | C42: 0.1064521723
A43: Little Cobb outlet nr Beauford | B43: L Cobb | C43: 0.1262398292
A44: Upper Le Sueur at St. Clair gage | B44: U Le Sueur | C44: 0.05823232454
A45: Le Sueur outlet nr Rapidan, MN66 | B45: Outlet | C45: 0.1392787971
A47: Average annual sediiment deposition along each streams to the gage with MOs
A48: Sediment deposition [mm/yr] | B48: short name | C48: Average simulated | D48: Standard Deviation | E48: Min | F48: Max | G48: =CONCATENATE('I|O Detail'!$M$3,"th percentile") -> 10th percentile | H48: =CONCATENATE(100-'I|O Detail'!$M$3,"th percentile") -> 90th percentile
A49: Upper Maple at Sterling Center, CR18 | B49: U Maple | C49: 0.02334588447
A50: Main Cobb at confluence with Little Cobb | B50: U Cobb | C50: 0.009114324049
A51: Little Cobb outlet nr Beauford | B51: L Cobb | C51: 0.03740080579
A52: Upper Le Sueur at St. Clair gage | B52: U Le Sueur | C52: 0.03128620278
A53: Le Sueur outlet nr Rapidan, MN66 | B53: Outlet | C53: 0.05918144112

Sheet Reachdata (hidden)
A1: =COUNT(B10:B538) -> 529 | J1: m2 | K1: 1 | L1: 2 | M1: 3 | N1: ac | O1: 1 | P1: 2 | Q1: 3
D2: UM | E2: MC | F2: LC | G2: UL | H2: LO | J2: MAP | K2: =SUMIFS($G$10:$G$538,$D$10:$D$538,$J2,$F$10:$F$538,K$1) -> 394221365.3 | L2: 394280419.8 | M2: 104169883 | N2: MAP | O2: =K2*0.000247105 -> 97414.07048 | P2: =L2*0.000247105 -> 97428.66313 | Q2: 25740.89893
B3: =COUNT(B10:B538) -> 529 | C3: No. SEDSB | D3: =COUNTIF($E$10:$E$538,D2) -> 127 | E3: =COUNTIF($E$10:$E$538,E2) -> 65 | F3: =COUNTIF($E$10:$E$538,F2) -> 67 | G3: =COUNTIF($E$10:$E$538,G2) -> 171 | H3: =COUNTIF($E$10:$E$538,H2) -> 99 | J3: COB | K3: 374776729.8 | L3: 275740700 | M3: 150034900 | N3: COB | O3: =K3*0.000247105 -> 92609.20381 | P3: 68136.90567 | Q3: 37074.37396
D4: to LO | E4: to LO | F4: to LO | G4: to LO | J4: LES | K4: 645665069.6 | L4: 226551933.2 | M4: 308058762.9 | N4: LES | O4: 159547.067 | P4: 55982.11546 | Q4: 76122.8606
C5: SEDSB in lowerTopowat | D5: 510 | E5: 377 | F5: 377 | G5: 105
A9: 0 | B9: SEDSB | C9: SEDSB_R | D9: RIVER | E9: Topofilter divide | F9: Zone | G9: SBarea_m2 | H9: dL | I9: Afp[m2] | J9: dE | K9: Soilloss [Mg/yr] | L9: cells to reach | M9: cell area [km2] | N9: bluff fraction | O9: active reach [m] | P9: Mig source loading (Mg/yr) | Q9: Channel widenting source loading (Mg/yr) | R9: Channel incision (Mg/yr) | S9: Net channel input (Mg/yr) | T9: Ravine area(m2) | U9: Ravine load (Mg/yr) | V9: Bluff loading (Mg/yr) | W9: Net NCS loading (Mg/yr) | X9: tillare area [m2] | Y9: %tillare area | Z9: soil loss from tilled area | AA9: Xbar [Mg/m2] | AB9: upland | AC9: trans | AD9: incised | AE9: SE* | AF9: SE* till area | AG9: SDRf | AH9: SDRfN | AI9: SDRs | AJ9: SLf | AK9: SLf,out | AO9: Ap[m2] | AP9: Af [m2] | AQ9: Aw | AR9: SE_w | AS9: SLw
A10: =A9+1 -> 1 | B10: 1 | C10: 10 | D10: LES | E10: LO | F10: 3 | G10: 5473941.687 | H10: 62357.62515 | I10: 4375189.216 | J10: 67.57135 | K10: 1419.507003 | L10: 6076 | M10: =L10*30*30/1000^2 -> 5.4684 | N10: 0 | O10: 0 | P10: 0 | Q10: 0 | R10: 0 | S10: 0 | T10: 0 | U10: 0 | V10: 0 | W10: 0 | X10: 2635536.054 | Y10: =X10/G10 -> 0.4814695158 | Z10: =Y10*K10 -> 683.4493493 | AA10: =IF(X10=0,0,Z10/X10) -> 0.0002593208119 | AB10: =IF($F10=1,1,0) -> 0 | AC10: =IF($F10=2,1,0) -> 0 | AD10: =IF($F10=3,1,0) -> 1 | AE10: 1419.507003 | AF10: =AE10-(K10-Z10) -> 683.4493493 | AG10: 0.0756546882 | AH10: 0.01679611187 | AI10: 0.8451248593 | AJ10: =K10*AG10 -> 107.3923597 | AK10: =AJ10*AI10 -> 90.75995287 | AO10: 934200 | AP10: =G10-AO10 -> 4539741.687 | AQ10: 2238867.17 | AR10: =K10*(AQ10/G10) -> 580.5848524 | AS10: =AR10*SDRf!M6*AI10 -> 19.12072087
A11: 2 | B11: 2 | C11: 10 | D11: LES | E11: LO | F11: 3 | G11: 3434354.368 | H11: 62885.32068 | I11: 4420051.781 | J11: 67.57135 | K11: 1468.703701 | L11: 3809 | M11: =L11*30*30/1000^2 -> 3.4281 | N11: 0 | O11: 0 | P11: 0 | Q11: 0 | R11: 0 | S11: 0 | T11: 0 | U11: 0 | V11: 0 | W11: 0 | X11: 2168751.807 | Y11: =X11/G11 -> 0.6314874862 | Z11: =Y11*K11 -> 927.468008 | AA11: =IF(X11=0,0,Z11/X11) -> 0.0004276505984 | AB11: =IF($F11=1,1,0) -> 0 | AC11: =IF($F11=2,1,0) -> 0 | AD11: =IF($F11=3,1,0) -> 1 | AE11: 1468.703701 | AF11: =AE11-(K11-Z11) -> 927.468008 | AG11: 0.01500884871 | AH11: 0.01500884871 | AI11: 0.8436449519 | AJ11: =K11*AG11 -> 22.04355164 | AK11: =AJ11*AI11 -> 18.59693106 | AO11: 25200 | AP11: 3409154.368 | AQ11: 342630.468 | AR11: =K11*(AQ11/G11) -> 146.5261247 | AS11: =AR11*SDRf!M7*AI11 -> 1.600154309
A12: 3 | B12: 3 | C12: 9 | D12: LES | E12: LO | F12: 3 | G12: 3671927.788 | H12: 68295.25971 | I12: 5247070.907 | J12: 76.717376 | K12: 1012.083301 | L12: 4081 | M12: 3.6729 | N12: 0 | O12: 0 | P12: 0 | Q12: 0 | R12: 0 | S12: 0 | T12: 0 | U12: 0 | V12: 0 | W12: 0 | X12: 3063198.495 | Y12: 0.8342207885 | Z12: 844.3009298 | AA12: 0.0002756272345 | AB12: 0 | AC12: 0 | AD12: 1 | AE12: 1012.083301 | AF12: 844.3009298 | AG12: 0.1085732503 | AH12: 0.1085732503 | AI12: 0.8173680905 | AJ12: 109.8851736 | AK12: 89.81663452 | AO12: 616500 | AP12: 3055427.788 | AQ12: 967590.5892 | AR12: 266.6943182 | AS12: =AR12*SDRf!M8*AI12 -> 10.00258251
A13: 4 | B13: 4 | C13: 9 | D13: LES | E13: LO | F13: 3 | G13: 6245008.748 | H13: 69295.73698 | I13: 5372034.551 | J13: 76.717376 | K13: 709.3269027 | L13: 6887 | M13: 6.1983 | N13: 0 | O13: 0 | P13: 0 | Q13: 0 | R13: 0 | S13: 0 | T13: 0 | U13: 0 | V13: 0 | W13: 0 | X13: 3663670.368 | Y13: 0.5866557623 | Z13: 416.1307148 | AA13: 0.0001135830118 | AB13: 0 | AC13: 0 | AD13: 1 | AE13: 709.3269027 | AF13: 416.1307148 | AG13: 0.01898127293 | AH13: 0.01898127293 | AI13: 0.8134053943 | AJ13: 13.46392754 | AK13: 10.95163129 | AO13: 635400 | AP13: 5609608.748 | AQ13: 3253936.416 | AR13: 369.5918984 | AS13: =AR13*SDRf!M9*AI13 -> 3.62743219
A14: 5 | B14: 5 | C14: 7 | D14: LES | E14: UL | F14: 2 | G14: 4345397.154 | H14: 38361.56167 | I14: 3831706.428 | J14: 20.024475 | K14: 270.2709143 | L14: 4808 | M14: 4.3272 | N14: 0 | O14: 0 | P14: 0 | Q14: 0 | R14: 0 | S14: 0 | T14: 0 | U14: 0 | V14: 0 | W14: 0 | X14: 975523.3464 | Y14: 0.2244957853 | Z14: 60.67468115 | AA14: 6.219705697e-05 | AB14: 0 | AC14: 1 | AD14: 0 | AE14: 270.2709143 | AF14: 60.67468115 | AG14: 0.1717835 | AH14: 0.1717835 | AI14: 0.5662839193 | AJ14: 46.42808362 | AK14: 26.29147716 | AO14: 2700 | AP14: 4342697.154 | AQ14: 757451.4398 | AR14: 47.11125035 | AS14: =AR14*SDRf!M10*AI14 -> 4.579123909
A15: 6 | B15: 6 | C15: 17 | D15: LES | E15: UL | F15: 2 | G15: 3396593.124 | H15: 35232.60677 | I15: 3468549.664 | J15: 20.024475 | K15: 175.3722001 | L15: 3774 | M15: 3.3966 | N15: 0 | O15: 0 | P15: 0 | Q15: 0 | R15: 0 | S15: 0 | T15: 0 | U15: 0 | V15: 0 | W15: 0 | X15: 933622.2243 | Y15: 0.2748701979 | Z15: 48.20459135 | AA15: 5.163179506e-05 | AB15: 0 | AC15: 1 | AD15: 0 | AE15: 175.3722001 | AF15: 48.20459135 | AG15: 0.2072955254 | AH15: 0.2072955254 | AI15: 0.5982960018 | AJ15: 36.35387236 | AK15: 21.75037648 | AO15: 517500 | AP15: 2879093.124 | AQ15: 337387.4289 | AR15: 17.41991858 | AS15: =AR15*SDRf!M11*AI15 -> 2.460416932
A16: 7 | B16: 7 | C16: 17 | D16: LES | E16: UL | F16: 2 | G16: 1560312.926 | H16: 35705.89104 | I16: 3524036.01 | J16: 20.024475 | K16: 110.3318994 | L16: 1743 | M16: 1.5687 | N16: 0 | O16: 0 | P16: 0 | Q16: 0 | R16: 0 | S16: 0 | T16: 0 | U16: 0 | V16: 0 | W16: 0 | X16: 23722.11156 | Y16: 0.01520343205 | Z16: 1.677423536 | AA16: 7.071139227e-05 | AB16: 0 | AC16: 1 | AD16: 0 | AE16: 110.3318994 | AF16: 1.677423536 | AG16: 0.2716714212 | AH16: 0.2672671427 | AI16: 0.5932964803 | AJ16: 29.97402392 | AK16: 17.78348289 | AO16: 295200 | AP16: 1265112.926 | AQ16: 0 | AR16: 0 | AS16: =AR16*SDRf!M12*AI16 -> 0
A17: 8 | B17: 8 | C17: 16 | D17: LES | E17: UL | F17: 2 | G17: 7089484.085 | H17: 37475.80482 | I17: 3730408.392 | J17: 20.829163 | K17: 170.4284999 | L17: 7794 | M17: 7.0146 | N17: 0 | O17: 0 | P17: 0 | Q17: 0 | R17: 0 | S17: 0 | T17: 0 | U17: 0 | V17: 0 | W17: 0 | X17: 4935189.44 | Y17: 0.69612815 | Z17: 118.6400763 | AA17: 2.403961951e-05 | AB17: 0 | AC17: 1 | AD17: 0 | AE17: 170.4284999 | AF17: 118.6400763 | AG17: 0.3624036282 | AH17: 0.3279440436 | AI17: 0.575360889 | AJ17: 61.76390672 | AK17: 35.53653628 | AO17: 863100 | AP17: 6226384.085 | AQ17: 2852647.176 | AR17: 68.57655269 | AS17: =AR17*SDRf!M13*AI17 -> 14.02357211
A18: 9 | B18: 9 | C18: 30 | D18: LES | E18: LO | F18: 3 | G18: 7529101.411 | H18: 67619.8434 | I18: 5168176.391 | J18: 76.717376 | K18: 1402.943401 | L18: 8375 | M18: 7.5375 | N18: 0 | O18: 0 | P18: 0 | Q18: 0 | R18: 0 | S18: 0 | T18: 0 | U18: 0 | V18: 0 | W18: 0 | X18: 1155781.206 | Y18: 0.1535085188 | Z18: 215.3637635 | AA18: 0.0001863361011 | AB18: 0 | AC18: 0 | AD18: 1 | AE18: 1402.943401 | AF18: 215.3637635 | AG18: 0.001387829681 | AH18: 0.001387829681 | AI18: 0.8198810493 | AJ18: 1.947046493 | AK18: 1.596346522 | AO18: 820800 | AP18: 6708301.411 | AQ18: 1208665.452 | AR18: 225.2180077 | AS18: =AR18*SDRf!M14*AI18 -> 0.2823360428
A19: 10 | B19: 10 | C19: 12 | D19: LES | E19: LO | F19: 3 | G19: 3654343.678 | H19: 61980.13778 | I19: 4343103.14 | J19: 67.57135 | K19: 714.1599007 | L19: 4068 | M19: 3.6612 | N19: 0 | O19: 0 | P19: 0 | Q19: 0 | R19: 0 | S19: 0 | T19: 0 | U19: 0 | V19: 0 | W19: 0 | X19: 915007.2157 | Y19: 0.2503889333 | Z19: 178.8177358 | AA19: 0.0001954276783 | AB19: 0 | AC19: 0 | AD19: 1 | AE19: 714.1599007 | AF19: 178.8177358 | AG19: 0.01771295223 | AH19: 0.0145868645 | AI19: 0.8461847253 | AJ19: 12.6498802 | AK19: 10.70413541 | AO19: 780300 | AP19: 2874043.678 | AQ19: 1008596.153 | AR19: 197.1076046 | AS19: =AR19*SDRf!M15*AI19 -> 2.788997625
A20: 11 | B20: 11 | C20: 12 | D20: LES | E20: LO | F20: 3 | G20: 3617015.369 | H20: 60132.82284 | I20: 4186119.105 | J20: 67.57135 | K20: 1215.150301 | L20: 4015 | M20: 3.6135 | N20: 0 | O20: 0 | P20: 0 | Q20: 0 | R20: 0 | S20: 0 | T20: 0 | U20: 0 | V20: 0 | W20: 0 | X20: 3199003.606 | Y20: 0.8844318532 | Z20: 1074.717632 | AA20: 0.0003359538671 | AB20: 0 | AC20: 0 | AD20: 1 | AE20: 1215.150301 | AF20: 1074.717632 | AG20: 0.0257586812 | AH20: 0.0257586812 | AI20: 0.8513873189 | AJ20: 31.30066921 | AK20: 26.64899284 | AO20: 154800 | AP20: 3462215.369 | AQ20: 622747.015 | AR20: 209.2142679 | AS20: =AR20*SDRf!M16*AI20 -> 3.032062484
A21: 12 | B21: 12 | C21: 28 | D21: LES | E21: LO | F21: 3 | G21: 112300 | H21: 59116.63489 | I21: 4102445.326 | J21: 67.57135 | K21: 2.7414 | L21: 132 | M21: 0.1188 | N21: 0 | O21: 0 | P21: 0 | Q21: 0 | R21: 0 | S21: 0 | T21: 0 | U21: 0 | V21: 0 | W21: 0 | X21: 0 | Y21: 0 | Z21: 0 | AA21: 0 | AB21: 0 | AC21: 0 | AD21: 1 | AE21: 2.7414 | AF21: 0 | AG21: 0 | AH21: 0 | AI21: 0.8541733024 | AJ21: 0 | AK21: 0 | AO21: 31500 | AP21: 80800 | AQ21: 0 | AR21: 0 | AS21: =AR21*SDRf!M17*AI21 -> 0
A22: 13 | B22: 13 | C22: 28 | D22: LES | E22: LO | F22: 3 | G22: 4506059.744 | H22: 59536.84305 | I22: 4137910.627 | J22: 67.57135 | K22: 1332.6282 | L22: 5009 | M22: 4.5081 | N22: 0 | O22: 0 | P22: 0 | Q22: 0 | R22: 0 | S22: 0 | T22: 0 | U22: 0 | V22: 0 | W22: 0 | X22: 2487819.526 | Y22: 0.5521053132 | Z22: 735.7511097 | AA22: 0.0002957413518 | AB22: 0 | AC22: 0 | AD22: 1 | AE22: 1332.6282 | AF22: 735.7511097 | AG22: 0.002011575241 | AH22: 0.002011575241 | AI22: 0.852991928 | AJ22: 2.680681893 | AK22: 2.286600016 | AO22: 3600 | AP22: 4502459.744 | AQ22: 983557.4737 | AR22: 290.8786168 | AS22: =AR22*SDRf!M18*AI22 -> 0.4993166633
A23: 14 | B23: 14 | C23: 7 | D23: LES | E23: UL | F23: 2 | G23: 4742382.212 | H23: 37996.60172 | I23: 3793139.681 | J23: 20.024475 | K23: 261.532802 | L23: 5288 | M23: 4.7592 | N23: 0 | O23: 0 | P23: 0 | Q23: 0 | R23: 0 | S23: 0 | T23: 0 | U23: 0 | V23: 0 | W23: 0 | X23: 2480192.453 | Y23: 0.5229845132 | Z23: 136.7776051 | AA23: 5.514798055e-05 | AB23: 0 | AC23: 1 | AD23: 0 | AE23: 261.532802 | AF23: 136.7776051 | AG23: 0.4239593851 | AH23: 0.3220374523 | AI23: 0.5696110775 | AJ23: 110.8792859 | AK23: 63.15806953 | AO23: 886500 | AP23: 3855882.212 | AQ23: 1738187.922 | AR23: 95.85755369 | AS23: =AR23*SDRf!M19*AI23 -> 21.2779601
A24: 15 | B24: 15 | C24: 16 | D24: LES | E24: UL | F24: 2 | G24: 8628700 | H24: 38806.45453 | I24: 3886355.181 | J24: 20.829163 | K24: 428.0796019 | L24: 9579 | M24: 8.6211 | N24: 0 | O24: 0 | P24: 0 | Q24: 0 | R24: 0 | S24: 0 | T24: 0 | U24: 0 | V24: 0 | W24: 0 | X24: 3822094.398 | Y24: 0.4429513597 | Z24: 189.6184417 | AA24: 4.961113515e-05 | AB24: 0 | AC24: 1 | AD24: 0 | AE24: 428.0796019 | AF24: 189.6184417 | AG24: 0.3821094409 | AH24: 0.3821094409 | AI24: 0.5619355139 | AJ24: 163.5732573 | AK24: 91.91762242 | AO24: 651600 | AP24: 7977100 | AQ24: 2404724.044 | AR24: 119.3010896 | AS24: =AR24*SDRf!M20*AI24 -> 23.35257497
A25: 16 | B25: 16 | C25: 19 | D25: LES | E25: UL | F25: 2 | G25: 2506700 | H25: 35105.94155 | I25: 3452311.113 | J25: 20.024475 | K25: 87.2766001 | L25: 2799 | M25: 2.5191 | N25: 0 | O25: 0 | P25: 0 | Q25: 0 | R25: 0 | S25: 0 | T25: 0 | U25: 0 | V25: 0 | W25: 0 | X25: 912246.1483 | Y25: 0.3639231453 | Z25: 31.76197482 | AA25: 3.48173296e-05 | AB25: 0 | AC25: 1 | AD25: 0 | AE25: 87.2766001 | AF25: 31.76197482 | AG25: 0.09684890565 | AH25: 0.09684890565 | AI25: 0.5997641506 | AJ25: 8.452643209 | AK25: 5.069592374 | AO25: 291600 | AP25: 2215100 | AQ25: 214760.3709 | AR25: 7.477382619 | AS25: =AR25*SDRf!M21*AI25 -> 0.5205927467
A26: 17 | B26: 17 | C26: 19 | D26: LES | E26: UL | F26: 2 | G26: 5649700 | H26: 34653.04833 | I26: 3402157.527 | J26: 20.024475 | K26: 374.7474001 | L26: 6263 | M26: 5.6367 | N26: 0 | O26: 0 | P26: 0 | Q26: 0 | R26: 0 | S26: 0 | T26: 0 | U26: 0 | V26: 0 | W26: 0 | X26: 2567824.951 | Y26: 0.4545064253 | Z26: 170.3251012 | AA26: 6.633049544e-05 | AB26: 0 | AC26: 1 | AD26: 0 | AE26: 374.7474001 | AF26: 170.3251012 | AG26: 0.1963283624 | AH26: 0.1963283624 | AI26: 0.6043338866 | AJ26: 73.57354338 | AK26: 44.46298542 | AO26: 694800 | AP26: 4954900 | AQ26: 1235881.966 | AR26: 81.97666309 | AS26: =AR26*SDRf!M22*AI26 -> 10.89827441
A27: 18 | B27: 18 | C27: 14 | D27: LES | E27: UL | F27: 2 | G27: 3627000 | H27: 38971.60172 | I27: 3909154.691 | J27: 22.504334 | K27: 259.5222032 | L27: 4032 | M27: 3.6288 | N27: 0 | O27: 0 | P27: 0 | Q27: 0 | R27: 0 | S27: 0 | T27: 0 | U27: 0 | V27: 0 | W27: 0 | X27: 2299390.324 | Y27: 0.6339647985 | Z27: 164.5279412 | AA27: 7.155285448e-05 | AB27: 0 | AC27: 1 | AD27: 0 | AE27: 259.5222032 | AF27: 164.5279412 | AG27: 0.2994305219 | AH27: 0.2994305219 | AI27: 0.5606321224 | AJ27: 77.70886876 | AK27: 43.56608802 | AO27: 36000 | AP27: 3591000 | AQ27: 195999.8 | AR27: 14.02434517 | AS27: =AR27*SDRf!M23*AI27 -> 2.295863497
A28: 19 | B28: 19 | C28: 31 | D28: LES | E28: UL | F28: 2 | G28: 3374200 | H28: 32288.71283 | I28: 3132705.916 | J28: 20.024475 | K28: 162.6822002 | L28: 3755 | M28: 3.3795 | N28: 0 | O28: 0 | P28: 0 | Q28: 0 | R28: 0 | S28: 0 | T28: 0 | U28: 0 | V28: 0 | W28: 0 | X28: 1133471.279 | Y28: 0.335922968 | Z28: 54.64868754 | AA28: 4.821356179e-05 | AB28: 0 | AC28: 1 | AD28: 0 | AE28: 162.6822002 | AF28: 54.64868754 | AG28: 0.1550531306 | AH28: 0.1550531306 | AI28: 0.629441725 | AJ28: 25.22438443 | AK28: 15.87728005 | AO28: 561600 | AP28: 2812600 | AQ28: 51005.51153 | AR28: 2.459157382 | AS28: =AR28*SDRf!M24*AI28 -> 0.2884935553
A29: 20 | B29: 23 | C29: 14 | D29: LES | E29: UL | F29: 2 | G29: 6046125.656 | H29: 45536.13491 | I29: 4698011.653 | J29: 22.504334 | K29: 696.3966185 | L29: 6724 | M29: 6.0516 | N29: 0 | O29: 0 | P29: 0 | Q29: 0 | R29: 0 | S29: 0 | T29: 0 | U29: 0 | V29: 406 | W29: 406 | X29: 4614976.954 | Y29: 0.7632949125 | Z29: 531.555996 | AA29: 0.0001151806393 | AB29: 0 | AC29: 1 | AD29: 0 | AE29: 696.3966185 | AF29: 531.555996 | AG29: 0.6382768953 | AH29: 0.6382768953 | AI29: 0.4974890596 | AJ29: 444.4938715 | AK29: 221.1308381 | AO29: 1395000 | AP29: 4651125.656 | AQ29: 1869295.101 | AR29: 215.3066048 | AS29: =AR29*SDRf!M25*AI29 -> 64.57279732
A30: 21 | B30: 24 | C30: 23 | D30: LES | E30: UL | F30: 2 | G30: 51200 | H30: 45900.27704 | I30: 4742692.019 | J30: 30.672394 | K30: 2.1069 | L30: 59 | M30: 0.0531 | N30: 0 | O30: 0 | P30: 0 | Q30: 0 | R30: 0 | S30: 0 | T30: 0 | U30: 0 | V30: 16 | W30: 16 | X30: 31585.44285 | Y30: 0.6169031806 | Z30: 1.299753311 | AA30: 4.115039062e-05 | AB30: 0 | AC30: 1 | AD30: 0 | AE30: 2.1069 | AF30: 1.299753311 | AG30: 0.7173830241 | AH30: 0.001423490334 | AI30: 0.4968220822 | AJ30: 1.511454294 | AK30: 0.7509238692 | AO30: 51200 | AP30: ='I|O Detail'!P3/100*G30 -> 2560 | AQ30: 0 | AR30: 0 | AS30: =AR30*SDRf!M26*AI30 -> 0
A31: 22 | B31: 25 | C31: 29 | D31: LES | E31: LO | F31: 3 | G31: 8389771.014 | H31: 59170.44694 | I31: 4104579.931 | J31: 67.447265 | K31: 1659.170702 | L31: 9328 | M31: 8.3952 | N31: 0 | O31: 0 | P31: 0 | Q31: 0 | R31: 0 | S31: 0 | T31: 0 | U31: 0 | V31: 0 | W31: 0 | X31: 7090014.02 | Y31: 0.8450783708 | Z31: 1402.129274 | AA31: 0.0001977611426 | AB31: 0 | AC31: 0 | AD31: 1 | AE31: 1659.170702 | AF31: 1402.129274 | AG31: 0.05262372836 | AH31: 0.05262372836 | AI31: 0.8540962183 | AJ31: 87.31174833 | AK31: 74.57263406 | AO31: 876600 | AP31: 7513171.014 | AQ31: 5585518.94 | AR31: 1104.598608 | AS31: =AR31*SDRf!M27*AI31 -> 27.68300275
A32: 23 | B32: 26 | C32: 31 | D32: LES | E32: UL | F32: 2 | G32: 6764200 | H32: 34286.01731 | I32: 3360813.433 | J32: 20.024475 | K32: 355.4406023 | L32: 7526 | M32: 6.7734 | N32: 0 | O32: 0 | P32: 0 | Q32: 0 | R32: 0 | S32: 0 | T32: 0 | U32: 0 | V32: 0 | W32: 0 | X32: 4122108.35 | Y32: 0.60940072 | Z32: 216.605759 | AA32: 5.254732301e-05 | AB32: 0 | AC32: 1 | AD32: 0 | AE32: 355.4406023 | AF32: 216.605759 | AG32: 0.3157604406 | AH32: 0.3118516219 | AI32: 0.6081244647 | AJ32: 112.2340812 | AK32: 68.25229055 | AO32: 199800 | AP32: 6564400 | AQ32: 1968638.619 | AR32: 103.4466894 | AS32: =AR32*SDRf!M28*AI32 -> 19.94284304
A33: 24 | B33: 28 | C33: 38 | D33: LES | E33: LO | F33: 3 | G33: 7495200 | H33: 58915.92421 | I33: 4085925.266 | J33: 62.178405 | K33: 2603.476806 | L33: 8315 | M33: 7.4835 | N33: 0 | O33: 0 | P33: 0 | Q33: 0 | R33: 0 | S33: 0 | T33: 0 | U33: 0 | V33: 0 | W33: 0 | X33: 3935624.234 | Y33: 0.5250859529 | Z33: 1367.0491 | AA33: 0.0003473525464 | AB33: 0 | AC33: 0 | AD33: 1 | AE33: 2603.476806 | AF33: 1367.0491 | AG33: 0.09246609995 | AH33: 0.05377685203 | AI33: 0.8545121278 | AJ33: 240.7333466 | AK33: 205.7095642 | AO33: 1117800 | AP33: 6377400 | AQ33: 2343097.446 | AR33: 813.8808643 | AS33: =AR33*SDRf!M29*AI33 -> 30.7193553
A34: 25 | B34: 29 | C34: 38 | D34: LES | E34: LO | F34: 3 | G34: 1467500 | H34: 55787.03028 | I34: 3828254.641 | J34: 62.178405 | K34: 342.8496004 | L34: 1628 | M34: 1.4652 | N34: 0 | O34: 0 | P34: 0 | Q34: 0 | R34: 0 | S34: 0 | T34: 0 | U34: 0 | V34: 0 | W34: 0 | X34: 1242062.326 | Y34: 0.8463797792 | Z34: 290.1809691 | AA34: 0.0002336283478 | AB34: 0 | AC34: 0 | AD34: 1 | AE34: 342.8496004 | AF34: 290.1809691 | AG34: 0.06063705057 | AH34: 0.03339890001 | AI34: 0.863158557 | AJ34: 20.78938856 | AK34: 17.94453863 | AO34: 78300 | AP34: 1389200 | AQ34: 50590.86839 | AR34: 11.819461 | AS34: =AR34*SDRf!M30*AI34 -> 0.4483193748
A35: 26 | B35: 30 | C35: 34 | D35: LES | E35: LO | F35: 3 | G35: 6853400 | H35: 64122.32032 | I35: 4737214.175 | J35: 73.619567 | K35: 1507.693501 | L35: 7620 | M35: 6.858 | N35: 0 | O35: 0 | P35: 0 | Q35: 0 | R35: 0 | S35: 0 | T35: 0 | U35: 0 | V35: 0 | W35: 0 | X35: 4489231.669 | Y35: 0.6550371595 | Z35: 987.5952684 | AA35: 0.0002199920479 | AB35: 0 | AC35: 0 | AD35: 1 | AE35: 1507.693501 | AF35: 987.5952684 | AG35: 0.04087722146 | AH35: 0.01501144782 | AI35: 0.8336059862 | AJ35: 61.63032114 | AK35: 51.37540463 | AO35: 1063800 | AP35: 5789600 | AQ35: 3538092.717 | AR35: 778.3522625 | AS35: =AR35*SDRf!M31*AI35 -> 16.82055865
A36: 27 | B36: 31 | C36: 36 | D36: LES | E36: UL | F36: 2 | G36: 1253100 | H36: 30695.03751 | I36: 2954708.781 | J36: 20.024475 | K36: 82.2276011 | L36: 1388 | M36: 1.2492 | N36: 0 | O36: 0 | P36: 0 | Q36: 0 | R36: 0 | S36: 0 | T36: 0 | U36: 0 | V36: 0 | W36: 0 | X36: 292987.0014 | Y36: 0.2338097529 | Z36: 19.2256151 | AA36: 6.56193449e-05 | AB36: 0 | AC36: 1 | AD36: 0 | AE36: 82.2276011 | AF36: 19.2256151 | AG36: 0.303556331 | AH36: 0.2430920581 | AI36: 0.6465745133 | AJ36: 24.9607089 | AK36: 16.13895821 | AO36: 466200 | AP36: 786900 | AQ36: 8014.432871 | AR36: 0.5259018348 | AS36: =AR36*SDRf!M32*AI36 -> 0.1044300032
A37: 28 | B37: 32 | C37: 36 | D37: LES | E37: UL | F37: 2 | G37: 3299000 | H37: 30021.04256 | I37: 2881828.218 | J37: 20.024475 | K37: 278.9307065 | L37: 3665 | M37: 3.2985 | N37: 0 | O37: 0 | P37: 0 | Q37: 0 | R37: 0 | S37: 0 | T37: 0 | U37: 0 | V37: 27 | W37: 27 | X37: 1904331.528 | Y37: 0.5772450826 | Z37: 161.0113787 | AA37: 8.455007775e-05 | AB37: 0 | AC37: 1 | AD37: 0 | AE37: 278.9307065 | AF37: 161.0113787 | AG37: 0.1355099374 | AH37: 0.1355099374 | AI37: 0.653720932 | AJ37: 37.79788258 | AK37: 24.70926703 | AO37: 0 | AP37: 3299000 | AQ37: 255268.9214 | AR37: 21.58300715 | AS37: =AR37*SDRf!M33*AI37 -> 1.91194542
A38: 29 | B38: 33 | C38: 29 | D38: LES | E38: LO | F38: 3 | G38: 1894100 | H38: 58044.3095 | I38: 4010838.042 | J38: 67.447265 | K38: 370.4661004 | L38: 2112 | M38: 1.9008 | N38: 0 | O38: 0 | P38: 0 | Q38: 0 | R38: 0 | S38: 0 | T38: 0 | U38: 0 | V38: 0 | W38: 0 | X38: 1604059.524 | Y38: 0.8468716138 | Z38: 313.7372243 | AA38: 0.000195589515 | AB38: 0 | AC38: 0 | AD38: 1 | AE38: 370.4661004 | AF38: 313.7372243 | AG38: 0.1133209869 | AH38: 0.1133209869 | AI38: 0.8572263309 | AJ38: 41.9815841 | AK38: 35.9877193 | AO38: 512100 | AP38: 1382000 | AQ38: 49928.02015 | AR38: 9.765397248 | AS38: =AR38*SDRf!M34*AI38 -> 0.6432594376
A39: 30 | B39: 34 | C39: 33 | D39: LES | E39: LO | F39: 3 | G39: 110700 | H39: 58556.44153 | I39: 4052513.08 | J39: 72.542389 | K39: 17.92800005 | L39: 125 | M39: 0.1125 | N39: 0 | O39: 0 | P39: 0 | Q39: 0 | R39: 0 | S39: 0 | T39: 0 | U39: 0 | V39: 0 | W39: 0 | X39: 96467.14085 | Y39: 0.8714285533 | Z39: 15.62297115 | AA39: 0.00016195122 | AB39: 0 | AC39: 0 | AD39: 1 | AE39: 17.92800005 | AF39: 15.62297115 | AG39: 0.3988179058 | AH39: 0.3988179058 | AI39: 0.856017272 | AJ39: 7.150007435 | AK39: 6.120529859 | AO39: 69300 | AP39: 41400 | AQ39: 0 | AR39: 0 | AS39: =AR39*SDRf!M35*AI39 -> 0
A40: 31 | B40: 35 | C40: 57 | D40: LES | E40: UL | F40: 2 | G40: 10088600 | H40: 34498.39321 | I40: 3389222.601 | J40: 20.024475 | K40: 1234.144833 | L40: 10748 | M40: 9.6732 | N40: 0 | O40: 0 | P40: 0 | Q40: 0 | R40: 0 | S40: 0 | T40: 0 | U40: 0 | V40: 0 | W40: 0 | X40: 7682246.136 | Y40: 0.7614779192 | Z40: 939.7740396 | AA40: 0.0001223306339 | AB40: 0 | AC40: 1 | AD40: 0 | AE40: 1234.144833 | AF40: 939.7740396 | AG40: 0.2565186349 | AH40: 0.2026187549 | AI40: 0.6055261494 | AJ40: 316.5811479 | AK40: 191.6981635 | AO40: 799200 | AP40: 9289400 | AQ40: 8013613.998 | AR40: 980.3104802 | AS40: =AR40*SDRf!M36*AI40 -> 138.9675488
A41: 32 | B41: 36 | C41: 57 | D41: LES | E41: UL | F41: 2 | G41: 28600 | H41: 29353.91052 | I41: 2807439.157 | J41: 20.024475 | K41: 2.0322 | L41: 32 | M41: 0.0288 | N41: 0 | O41: 0 | P41: 0 | Q41: 0 | R41: 0 | S41: 0 | T41: 0 | U41: 0 | V41: 0 | W41: 0 | X41: 0 | Y41: 0 | Z41: 0 | AA41: 0 | AB41: 0 | AC41: 1 | AD41: 0 | AE41: 2.0322 | AF41: 0 | AG41: 0.137979838 | AH41: 0.137979838 | AI41: 0.6610872077 | AJ41: 0.2804026269 | AK41: 0.1853705896 | AO41: 0 | AP41: 28600 | AQ41: 0 | AR41: 0 | AS41: =AR41*SDRf!M37*AI41 -> 0
A42: 33 | B42: 37 | C42: 34 | D42: LES | E42: LO | F42: 3 | G42: 3384100 | H42: 59599.7258 | I42: 4140602.194 | J42: 73.619567 | K42: 848.8485011 | L42: 3761 | M42: 3.3849 | N42: 0 | O42: 0 | P42: 0 | Q42: 0 | R42: 0 | S42: 0 | T42: 0 | U42: 0 | V42: 0 | W42: 0 | X42: 2683273.487 | Y42: 0.7929060864 | Z42: 673.057143 | AA42: 0.0002508343433 | AB42: 0 | AC42: 0 | AD42: 1 | AE42: 848.8485011 | AF42: 673.057143 | AG42: 0.02103536023 | AH42: 0.007398497245 | AI42: 0.8531218768 | AJ42: 17.855834 | AK42: 15.23320262 | AO42: 103500 | AP42: 3280600 | AQ42: 832291.2537 | AR42: 208.7672301 | AS42: =AR42*SDRf!M38*AI42 -> 2.744107568
A43: 34 | B43: 38 | C43: 49 | D43: LES | E43: LO | F43: 3 | G43: 349400 | H43: 54217.9134 | I43: 3703322.7 | J43: 59.076416 | K43: 176.3235 | L43: 391 | M43: 0.3519 | N43: 0 | O43: 0 | P43: 0 | Q43: 0 | R43: 0 | S43: 0 | T43: 0 | U43: 0 | V43: 0 | W43: 0 | X43: 260262.9954 | Y43: 0.7448855048 | Z43: 131.3408193 | AA43: 0.0005046465369 | AB43: 0 | AC43: 0 | AD43: 1 | AE43: 176.3235 | AF43: 131.3408193 | AG43: 0.2623841232 | AH43: 0.1014364901 | AI43: 0.8672605765 | AJ43: 46.26448695 | AK43: 40.12336562 | AO43: 108900 | AP43: 240500 | AQ43: 0 | AR43: 0 | AS43: =AR43*SDRf!M39*AI43 -> 0
A44: 35 | B44: 39 | C44: 49 | D44: LES | E44: LO | F44: 3 | G44: 6153100 | H44: 55911.5025 | I44: 3840615.216 | J44: 59.076416 | K44: 1689.292799 | L44: 6843 | M44: 6.1587 | N44: 0 | O44: 0 | P44: 0 | Q44: 0 | R44: 0 | S44: 0 | T44: 0 | U44: 0 | V44: 0 | W44: 0 | X44: 3157515.485 | Y44: 0.5131584868 | Z44: 866.8749364 | AA44: 0.0002745433682 | AB44: 0 | AC44: 0 | AD44: 1 | AE44: 1689.292799 | AF44: 866.8749364 | AG44: 0.08236043363 | AH44: 0.02787472797 | AI44: 0.8626192402 | AJ44: 139.1308874 | AK44: 120.0169804 | AO44: 752400 | AP44: 5400700 | AQ44: 712596.5106 | AR44: 195.6386462 | AS44: =AR44*SDRf!M40*AI44 -> 9.7541824
A45: 36 | B45: 42 | C45: 24 | D45: LES | E45: UL | F45: 2 | G45: 9185938.086 | H45: 51577.94731 | I45: 5457041.565 | J45: 31.571137 | K45: 907.916439 | L45: 10202 | M45: 9.1818 | N45: 0 | O45: 0 | P45: 0 | Q45: 0 | R45: 0 | S45: 0 | T45: 0 | U45: 0 | V45: 0 | W45: 0 | X45: 7927669.69 | Y45: 0.8630223299 | Z45: 783.5521606 | AA45: 9.883763972e-05 | AB45: 0 | AC45: 1 | AD45: 0 | AE45: 907.916439 | AF45: 783.5521606 | AG45: 0.303730606 | AH45: 0.2673166291 | AI45: 0.4463487724 | AJ45: 275.7620102 | AK45: 123.0860347 | AO45: 416700 | AP45: 8769238.086 | AQ45: 2835345.936 | AR45: 280.2389001 | AS45: =AR45*SDRf!M41*AI45 -> 36.40366186
A46: 37 | B46: 44 | C46: 33 | D46: LES | E46: LO | F46: 3 | G46: 5107700 | H46: 59185.35026 | I46: 4115428.764 | J46: 72.542389 | K46: 1239.382801 | L46: 5650 | M46: 5.085 | N46: 0 | O46: 0 | P46: 0 | Q46: 0 | R46: 0 | S46: 0 | T46: 0 | U46: 0 | V46: 0 | W46: 0 | X46: 4562202.108 | Y46: 0.8932008748 | Z46: 1107.017802 | AA46: 0.0002426498817 | AB46: 0 | AC46: 0 | AD46: 1 | AE46: 1239.382801 | AF46: 1107.017802 | AG46: 0.006443739139 | AH46: 0.006443739139 | AI46: 0.8539263073 | AJ46: 7.98625946 | AK46: 6.819677049 | AO46: 96300 | AP46: 5011400 | AQ46: 3298814.341 | AR46: 800.4569095 | AS46: =AR46*SDRf!M42*AI46 -> 2.928440195
A47: 38 | B47: 45 | C47: 23 | D47: LES | E47: UL | F47: 2 | G47: 3433400 | H47: 49968.68325 | I47: 5249548.968 | J47: 30.672394 | K47: 624.9366343 | L47: 3815 | M47: 3.4335 | N47: 0 | O47: 0 | P47: 0 | Q47: 0 | R47: 0 | S47: 0 | T47: 0 | U47: 0 | V47: 6 | W47: 6 | X47: 2540832.231 | Y47: 0.740033853 | Z47: 462.4742654 | AA47: 0.0001820168446 | AB47: 0 | AC47: 1 | AD47: 0 | AE47: 624.9366343 | AF47: 462.4742654 | AG47: 0.5248817885 | AH47: 0.4442488179 | AI47: 0.4602761726 | AJ47: 328.0178583 | AK47: 150.9788044 | AO47: 347400 | AP47: 3086000 | AQ47: 986692.2523 | AR47: 179.5946104 | AS47: =AR47*SDRf!M43*AI47 -> 40.09420532
A48: 39 | B48: 46 | C48: 45 | D48: LES | E48: UL | F48: 2 | G48: 3033000 | H48: 50073.68325 | I48: 5262887.196 | J48: 35.019409 | K48: 223.0110075 | L48: 3372 | M48: 3.0348 | N48: 0 | O48: 0 | P48: 0 | Q48: 0 | R48: 0 | S48: 0 | T48: 0 | U48: 0 | V48: 0 | W48: 0 | X48: 2070382.974 | Y48: 0.6826188508 | Z48: 152.2315177 | AA48: 7.352819238e-05 | AB48: 0 | AC48: 1 | AD48: 0 | AE48: 223.0110075 | AF48: 152.2315177 | AG48: 0.3522831536 | AH48: 0.3467006721 | AI48: 0.4605350609 | AJ48: 78.56302102 | AK48: 36.18102567 | AO48: 20700 | AP48: 3012300 | AQ48: 324741.5489 | AR48: 23.87765908 | AS48: =AR48*SDRf!M44*AI48 -> 3.807225253
A49: 40 | B49: 47 | C49: 77 | D49: LES | E49: UL | F49: 2 | G49: 3404600 | H49: 28986.36218 | I49: 2764919.78 | J49: 22.356171 | K49: 477.0000026 | L49: 3780 | M49: 3.402 | N49: 0 | O49: 0 | P49: 0 | Q49: 0 | R49: 0 | S49: 0 | T49: 0 | U49: 0 | V49: 0 | W49: 0 | X49: 2862737.271 | Y49: 0.8408439381 | Z49: 401.0825606 | AA49: 0.0001401045652 | AB49: 0 | AC49: 1 | AD49: 0 | AE49: 477.0000026 | AF49: 401.0825606 | AG49: 0.139320226 | AH49: 0.139320226 | AI49: 0.6660757479 | AJ49: 66.45574815 | AK49: 44.26456215 | AO49: 646200 | AP49: 2758400 | AQ49: 1749329.947 | AR49: 245.0891115 | AS49: =AR49*SDRf!M45*AI49 -> 23.78662769
A50: 41 | B50: 48 | C50: 24 | D50: LES | E50: UL | F50: 2 | G50: 7822700 | H50: 50997.2976 | I50: 5386667.918 | J50: 31.571137 | K50: 1110.781834 | L50: 8698 | M50: 7.8282 | N50: 0 | O50: 0 | P50: 0 | Q50: 0 | R50: 0 | S50: 0 | T50: 0 | U50: 0 | V50: 100 | W50: 100 | X50: 5657154.546 | Y50: 0.723171609 | Z50: 803.2858865 | AA50: 0.0001419946865 | AB50: 0 | AC50: 1 | AD50: 0 | AE50: 1110.781834 | AF50: 803.2858865 | AG50: 0.3188729176 | AH50: 0.2853300668 | AI50: 0.45111787 | AJ50: 354.1982444 | AK50: 159.7851575 | AO50: 612000 | AP50: 7210700 | AQ50: 3546180.005 | AR50: 503.5387183 | AS50: =AR50*SDRf!M46*AI50 -> 64.99458185
A51: 42 | B51: 49 | C51: 53 | D51: LES | E51: LO | F51: 3 | G51: 1124700 | H51: 52878.79651 | I51: 3598391.12 | J51: 53.167083 | K51: 251.5671 | L51: 1248 | M51: 1.1232 | N51: 0 | O51: 0 | P51: 0 | Q51: 0 | R51: 0 | S51: 0 | T51: 0 | U51: 0 | V51: 0 | W51: 0 | X51: 663686.2404 | Y51: 0.590100685 | Z51: 148.449918 | AA51: 0.0002236748466 | AB51: 0 | AC51: 0 | AD51: 1 | AE51: 251.5671 | AF51: 148.449918 | AG51: 0.3025769504 | AH51: 0.3025769504 | AI51: 0.8705831246 | AJ51: 76.11840593 | AK51: 66.26739967 | AO51: 470700 | AP51: 654000 | AQ51: 15757.70424 | AR51: 3.524602078 | AS51: =AR51*SDRf!M47*AI51 -> 0.6022085061
A52: 43 | B52: 50 | C52: 30 | D52: LES | E52: LO | F52: 3 | G52: 15128600 | H52: 74120.72652 | I52: 6011200.821 | J52: 76.717376 | K52: 2643.690606 | L52: 16728 | M52: 15.0552 | N52: 0 | O52: 0 | P52: 0 | Q52: 0 | R52: 0 | S52: 0 | T52: 0 | U52: 0 | V52: 0 | W52: 0 | X52: 8672315.035 | Y52: 0.5732397601 | Z52: 1515.468569 | AA52: 0.0001747478686 | AB52: 0 | AC52: 0 | AD52: 1 | AE52: 2643.690606 | AF52: 1515.468569 | AG52: 0.0193190901 | AH52: 0.01493178522 | AI52: 0.7934268867 | AJ52: 51.073697 | AK52: 40.5232444 | AO52: 1795500 | AP52: 13333100 | AQ52: 10100576.24 | AR52: 1765.054169 | AS52: =AR52*SDRf!M48*AI52 -> 23.26632914
A53: 44 | B53: 51 | C53: 50 | D53: LES | E53: LO | F53: 3 | G53: 3119700 | H53: 74488.56923 | I53: 6059328.562 | J53: 76.717376 | K53: 416.0223006 | L53: 3441 | M53: 3.0969 | N53: 0 | O53: 0 | P53: 0 | Q53: 0 | R53: 0 | S53: 0 | T53: 0 | U53: 0 | V53: 0 | W53: 0 | X53: 1206725.032 | Y53: 0.3868080365 | Z53: 160.9207692 | AA53: 0.0001333533034 | AB53: 0 | AC53: 0 | AD53: 1 | AE53: 416.0223006 | AF53: 160.9207692 | AG53: 0.0008290943883 | AH53: 0.0008290943883 | AI53: 0.7919409543 | AJ53: 0.3449217548 | AK53: 0.2731576637 | AO53: 0 | AP53: 3119700 | AQ53: 211548.4923 | AR53: 28.21069027 | AS53: =AR53*SDRf!M49*AI53 -> 0.01852296436
A54: 45 | B54: 52 | C54: 62 | D54: LES | E54: LO | F54: 3 | G54: 7139900 | H54: 40402.58764 | I54: 2670895.157 | J54: 43.81137 | K54: 1190.149199 | L54: 7936 | M54: 7.1424 | N54: 0 | O54: 0 | P54: 0 | Q54: 0 | R54: 0 | S54: 0 | T54: 119541 | U54: 265.38102 | V54: 0 | W54: 265.38102 | X54: 5496161.726 | Y54: 0.7697813311 | Z54: 916.1546343 | AA54: 0.0001666898974 | AB54: 0 | AC54: 0 | AD54: 1 | AE54: 1190.149199 | AF54: 916.1546343 | AG54: 0.1055352027 | AH54: 0.07557066674 | AI54: 0.90237785 | AJ54: 125.6026369 | AK54: 113.3410375 | AO54: 908100 | AP54: 6231800 | AQ54: 2792337.371 | AR54: 465.45443 | AS54: =AR54*SDRf!M50*AI54 -> 18.33138521
A55: 46 | B55: 53 | C55: 60 | D55: LES | E55: LO | F55: 3 | G55: 210200 | H55: 50018.72509 | I55: 3377868.748 | J55: 53.112915 | K55: 116.9046 | L55: 235 | M55: 0.2115 | N55: 0 | O55: 0 | P55: 0 | Q55: 0 | R55: 0 | S55: 0 | T55: 0 | U55: 0 | V55: 0 | W55: 0 | X55: 107376.4664 | Y55: 0.5108300017 | Z55: 59.71837703 | AA55: 0.0005561588964 | AB55: 0 | AC55: 0 | AD55: 1 | AE55: 116.9046 | AF55: 59.71837703 | AG55: 0.03356565992 | AH55: 0.03356565992 | AI55: 0.8781272575 | AJ55: 3.923980047 | AK55: 3.445753837 | AO55: 0 | AP55: 210200 | AQ55: 0 | AR55: 0 | AS55: =AR55*SDRf!M51*AI55 -> 0
A56: 47 | B56: 56 | C56: 53 | D56: LES | E56: LO | F56: 3 | G56: 4617900 | H56: 51022.72004 | I56: 3455839.508 | J56: 53.167083 | K56: 732.3362994 | L56: 5109 | M56: 4.5981 | N56: 0 | O56: 0 | P56: 0 | Q56: 0 | R56: 0 | S56: 0 | T56: 0 | U56: 0 | V56: 0 | W56: 0 | X56: 3876009.367 | Y56: 0.8393445868 | Z56: 614.6825086 | AA56: 0.0001585864353 | AB56: 0 | AC56: 0 | AD56: 1 | AE56: 732.3362994 | AF56: 614.6825086 | AG56: 0.03396349271 | AH56: 0.02052880278 | AI56: 0.875455176 | AJ56: 24.87269856 | AK56: 21.7749327 | AO56: 117900 | AP56: 4500000 | AQ56: 2161993.495 | AR56: 342.8628414 | AS56: =AR56*SDRf!M52*AI56 -> 6.693797352
A57: 48 | B57: 57 | C57: 78 | D57: LES | E57: UL | F57: 2 | G57: 5036800 | H57: 29106.6313 | I57: 2780539.949 | J57: 19.803864 | K57: 499.2435114 | L57: 5612 | M57: 5.0508 | N57: 0 | O57: 0 | P57: 0 | Q57: 0 | R57: 0 | S57: 0 | T57: 0 | U57: 0 | V57: 0 | W57: 0 | X57: 2432166.938 | Y57: 0.4828793953 | Z57: 241.0744049 | AA57: 9.911918508e-05 | AB57: 0 | AC57: 1 | AD57: 0 | AE57: 499.2435114 | AF57: 241.0744049 | AG57: 0.3720719342 | AH57: 0.3401018361 | AI57: 0.663696103 | AJ57: 185.7544989 | AK57: 123.2845371 | AO57: 779400 | AP57: 4257400 | AQ57: 1660402.007 | AR57: 164.5776939 | AS57: =AR57*SDRf!M53*AI57 -> 41.12188633
A58: 49 | B58: 58 | C58: 64 | D58: LES | E58: LO | F58: 3 | G58: 10645453.34 | H58: 39894.009 | I58: 2634284.946 | J58: 37.18219 | K58: 2377.880097 | L58: 11844 | M58: 10.6596 | N58: 0 | O58: 0 | P58: 0 | Q58: 0 | R58: 0 | S58: 0 | T58: 0 | U58: 0 | V58: 0 | W58: 0 | X58: 5551639.147 | Y58: 0.5215033091 | Z58: 1240.072339 | AA58: 0.0002233704869 | AB58: 0 | AC58: 0 | AD58: 1 | AE58: 2377.880097 | AF58: 1240.072339 | AG58: 0.1327757922 | AH58: 0.05702059893 | AI58: 0.9033856178 | AJ58: 315.7249135 | AK58: 285.221346 | AO58: 1941300 | AP58: 8704153.345 | AQ58: 3056595.644 | AR58: 682.7532572 | AS58: =AR58*SDRf!M54*AI58 -> 36.64800243
A59: 50 | B59: 59 | C59: 77 | D59: LES | E59: UL | F59: 2 | G59: 5485500 | H59: 29706.96139 | I59: 2845128.12 | J59: 22.356171 | K59: 482.8563056 | L59: 6086 | M59: 5.4774 | N59: 0 | O59: 0 | P59: 0 | Q59: 0 | R59: 0 | S59: 0 | T59: 0 | U59: 0 | V59: 0 | W59: 0 | X59: 3765478.585 | Y59: 0.6864421811 | Z59: 331.4529356 | AA59: 8.802411915e-05 | AB59: 0 | AC59: 1 | AD59: 0 | AE59: 482.8563056 | AF59: 331.4529356 | AG59: 0.139404604 | AH59: 0.139404604 | AI59: 0.6581010733 | AJ59: 67.31239209 | AK59: 44.29835749 | AO59: 73800 | AP59: 5411700 | AQ59: 2553978.857 | AR59: 224.8117392 | AS59: =AR59*SDRf!M55*AI59 -> 20.55114164
A60: 51 | B60: 60 | C60: 62 | D60: LES | E60: LO | F60: 3 | G60: 10229000 | H60: 49267.30373 | I60: 3320778.007 | J60: 43.81137 | K60: 2048.687093 | L60: 11386 | M60: 10.2474 | N60: 0.3061962155 | O60: 15630 | P60: 639.805036 | Q60: 1332.214024 | R60: 304.785 | S60: 2276.80406 | T60: 26391.10059 | U60: 58.5882433 | V60: 3458 | W60: 5793.392304 | X60: 6114069.597 | Y60: 0.5977191903 | Z60: 1224.53959 | AA60: 0.0002002822458 | AB60: 0 | AC60: 0 | AD60: 1 | AE60: 2048.687093 | AF60: 1224.53959 | AG60: 0.1243774009 | AH60: 0.02154913041 | AI60: 0.879678711 | AJ60: 254.8103758 | AK60: 224.1512629 | AO60: 1954800 | AP60: 8274200 | AQ60: 2629434.355 | AR60: 526.629018 | AS60: =AR60*SDRf!M56*AI60 -> 26.08140089
A61: 52 | B61: 61 | C61: 78 | D61: LES | E61: UL | F61: 2 | G61: 7438200 | H61: 29804.52452 | I61: 2860896.47 | J61: 19.803864 | K61: 611.3871346 | L61: 8268 | M61: 7.4412 | N61: 0 | O61: 0 | P61: 0 | Q61: 0 | R61: 0 | S61: 0 | T61: 0 | U61: 0 | V61: 0 | W61: 0 | X61: 4951439.707 | Y61: 0.6656771406 | Z61: 406.9864396 | AA61: 8.219557616e-05 | AB61: 0 | AC61: 1 | AD61: 0 | AE61: 611.3871346 | AF61: 406.9864396 | AG61: 0.3434481133 | AH61: 0.3153081628 | AI61: 0.6557158175 | AJ61: 209.9797579 | AK61: 137.6870486 | AO61: 277200 | AP61: 7161000 | AQ61: 1825982.21 | AR61: 150.0876598 | AS61: =AR61*SDRf!M57*AI61 -> 32.69043809
A62: 53 | B62: 62 | C62: 64 | D62: LES | E62: LO | F62: 3 | G62: 3848600 | H62: 37511.00864 | I62: 2462163.569 | J62: 37.18219 | K62: 1128.490195 | L62: 4273 | M62: 3.8457 | N62: 0.3061962155 | O62: 7800 | P62: 319.2885016 | Q62: 664.8284959 | R62: 152.1 | S62: 1136.216998 | T62: 43960.60059 | U62: 97.5925333 | V62: 4671 | W62: 5904.809531 | X62: 1701796.483 | Y62: 0.4421858553 | Z62: 499.0024021 | AA62: 0.0002932209621 | AB62: 0 | AC62: 0 | AD62: 1 | AE62: 1128.490195 | AF62: 499.0024021 | AG62: 0.09259163894 | AH62: -0.009861085216 | AI62: 0.9095039907 | AJ62: 104.4887567 | AK62: 95.03294118 | AO62: 720000 | AP62: 3128600 | AQ62: 112094.6061 | AR62: 32.86848824 | AS62: =AR62*SDRf!M58*AI62 -> 1.253857775
A63: 54 | B63: 63 | C63: 92 | D63: LES | E63: LO | F63: 3 | G63: 4586042.826 | H63: 32399.90691 | I63: 2102120.622 | J63: 34.867248 | K63: 889.0217993 | L63: 5084 | M63: 4.5756 | N63: 0 | O63: 0 | P63: 0 | Q63: 0 | R63: 0 | S63: 0 | T63: 0 | U63: 0 | V63: 0 | W63: 0 | X63: 1871158.422 | Y63: 0.4080115456 | Z63: 362.7311585 | AA63: 0.0001938537936 | AB63: 0 | AC63: 0 | AD63: 1 | AE63: 889.0217993 | AF63: 362.7311585 | AG63: 0.1400366312 | AH63: 0.1059707657 | AI63: 0.9223239999 | AJ63: 124.4956179 | AK63: 114.8252963 | AO63: 641700 | AP63: 3944342.826 | AQ63: 435436.5025 | AR63: 84.41101787 | AS63: =AR63*SDRf!M59*AI63 -> 4.598422036
A64: 55 | B64: 64 | C64: 92 | D64: LES | E64: LO | F64: 3 | G64: 478800 | H64: 31259.93216 | I64: 2023874.5 | J64: 34.867248 | K64: 118.0484985 | L64: 531 | M64: 0.4779 | N64: 0.3061962155 | O64: 1260 | P64: 51.57737334 | Q64: 107.3953724 | R64: 24.57 | S64: 183.5427458 | T64: 0 | U64: 0 | V64: 574 | W64: 757.5427458 | X64: 111842.6726 | Y64: 0.2335895419 | Z64: 27.57489468 | AA64: 0.0002465507487 | AB64: 0 | AC64: 0 | AD64: 1 | AE64: 118.0484985 | AF64: 27.57489468 | AG64: 0.1474777946 | AH64: 0.1474777946 | AI64: 0.9251531529 | AJ64: 17.40953222 | AK64: 16.10648362 | AO64: 112500 | AP64: 366300 | AQ64: 0 | AR64: 0 | AS64: =AR64*SDRf!M60*AI64 -> 0
A65: 56 | B65: 66 | C65: 54 | D65: LES | E65: LO | F65: 3 | G65: 1716198.211 | H65: 1765.391052 | I65: 109812.8817 | J65: 0.001 | K65: 325.6983102 | L65: 1905 | M65: 1.7145 | N65: 0.5410871649 | O65: 2010 | P65: 54.42247311 | Q65: 455.1027892 | R65: 39.195 | S65: 548.7202623 | T65: 0 | U65: 0 | V65: 9174 | W65: 9722.720262 | X65: 247153.544 | Y65: 0.1440122373 | Z65: 46.90454233 | AA65: 0.0001897789591 | AB65: 0 | AC65: 0 | AD65: 1 | AE65: 325.6983102 | AF65: 46.90454233 | AG65: 0.2762082601 | AH65: 0.1724147442 | AI65: 0.9951363786 | AJ65: 89.96056358 | AK65: 89.52302945 | AO65: 629100 | AP65: 1087098.211 | AQ65: 6715.141661 | AR65: 1.274392595 | AS65: =AR65*SDRf!M61*AI65 -> 0.1845456838
A66: 57 | B66: 69 | C66: 66 | D66: LES | E66: LO | F66: 3 | G66: 225000 | H66: 2504.802307 | I66: 155906.0336 | J66: 0.220947 | K66: 29.8062013 | L66: 250 | M66: 0.225 | N66: 0.5410871649 | O66: 870 | P66: 23.55599582 | Q66: 196.9847894 | R66: 16.965 | S66: 237.5057852 | T66: 0 | U66: 0 | V66: 674 | W66: 911.5057852 | X66: 0 | Y66: 0 | Z66: 0 | AA66: 0 | AB66: 0 | AC66: 0 | AD66: 1 | AE66: 29.8062013 | AF66: 0 | AG66: 0.3633439077 | AH66: 0.1888088811 | AI66: 0.9937308593 | AJ66: 10.82990165 | AK66: 10.76200748 | AO66: 71100 | AP66: 153900 | AQ66: 0 | AR66: 0 | AS66: =AR66*SDRf!M62*AI66 -> 0
A67: 58 | B67: 70 | C67: 69 | D67: LES | E67: LO | F67: 3 | G67: 3141331.152 | H67: 3192.64502 | I67: 199150.7419 | J67: 0.220947 | K67: 700.4403003 | L67: 3497 | M67: 3.1473 | N67: 0 | O67: 0 | P67: 0 | Q67: 0 | R67: 0 | S67: 0 | T67: 0 | U67: 0 | V67: 0 | W67: 0 | X67: 1574119.305 | Y67: 0.5010994474 | Z67: 350.9902474 | AA67: 0.0002229756324 | AB67: 0 | AC67: 0 | AD67: 1 | AE67: 700.4403003 | AF67: 350.9902474 | AG67: 0.08536907732 | AH67: 0.06107284345 | AI67: 0.9919620963 | AJ67: 59.79594215 | AK67: 59.31530813 | AO67: 162000 | AP67: 2979331.152 | AQ67: 270478.4133 | AR67: 60.31009527 | AS67: =AR67*SDRf!M63*AI67 -> 3.306917851
A68: 59 | B68: 71 | C68: 50 | D68: LES | E68: LO | F68: 3 | G68: 6305700 | H68: 75695.72652 | I68: 6213171.013 | J68: 76.717376 | K68: 1167.903001 | L68: 6922 | M68: 6.2298 | N68: 0 | O68: 0 | P68: 0 | Q68: 0 | R68: 0 | S68: 0 | T68: 0 | U68: 0 | V68: 0 | W68: 0 | X68: 3805716.023 | Y68: 0.6035358522 | Z68: 704.8713332 | AA68: 0.0001852138543 | AB68: 0 | AC68: 0 | AD68: 1 | AE68: 1167.903001 | AF68: 704.8713332 | AG68: 0.01068871203 | AH68: 0.009120866251 | AI68: 0.7872069938 | AJ68: 12.48337887 | AK68: 9.82700315 | AO68: 251100 | AP68: 6054600 | AQ68: 2081034.154 | AR68: 385.4363567 | AS68: =AR68*SDRf!M64*AI68 -> 3.051780926
A69: 60 | B69: 75 | C69: 69 | D69: LES | E69: LO | F69: 3 | G69: 240200 | H69: 3047.64502 | I69: 189791.1903 | J69: 0.220947 | K69: 264.900601 | L69: 268 | M69: 0.2412 | N69: 0.5410871649 | O69: 660 | P69: 17.8700658 | Q69: 149.4367368 | R69: 12.87 | S69: 180.1768026 | T69: 0 | U69: 0 | V69: 503 | W69: 683.1768026 | X69: 0 | Y69: 0 | Z69: 0 | AA69: 0 | AB69: 0 | AC69: 0 | AD69: 1 | AE69: 264.900601 | AF69: 0 | AG69: 0.2868246785 | AH69: 0.1700581994 | AI69: 0.9923451426 | AJ69: 75.98002972 | AK69: 75.39841342 | AO69: 50400 | AP69: 189800 | AQ69: 3046.025503 | AR69: 3.359258894 | AS69: =AR69*SDRf!M65*AI69 -> 0.5957785128
A70: 61 | B70: 76 | C70: 75 | D70: LES | E70: LO | F70: 3 | G70: 3110000 | H70: 3415.782105 | I70: 212892.3033 | J70: 2.092559 | K70: 685.9791008 | L70: 3456 | M70: 3.1104 | N70: 0 | O70: 0 | P70: 0 | Q70: 0 | R70: 0 | S70: 0 | T70: 531151 | U70: 1179.15522 | V70: 0 | W70: 1179.15522 | X70: 2274560.919 | Y70: 0.7313700704 | Z70: 501.7045833 | AA70: 0.0002205720581 | AB70: 0 | AC70: 0 | AD70: 1 | AE70: 685.9791008 | AF70: 501.7045833 | AG70: 0.002709913942 | AH70: 0.002709913942 | AI70: 0.9917570616 | AJ70: 1.858944329 | AK70: 1.843621166 | AO70: 0 | AP70: 3110000 | AQ70: 247511.2013 | AR70: 54.59405508 | AS70: =AR70*SDRf!M66*AI70 -> 0.1467256879
A71: 62 | B71: 77 | C71: 94 | D71: LES | E71: UL | F71: 2 | G71: 3956100 | H71: 28477.22005 | I71: 2709308.691 | J71: 19.181458 | K71: 284.876109 | L71: 4404 | M71: 3.9636 | N71: 0 | O71: 0 | P71: 0 | Q71: 0 | R71: 0 | S71: 0 | T71: 0 | U71: 0 | V71: 0 | W71: 0 | X71: 2703363.123 | Y71: 0.6833404421 | Z71: 194.6673663 | AA71: 7.200932964e-05 | AB71: 0 | AC71: 1 | AD71: 0 | AE71: 284.876109 | AF71: 194.6673663 | AG71: 0.5124304399 | AH71: 0.4475908683 | AI71: 0.6706351556 | AJ71: 145.9791898 | AK71: 97.8987767 | AO71: 555300 | AP71: 3400800 | AQ71: 1378035.559 | AR71: 99.23141685 | AS71: =AR71*SDRf!M67*AI71 -> 35.08814693
A72: 63 | B72: 78 | C72: 94 | D72: LES | E72: UL | F72: 2 | G72: 2572400 | H72: 26373.8391 | I72: 2482396.753 | J72: 19.181458 | K72: 179.8857024 | L72: 2870 | M72: 2.583 | N72: 0 | O72: 0 | P72: 0 | Q72: 0 | R72: 0 | S72: 0 | T72: 0 | U72: 0 | V72: 0 | W72: 0 | X72: 1037430.403 | Y72: 0.4032928018 | Z72: 72.54660892 | AA72: 6.992913326e-05 | AB72: 0 | AC72: 1 | AD72: 0 | AE72: 179.8857024 | AF72: 72.54660892 | AG72: 0.364082798 | AH72: 0.364082798 | AI72: 0.6939423349 | AJ72: 65.49328985 | AK72: 45.44856648 | AO72: 287100 | AP72: 2285300 | AQ72: 879392.5337 | AR72: 61.49515768 | AS72: =AR72*SDRf!M68*AI72 -> 17.04363289
A73: 64 | B73: 83 | C73: 45 | D73: LES | E73: UL | F73: 2 | G73: 20560300 | H73: 61229.78498 | I73: 6715827.154 | J73: 35.019409 | K73: 1945.970165 | L73: 22867 | M73: 20.5803 | N73: 0 | O73: 0 | P73: 0 | Q73: 0 | R73: 0 | S73: 0 | T73: 0 | U73: 0 | V73: 0 | W73: 0 | X73: 14600628.81 | Y73: 0.710136954 | Z73: 1381.905326 | AA73: 9.46469733e-05 | AB73: 0 | AC73: 1 | AD73: 0 | AE73: 1945.970165 | AF73: 1381.905326 | AG73: 0.3741944111 | AH73: 0.3017244402 | AI73: 0.3699401631 | AJ73: 728.1711599 | AK73: 269.3797577 | AO73: 2217600 | AP73: 18342700 | AQ73: 13264841.92 | AR73: 1255.477139 | AS73: =AR73*SDRf!M69*AI73 -> 161.4650765
A74: =A73+1 -> 65 | B74: 84 | C74: 66 | D74: LES | E74: LO | F74: 3 | G74: 6279801.232 | H74: 4767.325394 | I74: 298311.4204 | J74: 0.220947 | K74: 563.6448041 | L74: 6959 | M74: 6.2631 | N74: 0 | O74: 0 | P74: 0 | Q74: 0 | R74: 0 | S74: 0 | T74: 617291 | U74: 1370.38602 | V74: 0 | W74: 1370.38602 | X74: 4419479.168 | Y74: 0.7037609958 | Z74: 396.6712286 | AA74: 8.975519819e-05 | AB74: 0 | AC74: 0 | AD74: 1 | AE74: 563.6448041 | AF74: 396.6712286 | AG74: 0.05362663062 | AH74: 0.03298602943 | AI74: 0.9878926817 | AJ74: 30.22637171 | AK74: 29.86041141 | AO74: 247500 | AP74: =G74-AO74 -> 6032301.232 | AQ74: 1160647.898 | AR74: 104.1741821 | AS74: =AR74*SDRf!M70*AI74 -> 3.802819543
A75: 66 | B75: 91 | C75: 75 | D75: LES | E75: LO | F75: 3 | G75: 3093400 | H75: 5727.594514 | I75: 357758.8286 | J75: 2.092559 | K75: 2317.6179 | L75: 3439 | M75: =L75*30*30/1000^2 -> 3.0951 | N75: 0.5410871649 | O75: 3120 | P75: 84.47667468 | Q75: 706.4282101 | R75: 60.84 | S75: 851.7448848 | T75: 270793.8008 | U75: 601.1622377 | V75: 4175 | W75: 5627.907123 | X75: 1028839.128 | Y75: =X75/G75 -> 0.3325916881 | Z75: =Y75*K75 -> 770.8204498 | AA75: =IF(X75=0,0,Z75/X75) -> 0.0007492137777 | AB75: =IF($F75=1,1,0) -> 0 | AC75: =IF($F75=2,1,0) -> 0 | AD75: =IF($F75=3,1,0) -> 1 | AE75: 2317.6179 | AF75: =AE75-(K75-Z75) -> 770.8204498 | AG75: 0.2488582418 | AH75: 0.1632555887 | AI75: 0.9860515133 | AJ75: =K75*AG75 -> 576.7583158 | AK75: =AJ75*AI75 -> 568.7134101 | AO75: 850500 | AP75: 2242900 | AQ75: 52096.5521 | AR75: =K75*(AQ75/G75) -> 39.0314546 | AS75: =AR75*SDRf!M71*AI75 -> 5.654519356
A76: 67 | B76: 92 | C76: 100 | D76: LES | E76: LO | F76: 3 | G76: 4252282.252 | H76: 30262.53101 | I76: 1955706.916 | J76: 28.666076 | K76: 1067.1066 | L76: 4729 | M76: 4.2561 | N76: 0.3061962155 | O76: 5730 | P76: 234.5542454 | Q76: 488.3932412 | R76: 111.735 | S76: 834.6824866 | T76: 219522.7988 | U76: 487.3406134 | V76: 840 | W76: 2162.0231 | X76: 1824126.109 | Y76: 0.4289757831 | Z76: 457.7628894 | AA76: 0.0002509491461 | AB76: 0 | AC76: 0 | AD76: 1 | AE76: 1067.1066 | AF76: 457.7628894 | AG76: 0.1175681225 | AH76: 0.0125027149 | AI76: 0.9273637049 | AJ76: 125.4577195 | AK76: 116.3449355 | AO76: 936900 | AP76: 3315382.252 | AQ76: 244189.2264 | AR76: 61.27907785 | AS76: =AR76*SDRf!M72*AI76 -> 4.195913524
A77: 68 | B77: 93 | C77: 100 | D77: LES | E77: LO | F77: 3 | G77: 3378100 | H77: 27992.19046 | I77: 1802553.771 | J77: 28.666076 | K77: 595.0808973 | L77: 3754 | M77: 3.3786 | N77: 0 | O77: 0 | P77: 0 | Q77: 0 | R77: 0 | S77: 0 | T77: 228180 | U77: 506.5596 | V77: 0 | W77: 506.5596 | X77: 2759246.343 | Y77: 0.8168042222 | Z77: 486.0645894 | AA77: 0.0001761584611 | AB77: 0 | AC77: 0 | AD77: 1 | AE77: 595.0808973 | AF77: 486.0645894 | AG77: 0.0005344585799 | AH77: 0.0005344585799 | AI77: 0.9329523465 | AJ77: 0.3180460913 | AK77: 0.2967218472 | AO77: 0 | AP77: 3378100 | AQ77: 568770.3184 | AR77: 100.193704 | AS77: =AR77*SDRf!M73*AI77 -> 0.04995902415
A78: 69 | B78: 94 | C78: 103 | D78: LES | E78: UL | F78: 2 | G78: 4509500 | H78: 24470.99639 | I78: 2281992.528 | J78: 19.181458 | K78: 392.687112 | L78: 5009 | M78: 4.5081 | N78: 0 | O78: 0 | P78: 0 | Q78: 0 | R78: 0 | S78: 0 | T78: 0 | U78: 0 | V78: 0 | W78: 0 | X78: 3079674.123 | Y78: 0.6829302855 | Z78: 268.1779215 | AA78: 8.707996718e-05 | AB78: 0 | AC78: 1 | AD78: 0 | AE78: 392.687112 | AF78: 268.1779215 | AG78: 0.4973725644 | AH78: 0.4541163577 | AI78: 0.7151651101 | AJ78: 195.3117959 | AK78: 139.680182 | AO78: 994500 | AP78: 3515000 | AQ78: 1330344.021 | AR78: 115.8463137 | AS78: =AR78*SDRf!M74*AI78 -> 37.3131385
A79: 70 | B79: 97 | C79: 60 | D79: LES | E79: LO | F79: 3 | G79: 6998300 | H79: 60536.95885 | I79: 4221086.013 | J79: 53.112915 | K79: 1112.183999 | L79: 7771 | M79: 6.9939 | N79: 0.3061962155 | O79: 12960 | P79: 530.5101258 | Q79: 1104.638116 | R79: 252.72 | S79: 1887.868242 | T79: 21940.30078 | U79: 48.70746773 | V79: 3028 | W79: 4964.57571 | X79: 4748898.36 | Y79: 0.6785788492 | Z79: 754.7045378 | AA79: 0.0001589220237 | AB79: 0 | AC79: 0 | AD79: 1 | AE79: 1112.183999 | AF79: 754.7045378 | AG79: 0.2078455888 | AH79: 0.08550595507 | AI79: 0.8495940736 | AJ79: 231.162538 | AK79: 196.3943223 | AO79: 1557000 | AP79: 5441300 | AQ79: 1441784.302 | AR79: 229.131279 | AS79: =AR79*SDRf!M75*AI79 -> 19.07883308
A80: 71 | B80: 98 | C80: 97 | D80: LES | E80: LO | F80: 3 | G80: 7092900 | H80: 63456.11145 | I80: 4463089.296 | J80: 56.238891 | K80: 2010.869098 | L80: 7908 | M80: 7.1172 | N80: 0.3061962155 | O80: 10920 | P80: 447.0039023 | Q80: 930.7598942 | R80: 212.94 | S80: 1590.703797 | T80: 0 | U80: 0 | V80: 0 | W80: 1590.703797 | X80: 5558597.497 | Y80: 0.7836847407 | Z80: 1575.887428 | AA80: 0.0002835045043 | AB80: 0 | AC80: 0 | AD80: 1 | AE80: 2010.869098 | AF80: 1575.887428 | AG80: 0.09285491842 | AH80: 0.04716907035 | AI80: 0.8417194836 | AJ80: 186.7190861 | AK80: 157.1650927 | AO80: 1060200 | AP80: 6032700 | AQ80: 4495225.66 | AR80: 1274.416722 | AS80: =AR80*SDRf!M76*AI80 -> 41.7458724
A81: 72 | B81: 99 | C81: 91 | D81: LES | E81: LO | F81: 3 | G81: 4047130.617 | H81: 6824.848481 | I81: 427272.6199 | J81: 5.363067 | K81: 1031.625 | L81: 4498 | M81: 4.0482 | N81: 0 | O81: 0 | P81: 0 | Q81: 0 | R81: 0 | S81: 0 | T81: 404200 | U81: 897.324 | V81: 0 | W81: 897.324 | X81: 3257578.058 | Y81: 0.804910532 | Z81: 830.3658277 | AA81: 0.0002549028182 | AB81: 0 | AC81: 0 | AD81: 1 | AE81: 1031.625 | AF81: 830.3658277 | AG81: 0.04169364809 | AH81: 0.02784435594 | AI81: 0.9836022804 | AJ81: 43.01220972 | AK81: 42.30690757 | AO81: 95400 | AP81: 3951730.617 | AQ81: 579068.152 | AR81: 147.6061039 | AS81: =AR81*SDRf!M77*AI81 -> 3.172157202
A82: 73 | B82: 100 | C82: 109 | D82: LES | E82: LO | F82: 3 | G82: 2295653.678 | H82: 26516.06348 | I82: 1702468.854 | J82: 25.818969 | K82: 430.7382017 | L82: 2548 | M82: 2.2932 | N82: 0.3061962155 | O82: 4290 | P82: 175.6086759 | Q82: 365.6556727 | R82: 83.655 | S82: 624.9193486 | T82: 213205.2969 | U82: 473.3157591 | V82: 1554 | W82: 2652.235108 | X82: 770292.5383 | Y82: 0.3355438782 | Z82: 144.5315667 | AA82: 0.0001876320482 | AB82: 0 | AC82: 0 | AD82: 1 | AE82: 430.7382017 | AF82: 144.5315667 | AG82: 0.2319369656 | AH82: 0.1278537961 | AI82: 0.936495498 | AJ82: 99.90411147 | AK82: 93.55975062 | AO82: 755100 | AP82: 1540553.678 | AQ82: 7200.332748 | AR82: 1.351013181 | AS82: =AR82*SDRf!M78*AI82 -> 0.1445885636
A83: 74 | B83: 102 | C83: 103 | D83: LES | E83: UL | F83: 2 | G83: 15605000 | H83: 32126.00685 | I83: 3131405.319 | J83: 19.181458 | K83: 2154.849396 | L83: 17338 | M83: 15.6042 | N83: 0 | O83: 0 | P83: 0 | Q83: 0 | R83: 0 | S83: 0 | T83: 0 | U83: 0 | V83: 0 | W83: 0 | X83: 12562099.49 | Y83: 0.8050047735 | Z83: 1734.66405 | AA83: 0.0001380871129 | AB83: 0 | AC83: 1 | AD83: 0 | AE83: 2154.849396 | AF83: 1734.66405 | AG83: 0.4832310969 | AH83: 0.4052104236 | AI83: 0.6292860514 | AJ83: 1041.290238 | AK83: 655.2694219 | AO83: 2472300 | AP83: 13132700 | AQ83: 9419015.224 | AR83: 1300.644618 | AS83: =AR83*SDRf!M79*AI83 -> 349.6660921
A84: 75 | B84: 103 | C84: 134 | D84: LES | E84: UL | F84: 2 | G84: 415700 | H84: 22865.72727 | I84: 2115278.309 | J84: 17.495575 | K84: 37.3779028 | L84: 468 | M84: 0.4212 | N84: 0 | O84: 0 | P84: 0 | Q84: 0 | R84: 0 | S84: 0 | T84: 0 | U84: 0 | V84: 0 | W84: 0 | X84: 348287.5423 | Y84: 0.8378338762 | Z84: 31.31647319 | AA84: 8.991557084e-05 | AB84: 0 | AC84: 1 | AD84: 0 | AE84: 37.3779028 | AF84: 31.31647319 | AG84: 0.6043595366 | AH84: 0.6043595366 | AI84: 0.7327593023 | AJ84: 22.58969202 | AK84: 16.55280696 | AO84: 29700 | AP84: 386000 | AQ84: 6164.750241 | AR84: 0.554307037 | AS84: =AR84*SDRf!M80*AI84 -> 0.2438998312
A85: 76 | B85: 104 | C85: 119 | D85: LES | E85: LO | F85: 3 | G85: 3354533.133 | H85: 22577.03282 | I85: 1441445.002 | J85: 22.693817 | K85: 1210.419 | L85: 3732 | M85: 3.3588 | N85: 0 | O85: 0 | P85: 0 | Q85: 0 | R85: 0 | S85: 0 | T85: 315107 | U85: 699.53754 | V85: 0 | W85: 699.53754 | X85: 2464560.041 | Y85: 0.7346953937 | Z85: 889.2892638 | AA85: 0.0003608308376 | AB85: 0 | AC85: 0 | AD85: 1 | AE85: 1210.419 | AF85: 889.2892638 | AG85: 0.1535499673 | AH85: 0.0309701803 | AI85: 0.9459954241 | AJ85: 185.8597979 | AK85: 175.8225184 | AO85: 830700 | AP85: 2523833.133 | AQ85: 720580.8271 | AR85: 260.0077834 | AS85: =AR85*SDRf!M81*AI85 -> 13.98735477
A86: 77 | B86: 105 | C86: 97 | D86: LES | E86: LO | F86: 3 | G86: 109200 | H86: 60995.24312 | I86: 4258686.047 | J86: 56.238891 | K86: 18.4689 | L86: 120 | M86: 0.108 | N86: 0.3061962155 | O86: 450 | P86: 18.42049048 | Q86: 38.35549015 | R86: 8.775 | S86: 65.55098063 | T86: 0 | U86: 0 | V86: 48 | W86: 113.5509806 | X86: 33964.30777 | Y86: 0.3110284594 | Z86: 5.744353514 | AA86: 0.0001691291209 | AB86: 0 | AC86: 0 | AD86: 1 | AE86: 18.4689 | AF86: 5.744353514 | AG86: 0.2629155357 | AH86: 0.04982961844 | AI86: 0.8484929739 | AJ86: 4.855760738 | AK86: 4.120078869 | AO86: 49500 | AP86: 59700 | AQ86: 0 | AR86: 0 | AS86: =AR86*SDRf!M82*AI86 -> 0
A87: 78 | B87: 109 | C87: 119 | D87: LES | E87: LO | F87: 3 | G87: 823900 | H87: 23829.25107 | I87: 1523801.291 | J87: 22.693817 | K87: 123.2910019 | L87: 918 | M87: 0.8262 | N87: 0.3061962155 | O87: 2310 | P87: 94.55851779 | Q87: 196.8915161 | R87: 45.045 | S87: 336.4950339 | T87: 0 | U87: 0 | V87: 571 | W87: 907.4950339 | X87: 95242.16135 | Y87: 0.1155991763 | Z87: 14.25233826 | AA87: 0.0001496431629 | AB87: 0 | AC87: 0 | AD87: 1 | AE87: 123.2910019 | AF87: 14.25233826 | AG87: 0.2147798097 | AH87: 0.2147798097 | AI87: 0.9429427195 | AJ87: 26.48041793 | AK87: 24.96951729 | AO87: 222300 | AP87: 601600 | AQ87: 0 | AR87: 0 | AS87: =AR87*SDRf!M83*AI87 -> 0
A88: 79 | B88: 111 | C88: 91 | D88: LES | E88: LO | F88: 3 | G88: 3245300 | H88: 10292.46825 | I88: 645846.7259 | J88: 5.363067 | K88: 1041.061497 | L88: 3606 | M88: 3.2454 | N88: 0.5410871649 | O88: 5610 | P88: 151.8955593 | Q88: 1270.212262 | R88: 109.395 | S88: 1531.502822 | T88: 170364 | U88: 378.20808 | V88: 6248 | W88: 8157.710902 | X88: 1626341.66 | Y88: 0.5011375404 | Z88: 521.7149982 | AA88: 0.000320790527 | AB88: 0 | AC88: 0 | AD88: 1 | AE88: 1041.061497 | AF88: 521.7149982 | AG88: 0.236623417 | AH88: 0.1054443624 | AI88: 0.9751271613 | AJ88: 246.3395288 | AK88: 240.2123655 | AO88: 1183500 | AP88: 2061800 | AQ88: 0 | AR88: 0 | AS88: =AR88*SDRf!M84*AI88 -> 0
A89: 80 | B89: 115 | C89: 133 | D89: LES | E89: UL | F89: 3 | G89: 9297600 | H89: 9397.386361 | I89: 814529.7155 | J89: 9.34491 | K89: 2201.728502 | L89: 10325 | M89: 9.2925 | N89: 0 | O89: 0 | P89: 0 | Q89: 0 | R89: 0 | S89: 0 | T89: 0 | U89: 0 | V89: 0 | W89: 0 | X89: 8180741.893 | Y89: 0.8798767309 | Z89: 1937.249677 | AA89: 0.0002368061115 | AB89: 0 | AC89: 0 | AD89: 1 | AE89: 2201.728502 | AF89: 1937.249677 | AG89: 0.5300513432 | AH89: 0.4797711086 | AI89: 0.8878517541 | AJ89: 1167.02915 | AK89: 1036.148878 | AO89: 2189700 | AP89: 7107900 | AQ89: 5188738.414 | AR89: 1228.724967 | AS89: =AR89*SDRf!M85*AI89 -> 560.567343
A90: 81 | B90: 117 | C90: 143 | D90: LES | E90: LO | F90: 3 | G90: 4386012.605 | H90: 18135.7839 | I90: 1149348.323 | J90: 16.637619 | K90: 889.2575991 | L90: 4884 | M90: 4.3956 | N90: 0 | O90: 0 | P90: 0 | Q90: 0 | R90: 0 | S90: 0 | T90: 470731 | U90: 1045.02282 | V90: 0 | W90: 1045.02282 | X90: 3396422.826 | Y90: 0.7743759838 | Z90: 688.6197281 | AA90: 0.0002027485279 | AB90: 0 | AC90: 0 | AD90: 1 | AE90: 889.2575991 | AF90: 688.6197281 | AG90: 0.1505805476 | AH90: 0.08891617107 | AI90: 0.9566245265 | AJ90: 133.9048962 | AK90: 128.0967079 | AO90: 799200 | AP90: 3586812.605 | AQ90: 642818.782 | AR90: 130.3305617 | AS90: =AR90*SDRf!M86*AI90 -> 11.08341532
A91: 82 | B91: 118 | C91: 133 | D91: LES | E91: UL | F91: 3 | G91: 11139000 | H91: 12121.46753 | I91: 1070746.319 | J91: 9.34491 | K91: 1609.141503 | L91: 12358 | M91: 11.1222 | N91: 0 | O91: 0 | P91: 0 | Q91: 0 | R91: 0 | S91: 0 | T91: 0 | U91: 0 | V91: 0 | W91: 0 | X91: 9685528.874 | Y91: 0.8695151157 | Z91: 1399.17286 | AA91: 0.0001444601403 | AB91: 0 | AC91: 0 | AD91: 1 | AE91: 1609.141503 | AF91: 1399.17286 | AG91: 0.3116776181 | AH91: 0.2868002415 | AI91: 0.8543912887 | AJ91: 501.533391 | AK91: 428.5057602 | AO91: 484200 | AP91: 10654800 | AQ91: 8063191.617 | AR91: 1164.809792 | AS91: =AR91*SDRf!M87*AI91 -> 271.7090776
A92: 83 | B92: 119 | C92: 143 | D92: LES | E92: LO | F92: 3 | G92: 3132600 | H92: 21727.41341 | I92: 1385328.849 | J92: 16.637619 | K92: 893.3120974 | L92: 3472 | M92: 3.1248 | N92: 0.3061962155 | O92: 7530 | P92: 308.2362073 | Q92: 641.8152018 | R92: 146.835 | S92: 1096.886409 | T92: 172190 | U92: 382.2618 | V92: 3999 | W92: 5478.148209 | X92: 1418104.164 | Y92: 0.4526923845 | Z92: 404.3955835 | AA92: 0.0002851663466 | AB92: 0 | AC92: 0 | AD92: 1 | AE92: 893.3120974 | AF92: 404.3955835 | AG92: 0.05932204019 | AH92: 0.04105957972 | AI92: 0.947780115 | AJ92: 52.99309614 | AK92: 50.22580276 | AO92: 102600 | AP92: 3030000 | AQ92: 0 | AR92: 0 | AS92: =AR92*SDRf!M88*AI92 -> 0
A93: 84 | B93: 129 | C93: 105 | D93: LES | E93: UL | F93: 3 | G93: 4160900 | H93: 4921.248917 | I93: 416888.1111 | J93: 0.060364 | K93: 300.8925 | L93: 2901 | M93: 2.6109 | N93: 0.3061962155 | O93: 5250 | P93: 214.9057223 | Q93: 447.4807184 | R93: 102.375 | S93: 764.7614406 | T93: 0 | U93: 0 | V93: 960 | W93: 1724.761441 | X93: 2183569.087 | Y93: 0.5247828803 | Z93: 157.9032328 | AA93: 7.231428297e-05 | AB93: 0 | AC93: 0 | AD93: 1 | AE93: 300.8925 | AF93: 157.9032328 | AG93: 0.5890195447 | AH93: 0.5578385319 | AI93: 0.9343022592 | AJ93: 177.2315634 | AK93: 165.58785 | AO93: 139500 | AP93: 4021400 | AQ93: 730185.3499 | AR93: 52.80283001 | AS93: =AR93*SDRf!M89*AI93 -> 25.27669266
A94: 85 | B94: 130 | C94: 241 | D94: LES | E94: UL | F94: 1 | G94: 6645100 | H94: 66642.22184 | I94: 7312158.864 | J94: 48.171295 | K94: 1557.208799 | L94: 7371 | M94: 6.6339 | N94: 0 | O94: 0 | P94: 0 | Q94: 0 | R94: 0 | S94: 0 | T94: 0 | U94: 0 | V94: 0 | W94: 0 | X94: 5384862.671 | Y94: 0.8103508858 | Z94: 1261.885529 | AA94: 0.0002343394078 | AB94: 1 | AC94: 0 | AD94: 0 | AE94: 1557.208799 | AF94: 1261.885529 | AG94: 0.4587125546 | AH94: 0.3912683594 | AI94: 0.3408235479 | AJ94: 714.3112261 | AK94: 243.4540864 | AO94: 675000 | AP94: 5970100 | AQ94: 4631505.921 | AR94: 1085.344355 | AS94: =AR94*SDRf!M90*AI94 -> 158.7504531
A95: 86 | B95: 131 | C95: 241 | D95: LES | E95: UL | F95: 1 | G95: 13296032.44 | H95: 70863.71463 | I95: 7887801.488 | J95: 48.171295 | K95: 2868.113698 | L95: 14805 | M95: 13.3245 | N95: 0 | O95: 0 | P95: 0 | Q95: 0 | R95: 0 | S95: 0 | T95: 0 | U95: 0 | V95: 0 | W95: 0 | X95: 11446328.59 | Y95: 0.8608830223 | Z95: 2469.110388 | AA95: 0.0002157119961 | AB95: 1 | AC95: 0 | AD95: 0 | AE95: 2868.113698 | AF95: 2469.110388 | AG95: 0.3803513924 | AH95: 0.319753812 | AI95: 0.3125742248 | AJ95: 1090.891038 | AK95: 340.9844207 | AO95: 1165500 | AP95: 12130532.44 | AQ95: 7649724.796 | AR95: 1650.137406 | AS95: =AR95*SDRf!M91*AI95 -> 179.5579408
A96: 87 | B96: 133 | C96: 129 | D96: LES | E96: UL | F96: 3 | G96: 1387400 | H96: 6513.797257 | I96: 555580.7032 | J96: 5.43866 | K96: 285.3962975 | L96: 1543 | M96: 1.3887 | N96: 0.0468047455 | O96: 1740 | P96: 66.34238971 | Q96: 45.79333383 | R96: 0 | S96: 112.1357235 | T96: 0 | U96: 0 | V96: 0 | W96: 112.1357235 | X96: 717135.8565 | Y96: 0.5168919248 | Z96: 147.5190416 | AA96: 0.0002057058509 | AB96: 0 | AC96: 0 | AD96: 1 | AE96: 285.3962975 | AF96: 147.5190416 | AG96: 0.7415000304 | AH96: 0.5913519613 | AI96: 0.9217417866 | AJ96: 211.6213633 | AK96: 195.0602535 | AO96: 493200 | AP96: 894200 | AQ96: 60164.78757 | AR96: 12.37624882 | AS96: =AR96*SDRf!M92*AI96 -> 8.404883823
A97: 88 | B97: 134 | C97: 148 | D97: LES | E97: UL | F97: 2 | G97: 2238500 | H97: 1911.37085 | I97: 192206.1265 | J97: 17.769745 | K97: 853.3898657 | L97: 2481 | M97: 2.2329 | N97: 0 | O97: 0 | P97: 0 | Q97: 0 | R97: 0 | S97: 0 | T97: 0 | U97: 0 | V97: 0 | W97: 0 | X97: 1898459.754 | Y97: 0.8480945964 | Z97: 723.7553338 | AA97: 0.0003812329085 | AB97: 0 | AC97: 1 | AD97: 0 | AE97: 853.3898657 | AF97: 723.7553338 | AG97: 0.7113249278 | AH97: 0.5767754797 | AI97: 0.9738064206 | AJ97: 607.0374846 | AK97: 591.137 | AO97: 585900 | AP97: 1652600 | AQ97: 254358.4811 | AR97: 96.96982357 | AS97: =AR97*SDRf!M93*AI97 -> 65.16227854
A98: 89 | B98: 135 | C98: 134 | D98: LES | E98: UL | F98: 2 | G98: 13844200 | H98: 30483.27561 | I98: 2934577.936 | J98: 17.495575 | K98: 2710.66768 | L98: 15409 | M98: 13.8681 | N98: 0 | O98: 0 | P98: 0 | Q98: 0 | R98: 0 | S98: 0 | T98: 0 | U98: 0 | V98: 0 | W98: 0 | X98: 10988173.37 | Y98: 0.7937022995 | Z98: 2151.463171 | AA98: 0.0001957980729 | AB98: 0 | AC98: 1 | AD98: 0 | AE98: 2710.66768 | AF98: 2151.463171 | AG98: 0.3271577093 | AH98: 0.297034834 | AI98: 0.6475977362 | AJ98: 886.8158291 | AK98: 574.2999233 | AO98: 513000 | AP98: 13331200 | AQ98: 9185034.071 | AR98: 1798.41197 | AS98: =AR98*SDRf!M94*AI98 -> 351.2342361
A99: 90 | B99: 136 | C99: 111 | D99: LES | E99: LO | F99: 3 | G99: 2230500 | H99: 13481.53462 | I99: 849338.6979 | J99: 8.367904 | K99: 336.5873965 | L99: 2473 | M99: 2.2257 | N99: 0.5410871649 | O99: 4950 | P99: 134.0254935 | Q99: 1120.775526 | R99: 96.525 | S99: 1351.326019 | T99: 0 | U99: 0 | V99: 2529 | W99: 3880.326019 | X99: 542007.8593 | Y99: 0.2429983678 | Z99: 81.79018796 | AA99: 0.0001509022176 | AB99: 0 | AC99: 0 | AD99: 1 | AE99: 336.5873965 | AF99: 81.79018796 | AG99: 0.2189729999 | AH99: 0.09433332391 | AI99: 0.9675255392 | AJ99: 73.70355194 | AK99: 71.31006884 | AO99: 742500 | AP99: 1488000 | AQ99: 38067.11002 | AR99: 5.744411322 | AS99: =AR99*SDRf!M95*AI99 -> 0.6052371675
A100: 91 | B100: 141 | C100: 109 | D100: LES | E100: LO | F100: 3 | G100: 5083700 | H100: 28838.78426 | I100: 1858592.903 | J100: 25.818969 | K100: 871.0514838 | L100: 5660 | M100: 5.094 | N100: 0 | O100: 0 | P100: 0 | Q100: 0 | R100: 0 | S100: 0 | T100: 309542.0996 | U100: 687.1834611 | V100: 0 | W100: 687.1834611 | X100: 3270642.174 | Y100: 0.6433586117 | Z100: 560.3984733 | AA100: 0.0001713420312 | AB100: 0 | AC100: 0 | AD100: 1 | AE100: 871.0514838 | AF100: 560.3984733 | AG100: 0.09331213902 | AH100: 0.02816876445 | AI100: 0.9307712677 | AJ100: 81.27967715 | AK100: 75.65278814 | AO100: 736200 | AP100: 4347500 | AQ100: 1108070.944 | AR100: 189.8591262 | AS100: =AR100*SDRf!M96*AI100 -> 6.482365275
A101: 92 | B101: 142 | C101: 141 | D101: LES | E101: LO | F101: 3 | G101: 3433600 | H101: 29634.26153 | I101: 1913012.286 | J101: 62.997345 | K101: 427.4171912 | L101: 3819 | M101: 3.4371 | N101: 0 | O101: 0 | P101: 0 | Q101: 0 | R101: 0 | S101: 0 | T101: 0 | U101: 0 | V101: 0 | W101: 0 | X101: 3143122.174 | Y101: 0.9154013787 | Z101: 391.2582861 | AA101: 0.0001244807756 | AB101: 0 | AC101: 0 | AD101: 1 | AE101: 427.4171912 | AF101: 391.2582861 | AG101: 0.01109112785 | AH101: 0.01109112785 | AI101: 0.9299365336 | AJ101: 4.740538711 | AK101: 4.408400136 | AO101: 53100 | AP101: 3380500 | AQ101: 1170586.229 | AR101: 145.7154817 | AS101: =AR101*SDRf!M97*AI101 -> 1.103917559
A102: 93 | B102: 143 | C102: 136 | D102: LES | E102: LO | F102: 3 | G102: 2233500 | H102: 16101.48412 | I102: 1018434.522 | J102: 14.177322 | K102: 290.2653017 | L102: 2484 | M102: 2.2356 | N102: 0.5410871649 | O102: 5010 | P102: 135.6500449 | Q102: 1134.360684 | R102: 97.695 | S102: 1367.705728 | T102: 181368.6016 | U102: 402.6382955 | V102: 1412 | W102: 3182.344024 | X102: 1034807.425 | Y102: 0.4633120328 | Z102: 134.483407 | AA102: 0.0001299598396 | AB102: 0 | AC102: 0 | AD102: 1 | AE102: 290.2653017 | AF102: 134.483407 | AG102: 0.1742965717 | AH102: 0.1081360097 | AI102: 0.9614391217 | AJ102: 50.59224698 | AK102: 48.6413655 | AO102: 269100 | AP102: 1964400 | AQ102: 50078.57324 | AR102: 6.508203345 | AS102: =AR102*SDRf!M98*AI102 -> 0.4718284413
A103: 94 | B103: 146 | C103: 129 | D103: LES | E103: UL | F103: 3 | G103: 2398100 | H103: 8926.934342 | I103: 768038.8119 | J103: 5.43866 | K103: 162.4715967 | L103: 2665 | M103: 2.3985 | N103: 0.0468047455 | O103: 4170 | P103: 158.9929685 | Q103: 109.7460931 | R103: 0 | S103: 268.7390616 | T103: 0 | U103: 0 | V103: 368 | W103: 636.7390616 | X103: 1636199.498 | Y103: 0.6822899372 | Z103: 110.8527355 | AA103: 6.775013415e-05 | AB103: 0 | AC103: 0 | AD103: 1 | AE103: 162.4715967 | AF103: 110.8527355 | AG103: 0.6091897883 | AH103: 0.6091897883 | AI103: 0.8926648514 | AJ103: 98.9760376 | AK103: 88.3524299 | AO103: 333900 | AP103: 2064200 | AQ103: 250941.274 | AR103: 17.00130498 | AS103: =AR103*SDRf!M99*AI103 -> 9.033624528
A104: 95 | B104: 148 | C104: 170 | D104: LES | E104: UL | F104: 2 | G104: 2721600 | H104: 20095.95021 | I104: 1835644.569 | J104: 17.769745 | K104: 739.94666 | L104: 3033 | M104: 2.7297 | N104: 0 | O104: 0 | P104: 0 | Q104: 0 | R104: 0 | S104: 0 | T104: 0 | U104: 0 | V104: 0 | W104: 0 | X104: 2325432.522 | Y104: 0.854435818 | Z104: 632.2369297 | AA104: 0.0002718792842 | AB104: 0 | AC104: 1 | AD104: 0 | AE104: 739.94666 | AF104: 632.2369297 | AG104: 0.4037033946 | AH104: 0.3727256674 | AI104: 0.7642515649 | AJ104: 298.7189784 | AK104: 228.2964467 | AO104: 207000 | AP104: 2514600 | AQ104: 468286.7623 | AR104: 127.3174698 | AS104: =AR104*SDRf!M100*AI104 -> 39.16702129
A105: 96 | B105: 150 | C105: 170 | D105: LES | E105: UL | F105: 2 | G105: 3099900 | H105: 19044.84848 | I105: 1729317.321 | J105: 17.769745 | K105: 855.9440993 | L105: 3452 | M105: 3.1068 | N105: 0 | O105: 0 | P105: 0 | Q105: 0 | R105: 0 | S105: 0 | T105: 0 | U105: 0 | V105: 0 | W105: 0 | X105: 2716491.204 | Y105: 0.8763157534 | Z105: 750.0772982 | AA105: 0.0002761199069 | AB105: 0 | AC105: 1 | AD105: 0 | AE105: 855.9440993 | AF105: 750.0772982 | AG105: 0.3389016961 | AH105: 0.3389016961 | AI105: 0.7765106583 | AJ105: 290.080907 | AK105: 225.250916 | AO105: 252000 | AP105: 2847900 | AQ105: 411343.4229 | AR105: 113.5801076 | AS105: =AR105*SDRf!M101*AI105 -> 26.35871366
A106: 97 | B106: 164 | C106: 178 | D106: LES | E106: UL | F106: 1 | G106: 3678600 | H106: 63605.76477 | I106: 6908024.849 | J106: 45.898499 | K106: 906.6078001 | L106: 4086 | M106: 3.6774 | N106: 0 | O106: 0 | P106: 0 | Q106: 0 | R106: 0 | S106: 0 | T106: 0 | U106: 0 | V106: 0 | W106: 0 | X106: 3150648.191 | Y106: 0.8564802346 | Z106: 776.4916613 | AA106: 0.0002464545751 | AB106: 1 | AC106: 0 | AD106: 0 | AE106: 906.6078001 | AF106: 776.4916613 | AG106: 0.5349852983 | AH106: 0.4433562611 | AI106: 0.3616990472 | AJ106: 485.0218444 | AK106: 175.431939 | AO106: 729000 | AP106: 2949600 | AQ106: 886962.2262 | AR106: 218.5958986 | AS106: =AR106*SDRf!M102*AI106 -> 38.42514916
A107: 98 | B107: 165 | C107: 178 | D107: LES | E107: UL | F107: 1 | G107: 7523374.345 | H107: 66739.79544 | I107: 7329587.846 | J107: 45.898499 | K107: 1397.613595 | L107: 8362 | M107: 7.5258 | N107: 0 | O107: 0 | P107: 0 | Q107: 0 | R107: 0 | S107: 0 | T107: 0 | U107: 0 | V107: 0 | W107: 0 | X107: 5849015.278 | Y107: 0.7774457325 | Z107: 1086.568725 | AA107: 0.0001857695139 | AB107: 1 | AC107: 0 | AD107: 0 | AE107: 1397.613595 | AF107: 1086.568725 | AG107: 0.4575365419 | AH107: 0.3916118383 | AI107: 0.3394934425 | AJ107: 639.459291 | AK107: 217.092236 | AO107: 686700 | AP107: 6836674.345 | AQ107: 4134506.282 | AR107: 768.0652222 | AS107: =AR107*SDRf!M103*AI107 -> 109.5771108
A108: 99 | B108: 166 | C108: 111 | D108: MAP | E108: LO | F108: 3 | G108: 4565400 | H108: 16082.07286 | I108: 1017556.594 | J108: 8.367904 | K108: 901.0278007 | L108: 5081 | M108: 4.5729 | N108: 0.404558961 | O108: 8760 | P108: 438.1493342 | Q108: 713.4891148 | R108: 170.82 | S108: 1322.458449 | T108: 397247.3984 | U108: 881.8892245 | V108: 10081 | W108: 12285.34767 | X108: 2154932.28 | Y108: 0.4720139047 | Z108: 425.2976504 | AA108: 0.0001973601 | AB108: 0 | AC108: 0 | AD108: 1 | AE108: 901.0278007 | AF108: 425.2976504 | AG108: 0.1700654209 | AH108: 0.05412059222 | AI108: 0.9610923344 | AJ108: 153.2336722 | AK108: 147.2717077 | AO108: 1003500 | AP108: 3561900 | AQ108: 162659.0943 | AR108: 32.10241513 | AS108: =AR108*SDRf!M104*AI108 -> 2.719721434
A109: 100 | B109: 169 | C109: 146 | D109: LES | E109: UL | F109: 2 | G109: 3883800 | H109: 12127.05627 | I109: 1059188.024 | J109: 6.026825 | K109: 1005.768 | L109: 4313 | M109: 3.8817 | N109: 0.0468047455 | O109: 10440 | P109: 398.0543383 | Q109: 274.760003 | R109: 0 | S109: 672.8143413 | T109: 0 | U109: 0 | V109: 304 | W109: 976.8143413 | X109: 3078472.732 | Y109: 0.7926445059 | Z109: 797.2164797 | AA109: 0.0002589649313 | AB109: 0 | AC109: 1 | AD109: 0 | AE109: 1005.768 | AF109: 797.2164797 | AG109: 0.5989510954 | AH109: 0.4710421688 | AI109: 0.8543739791 | AJ109: 602.4058455 | AK109: 514.6798793 | AO109: 724500 | AP109: 3159300 | AQ109: 383393.2582 | AR109: 99.28540878 | AS109: =AR109*SDRf!M105*AI109 -> 46.31281389
A110: 101 | B110: 170 | C110: 169 | D110: LES | E110: UL | F110: 2 | G110: 13623900 | H110: 18809.84848 | I110: 1705816.543 | J110: 6.146973 | K110: 2191.697985 | L110: 15142 | M110: 13.6278 | N110: 0 | O110: 0 | P110: 0 | Q110: 0 | R110: 0 | S110: 0 | T110: 0 | U110: 0 | V110: 0 | W110: 0 | X110: 11485714.88 | Y110: 0.8430563112 | Z110: 1847.724818 | AA110: 0.0001608715555 | AB110: 0 | AC110: 1 | AD110: 0 | AE110: 2191.697985 | AF110: 1847.724818 | AG110: 0.3561494778 | AH110: 0.3561494778 | AI110: 0.7740325538 | AJ110: 780.5720928 | AK110: 604.1882104 | AO110: 1526400 | AP110: 12097500 | AQ110: 7170343.99 | AR110: 1153.504391 | AS110: =AR110*SDRf!M106*AI110 -> 284.5354837
A111: 102 | B111: 173 | C111: 148 | D111: LES | E111: UL | F111: 2 | G111: 4165300 | H111: 24419.5036 | I111: 2273815.347 | J111: 17.769745 | K111: 1563.291844 | L111: 4608 | M111: 4.1472 | N111: 0 | O111: 0 | P111: 0 | Q111: 0 | R111: 0 | S111: 0 | T111: 0 | U111: 0 | V111: 0 | W111: 0 | X111: 3762777.329 | Y111: 0.9033628621 | Z111: 1412.219795 | AA111: 0.0003753131454 | AB111: 0 | AC111: 1 | AD111: 0 | AE111: 1563.291844 | AF111: 1412.219795 | AG111: 0.378900742 | AH111: 0.3608040923 | AI111: 0.7155797391 | AJ111: 592.3324398 | AK111: 423.8610927 | AO111: 560700 | AP111: 3604600 | AQ111: 812202.9164 | AR111: 304.8304312 | AS111: =AR111*SDRf!M107*AI111 -> 84.91006947
A112: 103 | B112: 174 | C112: 141 | D112: LES | E112: LO | F112: 3 | G112: 5836200 | H112: 32520.91629 | I112: 2111025.817 | J112: 62.997345 | K112: 1096.100989 | L112: 6485 | M112: 5.8365 | N112: 0 | O112: 0 | P112: 0 | Q112: 0 | R112: 0 | S112: 0 | T112: 0 | U112: 0 | V112: 0 | W112: 0 | X112: 5324563.734 | Y112: 0.9123340075 | Z112: 1000.010208 | AA112: 0.0001878107312 | AB112: 0 | AC112: 0 | AD112: 1 | AE112: 1096.100989 | AF112: 1000.010208 | AG112: 0.07283344307 | AH112: 0.03778029886 | AI112: 0.9228400102 | AJ112: 79.83280901 | AK112: 73.67291028 | AO112: 613800 | AP112: 5222400 | AQ112: 1353023.917 | AR112: 254.1124111 | AS112: =AR112*SDRf!M108*AI112 -> 10.04266074
A113: 104 | B113: 177 | C113: 166 | D113: MAP | E113: LO | F113: 3 | G113: 4076922.206 | H113: 17066.77849 | I113: 1081654.579 | J113: 23.468475 | K113: 661.8402001 | L113: 4535 | M113: 4.0815 | N113: 0 | O113: 0 | P113: 0 | Q113: 0 | R113: 0 | S113: 0 | T113: 266345 | U113: 591.2859 | V113: 0 | W113: 591.2859 | X113: 2778659.369 | Y113: 0.6815581041 | Z113: 451.082552 | AA113: 0.000162338197 | AB113: 0 | AC113: 0 | AD113: 1 | AE113: 661.8402001 | AF113: 451.082552 | AG113: 0.1465560408 | AH113: 0.07684731835 | AI113: 0.9594329549 | AJ113: 96.99667939 | AK113: 93.06181071 | AO113: 560700 | AP113: 3516222.206 | AQ113: 458080.9851 | AR113: 74.36404118 | AS113: =AR113*SDRf!M109*AI113 -> 5.116909401
A114: 105 | B114: 178 | C114: 186 | D114: LES | E114: UL | F114: 1 | G114: 134400 | H114: 62808.21643 | I114: 6801704.517 | J114: 43.161286 | K114: 31.4253 | L114: 152 | M114: 0.1368 | N114: 0 | O114: 0 | P114: 0 | Q114: 0 | R114: 0 | S114: 0 | T114: 0 | U114: 0 | V114: 0 | W114: 0 | X114: 127146.5418 | Y114: 0.9460308171 | Z114: 29.72930224 | AA114: 0.0002338191964 | AB114: 1 | AC114: 0 | AD114: 0 | AE114: 31.4253 | AF114: 29.72930224 | AG114: 0.7468932948 | AH114: 0.7468932948 | AI114: 0.3669550818 | AJ114: 23.47134586 | AK114: 8.612929638 | AO114: 94500 | AP114: 39900 | AQ114: 0 | AR114: 0 | AS114: =AR114*SDRf!M110*AI114 -> 0
A115: 106 | B115: 179 | C115: 186 | D115: LES | E115: UL | F115: 1 | G115: 4316680.1 | H115: 64136.47545 | I115: 6976998.181 | J115: 43.161286 | K115: 698.1561002 | L115: 4793 | M115: 4.3137 | N115: 0 | O115: 0 | P115: 0 | Q115: 0 | R115: 0 | S115: 0 | T115: 0 | U115: 0 | V115: 0 | W115: 0 | X115: 1666182.515 | Y115: 0.3859870261 | Z115: 269.4791969 | AA115: 0.0001617345006 | AB115: 1 | AC115: 0 | AD115: 0 | AE115: 698.1561002 | AF115: 269.4791969 | AG115: 0.3363219133 | AH115: 0.3118761115 | AI115: 0.3574030639 | AJ115: 234.8051954 | AK115: 83.92009626 | AO115: 218700 | AP115: 4097980.1 | AQ115: 685449.7227 | AR115: 110.8608686 | AS115: =AR115*SDRf!M111*AI115 -> 12.53419246
A116: 107 | B116: 180 | C116: 181 | D116: LES | E116: LO | F116: 3 | G116: 5079200 | H116: 69502.27414 | I116: 4989343.43 | J116: 65.378784 | K116: 505.7802005 | L116: 5642 | M116: 5.0778 | N116: 0 | O116: 0 | P116: 0 | Q116: 0 | R116: 0 | S116: 0 | T116: 0 | U116: 0 | V116: 0 | W116: 0 | X116: 4438129.353 | Y116: 0.8737851144 | Z116: 441.9432104 | AA116: 9.957871329e-05 | AB116: 0 | AC116: 0 | AD116: 1 | AE116: 505.7802005 | AF116: 441.9432104 | AG116: 0.1524346258 | AH116: 0.08341704841 | AI116: 0.8249703143 | AJ116: 77.09841561 | AK116: 63.60390415 | AO116: 749700 | AP116: 4329500 | AQ116: 987871.4266 | AR116: 98.37096555 | AS116: =AR116*SDRf!M112*AI116 -> 6.674658402
A117: 108 | B117: 181 | C117: 105 | D117: LES | E117: LO | F117: 3 | G117: 5821700 | H117: 66971.34485 | I117: 4765017.681 | J117: 56.299255 | K117: 1069.091098 | L117: 6468 | M117: 5.8212 | N117: 0 | O117: 0 | P117: 0 | Q117: 0 | R117: 0 | S117: 0 | T117: 0 | U117: 0 | V117: 0 | W117: 0 | X117: 4947382.91 | Y117: 0.8498175636 | Z117: 908.5323924 | AA117: 0.0001836389883 | AB117: 0 | AC117: 0 | AD117: 1 | AE117: 1069.091098 | AF117: 908.5323924 | AG117: 0.1404023534 | AH117: 0.08228360706 | AI117: 0.8318110582 | AJ117: 150.1029062 | AK117: 124.8572572 | AO117: 728100 | AP117: 5093600 | AQ117: 3617430.403 | AR117: 664.3012595 | AS117: =AR117*SDRf!M113*AI117 -> 35.99372987
A118: 109 | B118: 183 | C118: 174 | D118: LES | E118: LO | F118: 3 | G118: 3245400 | H118: 33288.3427 | I118: 2163622.945 | J118: 65.497345 | K118: 630.0602834 | L118: 3603 | M118: 3.2427 | N118: 0 | O118: 0 | P118: 0 | Q118: 0 | R118: 0 | S118: 0 | T118: 0 | U118: 0 | V118: 0 | W118: 0 | X118: 3117666.507 | Y118: 0.9606416796 | Z118: 605.2621689 | AA118: 0.0001941394846 | AB118: 0 | AC118: 0 | AD118: 1 | AE118: 630.0602834 | AF118: 605.2621689 | AG118: 0.005588358696 | AH118: 0.005588358696 | AI118: 0.9210179887 | AJ118: 3.521002864 | AK118: 3.242906976 | AO118: 900 | AP118: 3244500 | AQ118: 535418.0024 | AR118: 103.945775 | AS118: =AR118*SDRf!M114*AI118 -> 0.497054773
A119: 110 | B119: 186 | C119: 237 | D119: LES | E119: UL | F119: 1 | G119: 175500 | H119: 62297.50576 | I119: 6734292.332 | J119: 42.77124 | K119: 16.5267 | L119: 195 | M119: 0.1755 | N119: 0 | O119: 0 | P119: 0 | Q119: 0 | R119: 0 | S119: 0 | T119: 0 | U119: 0 | V119: 0 | W119: 0 | X119: 129818.7683 | Y119: 0.7397080816 | Z119: 12.22493355 | AA119: 9.416923077e-05 | AB119: 1 | AC119: 0 | AD119: 0 | AE119: 16.5267 | AF119: 12.22493355 | AG119: 0.5883959759 | AH119: 0.5883959759 | AI119: 0.3706109184 | AJ119: 9.724243774 | AK119: 3.603910916 | AO119: 8100 | AP119: 167400 | AQ119: 1936.337797 | AR119: 0.1823434408 | AS119: =AR119*SDRf!M115*AI119 -> 0.03959851395
A120: 111 | B120: 192 | C120: 136 | D120: COB | E120: LO | F120: 3 | G120: 5550900 | H120: 19655.62625 | I120: 1248852.085 | J120: 14.177322 | K120: 656.9379019 | L120: 6175 | M120: 5.5575 | N120: 0.3726336195 | O120: 12060 | P120: 635.5472381 | Q120: 1122.593441 | R120: 235.17 | S120: 1993.310679 | T120: 528694.5 | U120: 1173.70179 | V120: 5375 | W120: 8542.012469 | X120: 2384556.181 | Y120: 0.4295801008 | Z120: 282.2074501 | AA120: 0.000118347998 | AB120: 0 | AC120: 0 | AD120: 1 | AE120: 656.9379019 | AF120: 282.2074501 | AG120: 0.2265391911 | AH120: 0.09363855143 | AI120: 0.9527487481 | AJ120: 148.8221809 | AK120: 141.7901465 | AO120: 1481400 | AP120: 4069500 | AQ120: 329939.8656 | AR120: 39.04772254 | AS120: =AR120*SDRf!M116*AI120 -> 4.468800733
A121: 112 | B121: 193 | C121: 173 | D121: LES | E121: UL | F121: 2 | G121: 806400 | H121: 25126.90476 | I121: 2347133.831 | J121: 26.555603 | K121: 140.0823 | L121: 907 | M121: 0.8163 | N121: 0 | O121: 0 | P121: 0 | Q121: 0 | R121: 0 | S121: 0 | T121: 0 | U121: 0 | V121: 0 | W121: 0 | X121: 53452.32721 | Y121: 0.06628512799 | Z121: 9.285373185 | AA121: 0.0001737131696 | AB121: 0 | AC121: 1 | AD121: 0 | AE121: 140.0823 | AF121: 9.285373185 | AG121: 0.3563063677 | AH121: 0.3563063677 | AI121: 0.7101750225 | AJ121: 49.91221549 | AK121: 35.44640876 | AO121: 120600 | AP121: 685800 | AQ121: 0 | AR121: 0 | AS121: =AR121*SDRf!M117*AI121 -> 0
A122: 113 | B122: 194 | C122: 173 | D122: LES | E122: UL | F122: 2 | G122: 6739800 | H122: 25232.6764 | I122: 2359143.287 | J122: 26.555603 | K122: 1813.086001 | L122: 7507 | M122: 6.7563 | N122: 0 | O122: 0 | P122: 0 | Q122: 0 | R122: 0 | S122: 0 | T122: 0 | U122: 0 | V122: 0 | W122: 0 | X122: 3133185.126 | Y122: 0.4648780566 | Z122: 842.8638965 | AA122: 0.0002690118402 | AB122: 0 | AC122: 1 | AD122: 0 | AE122: 1813.086001 | AF122: 842.8638965 | AG122: 0.2677498314 | AH122: 0.2677498314 | AI122: 0.7089068708 | AJ122: 485.4534711 | AK122: 344.1413011 | AO122: 486000 | AP122: 6253800 | AQ122: 1056197.533 | AR122: 284.1296419 | AS122: =AR122*SDRf!M118*AI122 -> 47.32792767
A123: 114 | B123: 195 | C123: 135 | D123: LES | E123: UL | F123: 2 | G123: 3289200 | H123: 30740.0523 | I123: 2961552.281 | J123: 36.301819 | K123: 663.2775 | L123: 3671 | M123: 3.3039 | N123: 0 | O123: 0 | P123: 0 | Q123: 0 | R123: 0 | S123: 0 | T123: 0 | U123: 0 | V123: 0 | W123: 0 | X123: 2717466.357 | Y123: 0.8261785107 | Z123: 547.9856171 | AA123: 0.0002016531375 | AB123: 0 | AC123: 1 | AD123: 0 | AE123: 663.2775 | AF123: 547.9856171 | AG123: 0.4291493428 | AH123: 0.4291493428 | AI123: 0.6500947906 | AJ123: 284.6451032 | AK123: 185.0462988 | AO123: 227700 | AP123: 3061500 | AQ123: 536536.6261 | AR123: 108.1942941 | AS123: =AR123*SDRf!M119*AI123 -> 29.58769518
A124: 115 | B124: 200 | C124: 169 | D124: LES | E124: UL | F124: 2 | G124: 1114000 | H124: 14893.33044 | I124: 1315930.616 | J124: 6.146973 | K124: 288.0836923 | L124: 1244 | M124: 1.1196 | N124: 0.0468047455 | O124: 2850 | P124: 108.664259 | Q124: 75.00632265 | R124: 0 | S124: 183.6705817 | T124: 0 | U124: 0 | V124: 521 | W124: 704.6705817 | X124: 493556.2054 | Y124: 0.4430486584 | Z124: 127.6350934 | AA124: 0.0002586029554 | AB124: 0 | AC124: 1 | AD124: 0 | AE124: 288.0836923 | AF124: 127.6350934 | AG124: 0.425927743 | AH124: 0.3232947525 | AI124: 0.8216452808 | AJ124: 122.7028369 | AK124: 100.8182069 | AO124: 133200 | AP124: 980800 | AQ124: 9654.864138 | AR124: 2.4967764 | AS124: =AR124*SDRf!M120*AI124 -> 0.8494969717
A125: 116 | B125: 201 | C125: 242 | D125: LES | E125: UL | F125: 1 | G125: 6252100 | H125: 50080.47473 | I125: 5174810.715 | J125: 34.282929 | K125: 1021.1715 | L125: 6956 | M125: 6.2604 | N125: 0 | O125: 0 | P125: 0 | Q125: 0 | R125: 0 | S125: 0 | T125: 0 | U125: 0 | V125: 0 | W125: 0 | X125: 5493369.054 | Y125: 0.8786438243 | Z125: 897.2460318 | AA125: 0.0001633325602 | AB125: 1 | AC125: 0 | AD125: 0 | AE125: 1021.1715 | AF125: 897.2460318 | AG125: 0.4658247175 | AH125: 0.3793905975 | AI125: 0.466359617 | AJ125: 475.6869254 | AK125: 221.8411723 | AO125: 824400 | AP125: 5427700 | AQ125: 1396924.826 | AR125: 228.1633082 | AS125: =AR125*SDRf!M121*AI125 -> 46.39286484
A126: 117 | B126: 202 | C126: 242 | D126: LES | E126: UL | F126: 1 | G126: 5990400 | H126: 49841.06348 | I126: 5145102.226 | J126: 34.282929 | K126: 1082.2473 | L126: 6662 | M126: 5.9958 | N126: 0 | O126: 0 | P126: 0 | Q126: 0 | R126: 0 | S126: 0 | T126: 0 | U126: 0 | V126: 0 | W126: 0 | X126: 4952921.428 | Y126: 0.8268098004 | Z126: 894.8126741 | AA126: 0.0001806636118 | AB126: 1 | AC126: 0 | AD126: 0 | AE126: 1082.2473 | AF126: 894.8126741 | AG126: 0.4062070887 | AH126: 0.4062070887 | AI126: 0.4684489603 | AJ126: 439.6165249 | AK126: 205.9379041 | AO126: 280800 | AP126: 5709600 | AQ126: 2153507.054 | AR126: 389.0603625 | AS126: =AR126*SDRf!M122*AI126 -> 70.29361635
A127: 118 | B127: 203 | C127: 200 | D127: LES | E127: UL | F127: 1 | G127: 3353100 | H127: 15604.89899 | I127: 1384385.932 | J127: 8.938568 | K127: 869.3018998 | L127: 3731 | M127: 3.3579 | N127: 0 | O127: 0 | P127: 0 | Q127: 0 | R127: 0 | S127: 0 | T127: 0 | U127: 0 | V127: 0 | W127: 0 | X127: 2621737.591 | Y127: 0.781884701 | Z127: 679.693856 | AA127: 0.0002592531985 | AB127: 1 | AC127: 0 | AD127: 0 | AE127: 869.3018998 | AF127: 679.693856 | AG127: 0.5292519392 | AH127: 0.463136664 | AI127: 0.8146648087 | AJ127: 460.0797162 | AK127: 374.810754 | AO127: 281700 | AP127: 3071400 | AQ127: 713159.2456 | AR127: 184.8888154 | AS127: =AR127*SDRf!M123*AI127 -> 77.82289279
A128: 119 | B128: 204 | C128: 174 | D128: LES | E128: LO | F128: 3 | G128: 4783100 | H128: 34953.19551 | I128: 2279678.44 | J128: 65.497345 | K128: 889.2215775 | L128: 5323 | M128: 4.7907 | N128: 0 | O128: 0 | P128: 0 | Q128: 0 | R128: 0 | S128: 0 | T128: 0 | U128: 0 | V128: 0 | W128: 0 | X128: 4330005.776 | Y128: 0.905271848 | Z128: 804.9872607 | AA128: 0.0001859090501 | AB128: 0 | AC128: 0 | AD128: 1 | AE128: 889.2215775 | AF128: 804.9872607 | AG128: 0.03911248714 | AH128: 0.03911248714 | AI128: 0.9168885491 | AJ128: 34.77966751 | AK128: 31.88907888 | AO128: 249300 | AP128: 4533800 | AQ128: 861653.1735 | AR128: 160.189123 | AS128: =AR128*SDRf!M124*AI128 -> 2.288539355
A129: 120 | B129: 206 | C129: 192 | D129: COB | E129: LO | F129: 3 | G129: 7070500 | H129: 23209.8041 | I129: 1484492.203 | J129: 28.627105 | K129: 706.0634973 | L129: 7857 | M129: 7.0713 | N129: 0 | O129: 0 | P129: 0 | Q129: 0 | R129: 0 | S129: 0 | T129: 286083 | U129: 635.10426 | V129: 0 | W129: 635.10426 | X129: 6188181.273 | Y129: 0.8752112684 | Z129: 617.954729 | AA129: 9.986047624e-05 | AB129: 0 | AC129: 0 | AD129: 1 | AE129: 706.0634973 | AF129: 617.954729 | AG129: 0.08585242814 | AH129: 0.07384224933 | AI129: 0.9446378385 | AJ129: 60.61726566 | AK129: 57.26136281 | AO129: 173700 | AP129: 6896800 | AQ129: 5252325.555 | AR129: 524.4997313 | AS129: =AR129*SDRf!M125*AI129 -> 12.65949649
A130: 121 | B130: 209 | C130: 237 | D130: LES | E130: UL | F130: 1 | G130: 6995600 | H130: 64110.07935 | I130: 6966456.481 | J130: 42.77124 | K130: 1349.977497 | L130: 7798 | M130: 7.0182 | N130: 0 | O130: 0 | P130: 0 | Q130: 0 | R130: 0 | S130: 0 | T130: 0 | U130: 0 | V130: 0 | W130: 0 | X130: 4749683.931 | Y130: 0.6789530464 | Z130: 916.5713338 | AA130: 0.0001929752268 | AB130: 1 | AC130: 0 | AD130: 0 | AE130: 1349.977497 | AF130: 916.5713338 | AG130: 0.1802099541 | AH130: 0.1738780828 | AI130: 0.3578793925 | AJ130: 243.2793827 | AK130: 87.0646777 | AO130: 137700 | AP130: 6857900 | AQ130: 2604034.367 | AR130: 502.5141226 | AS130: =AR130*SDRf!M126*AI130 -> 31.30790129
A131: 122 | B131: 211 | C131: 146 | D131: LES | E131: UL | F131: 3 | G131: 7043000 | H131: 12574.61508 | I131: 1109265.078 | J131: 6.026825 | K131: 415.0575 | L131: 7806 | M131: 7.0254 | N131: 0 | O131: 0 | P131: 0 | Q131: 0 | R131: 0 | S131: 0 | T131: 0 | U131: 0 | V131: 0 | W131: 0 | X131: 6198759.929 | Y131: 0.880130616 | Z131: 365.3048132 | AA131: 5.893191822e-05 | AB131: 0 | AC131: 0 | AD131: 1 | AE131: 415.0575 | AF131: 365.3048132 | AG131: 0.101521679 | AH131: 0.101521679 | AI131: 0.8479134056 | AJ131: 42.13733429 | AK131: 35.72881062 | AO131: 292500 | AP131: 6750500 | AQ131: 4569170.058 | AR131: 269.2699562 | AS131: =AR131*SDRf!M127*AI131 -> 19.95821671
A132: 123 | B132: 219 | C132: 181 | D132: LES | E132: LO | F132: 3 | G132: 2622000 | H132: 69443.77126 | I132: 4976230.753 | J132: 65.378784 | K132: 761.1012 | L132: 2916 | M132: 2.6244 | N132: 0 | O132: 0 | P132: 0 | Q132: 0 | R132: 0 | S132: 0 | T132: 0 | U132: 0 | V132: 0 | W132: 0 | X132: 2313940.429 | Y132: 0.8825096984 | Z132: 671.6791905 | AA132: 0.0002902750572 | AB132: 0 | AC132: 0 | AD132: 1 | AE132: 761.1012 | AF132: 671.6791905 | AG132: 0.07469107488 | AH132: 0.06222974664 | AI132: 0.8253901202 | AJ132: 56.84746672 | AK132: 46.92133739 | AO132: 620100 | AP132: 2001900 | AQ132: 425234.1645 | AR132: 123.4348714 | AS132: =AR132*SDRf!M128*AI132 -> 4.92735687
A133: 124 | B133: 228 | C133: 219 | D133: LES | E133: LO | F133: 3 | G133: 8865700 | H133: 73773.18252 | I133: 5370463.497 | J133: 65.378784 | K133: 1004.6052 | L133: 9820 | M133: 8.838 | N133: 0 | O133: 0 | P133: 0 | Q133: 0 | R133: 0 | S133: 0 | T133: 0 | U133: 0 | V133: 0 | W133: 0 | X133: 7046057.337 | Y133: 0.794754767 | Z133: 798.4147717 | AA133: 0.0001133136921 | AB133: 0 | AC133: 0 | AD133: 1 | AE133: 1004.6052 | AF133: 798.4147717 | AG133: 0.1111599895 | AH133: 0.08423598423 | AI133: 0.812743188 | AJ133: 111.6719035 | AK133: 90.76057889 | AO133: 917100 | AP133: 7948600 | AQ133: 5400717.7 | AR133: 611.9752626 | AS133: =AR133*SDRf!M129*AI133 -> 23.60256363
A134: 125 | B134: 229 | C134: 228 | D134: LES | E134: LO | F134: 3 | G134: 4691400 | H134: 74693.0963 | I134: 5456820.862 | J134: 71.017364 | K134: 682.1766 | L134: 5187 | M134: 4.6683 | N134: 0 | O134: 0 | P134: 0 | Q134: 0 | R134: 0 | S134: 0 | T134: 0 | U134: 0 | V134: 0 | W134: 0 | X134: 4032253.684 | Y134: 0.8594990161 | Z134: 586.3301165 | AA134: 0.0001454100269 | AB134: 0 | AC134: 0 | AD134: 1 | AE134: 682.1766 | AF134: 586.3301165 | AG134: 0.04304217603 | AH134: 0.04304217603 | AI134: 0.8102659145 | AJ134: 29.3623653 | AK134: 23.79132377 | AO134: 107100 | AP134: 4584300 | AQ134: 1664930.705 | AR134: 242.0976186 | AS134: =AR134*SDRf!M130*AI134 -> 7.282174679
A135: 126 | B135: 231 | C135: 193 | D135: LES | E135: UL | F135: 2 | G135: 6114900 | H135: 27860.43289 | I135: 2639850.272 | J135: 26.555603 | K135: 1195.420501 | L135: 6781 | M135: 6.1029 | N135: 0 | O135: 0 | P135: 0 | Q135: 0 | R135: 0 | S135: 0 | T135: 0 | U135: 0 | V135: 0 | W135: 0 | X135: 4788101.267 | Y135: 0.7830220064 | Z135: 936.0405588 | AA135: 0.000195493058 | AB135: 0 | AC135: 1 | AD135: 0 | AE135: 1195.420501 | AF135: 936.0405588 | AG135: 0.4437345916 | AH135: 0.4437345916 | AI135: 0.6798239811 | AJ135: 530.4494276 | AK135: 360.6122417 | AO135: 554400 | AP135: 5560500 | AQ135: 1673288.963 | AR135: 327.1163764 | AS135: =AR135*SDRf!M131*AI135 -> 93.15619966
A136: 127 | B136: 232 | C136: 228 | D136: LES | E136: LO | F136: 3 | G136: 3669000 | H136: 74608.95416 | I136: 5448864.24 | J136: 71.017364 | K136: 154.0341 | L136: 4044 | M136: 3.6396 | N136: 0 | O136: 0 | P136: 0 | Q136: 0 | R136: 0 | S136: 0 | T136: 0 | U136: 0 | V136: 0 | W136: 0 | X136: 3404324.018 | Y136: 0.9278615477 | Z136: 142.9223184 | AA136: 4.198258381e-05 | AB136: 0 | AC136: 0 | AD136: 1 | AE136: 154.0341 | AF136: 142.9223184 | AG136: 0.004625549121 | AH136: 0.004625549121 | AI136: 0.8105181684 | AJ136: 0.7124922958 | AK136: 0.5774879506 | AO136: 0 | AP136: 3669000 | AQ136: 928058.9935 | AR136: 38.96231448 | AS136: =AR136*SDRf!M132*AI136 -> 0.146073286
A137: 128 | B137: 235 | C137: 276 | D137: LES | E137: UL | F137: 1 | G137: 6084200 | H137: 45036.61651 | I137: 4564744.21 | J137: 20.313996 | K137: 940.869899 | L137: 6756 | M137: 6.0804 | N137: 0 | O137: 0 | P137: 0 | Q137: 0 | R137: 0 | S137: 0 | T137: 0 | U137: 0 | V137: 28 | W137: 28 | X137: 4833729.161 | Y137: 0.7944724304 | Z137: 747.4951953 | AA137: 0.0001546415139 | AB137: 1 | AC137: 0 | AD137: 0 | AE137: 940.869899 | AF137: 747.4951953 | AG137: 0.5861541314 | AH137: 0.5351201812 | AI137: 0.5066531668 | AJ137: 551.4947784 | AK137: 279.416576 | AO137: 1419300 | AP137: 4664900 | AQ137: 1539545.414 | AR137: 238.0776335 | AS137: =AR137*SDRf!M133*AI137 -> 66.82703873
A138: =A137+1 -> 129 | B138: 237 | C138: 274 | D138: LES | E138: UL | F138: 1 | G138: 5622400 | H138: 61895.07935 | I138: 6681308.312 | J138: 33.797882 | K138: 935.7417051 | L138: 6241 | M138: 5.6169 | N138: 0 | O138: 0 | P138: 0 | Q138: 0 | R138: 0 | S138: 0 | T138: 0 | U138: 0 | V138: 88 | W138: 88 | X138: 5038651.131 | Y138: 0.8961744327 | Z138: 838.5877917 | AA138: 0.000166431009 | AB138: 1 | AC138: 0 | AD138: 0 | AE138: 935.7417051 | AF138: 838.5877917 | AG138: 0.4434561577 | AH138: 0.4039022098 | AI138: 0.3714097418 | AJ138: 414.9604211 | AK138: 154.1203429 | AO138: 549000 | AP138: =G138-AO138 -> 5073400 | AQ138: 1965115.232 | AR138: 327.0561108 | AS138: =AR138*SDRf!M134*AI138 -> 54.81820878
A139: 130 | B139: 241 | C139: 274 | D139: LES | E139: UL | F139: 1 | G139: 8866900 | H139: 64762.01369 | I139: 7059739.558 | J139: 33.797882 | K139: 2096.706599 | L139: 9855 | M139: =L139*30*30/1000^2 -> 8.8695 | N139: 0 | O139: 0 | P139: 0 | Q139: 0 | R139: 0 | S139: 0 | T139: 0 | U139: 0 | V139: 37 | W139: 37 | X139: 7701534.275 | Y139: =X139/G139 -> 0.868571234 | Z139: =Y139*K139 -> 1821.139038 | AA139: =IF(X139=0,0,Z139/X139) -> 0.0002364644463 | AB139: =IF($F139=1,1,0) -> 1 | AC139: =IF($F139=2,1,0) -> 0 | AD139: =IF($F139=3,1,0) -> 0 | AE139: 2096.706599 | AF139: =AE139-(K139-Z139) -> 1821.139038 | AG139: 0.6191344974 | AH139: 0.4715650264 | AI139: 0.3507313852 | AJ139: =K139*AG139 -> 1298.143386 | AK139: =AJ139*AI139 -> 455.2996281 | AO139: 1971900 | AP139: 6895000 | AQ139: 3152441.389 | AR139: =K139*(AQ139/G139) -> 745.4403074 | AS139: =AR139*SDRf!M135*AI139 -> 152.1497979
A140: 131 | B140: 242 | C140: 245 | D140: LES | E140: UL | F140: 1 | G140: 4279500 | H140: 48129.78931 | I140: 4934232.262 | J140: 21.651367 | K140: 632.7324028 | L140: 4754 | M140: 4.2786 | N140: 0 | O140: 0 | P140: 0 | Q140: 0 | R140: 0 | S140: 0 | T140: 0 | U140: 0 | V140: 173 | W140: 173 | X140: 3605073.957 | Y140: 0.8424054112 | Z140: 533.0172 | AA140: 0.000147851946 | AB140: 1 | AC140: 0 | AD140: 0 | AE140: 632.7324028 | AF140: 533.0172 | AG140: 0.5275288651 | AH140: 0.5275288651 | AI140: 0.4794989007 | AJ140: 333.7846064 | AK140: 160.0493518 | AO140: 606600 | AP140: 3672900 | AQ140: 485719.8424 | AR140: 71.8146239 | AS140: =AR140*SDRf!M136*AI140 -> 17.18792993
A141: 132 | B141: 243 | C141: 319 | D141: LES | E141: UL | F141: 1 | G141: 4301400 | H141: 73439.623 | I141: 8199132.499 | J141: 54.312195 | K141: 618.6888001 | L141: 4773 | M141: 4.2957 | N141: 0 | O141: 0 | P141: 0 | Q141: 0 | R141: 0 | S141: 0 | T141: 0 | U141: 0 | V141: 0 | W141: 0 | X141: 2762051.161 | Y141: 0.6421284142 | Z141: 397.2776581 | AA141: 0.0001438342865 | AB141: 1 | AC141: 0 | AD141: 0 | AE141: 618.6888001 | AF141: 397.2776581 | AG141: 0.1828978784 | AH141: 0.1828978784 | AI141: 0.2993122544 | AJ141: 113.1568689 | AK141: 33.86923754 | AO141: 426600 | AP141: 3874800 | AQ141: 2827453.415 | AR141: 406.6847447 | AS141: =AR141*SDRf!M137*AI141 -> 17.46692938
A142: 133 | B142: 244 | C142: 319 | D142: LES | E142: UL | F142: 1 | G142: 7586928.592 | H142: 73442.46571 | I142: 8198667.659 | J142: 54.312195 | K142: 1825.5645 | L142: 8437 | M142: 7.5933 | N142: 0 | O142: 0 | P142: 0 | Q142: 0 | R142: 0 | S142: 0 | T142: 0 | U142: 0 | V142: 0 | W142: 0 | X142: 6512733.651 | Y142: 0.8584150452 | Z142: 1567.092033 | AA142: 0.0002406197024 | AB142: 1 | AC142: 0 | AD142: 0 | AE142: 1825.5645 | AF142: 1567.092033 | AG142: 0.1515402568 | AH142: 0.1515402568 | AI142: 0.2993323749 | AJ142: 276.6465131 | AK142: 82.80925779 | AO142: 0 | AP142: 7586928.592 | AQ142: 5985132.979 | AR142: 1440.140916 | AS142: =AR142*SDRf!M138*AI142 -> 65.32609524
A143: 134 | B143: 245 | C143: 276 | D143: LES | E143: UL | F143: 1 | G143: 2022000 | H143: 45091.72798 | I143: 4568498.266 | J143: 20.313996 | K143: 209.9565 | L143: 2254 | M143: 2.0286 | N143: 0 | O143: 0 | P143: 0 | Q143: 0 | R143: 0 | S143: 0 | T143: 0 | U143: 0 | V143: 105 | W143: 105 | X143: 1186289.152 | Y143: 0.5866909755 | Z143: 123.1795838 | AA143: 0.0001038360534 | AB143: 1 | AC143: 0 | AD143: 0 | AE143: 209.9565 | AF143: 123.1795838 | AG143: 0.5632924095 | AH143: 0.5632924095 | AI143: 0.5063593981 | AJ143: 118.2669028 | AK143: 59.88555771 | AO143: 324900 | AP143: 1697100 | AQ143: 20739.36486 | AR143: 2.153493798 | AS143: =AR143*SDRf!M139*AI143 -> 0.5234230594
A144: 135 | B144: 253 | C144: 271 | D144: COB | E144: LO | F144: 3 | G144: 3864500 | H144: 35422.60677 | I144: 2309123.189 | J144: 49.946289 | K144: 309.2706 | L144: 4297 | M144: 3.8673 | N144: 0.1240873476 | O144: 2490 | P144: 183.2058904 | Q144: 162.0820956 | R144: 16.185 | S144: 361.472986 | T144: 152667 | U144: 338.92074 | V144: 0 | W144: 700.393726 | X144: 3414791.452 | Y144: 0.8836308584 | Z144: 273.2810458 | AA144: 8.00286195e-05 | AB144: 0 | AC144: 0 | AD144: 1 | AE144: 309.2706 | AF144: 273.2810458 | AG144: 0.04210944573 | AH144: 0.04210944573 | AI144: 0.9154255013 | AJ144: 13.02321355 | AK144: 11.92178179 | AO144: 72000 | AP144: 3792500 | AQ144: 1656863.644 | AR144: 132.5965101 | AS144: =AR144*SDRf!M140*AI144 -> 3.955998514
A145: 136 | B145: 255 | C145: 245 | D145: LES | E145: UL | F145: 1 | G145: 150700 | H145: 46129.0072 | I145: 4691622.612 | J145: 21.651367 | K145: 12.8655006 | L145: 167 | M145: 0.1503 | N145: 0 | O145: 0 | P145: 0 | Q145: 0 | R145: 0 | S145: 0 | T145: 0 | U145: 0 | V145: 0 | W145: 0 | X145: 39694.5507 | Y145: 0.2634011327 | Z145: 3.388787431 | AA145: 8.537160319e-05 | AB145: 1 | AC145: 0 | AD145: 0 | AE145: 12.8655006 | AF145: 3.388787431 | AG145: 0.7452313702 | AH145: 0.4590202911 | AI145: 0.4975136785 | AJ145: 9.587774641 | AK145: 4.770049031 | AO145: 53100 | AP145: 97600 | AQ145: 0 | AR145: 0 | AS145: =AR145*SDRf!M141*AI145 -> 0
A146: 137 | B146: 261 | C146: 263 | D146: LES | E146: UL | F146: 1 | G146: 3679400 | H146: 48413.7738 | I146: 4967662.185 | J146: 24.358948 | K146: 744.9057 | L146: 4092 | M146: 3.6828 | N146: 0 | O146: 0 | P146: 0 | Q146: 0 | R146: 0 | S146: 0 | T146: 0 | U146: 0 | V146: 0 | W146: 0 | X146: 3285297.444 | Y146: 0.8928894506 | Z146: 665.1184412 | AA146: 0.0002024530358 | AB146: 1 | AC146: 0 | AD146: 0 | AE146: 744.9057 | AF146: 665.1184412 | AG146: 0.4517936349 | AH146: 0.3564693801 | AI146: 0.4781052564 | AJ146: 336.5436538 | AK146: 160.9032899 | AO146: 423900 | AP146: 3255500 | AQ146: 394781.7711 | AR146: 79.92476804 | AS146: =AR146*SDRf!M142*AI146 -> 15.95653721
A147: 138 | B147: 262 | C147: 219 | D147: LES | E147: LO | F147: 3 | G147: 7232300 | H147: 72146.29435 | I147: 5216651.58 | J147: 65.378784 | K147: 1627.1973 | L147: 8015 | M147: 7.2135 | N147: 0 | O147: 0 | P147: 0 | Q147: 0 | R147: 0 | S147: 0 | T147: 0 | U147: 0 | V147: 0 | W147: 0 | X147: 5599994.663 | Y147: 0.7743034254 | Z147: 1259.944443 | AA147: 0.0002249902936 | AB147: 0 | AC147: 0 | AD147: 1 | AE147: 1627.1973 | AF147: 1259.944443 | AG147: 0.06837632467 | AH147: 0.06837632467 | AI147: 0.8176536063 | AJ147: 111.2617709 | AK147: 90.97358821 | AO147: 430200 | AP147: 6802100 | AQ147: 1890610.202 | AR147: 425.3689443 | AS147: =AR147*SDRf!M143*AI147 -> 9.19668147
A148: 139 | B148: 263 | C148: 255 | D148: LES | E148: UL | F148: 1 | G148: 1633200 | H148: 47915.99205 | I148: 4906921.032 | J148: 22.979462 | K148: 305.7084037 | L148: 1819 | M148: 1.6371 | N148: 0 | O148: 0 | P148: 0 | Q148: 0 | R148: 0 | S148: 0 | T148: 0 | U148: 0 | V148: 0 | W148: 0 | X148: 1359748.473 | Y148: 0.8325670297 | Z148: 254.5227376 | AA148: 0.0001871836907 | AB148: 1 | AC148: 0 | AD148: 0 | AE148: 305.7084037 | AF148: 254.5227376 | AG148: 0.6830443776 | AH148: 0.5333419452 | AI148: 0.4820167123 | AJ148: 208.8124064 | AK148: 100.6510696 | AO148: 594000 | AP148: 1039200 | AQ148: 20602.63094 | AR148: 3.856476498 | AS148: =AR148*SDRf!M144*AI148 -> 1.085238692
A149: 140 | B149: 264 | C149: 263 | D149: LES | E149: UL | F149: 1 | G149: 2100 | H149: 47965.99205 | I149: 4912940.882 | J149: 24.358948 | K149: 0.0207 | L149: 2 | M149: 0.0018 | N149: 0 | O149: 0 | P149: 0 | Q149: 0 | R149: 0 | S149: 0 | T149: 0 | U149: 0 | V149: 0 | W149: 0 | X149: 0 | Y149: 0 | Z149: 0 | AA149: 0 | AB149: 1 | AC149: 0 | AD149: 0 | AE149: 0.0207 | AF149: 0 | AG149: 0.8008138296 | AH149: 0.8008138296 | AI149: 0.4820891778 | AJ149: 0.01657684627 | AK149: 0.00799151819 | AO149: 0 | AP149: 2100 | AQ149: 0 | AR149: 0 | AS149: =AR149*SDRf!M145*AI149 -> 0
A150: 141 | B150: 271 | C150: 272 | D150: COB | E150: LO | F150: 3 | G150: 1713500 | H150: 34219.49494 | I150: 2225479.828 | J150: 41.869476 | K150: 194.6376002 | L150: 1906 | M150: 1.7154 | N150: 0.1240873476 | O150: 3210 | P150: 236.1810876 | Q150: 208.9492076 | R150: 20.865 | S150: 465.9952952 | T150: 14304 | U150: 31.75488 | V150: 402 | W150: 899.7501752 | X150: 857896.8423 | Y150: 0.5006692981 | Z150: 97.44907068 | AA150: 0.0001135906625 | AB150: 0 | AC150: 0 | AD150: 1 | AE150: 194.6376002 | AF150: 97.44907068 | AG150: 0.2511716062 | AH150: 0.1603877669 | AI150: 0.9181493397 | AJ150: 48.88743866 | AK150: 44.88596953 | AO150: 471600 | AP150: 1241900 | AQ150: 27990.62203 | AR150: 3.1794733 | AS150: =AR150*SDRf!M146*AI150 -> 0.331016415
A151: 142 | B151: 272 | C151: 192 | D151: COB | E151: LO | F151: 3 | G151: 8443100 | H151: 31391.26117 | I151: 2031583.741 | J151: 28.627105 | K151: 1305.935101 | L151: 9396 | M151: 8.4564 | N151: 0.1240873476 | O151: 17430 | P151: 1282.441233 | Q151: 1134.574669 | R151: 113.295 | S151: 2530.310902 | T151: 351333.5493 | U151: 779.9604795 | V151: 4095 | W151: 7405.271381 | X151: 4974534.067 | Y151: 0.5891833648 | Z151: 769.435237 | AA151: 0.0001546748352 | AB151: 0 | AC151: 0 | AD151: 1 | AE151: 1305.935101 | AF151: 769.435237 | AG151: 0.2353062299 | AH151: 0.1240347541 | AI151: 0.9246021878 | AJ151: 307.2946651 | AK151: 284.1253196 | AO151: 2321100 | AP151: 6122000 | AQ151: 598406.0237 | AR151: 92.5583531 | AS151: =AR151*SDRf!M147*AI151 -> 7.840199123
A152: 143 | B152: 274 | C152: 301 | D152: LES | E152: UL | F152: 1 | G152: 825500 | H152: 2318.944443 | I152: 296152.5 | J152: 28.925293 | K152: 94.2876 | L152: 910 | M152: 0.819 | N152: 0 | O152: 0 | P152: 0 | Q152: 0 | R152: 0 | S152: 0 | T152: 0 | U152: 0 | V152: 224 | W152: 224 | X152: 388785.7754 | Y152: 0.470970049 | Z152: 44.40663559 | AA152: 0.0001142187765 | AB152: 1 | AC152: 0 | AD152: 0 | AE152: 94.2876 | AF152: 44.40663559 | AG152: 0.6945255745 | AH152: 0.6945255745 | AI152: 0.9602153709 | AJ152: 65.48514955 | AK152: 62.87984717 | AO152: 208800 | AP152: 616700 | AQ152: 0 | AR152: 0 | AS152: =AR152*SDRf!M148*AI152 -> 0
A153: 144 | B153: 276 | C153: 283 | D153: LES | E153: UL | F153: 1 | G153: 2917500 | H153: 42308.17459 | I153: 4241072.344 | J153: 18.790222 | K153: 432.3024 | L153: 3235 | M153: 2.9115 | N153: 0 | O153: 0 | P153: 0 | Q153: 0 | R153: 0 | S153: 0 | T153: 0 | U153: 0 | V153: 549 | W153: 549 | X153: 1969522.665 | Y153: 0.6750720359 | Z153: 291.8352613 | AA153: 0.0001481756298 | AB153: 1 | AC153: 0 | AD153: 0 | AE153: 432.3024 | AF153: 291.8352613 | AG153: 0.548808015 | AH153: 0.548808015 | AI153: 0.5315481065 | AJ153: 237.251022 | AK153: 126.1103315 | AO153: 238500 | AP153: 2679000 | AQ153: 172677.5907 | AR153: 25.58661075 | AS153: =AR153*SDRf!M149*AI153 -> 6.874683441
A154: 145 | B154: 280 | C154: 286 | D154: LES | E154: UL | F154: 1 | G154: 4190600 | H154: 64469.66304 | I154: 7023368.854 | J154: 34.601349 | K154: 620.5248 | L154: 4655 | M154: 4.1895 | N154: 0 | O154: 0 | P154: 0 | Q154: 0 | R154: 0 | S154: 0 | T154: 0 | U154: 0 | V154: 0 | W154: 0 | X154: 3296931.896 | Y154: 0.7867445941 | Z154: 488.1945319 | AA154: 0.0001480754069 | AB154: 1 | AC154: 0 | AD154: 0 | AE154: 620.5248 | AF154: 488.1945319 | AG154: 0.5518661953 | AH154: 0.5518661953 | AI154: 0.352887263 | AJ154: 342.4466605 | AK154: 120.8450648 | AO154: 479700 | AP154: 3710900 | AQ154: 1190426.866 | AR154: 176.2729425 | AS154: =AR154*SDRf!M150*AI154 -> 32.88262441
A155: 146 | B155: 283 | C155: 200 | D155: LES | E155: UL | F155: 1 | G155: 19837200 | H155: 38096.2655 | I155: 3757909.888 | J155: 8.938568 | K155: 2202.380994 | L155: 21826 | M155: 19.6434 | N155: 0.0468047455 | O155: 26940 | P155: 1027.163206 | Q155: 709.0071341 | R155: 0 | S155: 1736.17034 | T155: 0 | U155: 0 | V155: 3425 | W155: 5161.17034 | X155: 14281687.74 | Y155: 0.719944737 | Z155: 1585.592605 | AA155: 0.0001110227751 | AB155: 1 | AC155: 0 | AD155: 0 | AE155: 2202.380994 | AF155: 1585.592605 | AG155: 0.502311493 | AH155: 0.4164236038 | AI155: 0.5661057564 | AJ155: 1106.281285 | AK155: 626.2722038 | AO155: 2381400 | AP155: 17455800 | AQ155: 9777977.02 | AR155: 1085.578143 | AS155: =AR155*SDRf!M151*AI155 -> 261.9975592
A156: 147 | B156: 285 | C156: 291 | D156: COB | E156: LO | F156: 3 | G156: 6580100 | H156: 50403.39933 | I156: 3396171.614 | J156: 65.488037 | K156: 1050.4665 | L156: 7315 | M156: 6.5835 | N156: 0 | O156: 0 | P156: 0 | Q156: 0 | R156: 0 | S156: 0 | T156: 0 | U156: 0 | V156: 0 | W156: 0 | X156: 5617266.649 | Y156: 0.8536749668 | Z156: 896.7569546 | AA156: 0.0001596429386 | AB156: 0 | AC156: 0 | AD156: 1 | AE156: 1050.4665 | AF156: 896.7569546 | AG156: 0.07142503166 | AH156: 0.07142503166 | AI156: 0.8779479706 | AJ156: 75.02960303 | AK156: 65.87208772 | AO156: 549000 | AP156: 6031100 | AQ156: 4792394.368 | AR156: 765.0719197 | AS156: =AR156*SDRf!M152*AI156 -> 30.90551687
A157: 148 | B157: 286 | C157: 301 | D157: LES | E157: UL | F157: 1 | G157: 11816700 | H157: 62832.40908 | I157: 6807245.58 | J157: 28.925293 | K157: 2039.702399 | L157: 13141 | M157: 11.8269 | N157: 0 | O157: 0 | P157: 0 | Q157: 0 | R157: 0 | S157: 0 | T157: 0 | U157: 0 | V157: 1176 | W157: 1176 | X157: 9132039.472 | Y157: 0.7728079304 | Z157: 1576.29819 | AA157: 0.0001726118459 | AB157: 1 | AC157: 0 | AD157: 0 | AE157: 2039.702399 | AF157: 1576.29819 | AG157: 0.4977316675 | AH157: 0.379204159 | AI157: 0.3629694705 | AJ157: 1015.224476 | AK157: 368.4954905 | AO157: 1702800 | AP157: 10113900 | AQ157: 1871677.838 | AR157: 323.0737665 | AS157: =AR157*SDRf!M153*AI157 -> 53.05183077
A158: 149 | B158: 290 | C158: 314 | D158: COB | E158: LO | F158: 3 | G158: 3875100 | H158: 48273.57177 | I158: 3230598.213 | J158: 64.08844 | K158: 326.0394 | L158: 4302 | M158: 3.8718 | N158: 0 | O158: 0 | P158: 0 | Q158: 0 | R158: 0 | S158: 0 | T158: 0 | U158: 0 | V158: 0 | W158: 0 | X158: 3582684.502 | Y158: 0.9245398832 | Z158: 301.4364288 | AA158: 8.413702873e-05 | AB158: 0 | AC158: 0 | AD158: 1 | AE158: 326.0394 | AF158: 301.4364288 | AG158: 0.1217579471 | AH158: 0.1217579471 | AI158: 0.8835820374 | AJ158: 39.69788802 | AK158: 35.07634078 | AO158: 697500 | AP158: 3177600 | AQ158: 738909.9927 | AR158: 62.16969128 | AS158: =AR158*SDRf!M154*AI158 -> 3.343943554
A159: 150 | B159: 291 | C159: 314 | D159: COB | E159: LO | F159: 3 | G159: 836800 | H159: 48183.95237 | I159: 3226264.96 | J159: 64.08844 | K159: 54.9306 | L159: 932 | M159: 0.8388 | N159: 0 | O159: 0 | P159: 0 | Q159: 0 | R159: 0 | S159: 0 | T159: 0 | U159: 0 | V159: 0 | W159: 0 | X159: 806214.9187 | Y159: 0.9634499507 | Z159: 52.92288386 | AA159: 6.564364245e-05 | AB159: 0 | AC159: 0 | AD159: 1 | AE159: 54.9306 | AF159: 52.92288386 | AG159: 0.1602945715 | AH159: 0.1602945715 | AI159: 0.8837325951 | AJ159: 8.805076989 | AK159: 7.781333537 | AO159: 117900 | AP159: 718900 | AQ159: 0 | AR159: 0 | AS159: =AR159*SDRf!M155*AI159 -> 0
A160: 151 | B160: 301 | C160: 264 | D160: LES | E160: UL | F160: 1 | G160: 5236700 | H160: 55164.34775 | I160: 5807959.654 | J160: 24.358948 | K160: 860.6069997 | L160: 5823 | M160: 5.2407 | N160: 0 | O160: 0 | P160: 0 | Q160: 0 | R160: 0 | S160: 0 | T160: 0 | U160: 0 | V160: 490 | W160: 490 | X160: 2950309.758 | Y160: 0.5633910207 | Z160: 484.858256 | AA160: 0.0001643414745 | AB160: 1 | AC160: 0 | AD160: 0 | AE160: 860.6069997 | AF160: 484.858256 | AG160: 0.6113815211 | AH160: 0.4427299149 | AI160: 0.4208123713 | AJ160: 526.1592166 | AK160: 221.4143076 | AO160: 1091700 | AP160: 4145000 | AQ160: 669503.7843 | AR160: 110.0272391 | AS160: =AR160*SDRf!M156*AI160 -> 26.84526976
A161: 152 | B161: 302 | C161: 291 | D161: COB | E161: LO | F161: 3 | G161: 6946900 | H161: 50665.93721 | I161: 3417704.446 | J161: 65.488037 | K161: 782.5553976 | L161: 7691 | M161: 6.9219 | N161: 0 | O161: 0 | P161: 0 | Q161: 0 | R161: 0 | S161: 0 | T161: 0 | U161: 0 | V161: 0 | W161: 0 | X161: 5997960.712 | Y161: 0.8634010439 | Z161: 675.6591472 | AA161: 0.0001126481449 | AB161: 0 | AC161: 0 | AD161: 1 | AE161: 782.5553976 | AF161: 675.6591472 | AG161: 0.02983262675 | AH161: 0.01308389947 | AI161: 0.8772123496 | AJ161: 23.34568309 | AK161: 20.47912151 | AO161: 249300 | AP161: 6697600 | AQ161: 4181699.79 | AR161: 471.0607237 | AS161: =AR161*SDRf!M157*AI161 -> 6.90156164
A162: 153 | B162: 303 | C162: 283 | D162: LES | E162: UL | F162: 1 | G162: 4262700 | H162: 39451.2655 | I162: 3914039.61 | J162: 18.790222 | K162: 139.3335 | L162: 4727 | M162: 4.2543 | N162: 0 | O162: 0 | P162: 0 | Q162: 0 | R162: 0 | S162: 0 | T162: 0 | U162: 0 | V162: 0 | W162: 0 | X162: 3698630.804 | Y162: 0.8676732598 | Z162: 120.8959521 | AA162: 3.268667746e-05 | AB162: 1 | AC162: 0 | AD162: 0 | AE162: 139.3335 | AF162: 120.8959521 | AG162: 0.3251574351 | AH162: 0.3251574351 | AI162: 0.5586615319 | AJ162: 45.30532348 | AK162: 25.31034142 | AO162: 0 | AP162: 4262700 | AQ162: 925105.1139 | AR162: 30.23861247 | AS162: =AR162*SDRf!M158*AI162 -> 5.492933183
A163: 154 | B163: 314 | C163: 331 | D163: COB | E163: LO | F163: 3 | G163: 4417100 | H163: 47130.81528 | I163: 3147860.989 | J163: 59.2294 | K163: 712.0008015 | L163: 4917 | M163: 4.4253 | N163: 0 | O163: 0 | P163: 0 | Q163: 0 | R163: 0 | S163: 0 | T163: 283393.5 | U163: 629.13357 | V163: 0 | W163: 629.13357 | X163: 3066082.284 | Y163: 0.6941392055 | Z163: 494.2276706 | AA163: 0.0001611919136 | AB163: 0 | AC163: 0 | AD163: 1 | AE163: 712.0008015 | AF163: 494.2276706 | AG163: 0.1207390688 | AH163: 0.1207390688 | AI163: 0.8862757599 | AJ163: 85.96631378 | AK163: 76.18986008 | AO163: 558000 | AP163: 3859100 | AQ163: 246158.1633 | AR163: 39.67870539 | AS163: =AR163*SDRf!M159*AI163 -> 2.525286403
A164: 155 | B164: 317 | C164: 286 | D164: LES | E164: UL | F164: 1 | G164: 1215300 | H164: 67465.66809 | I164: 7423809.811 | J164: 34.601349 | K164: 170.1162 | L164: 1350 | M164: 1.215 | N164: 0 | O164: 0 | P164: 0 | Q164: 0 | R164: 0 | S164: 0 | T164: 0 | U164: 0 | V164: 2151 | W164: 2151 | X164: 283220.8991 | Y164: 0.2330460784 | Z164: 39.64491328 | AA164: 0.0001399787707 | AB164: 1 | AC164: 0 | AD164: 0 | AE164: 170.1162 | AF164: 39.64491328 | AG164: 0.7965681728 | AH164: 0.7965681728 | AI164: 0.3321243034 | AJ164: 135.5091506 | AK164: 45.00588225 | AO164: 633600 | AP164: 581700 | AQ164: 0 | AR164: 0 | AS164: =AR164*SDRf!M160*AI164 -> 0
A165: 156 | B165: 319 | C165: 317 | D165: LES | E165: UL | F165: 1 | G165: 3620000 | H165: 72678.70417 | I165: 8098622.601 | J165: 35.903137 | K165: 882.5841003 | L165: 4018 | M165: 3.6162 | N165: 0 | O165: 0 | P165: 0 | Q165: 0 | R165: 0 | S165: 0 | T165: 0 | U165: 0 | V165: 186 | W165: 186 | X165: 2977096.865 | Y165: 0.8224024488 | Z165: 725.8393253 | AA165: 0.0002438077625 | AB165: 1 | AC165: 0 | AD165: 0 | AE165: 882.5841003 | AF165: 725.8393253 | AG165: 0.4665087648 | AH165: 0.4031320513 | AI165: 0.3001218564 | AJ165: 411.7332184 | AK165: 123.5701378 | AO165: 313200 | AP165: 3306800 | AQ165: 759706.0842 | AR165: 185.2222405 | AS165: =AR165*SDRf!M161*AI165 -> 25.14226857
A166: 157 | B166: 327 | C166: 271 | D166: COB | E166: LO | F166: 3 | G166: 2760800 | H166: 40782.45958 | I166: 2685140.187 | J166: 49.946289 | K166: 525.2121005 | L166: 3071 | M166: 2.7639 | N166: 0.1240873476 | O166: 6900 | P166: 507.6789733 | Q166: 449.1431565 | R166: 44.85 | S166: 1001.67213 | T166: 42735.40039 | U166: 94.87258887 | V166: 2841 | W166: 3937.544719 | X166: 1581073.036 | Y166: 0.5726865531 | Z166: 300.7819075 | AA166: 0.0001902390976 | AB166: 0 | AC166: 0 | AD166: 1 | AE166: 525.2121005 | AF166: 300.7819075 | AG166: 0.239338555 | AH166: 0.07084827397 | AI166: 0.9020987408 | AJ166: 125.7035052 | AK166: 113.3969738 | AO166: 1000800 | AP166: 1760000 | AQ166: 6376.642055 | AR166: 1.21308663 | AS166: =AR166*SDRf!M162*AI166 -> 0.1060768448
A167: 158 | B167: 328 | C167: 332 | D167: COB | E167: LC | F167: 3 | G167: 10105500 | H167: 19089.72222 | I167: 2147427.596 | J167: 9.066619 | K167: 4478.987702 | L167: 11214 | M167: 10.0926 | N167: 0 | O167: 0 | P167: 0 | Q167: 0 | R167: 0 | S167: 0 | T167: 0 | U167: 0 | V167: 0 | W167: 0 | X167: 8748323.68 | Y167: 0.865699241 | Z167: 3877.456254 | AA167: 0.00044322277 | AB167: 0 | AC167: 0 | AD167: 1 | AE167: 4478.987702 | AF167: 3877.456254 | AG167: 0.221656078 | AH167: 0.159682701 | AI167: 0.4437749686 | AJ167: 992.7948477 | AK167: 440.5775024 | AO167: 1449900 | AP167: 8655600 | AQ167: 6178252.594 | AR167: 2738.342228 | AS167: =AR167*SDRf!M163*AI167 -> 212.6488781
A168: 159 | B168: 331 | C168: 327 | D168: COB | E168: LO | F168: 3 | G168: 2206200 | H168: 44907.55626 | I168: 2983069.826 | J168: 55.982879 | K168: 511.1685006 | L168: 2446 | M168: 2.2014 | N168: 0.1240873476 | O168: 4530 | P168: 333.3022825 | Q168: 294.8722462 | R168: 29.445 | S168: 657.6195287 | T168: 40126.43066 | U168: 89.08067607 | V168: 1414 | W168: 2160.700205 | X168: 1541670.58 | Y168: 0.6987900372 | Z168: 357.1994556 | AA168: 0.000231696356 | AB168: 0 | AC168: 0 | AD168: 1 | AE168: 511.1685006 | AF168: 357.1994556 | AG168: 0.2509842209 | AH168: 0.1520365756 | AI168: 0.8918792303 | AJ168: 128.2952279 | AK168: 114.4238491 | AO168: 866700 | AP168: 1339500 | AQ168: 87380.06563 | AR168: 20.24564279 | AS168: =AR168*SDRf!M164*AI168 -> 2.328364856
A169: 160 | B169: 332 | C169: 396 | D169: COB | E169: LC | F169: 3 | G169: 6037000 | H169: 14213.5238 | I169: 1526513.352 | J169: 8.77301 | K169: 2018.988001 | L169: 6698 | M169: 6.0282 | N169: 0.1830354638 | O169: 4590 | P169: 108.7461494 | Q169: 85.5911567 | R169: 0 | S169: 194.3373061 | T169: 0 | U169: 0 | V169: 321 | W169: 515.3373061 | X169: 4569026.364 | Y169: 0.7568372311 | Z169: 1528.045288 | AA169: 0.000334435647 | AB169: 0 | AC169: 0 | AD169: 1 | AE169: 2018.988001 | AF169: 1528.045288 | AG169: 0.2353207217 | AH169: 0.1600527436 | AI169: 0.5760799244 | AJ169: 475.1097134 | AK169: 273.7011678 | AO169: 1317600 | AP169: 4719400 | AQ169: 1017298.078 | AR169: 340.2207409 | AS169: =AR169*SDRf!M165*AI169 -> 35.31391871
A170: 161 | B170: 336 | C170: 166 | D170: MAP | E170: LO | F170: 3 | G170: 19163773.91 | H170: 38762.75395 | I170: 2546031.158 | J170: 23.468475 | K170: 2753.783997 | L170: 21289 | M170: 19.1601 | N170: 0.4035503568 | O170: 29220 | P170: 1463.97372 | Q170: 2060.525597 | R170: 569.79 | S170: 4094.289317 | T170: 785416.3955 | U170: 1743.624398 | V170: 14853 | W170: 20690.91371 | X170: 11664133.67 | Y170: 0.6086553577 | Z170: 1676.105384 | AA170: 0.0001436973745 | AB170: 0 | AC170: 0 | AD170: 1 | AE170: 2753.783997 | AF170: 1676.105384 | AG170: 0.1430786691 | AH170: 0.04861015385 | AI170: 0.9057336332 | AJ170: 394.0077493 | AK170: 356.8660703 | AO170: 4250700 | AP170: 14913073.91 | AQ170: 8203071.513 | AR170: 1178.759839 | AS170: =AR170*SDRf!M166*AI170 -> 67.38063058
A171: 162 | B171: 337 | C171: 272 | D171: COB | E171: LO | F171: 3 | G171: 8041200 | H171: 34996.1497 | I171: 2281616.681 | J171: 41.869476 | K171: 1818.198904 | L171: 8949 | M171: 8.0541 | N171: 0.1240873476 | O171: 16440 | P171: 1209.600336 | Q171: 1070.13239 | R171: 106.86 | S171: 2386.592727 | T171: 225279.1016 | U171: 500.1196055 | V171: 0 | W171: 2886.712332 | X171: 7128834.521 | Y171: 0.8865386411 | Z171: 1611.903586 | AA171: 0.0002261103945 | AB171: 0 | AC171: 0 | AD171: 1 | AE171: 1818.198904 | AF171: 1611.903586 | AG171: 0.03387933001 | AH171: 0.01565067078 | AI171: 0.9161395097 | AJ171: 61.5993607 | AK171: 56.4336081 | AO171: 288900 | AP171: 7752300 | AQ171: 4888086.769 | AR171: 1105.247228 | AS171: =AR171*SDRf!M167*AI171 -> 17.33536078
A172: 163 | B172: 341 | C172: 264 | D172: LES | E172: UL | F172: 1 | G172: 9110000 | H172: 55991.67748 | I172: 5920697.722 | J172: 24.358948 | K172: 2086.3611 | L172: 10109 | M172: 9.0981 | N172: 0 | O172: 0 | P172: 0 | Q172: 0 | R172: 0 | S172: 0 | T172: 0 | U172: 0 | V172: 0 | W172: 0 | X172: 8089137.545 | Y172: 0.887940455 | Z172: 1852.564425 | AA172: 0.0002290187816 | AB172: 1 | AC172: 0 | AD172: 0 | AE172: 2086.3611 | AF172: 1852.564425 | AG172: 0.4543340867 | AH172: 0.3469685083 | AI172: 0.4136652018 | AJ172: 947.9049648 | AK172: 392.1152986 | AO172: 1276200 | AP172: 7833800 | AQ172: 2296655.26 | AR172: 525.9771894 | AS172: =AR172*SDRf!M168*AI172 -> 91.88852371
A173: 164 | B173: 342 | C173: 255 | D173: LES | E173: UL | F173: 1 | G173: 10386000 | H173: 51675.13419 | I173: 5375394.571 | J173: 22.979462 | K173: 810.2880005 | L173: 11424 | M173: 10.2816 | N173: 0 | O173: 0 | P173: 0 | Q173: 0 | R173: 0 | S173: 0 | T173: 0 | U173: 0 | V173: 0 | W173: 0 | X173: 9185688.413 | Y173: 0.8844298492 | Z173: 716.6428941 | AA173: 7.801733107e-05 | AB173: 1 | AC173: 0 | AD173: 0 | AE173: 810.2880005 | AF173: 716.6428941 | AG173: 0.4920484998 | AH173: 0.4391716093 | AI173: 0.4488972026 | AJ173: 398.7009951 | AK173: 178.9757614 | AO173: 746100 | AP173: 9639900 | AQ173: 4660585.38 | AR173: 363.6064326 | AS173: =AR173*SDRf!M169*AI173 -> 75.94256812
A174: 165 | B174: 343 | C174: 327 | D174: COB | E174: LO | F174: 3 | G174: 3683800 | H174: 41924.02812 | I174: 2767496.153 | J174: 55.982879 | K174: 568.5219009 | L174: 4089 | M174: 3.6801 | N174: 0 | O174: 0 | P174: 0 | Q174: 0 | R174: 0 | S174: 0 | T174: 56442.10156 | U174: 125.3014655 | V174: 0 | W174: 125.3014655 | X174: 3375390.308 | Y174: 0.916279469 | Z174: 520.9249454 | AA174: 0.0001543302842 | AB174: 0 | AC174: 0 | AD174: 1 | AE174: 568.5219009 | AF174: 520.9249454 | AG174: 0.03357503489 | AH174: 0.03357503489 | AI174: 0.8994093518 | AJ174: 19.08814266 | AK174: 17.16805401 | AO174: 80100 | AP174: 3603700 | AQ174: 1160995.291 | AR174: 179.1767331 | AS174: =AR174*SDRf!M170*AI174 -> 4.073259629
A175: 166 | B175: 345 | C175: 368 | D175: COB | E175: LC | F175: 3 | G175: 9661400 | H175: 29915.89537 | I175: 3546917.128 | J175: 14.596832 | K175: 4419.473401 | L175: 10730 | M175: 9.657 | N175: 0 | O175: 0 | P175: 0 | Q175: 0 | R175: 0 | S175: 0 | T175: 0 | U175: 0 | V175: 0 | W175: 0 | X175: 8680692.55 | Y175: 0.898492201 | Z175: 3970.862383 | AA175: 0.0004574361274 | AB175: 0 | AC175: 0 | AD175: 1 | AE175: 4419.473401 | AF175: 3970.862383 | AG175: 0.1933544379 | AH175: 0.1316842419 | AI175: 0.2630116439 | AJ175: 854.5247951 | AK175: 224.7499711 | AO175: 1735200 | AP175: 7926200 | AQ175: 4380238.022 | AR175: 2003.679118 | AS175: =AR175*SDRf!M171*AI175 -> 72.05076808
A176: 167 | B176: 347 | C176: 336 | D176: MAP | E176: LO | F176: 3 | G176: 78200 | H176: 39276.89609 | I176: 2582326.447 | J176: 48.411773 | K176: 4.4874 | L176: 88 | M176: 0.0792 | N176: 0 | O176: 0 | P176: 0 | Q176: 0 | R176: 0 | S176: 0 | T176: 0 | U176: 0 | V176: 0 | W176: 0 | X176: 22676.89417 | Y176: 0.2899858589 | Z176: 1.301282543 | AA176: 5.738363171e-05 | AB176: 0 | AC176: 0 | AD176: 1 | AE176: 4.4874 | AF176: 1.301282543 | AG176: 0.0009027428528 | AH176: 0.0009027428528 | AI176: 0.9056755309 | AJ176: 0.004050968277 | AK176: 0.003668862845 | AO176: 0 | AP176: 78200 | AQ176: 0 | AR176: 0 | AS176: =AR176*SDRf!M172*AI176 -> 0
A177: 168 | B177: 348 | C177: 347 | D177: MAP | E177: LO | F177: 3 | G177: 4150100 | H177: 40582.78967 | I177: 2675254.133 | J177: 52.621765 | K177: 769.9275011 | L177: 4606 | M177: 4.1454 | N177: 0 | O177: 0 | P177: 0 | Q177: 0 | R177: 0 | S177: 0 | T177: 0 | U177: 0 | V177: 0 | W177: 0 | X177: 3625240.547 | Y177: 0.8735308902 | Z177: 672.5554554 | AA177: 0.0001855202287 | AB177: 0 | AC177: 0 | AD177: 1 | AE177: 769.9275011 | AF177: 672.5554554 | AG177: 0.0718535294 | AH177: 0.0718535294 | AI177: 0.9025414402 | AJ177: 55.32200834 | AK177: 49.93040508 | AO177: 279000 | AP177: 3871100 | AQ177: 977976.2058 | AR177: 181.4343694 | AS177: =AR177*SDRf!M173*AI177 -> 5.490950194
A178: 169 | B178: 349 | C178: 331 | D178: COB | E178: LO | F178: 3 | G178: 1315900 | H178: 47638.97762 | I178: 3183750.673 | J178: 59.2294 | K178: 474.3423004 | L178: 1468 | M178: 1.3212 | N178: 0.1240873476 | O178: 2760 | P178: 203.0715893 | Q178: 179.6572626 | R178: 17.94 | S178: 400.6688519 | T178: 29044.09961 | U178: 64.47790113 | V178: 484 | W178: 949.146753 | X178: 746709.1508 | Y178: 0.5674512887 | Z178: 269.1661497 | AA178: 0.0003604698689 | AB178: 0 | AC178: 0 | AD178: 1 | AE178: 474.3423004 | AF178: 269.1661497 | AG178: 0.29896347 | AH178: 0.29896347 | AI178: 0.8850346669 | AJ178: 141.8110201 | AK178: 125.5076689 | AO178: 394200 | AP178: 921700 | AQ178: 0 | AR178: 0 | AS178: =AR178*SDRf!M174*AI178 -> 0
A179: 170 | B179: 350 | C179: 317 | D179: LES | E179: UL | F179: 1 | G179: 2899100 | H179: 71230.22654 | I179: 7932978.047 | J179: 35.903137 | K179: 524.5695008 | L179: 3212 | M179: 2.8908 | N179: 0 | O179: 0 | P179: 0 | Q179: 0 | R179: 0 | S179: 0 | T179: 0 | U179: 0 | V179: 247 | W179: 247 | X179: 2200230.493 | Y179: 0.7589357017 | Z179: 398.1145222 | AA179: 0.0001809421892 | AB179: 1 | AC179: 0 | AD179: 0 | AE179: 524.5695008 | AF179: 398.1145222 | AG179: 0.7291740966 | AH179: 0.5682288627 | AI179: 0.3077842691 | AJ179: 382.5024918 | AK179: 117.7282499 | AO179: 940500 | AP179: 1958600 | AQ179: 141722.4358 | AR179: 25.6435678 | AS179: =AR179*SDRf!M175*AI179 -> 5.513730404
A180: 171 | B180: 351 | C180: 383 | D180: COB | E180: LC | F180: 2 | G180: 3068800 | H180: 33304.53498 | I180: 4005315.924 | J180: 17.281066 | K180: 1126.682097 | L180: 3408 | M180: 3.0672 | N180: 0 | O180: 0 | P180: 0 | Q180: 0 | R180: 0 | S180: 0 | T180: 0 | U180: 0 | V180: 0 | W180: 0 | X180: 2532494.405 | Y180: 0.8252393135 | Z180: 929.7823605 | AA180: 0.0003671409337 | AB180: 0 | AC180: 1 | AD180: 0 | AE180: 1126.682097 | AF180: 929.7823605 | AG180: 0.2408462252 | AH180: 0.2408462252 | AI180: 0.2249374491 | AJ180: 271.3571302 | AK180: 61.03838064 | AO180: 692100 | AP180: 2376700 | AQ180: 533939.6672 | AR180: 196.0311079 | AS180: =AR180*SDRf!M176*AI180 -> 8.442254016
A181: 172 | B181: 352 | C181: 383 | D181: COB | E181: LC | F181: 2 | G181: 6010500 | H181: 37238.03787 | I181: 4566833.14 | J181: 17.281066 | K181: 2926.9683 | L181: 6676 | M181: 6.0084 | N181: 0 | O181: 0 | P181: 0 | Q181: 0 | R181: 0 | S181: 0 | T181: 0 | U181: 0 | V181: 0 | W181: 0 | X181: 5378405.957 | Y181: 0.8948350316 | Z181: 2619.153771 | AA181: 0.0004869758423 | AB181: 0 | AC181: 1 | AD181: 0 | AE181: 2926.9683 | AF181: 2619.153771 | AG181: 0.137250898 | AH181: 0.1176028321 | AI181: 0.1764303102 | AJ181: 401.7290277 | AK181: 70.87717697 | AO181: 585900 | AP181: 5424600 | AQ181: 2605684.566 | AR181: 1268.905436 | AS181: =AR181*SDRf!M177*AI181 -> 20.31734876
A182: 173 | B182: 353 | C182: 336 | D182: MAP | E182: LO | F182: 3 | G182: 554800 | H182: 40165.89104 | I182: 2645455.009 | J182: 48.411773 | K182: 128.07 | L182: 616 | M182: 0.5544 | N182: 0.4035503568 | O182: 1500 | P182: 75.15265504 | Q182: 105.776468 | R182: 29.25 | S182: 210.179123 | T182: 0 | U182: 0 | V182: 0 | W182: 210.179123 | X182: 142707.3728 | Y182: 0.2572230945 | Z182: 32.94256171 | AA182: 0.0002308399423 | AB182: 0 | AC182: 0 | AD182: 1 | AE182: 128.07 | AF182: 32.94256171 | AG182: 0.2774286859 | AH182: 0.1679801472 | AI182: 0.9034456305 | AJ182: 35.5302918 | AK182: 32.09968688 | AO182: 110700 | AP182: 444100 | AQ182: 0 | AR182: 0 | AS182: =AR182*SDRf!M178*AI182 -> 0
A183: 174 | B183: 354 | C183: 356 | D183: LES | E183: UL | F183: 1 | G183: 3421100 | H183: 72520.79003 | I183: 8109144.17 | J183: 41.026947 | K183: 524.289601 | L183: 3808 | M183: 3.4272 | N183: 0 | O183: 0 | P183: 0 | Q183: 0 | R183: 0 | S183: 0 | T183: 0 | U183: 0 | V183: 0 | W183: 0 | X183: 2094354.906 | Y183: 0.612187573 | Z183: 320.9635784 | AA183: 0.0001532517614 | AB183: 1 | AC183: 0 | AD183: 0 | AE183: 524.289601 | AF183: 320.9635784 | AG183: 0.4030254604 | AH183: 0.358943085 | AI183: 0.3008779585 | AJ183: 211.3020578 | AK183: 63.57613179 | AO183: 193500 | AP183: 3227600 | AQ183: 1303773.525 | AR183: 199.8055892 | AS183: =AR183*SDRf!M179*AI183 -> 23.19222548
A184: 175 | B184: 356 | C184: 350 | D184: LES | E184: UL | F184: 1 | G184: 358000 | H184: 72230.93721 | I184: 8069291.833 | J184: 38.073975 | K184: 30.4389 | L184: 402 | M184: 0.3618 | N184: 0 | O184: 0 | P184: 0 | Q184: 0 | R184: 0 | S184: 0 | T184: 0 | U184: 0 | V184: 5 | W184: 5 | X184: 119179.5118 | Y184: 0.3329036643 | Z184: 10.13322135 | AA184: 8.502486034e-05 | AB184: 1 | AC184: 0 | AD184: 0 | AE184: 30.4389 | AF184: 10.13322135 | AG184: 0.6961587122 | AH184: 0.3946838277 | AI184: 0.3020196816 | AJ184: 21.19030543 | AK184: 6.399889298 | AO184: 123300 | AP184: 234700 | AQ184: 2073.303156 | AR184: 0.1762823113 | AS184: =AR184*SDRf!M180*AI184 -> 0.03588404456
A185: 176 | B185: 358 | C185: 341 | D185: LES | E185: UL | F185: 1 | G185: 6449200 | H185: 59045.37805 | I185: 6316357.75 | J185: 39.306336 | K185: 1488.7188 | L185: 7189 | M185: 6.4701 | N185: 0 | O185: 0 | P185: 0 | Q185: 0 | R185: 0 | S185: 0 | T185: 0 | U185: 0 | V185: 0 | W185: 0 | X185: 5810703.154 | Y185: 0.9009959613 | Z185: 1341.329627 | AA185: 0.0002308377474 | AB185: 1 | AC185: 0 | AD185: 0 | AE185: 1488.7188 | AF185: 1341.329627 | AG185: 0.3569094627 | AH185: 0.329103051 | AI185: 0.3938756815 | AJ185: 531.337827 | AK185: 209.2810487 | AO185: 249300 | AP185: 6199900 | AQ185: 2726359.435 | AR185: 629.3466704 | AS185: =AR185*SDRf!M181*AI185 -> 83.48266769
A186: 177 | B186: 360 | C186: 364 | D186: LES | E186: UL | F186: 1 | G186: 18162477.9 | H186: 84563.23735 | I186: 9790994.062 | J186: 43.587342 | K186: 2619.311403 | L186: 20170 | M186: 18.153 | N186: 0 | O186: 0 | P186: 0 | Q186: 0 | R186: 0 | S186: 0 | T186: 0 | U186: 0 | V186: 50 | W186: 50 | X186: 13110304.29 | Y186: 0.7218345625 | Z186: 1890.7095 | AA186: 0.0001442155314 | AB186: 1 | AC186: 0 | AD186: 0 | AE186: 2619.311403 | AF186: 1890.7095 | AG186: 0.4458629563 | AH186: 0.3984938063 | AI186: 0.2337435345 | AJ186: 1167.853925 | AK186: 272.9783043 | AO186: 2157300 | AP186: 16005177.9 | AQ186: 14789073.23 | AR186: 2132.814056 | AS186: =AR186*SDRf!M182*AI186 -> 219.1717923
A187: 178 | B187: 364 | C187: 356 | D187: LES | E187: UL | F187: 1 | G187: 4255900 | H187: 74836.62264 | I187: 8427944.601 | J187: 41.026947 | K187: 762.6033057 | L187: 4728 | M187: 4.2552 | N187: 0 | O187: 0 | P187: 0 | Q187: 0 | R187: 0 | S187: 0 | T187: 0 | U187: 0 | V187: 196 | W187: 196 | X187: 3377505.484 | Y187: 0.7936054616 | Z187: 605.2061485 | AA187: 0.0001791873178 | AB187: 1 | AC187: 0 | AD187: 0 | AE187: 762.6033057 | AF187: 605.2061485 | AG187: 0.4763633553 | AH187: 0.4303919109 | AI187: 0.2867197292 | AJ187: 363.2762695 | AK187: 104.1584736 | AO187: 293400 | AP187: 3962500 | AQ187: 397150.6145 | AR187: 71.16435337 | AS187: =AR187*SDRf!M183*AI187 -> 9.120296705
A188: 179 | B188: 365 | C188: 364 | D188: LES | E188: UL | F188: 1 | G188: 333300 | H188: 75969.75972 | I188: 8583931.189 | J188: 43.587342 | K188: 40.761 | L188: 370 | M188: 0.333 | N188: 0 | O188: 0 | P188: 0 | Q188: 0 | R188: 0 | S188: 0 | T188: 0 | U188: 0 | V188: 0 | W188: 0 | X188: 21981.80797 | Y188: 0.06595201911 | Z188: 2.688270251 | AA188: 0.0001222952295 | AB188: 1 | AC188: 0 | AD188: 0 | AE188: 40.761 | AF188: 2.688270251 | AG188: 0.6870066915 | AH188: 0.4227833948 | AI188: 0.2805722412 | AJ188: 28.00307975 | AK188: 7.856886847 | AO188: 144900 | AP188: 188400 | AQ188: 0 | AR188: 0 | AS188: =AR188*SDRf!M184*AI188 -> 0
A189: 180 | B189: 368 | C189: 332 | D189: COB | E189: LC | F189: 3 | G189: 3906600 | H189: 24088.98628 | I189: 2751273.161 | J189: 9.066619 | K189: 963.1989016 | L189: 4351 | M189: 3.9159 | N189: 0.1830354638 | O189: 10650 | P189: 252.319497 | Q189: 198.5938603 | R189: 0 | S189: 450.9133573 | T189: 0 | U189: 0 | V189: 1352 | W189: 1802.913357 | X189: 2088061.188 | Y189: 0.5344957734 | Z189: 514.8257418 | AA189: 0.0002465568273 | AB189: 0 | AC189: 0 | AD189: 1 | AE189: 963.1989016 | AF189: 514.8257418 | AG189: 0.1834428936 | AH189: 0.0239793226 | AI189: 0.3381157811 | AJ189: 176.6919936 | AK189: 59.74235145 | AO189: 999000 | AP189: 2907600 | AQ189: 64693.89328 | AR189: 15.95072108 | AS189: =AR189*SDRf!M185*AI189 -> 0.6994439391
A190: 181 | B190: 374 | C190: 350 | D190: LES | E190: UL | F190: 1 | G190: 1199800 | H190: 72939.22148 | I190: 8167265.311 | J190: 38.073975 | K190: 173.8700996 | L190: 1331 | M190: 1.1979 | N190: 0 | O190: 0 | P190: 0 | Q190: 0 | R190: 0 | S190: 0 | T190: 0 | U190: 0 | V190: 197 | W190: 197 | X190: 886487.4494 | Y190: 0.738862685 | Z190: 128.4661286 | AA190: 0.0001449159023 | AB190: 1 | AC190: 0 | AD190: 0 | AE190: 173.8700996 | AF190: 128.4661286 | AG190: 0.7783403298 | AH190: 0.5927699065 | AI190: 0.2975730656 | AJ190: 135.3301107 | AK190: 40.2705959 | AO190: 495000 | AP190: 704800 | AQ190: 0 | AR190: 0 | AS190: =AR190*SDRf!M186*AI190 -> 0
A191: 182 | B191: 377 | C191: 349 | D191: COB | E191: LO | F191: 3 | G191: 8442200 | H191: 58908.87661 | I191: 4049899.052 | J191: 59.405182 | K191: 1233.911702 | L191: 9327 | M191: 8.3943 | N191: 0.1240873476 | O191: 16380 | P191: 1205.185737 | Q191: 1066.226797 | R191: 106.47 | S191: 2377.882534 | T191: 120810.9023 | U191: 268.2002032 | V191: 3472 | W191: 6118.082737 | X191: 6115230.434 | Y191: 0.7243645536 | Z191: 893.8018991 | AA191: 0.0001461599704 | AB191: 0 | AC191: 0 | AD191: 1 | AE191: 1233.911702 | AF191: 893.8018991 | AG191: 0.09428504797 | AH191: 0.06446551707 | AI191: 0.8555821956 | AJ191: 116.339424 | AK191: 99.53793982 | AO191: 799200 | AP191: 7643000 | AQ191: 1714979.572 | AR191: 250.6613634 | AS191: =AR191*SDRf!M187*AI191 -> 15.19316103
A192: 183 | B192: 383 | C192: 395 | D192: COB | E192: LC | F192: 2 | G192: 488000 | H192: 33172.6111 | I192: 3986833.915 | J192: 15.077484 | K192: 125.5328999 | L192: 541 | M192: 0.4869 | N192: 0 | O192: 0 | P192: 0 | Q192: 0 | R192: 0 | S192: 0 | T192: 0 | U192: 0 | V192: 0 | W192: 0 | X192: 465413.5143 | Y192: 0.9537162178 | Z192: 119.7227625 | AA192: 0.000257239549 | AB192: 0 | AC192: 1 | AD192: 0 | AE192: 125.5328999 | AF192: 119.7227625 | AG192: 0.3573163533 | AH192: 0.1570082741 | AI192: 0.2187000232 | AJ192: 44.85495802 | AK192: 9.80978036 | AO192: 225900 | AP192: 262100 | AQ192: 0 | AR192: 0 | AS192: =AR192*SDRf!M188*AI192 -> 0
A193: 184 | B193: 384 | C193: 431 | D193: COB | E193: LC | F193: 2 | G193: 4424200 | H193: 52939.42964 | I193: 6810249.24 | J193: 23.248779 | K193: 388.7135988 | L193: 2123 | M193: 1.9107 | N193: 0 | O193: 0 | P193: 0 | Q193: 0 | R193: 0 | S193: 0 | T193: 0 | U193: 0 | V193: 0 | W193: 0 | X193: 3205411.38 | Y193: 0.7245177388 | Z193: 281.6298976 | AA193: 8.786076552e-05 | AB193: 0 | AC193: 1 | AD193: 0 | AE193: 388.7135988 | AF193: 281.6298976 | AG193: 0.2292864717 | AH193: 0.1704377825 | AI193: 0.07336690803 | AJ193: 89.12676956 | AK193: 6.538955505 | AO193: 529200 | AP193: 3895000 | AQ193: 1133633.532 | AR193: 99.60190993 | AS193: =AR193*SDRf!M189*AI193 -> 1.086151592
A194: 185 | B194: 386 | C194: 391 | D194: COB | E194: LC | F194: 2 | G194: 6788900 | H194: 55434.75972 | I194: 7224416.278 | J194: 24.460632 | K194: 1488.4911 | L194: 7402 | M194: 6.6618 | N194: 0 | O194: 0 | P194: 0 | Q194: 0 | R194: 0 | S194: 0 | T194: 0 | U194: 0 | V194: 0 | W194: 0 | X194: 6151111.909 | Y194: 0.9060542811 | Z194: 1348.653734 | AA194: 0.0002192536494 | AB194: 0 | AC194: 1 | AD194: 0 | AE194: 1488.4911 | AF194: 1348.653734 | AG194: 0.1490391536 | AH194: 0.1128539285 | AI194: 0.06273521491 | AJ194: 221.8434537 | AK194: 13.91739674 | AO194: 405000 | AP194: 6383900 | AQ194: 3205306.231 | AR194: 702.7750886 | AS194: =AR194*SDRf!M190*AI194 -> 5.084906467
A195: 186 | B195: 388 | C195: 365 | D195: LES | E195: UL | F195: 1 | G195: 7876000 | H195: 80619.58728 | I195: 9231903.351 | J195: 46.63324 | K195: 1256.872501 | L195: 8765 | M195: 7.8885 | N195: 0 | O195: 0 | P195: 0 | Q195: 0 | R195: 0 | S195: 0 | T195: 0 | U195: 0 | V195: 109 | W195: 109 | X195: 5339427.511 | Y195: 0.677936454 | Z195: 852.0796861 | AA195: 0.0001595825928 | AB195: 1 | AC195: 0 | AD195: 0 | AE195: 1256.872501 | AF195: 852.0796861 | AG195: 0.5228643272 | AH195: 0.440288891 | AI195: 0.2549765865 | AJ195: 657.1737943 | AK195: 167.5639308 | AO195: 1010700 | AP195: 6865300 | AQ195: 2567979.792 | AR195: 409.8048734 | AS195: =AR195*SDRf!M191*AI195 -> 51.49248485
A196: 187 | B196: 389 | C196: 368 | D196: COB | E196: LC | F196: 3 | G196: 3288400 | H196: 30363.37229 | I196: 3598552.313 | J196: 14.596832 | K196: 987.8868002 | L196: 3670 | M196: 3.303 | N196: 0 | O196: 0 | P196: 0 | Q196: 0 | R196: 0 | S196: 0 | T196: 0 | U196: 0 | V196: 129 | W196: 129 | X196: 2212724.382 | Y196: 0.6728878426 | Z196: 664.7370177 | AA196: 0.0003004156429 | AB196: 0 | AC196: 0 | AD196: 1 | AE196: 987.8868002 | AF196: 664.7370177 | AG196: 0.1937520346 | AH196: 0.07647862824 | AI196: 0.2570349023 | AJ196: 191.4050775 | AK196: 49.1977854 | AO196: 742500 | AP196: 2545900 | AQ196: 62548.32022 | AR196: 18.79049383 | AS196: =AR196*SDRf!M192*AI196 -> 0.7627079201
A197: 188 | B197: 390 | C197: 388 | D197: LES | E197: UL | F197: 1 | G197: 12947029.12 | H197: 86881.27776 | I197: 10117014.87 | J197: 54.029389 | K197: 1949.067903 | L197: 14399 | M197: 12.9591 | N197: 0 | O197: 0 | P197: 0 | Q197: 0 | R197: 0 | S197: 0 | T197: 0 | U197: 0 | V197: 0 | W197: 0 | X197: 8609364.328 | Y197: 0.6649683297 | Z197: 1296.068428 | AA197: 0.00015054171 | AB197: 1 | AC197: 0 | AD197: 0 | AE197: 1949.067903 | AF197: 1296.068428 | AG197: 0.4482383477 | AH197: 0.3814206273 | AI197: 0.2242721172 | AJ197: 873.6469766 | AK197: 195.9346572 | AO197: 1215000 | AP197: 11732029.12 | AQ197: 5269504.288 | AR197: 793.2801865 | AS197: =AR197*SDRf!M193*AI197 -> 74.2206292
A198: 189 | B198: 391 | C198: 431 | D198: COB | E198: LC | F198: 2 | G198: 2680400 | H198: 53379.09955 | I198: 6919530.582 | J198: 23.248779 | K198: 335.1780001 | L198: 2977 | M198: 2.6793 | N198: 0 | O198: 0 | P198: 0 | Q198: 0 | R198: 0 | S198: 0 | T198: 0 | U198: 0 | V198: 0 | W198: 0 | X198: 2188460.677 | Y198: 0.8164679441 | Z198: 273.6620926 | AA198: 0.0001250477541 | AB198: 0 | AC198: 1 | AD198: 0 | AE198: 335.1780001 | AF198: 273.6620926 | AG198: 0.1133188414 | AH198: 0.1133188414 | AI198: 0.07008368991 | AJ198: 37.98198262 | AK198: 2.661917492 | AO198: 408600 | AP198: 2271800 | AQ198: 712321.4507 | AR198: 89.0741976 | AS198: =AR198*SDRf!M194*AI198 -> 0.3816541969
A199: 190 | B199: 393 | C199: 398 | D199: COB | E199: LC | F199: 2 | G199: 6193900 | H199: 35933.88527 | I199: 4378220.285 | J199: 15.878723 | K199: 3901.8303 | L199: 6884 | M199: 6.1956 | N199: 0 | O199: 0 | P199: 0 | Q199: 0 | R199: 0 | S199: 0 | T199: 0 | U199: 0 | V199: 0 | W199: 0 | X199: 5723095.686 | Y199: 0.9239890354 | Z199: 3605.248415 | AA199: 0.0006299472545 | AB199: 0 | AC199: 1 | AD199: 0 | AE199: 3901.8303 | AF199: 3605.248415 | AG199: 0.04647786731 | AH199: -0.01047464322 | AI199: 0.1868268743 | AJ199: 181.3487509 | AK199: 33.88082029 | AO199: 642600 | AP199: 5551300 | AQ199: 2312489.837 | AR199: 1456.746624 | AS199: =AR199*SDRf!M195*AI199 -> 10.04756448
A200: 191 | B200: 395 | C200: 389 | D200: COB | E200: LC | F200: 3 | G200: 531600 | H200: 1593.553391 | I200: 219472.5792 | J200: 14.596832 | K200: 314.5374 | L200: 594 | M200: 0.5346 | N200: 0 | O200: 0 | P200: 0 | Q200: 0 | R200: 0 | S200: 0 | T200: 0 | U200: 0 | V200: 0 | W200: 0 | X200: 344629.8838 | Y200: 0.648287968 | Z200: 203.9108119 | AA200: 0.0005916805869 | AB200: 0 | AC200: 0 | AD200: 1 | AE200: 314.5374 | AF200: 203.9108119 | AG200: 0.1654310452 | AH200: 0.1395902669 | AI200: 0.9518623001 | AJ200: 52.03425083 | AK200: 49.52944168 | AO200: 17100 | AP200: 514500 | AQ200: 12009.18761 | AR200: 7.105603171 | AS200: =AR200*SDRf!M196*AI200 -> 1.100752716
A201: 192 | B201: 396 | C201: 397 | D201: COB | E201: LC | F201: 3 | G201: 5669700 | H201: 10044.99567 | I201: 1038176.755 | J201: 4.374053 | K201: 848.8305001 | L201: 5946 | M201: 5.3514 | N201: 0.1830354638 | O201: 12630 | P201: 299.2296007 | Q201: 235.5155358 | R201: 0 | S201: 534.7451364 | T201: 0 | U201: 0 | V201: 1232 | W201: 1766.745136 | X201: 3703722.519 | Y201: 0.6532484116 | Z201: 554.4971759 | AA201: 0.0001497134769 | AB201: 0 | AC201: 0 | AD201: 1 | AE201: 848.8305001 | AF201: 554.4971759 | AG201: 0.317833472 | AH201: 0.224118248 | AI201: 0.6711114844 | AJ201: 269.786745 | AK201: 181.0569829 | AO201: 919800 | AP201: 4749900 | AQ201: 405319.1549 | AR201: 60.68173994 | AS201: =AR201*SDRf!M197*AI201 -> 9.099031761
A202: =A201+1 -> 193 | B202: 397 | C202: 414 | D202: COB | E202: MC | F202: 3 | G202: 1244100 | H202: 4761.248917 | I202: 435134.1864 | J202: 5.598419 | K202: 165.1113 | L202: 1379 | M202: 1.2411 | N202: 0.1240873476 | O202: 1800 | P202: 132.437993 | Q202: 117.1677799 | R202: 11.7 | S202: 261.305773 | T202: 0 | U202: 0 | V202: 0 | W202: 261.305773 | X202: 804599.5695 | Y202: 0.6467322317 | Z202: 106.7827995 | AA202: 0.0001327154569 | AB202: 0 | AC202: 0 | AD202: 1 | AE202: 165.1113 | AF202: 106.7827995 | AG202: 0.06199728742 | AH202: 0.05920735474 | AI202: 0.95847096 | AJ202: 10.23645272 | AK202: 9.811342666 | AO202: 9900 | AP202: =G202-AO202 -> 1234200 | AQ202: 190334.9936 | AR202: 25.26039564 | AS202: =AR202*SDRf!M198*AI202 -> 1.391167762
A203: 194 | B203: 398 | C203: 395 | D203: COB | E203: LC | F203: 2 | G203: 2464700 | H203: 34033.91052 | I203: 4107892.174 | J203: 15.077484 | K203: 249.0434999 | L203: 2746 | M203: =L203*30*30/1000^2 -> 2.4714 | N203: 0 | O203: 0 | P203: 0 | Q203: 0 | R203: 0 | S203: 0 | T203: 0 | U203: 0 | V203: 0 | W203: 0 | X203: 1991360.119 | Y203: =X203/G203 -> 0.8079523344 | Z203: =Y203*K203 -> 201.2152771 | AA203: =IF(X203=0,0,Z203/X203) -> 0.0001010441433 | AB203: =IF($F203=1,1,0) -> 0 | AC203: =IF($F203=2,1,0) -> 1 | AD203: =IF($F203=3,1,0) -> 0 | AE203: 249.0434999 | AF203: =AE203-(K203-Z203) -> 201.2152771 | AG203: 0.2028215879 | AH203: 0.1358615784 | AI203: 0.2073621795 | AJ203: =K203*AG203 -> 50.5113981 | AK203: =AJ203*AI203 -> 10.4741536 | AO203: 252000 | AP203: 2212700 | AQ203: 162496.7443 | AR203: =K203*(AQ203/G203) -> 16.41934431 | AS203: =AR203*SDRf!M199*AI203 -> 0.5653485508
... 335 more rows

Sheet TLMO (hidden)
A1: =COUNT(B2:B4627) -> 4626 | B1: TMO_ID | C1: River | D1: Zone | E1: HYDSB | F1: SEDSB | G1: SEDSB_R | H1: Watershed | I1: subwatersh | J1: budget_rat | K1: gag_loc_LES | L1: zone_LES | M1: TOPOWAT_LES | N1: HYDSB_LES30SB | O1: area [m2] | P1: usle_t | Q1: LAND_COVER | R1: Default conventional | S1: Default Reduced | T1: Default Conservation | U1: USLE/area [Mg/m2] | V1: FrmlndCls | W1: DrainClass | X1: FloodFCls | Y1: GravelSrc | Z1: hydrcRat_1 | AA1: KfactorRF | AB1: KfactorWS | AC1: HydrcRatng | AD1: KfactRF | AE1: KfactWS | AF1: OrgMatter | AG1: PondFCls | AH1: Slope | AI1: SandSrc | AJ1: SurfText | AK1: compname | AL1: AREASYMBOL | AM1: MUSYM
B2: 12 | C2: LES | D2: 3 | E2: 5 | F2: 1 | G2: 10 | H2: Le Sueur | I2: Lower LeSueur | J2: LS btwn gauges | K2: BT | L2: 3 | M2: LO | N2: 1 | O2: 2722.10476 | P2: 0.0003845 | Q2: Cultivated Crops | R2: =$O2*1/3 -> 907.3682535 | S2: 907.3682535 | T2: 907.3682535 | U2: =P2/O2 -> 1.412509928e-07 | V2: Prime farmland if drained | W2: Very poorly drained | X2: None | Y2: Poor | Z2: 1 | AA2: 0.15 | AB2: 0.15 | AC2: All Hydric | AD2: 0.28 | AE2: 0.28 | AF2: 36.5 | AG2: Frequent | AH2: 0.5 | AI2: Poor | AJ2: silty clay | AK2: Lura | AL2: MN013 | AM2: 211
B3: 8 | C3: LES | D3: 3 | E3: 5 | F3: 1 | G3: 10 | H3: Le Sueur | I3: Lower LeSueur | J3: LS btwn gauges | K3: BT | L3: 3 | M3: LO | N3: 1 | O3: 2226.56734 | P3: 0.0109473 | Q3: Cultivated Crops | R3: 742.1891134 | S3: 742.1891134 | T3: 742.1891134 | U3: 4.916671417e-06 | V3: Farmland of statewide importance | W3: Very poorly drained | X3: None | Y3: Poor | Z3: 1 | AA3: 0.15 | AB3: 0.15 | AC3: All Hydric | AD3: 0.02 | AE3: 0.02 | AF3: 36.25 | AG3: Frequent | AH3: 0.5 | AI3: Poor | AJ3: muck | AK3: Caron | AL3: MN013 | AM3: 524
B4: 34 | C4: LES | D4: 3 | E4: 5 | F4: 1 | G4: 10 | H4: Le Sueur | I4: Lower LeSueur | J4: LS btwn gauges | K4: BT | L4: 3 | M4: LO | N4: 1 | O4: 75367.86668 | P4: 12.134346 | Q4: Cultivated Crops | R4: 25122.62223 | S4: 25122.62223 | T4: 25122.62223 | U4: 0.0001610015851 | V4: Farmland of statewide importance | W4: Very poorly drained | X4: None | Y4: Poor | Z4: 0.375 | AA4: 0.24875 | AB4: 0.24875 | AC4: All Hydric | AD4: 0.02 | AE4: 0.02 | AF4: 11.9375 | AG4: Frequent | AH4: 2.875 | AI4: Poor | AJ4: muck | AK4: Caron | AL4: MN013 | AM4: 524
B5: 13 | C5: LES | D5: 3 | E5: 5 | F5: 1 | G5: 10 | H5: Le Sueur | I5: Lower LeSueur | J5: LS btwn gauges | K5: BT | L5: 3 | M5: LO | N5: 1 | O5: 151722.0141 | P5: 22.0915642 | Q5: Cultivated Crops | R5: 50574.0047 | S5: 50574.0047 | T5: 50574.0047 | U5: 0.0001456055295 | V5: All areas are prime farmland | W5: Moderately well drained | X5: None | Y5: Poor | Z5: 0.0909091 | AA5: 0.2581818 | AB5: 0.2581818 | AC5: Not Hydric | AD5: 0.24 | AE5: 0.24 | AF5: 4.129090909 | AG5: None | AH5: 9.554545455 | AI5: Poor | AJ5: clay loam | AK5: Le Sueur | AL5: MN013 | AM5: 239
B6: 299 | C6: LES | D6: 3 | E6: 5 | F6: 1 | G6: 10 | H6: Le Sueur | I6: Lower LeSueur | J6: LS btwn gauges | K6: BT | L6: 3 | M6: LO | N6: 1 | O6: 190958.933 | P6: 48.7895241 | Q6: Cultivated Crops | R6: 63652.97766 | S6: 63652.97766 | T6: 63652.97766 | U6: 0.0002554974692 | V6: Prime farmland if drained | W6: Poorly drained | X6: None | Y6: Poor | Z6: 0.2818792 | AA6: 0.2449664 | AB6: 0.2449664 | AC6: All Hydric | AD6: 0.28 | AE6: 0.28 | AF6: 7.600134228 | AG6: None | AH6: 3.943624161 | AI6: Poor | AJ6: clay loam | AK6: Cordova | AL6: MN013 | AM6: 109
B7: 35 | C7: LES | D7: 3 | E7: 5 | F7: 1 | G7: 10 | H7: Le Sueur | I7: Lower LeSueur | J7: LS btwn gauges | K7: BT | L7: 3 | M7: LO | N7: 1 | O7: 279325.003 | P7: 83.3460236 | Q7: Cultivated Crops | R7: 93108.33434 | S7: 93108.33434 | T7: 93108.33434 | U7: 0.0002983836846 | V7: Prime farmland if drained | W7: Poorly drained | X7: None | Y7: Poor | Z7: 0.2857143 | AA7: 0.2747619 | AB7: 0.2747619 | AC7: All Hydric | AD7: 0.28 | AE7: 0.28 | AF7: 4.04 | AG7: None | AH7: 9.461904762 | AI7: Poor | AJ7: silty clay loam | AK7: Marna | AL7: MN013 | AM7: 110
B8: 29 | C8: LES | D8: 3 | E8: 5 | F8: 1 | G8: 10 | H8: Le Sueur | I8: Lower LeSueur | J8: LS btwn gauges | K8: BT | L8: 3 | M8: LO | N8: 1 | O8: 534720.4904 | P8: 213.2153168 | Q8: Cultivated Crops | R8: 178240.1635 | S8: 178240.1635 | T8: 178240.1635 | U8: 0.0003987416241 | V8: Prime farmland if drained | W8: Very poorly drained | X8: None | Y8: Poor | Z8: 0.3125 | AA8: 0.2534375 | AB8: 0.2534375 | AC8: All Hydric | AD8: 0.28 | AE8: 0.28 | AF8: 9.765625 | AG8: Frequent | AH8: 4.234375 | AI8: Poor | AJ8: silty clay | AK8: Lura | AL8: MN013 | AM8: 211
B9: 5 | C9: LES | D9: 3 | E9: 5 | F9: 1 | G9: 10 | H9: Le Sueur | I9: Lower LeSueur | J9: LS btwn gauges | K9: BT | L9: 3 | M9: LO | N9: 1 | O9: 633011.2335 | P9: 228.8334961 | Q9: Cultivated Crops | R9: 211003.7445 | S9: 211003.7445 | T9: 211003.7445 | U9: 0.0003614998976 | V9: All areas are prime farmland | W9: Well drained | X9: None | Y9: Poor | Z9: 0.3235294 | AA9: 0.2661765 | AB9: 0.2661765 | AC9: Not Hydric | AD9: 0.24 | AE9: 0.24 | AF9: 4.529411765 | AG9: None | AH9: 4.014705882 | AI9: Poor | AJ9: loam | AK9: Lester | AL9: MN013 | AM9: 106B
B10: 42 | C10: LES | D10: 3 | E10: 5 | F10: 1 | G10: 10 | H10: Le Sueur | I10: Lower LeSueur | J10: LS btwn gauges | K10: BT | L10: 3 | M10: LO | N10: 1 | O10: 765481.8408 | P10: 262.3630371 | Q10: Cultivated Crops | R10: 255160.6136 | S10: 255160.6136 | T10: 255160.6136 | U10: 0.0003427423397 | V10: All areas are prime farmland | W10: Well drained | X10: None | Y10: Poor | Z10: 0.2698413 | AA10: 0.26 | AB10: 0.26 | AC10: Not Hydric | AD10: 0.24 | AE10: 0.24 | AF10: 6.325396825 | AG10: None | AH10: 4.373015873 | AI10: Poor | AJ10: loam | AK10: Lester | AL10: MN013 | AM10: 106B
B11: 118 | C11: LES | D11: 3 | E11: 5 | F11: 2 | G11: 10 | H11: Le Sueur | I11: Lower LeSueur | J11: LS btwn gauges | K11: BT | L11: 3 | M11: LO | N11: 1 | O11: 616.2222863 | P11: 0.3563784 | Q11: Cultivated Crops | R11: 205.4074288 | S11: 205.4074288 | T11: 205.4074288 | U11: 0.0005783276716 | V11: Prime farmland if drained | W11: Poorly drained | X11: None | Y11: Poor | Z11: 0.5 | AA11: 0.28 | AB11: 0.28 | AC11: All Hydric | AD11: 0.28 | AE11: 0.28 | AF11: 4.25 | AG11: None | AH11: 2.5 | AI11: Poor | AJ11: clay loam | AK11: Cordova | AL11: MN013 | AM11: 109
B12: 36 | C12: LES | D12: 3 | E12: 5 | F12: 2 | G12: 10 | H12: Le Sueur | I12: Lower LeSueur | J12: LS btwn gauges | K12: BT | L12: 3 | M12: LO | N12: 1 | O12: 46307.08283 | P12: 10.7095947 | Q12: Cultivated Crops | R12: 15435.69428 | S12: 15435.69428 | T12: 15435.69428 | U12: 0.0002312733613 | V12: Prime farmland if drained | W12: Poorly drained | X12: None | Y12: Poor | Z12: 0.2857143 | AA12: 0.2747619 | AB12: 0.2747619 | AC12: All Hydric | AD12: 0.28 | AE12: 0.28 | AF12: 4.04 | AG12: None | AH12: 9.461904762 | AI12: Poor | AJ12: silty clay loam | AK12: Marna | AL12: MN013 | AM12: 110
B13: 33 | C13: LES | D13: 3 | E13: 5 | F13: 2 | G13: 10 | H13: Le Sueur | I13: Lower LeSueur | J13: LS btwn gauges | K13: BT | L13: 3 | M13: LO | N13: 1 | O13: 302033.7343 | P13: 30.7856903 | Q13: Cultivated Crops | R13: 100677.9114 | S13: 100677.9114 | T13: 100677.9114 | U13: 0.0001019279862 | V13: Prime farmland if drained | W13: Poorly drained | X13: None | Y13: Poor | Z13: 0.4666667 | AA13: 0.2613333 | AB13: 0.2613333 | AC13: All Hydric | AD13: 0.28 | AE13: 0.28 | AF13: 5.333333333 | AG13: None | AH13: 2.033333333 | AI13: Poor | AJ13: clay loam | AK13: Cordova | AL13: MN013 | AM13: 109
B14: 160 | C14: LES | D14: 3 | E14: 5 | F14: 2 | G14: 10 | H14: Le Sueur | I14: Lower LeSueur | J14: LS btwn gauges | K14: BT | L14: 3 | M14: LO | N14: 1 | O14: 541767.9526 | P14: 104.2338181 | Q14: Cultivated Crops | R14: 180589.3175 | S14: 180589.3175 | T14: 180589.3175 | U14: 0.0001923956882 | V14: Prime farmland if drained | W14: Poorly drained | X14: None | Y14: Poor | Z14: 0.4259259 | AA14: 0.2522222 | AB14: 0.2522222 | AC14: All Hydric | AD14: 0.28 | AE14: 0.28 | AF14: 7.555555556 | AG14: None | AH14: 2.009259259 | AI14: Poor | AJ14: clay loam | AK14: Cordova | AL14: MN013 | AM14: 109
B15: 300 | C15: LES | D15: 3 | E15: 5 | F15: 2 | G15: 10 | H15: Le Sueur | I15: Lower LeSueur | J15: LS btwn gauges | K15: BT | L15: 3 | M15: LO | N15: 1 | O15: 1278026.815 | P15: 412.6465454 | Q15: Cultivated Crops | R15: 426008.9382 | S15: 426008.9382 | T15: 426008.9382 | U15: 0.0003228778463 | V15: Prime farmland if drained | W15: Poorly drained | X15: None | Y15: Poor | Z15: 0.2818792 | AA15: 0.2449664 | AB15: 0.2449664 | AC15: All Hydric | AD15: 0.28 | AE15: 0.28 | AF15: 7.600134228 | AG15: None | AH15: 3.943624161 | AI15: Poor | AJ15: clay loam | AK15: Cordova | AL15: MN013 | AM15: 109
B16: 57 | C16: LES | D16: 3 | E16: 2 | F16: 3 | G16: 9 | H16: Le Sueur | I16: Lower LeSueur | J16: LS btwn gauges | K16: BT | L16: 3 | M16: LO | N16: 1 | O16: 36230.44403 | P16: 12.5542774 | Q16: Cultivated Crops | R16: 12076.81468 | S16: 12076.81468 | T16: 12076.81468 | U16: 0.0003465118283 | V16: Prime farmland if drained | W16: Poorly drained | X16: None | Y16: Poor | Z16: 0.5 | AA16: 0.2666667 | AB16: 0.2666667 | AC16: All Hydric | AD16: 0.28 | AE16: 0.28 | AF16: 5.25 | AG16: None | AH16: 1.75 | AI16: Poor | AJ16: clay loam | AK16: Cordova | AL16: MN013 | AM16: 109
B17: 40 | C17: LES | D17: 3 | E17: 2 | F17: 3 | G17: 9 | H17: Le Sueur | I17: Lower LeSueur | J17: LS btwn gauges | K17: BT | L17: 3 | M17: LO | N17: 1 | O17: 186358.0842 | P17: 29.8754559 | Q17: Cultivated Crops | R17: 62119.3614 | S17: 62119.3614 | T17: 62119.3614 | U17: 0.0001603121004 | V17: Prime farmland if drained | W17: Very poorly drained | X17: None | Y17: Poor | Z17: 0.3611111 | AA17: 0.2116667 | AB17: 0.2116667 | AC17: All Hydric | AD17: 0.28 | AE17: 0.28 | AF17: 11.41666667 | AG17: Frequent | AH17: 2.305555556 | AI17: Poor | AJ17: silty clay loam | AK17: Glencoe | AL17: MN013 | AM17: 114
B18: 3 | C18: LES | D18: 3 | E18: 2 | F18: 3 | G18: 9 | H18: Le Sueur | I18: Lower LeSueur | J18: LS btwn gauges | K18: BT | L18: 3 | M18: LO | N18: 1 | O18: 411876.7658 | P18: 72.0903244 | Q18: Cultivated Crops | R18: 137292.2553 | S18: 137292.2553 | T18: 137292.2553 | U18: 0.0001750288688 | V18: Prime farmland if drained | W18: Poorly drained | X18: None | Y18: Poor | Z18: 0.3333333 | AA18: 0.2533333 | AB18: 0.2533333 | AC18: All Hydric | AD18: 0.28 | AE18: 0.28 | AF18: 5.555555556 | AG18: None | AH18: 1.777777778 | AI18: Poor | AJ18: clay loam | AK18: Cordova | AL18: MN013 | AM18: 109
B19: 30 | C19: LES | D19: 3 | E19: 2 | F19: 3 | G19: 9 | H19: Le Sueur | I19: Lower LeSueur | J19: LS btwn gauges | K19: BT | L19: 3 | M19: LO | N19: 1 | O19: 1058624.443 | P19: 169.3508759 | Q19: Cultivated Crops | R19: 352874.8144 | S19: 352874.8144 | T19: 352874.8144 | U19: 0.0001599725729 | V19: All areas are prime farmland | W19: Moderately well drained | X19: None | Y19: Poor | Z19: 0.3809524 | AA19: 0.2609524 | AB19: 0.2609524 | AC19: Not Hydric | AD19: 0.24 | AE19: 0.24 | AF19: 5.428571429 | AG19: None | AH19: 2.047619048 | AI19: Poor | AJ19: clay loam | AK19: Le Sueur | AL19: MN013 | AM19: 239
B20: 18 | C20: LES | D20: 3 | E20: 2 | F20: 3 | G20: 9 | H20: Le Sueur | I20: Lower LeSueur | J20: LS btwn gauges | K20: BT | L20: 3 | M20: LO | N20: 1 | O20: 1370108.758 | P20: 255.8998718 | Q20: Cultivated Crops | R20: 456702.9193 | S20: 456702.9193 | T20: 456702.9193 | U20: 0.0001867734005 | V20: Prime farmland if drained | W20: Poorly drained | X20: None | Y20: Poor | Z20: 0.3382353 | AA20: 0.2472059 | AB20: 0.2472059 | AC20: All Hydric | AD20: 0.28 | AE20: 0.28 | AF20: 7.632352941 | AG20: None | AH20: 2.544117647 | AI20: Poor | AJ20: clay loam | AK20: Cordova | AL20: MN013 | AM20: 109
B21: 112 | C21: LES | D21: 3 | E21: 2 | F21: 4 | G21: 9 | H21: Le Sueur | I21: Lower LeSueur | J21: LS btwn gauges | K21: BT | L21: 3 | M21: LO | N21: 1 | O21: 6813.830566 | P21: 0.5738238 | Q21: Cultivated Crops | R21: 2271.276855 | S21: 2271.276855 | T21: 2271.276855 | U21: 8.421456836e-05 | V21: Not prime farmland | W21: Poorly drained | X21: None | Y21: Poor | Z21: 0.6666667 | AA21: 0.23 | AB21: 0.23 | AC21: All Hydric | AD21: 0.17 | AE21: 0.17 | AF21: 6 | AG21: None | AH21: 2 | AI21: Fair | AJ21: loamy fine sand | AK21: Beaches | AL21: MN013 | AM21: 1032
B22: 153 | C22: LES | D22: 3 | E22: 2 | F22: 4 | G22: 9 | H22: Le Sueur | I22: Lower LeSueur | J22: LS btwn gauges | K22: BT | L22: 3 | M22: LO | N22: 1 | O22: 4178.475817 | P22: 0.5948397 | Q22: Cultivated Crops | R22: =$O22*1/3 -> 1392.825272 | S22: 1392.825272 | T22: 1392.825272 | U22: 0.0001423580574 | V22: All areas are prime farmland | W22: Well drained | X22: None | Y22: Poor | Z22: 0.3333333 | AA22: 0.2722222 | AB22: 0.2722222 | AC22: Not Hydric | AD22: 0.24 | AE22: 0.24 | AF22: 4.222222222 | AG22: None | AH22: 4.277777778 | AI22: Poor | AJ22: loam | AK22: Lester | AL22: MN013 | AM22: 106B
B23: 41 | C23: LES | D23: 3 | E23: 2 | F23: 4 | G23: 9 | H23: Le Sueur | I23: Lower LeSueur | J23: LS btwn gauges | K23: BT | L23: 3 | M23: LO | N23: 1 | O23: 30432.93976 | P23: 5.9247007 | Q23: Cultivated Crops | R23: 10144.31325 | S23: 10144.31325 | T23: 10144.31325 | U23: 0.0001946805253 | V23: Prime farmland if drained | W23: Very poorly drained | X23: None | Y23: Poor | Z23: 0.3611111 | AA23: 0.2116667 | AB23: 0.2116667 | AC23: All Hydric | AD23: 0.28 | AE23: 0.28 | AF23: 11.41666667 | AG23: Frequent | AH23: 2.305555556 | AI23: Poor | AJ23: silty clay loam | AK23: Glencoe | AL23: MN013 | AM23: 114
B24: 72 | C24: LES | D24: 3 | E24: 2 | F24: 4 | G24: 9 | H24: Le Sueur | I24: Lower LeSueur | J24: LS btwn gauges | K24: BT | L24: 3 | M24: LO | N24: 1 | O24: 275378.5409 | P24: 47.9378929 | Q24: Cultivated Crops | R24: 91792.84697 | S24: 91792.84697 | T24: 91792.84697 | U24: 0.0001740799873 | V24: Prime farmland if drained | W24: Poorly drained | X24: None | Y24: Poor | Z24: 0.5263158 | AA24: 0.2510526 | AB24: 0.2510526 | AC24: All Hydric | AD24: 0.28 | AE24: 0.28 | AF24: 5.710526316 | AG24: None | AH24: 1.763157895 | AI24: Poor | AJ24: clay loam | AK24: Cordova | AL24: MN013 | AM24: 109
B25: 19 | C25: LES | D25: 3 | E25: 2 | F25: 4 | G25: 9 | H25: Le Sueur | I25: Lower LeSueur | J25: LS btwn gauges | K25: BT | L25: 3 | M25: LO | N25: 1 | O25: 372480.7256 | P25: 88.3149338 | Q25: Cultivated Crops | R25: 124160.2419 | S25: 124160.2419 | T25: 124160.2419 | U25: 0.0002370993389 | V25: Prime farmland if drained | W25: Poorly drained | X25: None | Y25: Poor | Z25: 0.3382353 | AA25: 0.2472059 | AB25: 0.2472059 | AC25: All Hydric | AD25: 0.28 | AE25: 0.28 | AF25: 7.632352941 | AG25: None | AH25: 2.544117647 | AI25: Poor | AJ25: clay loam | AK25: Cordova | AL25: MN013 | AM25: 109
B26: 107 | C26: LES | D26: 3 | E26: 2 | F26: 4 | G26: 9 | H26: Le Sueur | I26: Lower LeSueur | J26: LS btwn gauges | K26: BT | L26: 3 | M26: LO | N26: 1 | O26: 345520.6567 | P26: 105.1925812 | Q26: Cultivated Crops | R26: 115173.5522 | S26: 115173.5522 | T26: 115173.5522 | U26: 0.000304446577 | V26: All areas are prime farmland | W26: Well drained | X26: None | Y26: Poor | Z26: 0.5 | AA26: 0.2526923 | AB26: 0.2526923 | AC26: Partially Hydric | AD26: 0.28 | AE26: 0.28 | AF26: 7.579230769 | AG26: None | AH26: 3.942307692 | AI26: Poor | AJ26: clay loam | AK26: Angus | AL26: MN161 | AM26: L40B
B27: 127 | C27: LES | D27: 3 | E27: 2 | F27: 4 | G27: 9 | H27: Le Sueur | I27: Lower LeSueur | J27: LS btwn gauges | K27: BT | L27: 3 | M27: LO | N27: 1 | O27: 315511.3739 | P27: 109.6287842 | Q27: Cultivated Crops | R27: 105170.458 | S27: 105170.458 | T27: 105170.458 | U27: 0.0003474638104 | V27: Prime farmland if drained | W27: Very poorly drained | X27: None | Y27: Poor | Z27: 0.4 | AA27: 0.2433333 | AB27: 0.2433333 | AC27: All Hydric | AD27: 0.28 | AE27: 0.28 | AF27: 12.6 | AG27: Frequent | AH27: 4.166666667 | AI27: Poor | AJ27: silty clay loam | AK27: Glencoe | AL27: MN013 | AM27: 114
B28: 274 | C28: LES | D28: 3 | E28: 2 | F28: 4 | G28: 9 | H28: Le Sueur | I28: Lower LeSueur | J28: LS btwn gauges | K28: BT | L28: 3 | M28: LO | N28: 1 | O28: 525469.2147 | P28: 113.7727432 | Q28: Cultivated Crops | R28: 175156.4049 | S28: 175156.4049 | T28: 175156.4049 | U28: 0.0002165164771 | V28: All areas are prime farmland | W28: Well drained | X28: None | Y28: Poor | Z28: 0.4634146 | AA28: 0.2717073 | AB28: 0.2717073 | AC28: Not Hydric | AD28: 0.28 | AE28: 0.28 | AF28: 6.068536585 | AG28: None | AH28: 4.66097561 | AI28: Poor | AJ28: clay loam | AK28: Kilkenny | AL28: MN013 | AM28: 238B
B29: 167 | C29: LES | D29: 3 | E29: 2 | F29: 4 | G29: 9 | H29: Le Sueur | I29: Lower LeSueur | J29: LS btwn gauges | K29: BT | L29: 3 | M29: LO | N29: 1 | O29: 187008.5733 | P29: 126.6349411 | Q29: Cultivated Crops | R29: 62336.19109 | S29: 62336.19109 | T29: 62336.19109 | U29: 0.000677161153 | V29: Prime farmland if drained | W29: Very poorly drained | X29: None | Y29: Poor | Z29: 0.4305556 | AA29: 0.2644444 | AB29: 0.2644444 | AC29: All Hydric | AD29: 0.28 | AE29: 0.28 | AF29: 6.92 | AG29: Frequent | AH29: 6.930555556 | AI29: Poor | AJ29: silty clay loam | AK29: Glencoe | AL29: MN013 | AM29: 114
B30: 26 | C30: LES | D30: 3 | E30: 2 | F30: 4 | G30: 9 | H30: Le Sueur | I30: Lower LeSueur | J30: LS btwn gauges | K30: BT | L30: 3 | M30: LO | N30: 1 | O30: 1600876.037 | P30: 532.9243164 | Q30: Cultivated Crops | R30: 533625.3455 | S30: 533625.3455 | T30: 533625.3455 | U30: 0.0003328954299 | V30: Prime farmland if drained | W30: Poorly drained | X30: None | Y30: Poor | Z30: 0.4357143 | AA30: 0.2608571 | AB30: 0.2608571 | AC30: All Hydric | AD30: 0.28 | AE30: 0.28 | AF30: 5.602714286 | AG30: None | AH30: 3.035714286 | AI30: Poor | AJ30: clay loam | AK30: Cordova | AL30: MN079 | AM30: 109
B31: 117 | C31: LES | D31: 2 | E31: 3 | F31: 5 | G31: 7 | H31: Le Sueur | I31: Upper Le Sueur | J31: LS AB UG | K31: AB | L31: 2 | M31: UL | N31: 9 | O31: 1800 | P31: 0.0197864 | Q31: Cultivated Crops | R31: 600 | S31: 600 | T31: 600 | U31: 1.099244444e-05 | V31: Farmland of statewide importance | W31: Well drained | X31: None | Y31: Poor | Z31: 0.5 | AA31: 0.2666667 | AB31: 0.2666667 | AC31: Partially Hydric | AD31: 0.28 | AE31: 0.28 | AF31: 3.776666667 | AG31: None | AH31: 13.76666667 | AI31: Poor | AJ31: loam | AK31: Lester | AL31: MN161 | AM31: L80C2
B32: 211 | C32: LES | D32: 2 | E32: 3 | F32: 5 | G32: 7 | H32: Le Sueur | I32: Upper Le Sueur | J32: LS AB UG | K32: AB | L32: 2 | M32: UL | N32: 9 | O32: 1152.216609 | P32: 0.4776192 | Q32: Cultivated Crops | R32: 384.0722028 | S32: 384.0722028 | T32: 384.0722028 | U32: 0.0004145220582 | V32: Prime farmland if drained | W32: Poorly drained | X32: None | Y32: Poor | Z32: 0.5319149 | AA32: 0.2595745 | AB32: 0.2595745 | AC32: Partially Hydric | AD32: 0.28 | AE32: 0.28 | AF32: 6.285531915 | AG32: None | AH32: 5.944680851 | AI32: Poor | AJ32: clay loam | AK32: Cordova | AL32: MN161 | AM32: L81A
B33: 125 | C33: LES | D33: 2 | E33: 3 | F33: 5 | G33: 7 | H33: Le Sueur | I33: Upper Le Sueur | J33: LS AB UG | K33: AB | L33: 2 | M33: UL | N33: 9 | O33: 12427.71171 | P33: 1.2204756 | Q33: Cultivated Crops | R33: 4142.570571 | S33: 4142.570571 | T33: 4142.570571 | U33: 9.820597936e-05 | V33: Prime farmland if drained | W33: Somewhat poorly drained | X33: None | Y33: Poor | Z33: 0.5 | AA33: 0.2742857 | AB33: 0.2742857 | AC33: Partially Hydric | AD33: 0.28 | AE33: 0.28 | AF33: 3.26 | AG33: None | AH33: 7.314285714 | AI33: Poor | AJ33: loam | AK33: Hamel | AL33: MN161 | AM33: L36A
B34: 113 | C34: LES | D34: 2 | E34: 3 | F34: 5 | G34: 7 | H34: Le Sueur | I34: Upper Le Sueur | J34: LS AB UG | K34: AB | L34: 2 | M34: UL | N34: 9 | O34: 20202.5577 | P34: 3.4063184 | Q34: Cultivated Crops | R34: 6734.185901 | S34: 6734.185901 | T34: 6734.185901 | U34: 0.0001686082747 | V34: Prime farmland if drained | W34: Somewhat poorly drained | X34: None | Y34: Poor | Z34: 0.5 | AA34: 0.2733333 | AB34: 0.2733333 | AC34: Partially Hydric | AD34: 0.28 | AE34: 0.28 | AF34: 3.426666667 | AG34: None | AH34: 10.83333333 | AI34: Poor | AJ34: loam | AK34: Hamel | AL34: MN161 | AM34: L36A
B35: 129 | C35: LES | D35: 2 | E35: 3 | F35: 5 | G35: 7 | H35: Le Sueur | I35: Upper Le Sueur | J35: LS AB UG | K35: AB | L35: 2 | M35: UL | N35: 9 | O35: 21886.51044 | P35: 7.8417802 | Q35: Cultivated Crops | R35: 7295.503482 | S35: 7295.503482 | T35: 7295.503482 | U35: 0.0003582928498 | V35: Farmland of statewide importance | W35: Well drained | X35: None | Y35: Poor | Z35: 0.5 | AA35: 0.2733333 | AB35: 0.2733333 | AC35: Partially Hydric | AD35: 0.28 | AE35: 0.28 | AF35: 3.765 | AG35: None | AH35: 8.083333333 | AI35: Poor | AJ35: loam | AK35: Lester | AL35: MN161 | AM35: L80C2
B36: 110 | C36: LES | D36: 2 | E36: 3 | F36: 5 | G36: 7 | H36: Le Sueur | I36: Upper Le Sueur | J36: LS AB UG | K36: AB | L36: 2 | M36: UL | N36: 9 | O36: 277581.4268 | P36: 122.7865448 | Q36: Cultivated Crops | R36: 92527.14227 | S36: 92527.14227 | T36: 92527.14227 | U36: 0.0004423442383 | V36: Prime farmland if drained | W36: Very poorly drained | X36: None | Y36: Poor | Z36: 0.5961539 | AA36: 0.2380769 | AB36: 0.2380769 | AC36: All Hydric | AD36: 0.28 | AE36: 0.28 | AF36: 11.63923077 | AG36: Frequent | AH36: 6.342307692 | AI36: Poor | AJ36: clay loam | AK36: Harps | AL36: MN161 | AM36: L84A
B37: 132 | C37: LES | D37: 2 | E37: 3 | F37: 5 | G37: 7 | H37: Le Sueur | I37: Upper Le Sueur | J37: LS AB UG | K37: AB | L37: 2 | M37: UL | N37: 9 | O37: 236656.151 | P37: 159.0243683 | Q37: Cultivated Crops | R37: 78885.38367 | S37: 78885.38367 | T37: 78885.38367 | U37: 0.0006719638075 | V37: Not prime farmland | W37: Well drained | X37: None | Y37: Poor | Z37: 0.5833333 | AA37: 0.2516667 | AB37: 0.2516667 | AC37: Partially Hydric | AD37: 0.28 | AE37: 0.28 | AF37: 9.259166667 | AG37: None | AH37: 5.866666667 | AI37: Poor | AJ37: loam | AK37: Ridgeton | AL37: MN161 | AM37: L41D2
B38: 204 | C38: LES | D38: 2 | E38: 3 | F38: 5 | G38: 7 | H38: Le Sueur | I38: Upper Le Sueur | J38: LS AB UG | K38: AB | L38: 2 | M38: UL | N38: 9 | O38: 403816.7721 | P38: 193.3227081 | Q38: Cultivated Crops | R38: 134605.5907 | S38: 134605.5907 | T38: 134605.5907 | U38: 0.0004787386791 | V38: Prime farmland if drained | W38: Very poorly drained | X38: None | Y38: Poor | Z38: 0.5581396 | AA38: 0.2516279 | AB38: 0.2516279 | AC38: All Hydric | AD38: 0.28 | AE38: 0.28 | AF38: 7.33255814 | AG38: Frequent | AH38: 5.902325581 | AI38: Poor | AJ38: clay loam | AK38: Harps | AL38: MN161 | AM38: L84A
B39: 175 | C39: LES | D39: 2 | E39: 3 | F39: 6 | G39: 17 | H39: Le Sueur | I39: Upper Le Sueur | J39: LS AB UG | K39: AB | L39: 2 | M39: UL | N39: 9 | O39: 5248.398843 | P39: 0.6009516 | Q39: Cultivated Crops | R39: 1749.466281 | S39: 1749.466281 | T39: 1749.466281 | U39: 0.0001145018925 | V39: Prime farmland if drained | W39: Somewhat poorly drained | X39: None | Y39: Poor | Z39: 0.5819672 | AA39: 0.2657377 | AB39: 0.2657377 | AC39: Partially Hydric | AD39: 0.28 | AE39: 0.28 | AF39: 6.429344262 | AG39: None | AH39: 4.281967213 | AI39: Poor | AJ39: clay loam | AK39: Derrynane | AL39: MN161 | AM39: L48A
B40: 54 | C40: LES | D40: 2 | E40: 3 | F40: 6 | G40: 17 | H40: Le Sueur | I40: Upper Le Sueur | J40: LS AB UG | K40: AB | L40: 2 | M40: UL | N40: 9 | O40: 14565.29759 | P40: 1.9054755 | Q40: Cultivated Crops | R40: 4855.099197 | S40: 4855.099197 | T40: 4855.099197 | U40: 0.0001308229707 | V40: Farmland of statewide importance | W40: Well drained | X40: None | Y40: Poor | Z40: 0.1428571 | AA40: 0.28 | AB40: 0.28 | AC40: Not Hydric | AD40: 0.28 | AE40: 0.28 | AF40: 3.411428571 | AG40: None | AH40: 4.285714286 | AI40: Poor | AJ40: loam | AK40: Lester | AL40: MN079 | AM40: 944C
B41: 115 | C41: LES | D41: 2 | E41: 3 | F41: 6 | G41: 17 | H41: Le Sueur | I41: Upper Le Sueur | J41: LS AB UG | K41: AB | L41: 2 | M41: UL | N41: 9 | O41: 26106.19757 | P41: 9.3667097 | Q41: Cultivated Crops | R41: 8702.065856 | S41: 8702.065856 | T41: 8702.065856 | U41: 0.0003587925693 | V41: Farmland of statewide importance | W41: Moderately well drained | X41: None | Y41: Poor | Z41: 0.5833333 | AA41: 0.2666667 | AB41: 0.2666667 | AC41: Partially Hydric | AD41: 0.28 | AE41: 0.28 | AF41: 4.881666667 | AG41: None | AH41: 2.966666667 | AI41: Poor | AJ41: loam | AK41: Lester | AL41: MN161 | AM41: L41C2
B42: 85 | C42: LES | D42: 2 | E42: 3 | F42: 6 | G42: 17 | H42: Le Sueur | I42: Upper Le Sueur | J42: LS AB UG | K42: AB | L42: 2 | M42: UL | N42: 9 | O42: 185527.134 | P42: 38.188839 | Q42: Cultivated Crops | R42: =$O42*1/3 -> 61842.37801 | S42: 61842.37801 | T42: 61842.37801 | U42: 0.0002058396428 | V42: All areas are prime farmland | W42: Moderately well drained | X42: None | Y42: Poor | Z42: 0.1904762 | AA42: 0.2628571 | AB42: 0.2628571 | AC42: Not Hydric | AD42: 0.24 | AE42: 0.24 | AF42: 4.536190476 | AG42: None | AH42: 3.257142857 | AI42: Poor | AJ42: clay loam | AK42: Le Sueur | AL42: MN079 | AM42: 239B
B43: 83 | C43: LES | D43: 2 | E43: 3 | F43: 6 | G43: 17 | H43: Le Sueur | I43: Upper Le Sueur | J43: LS AB UG | K43: AB | L43: 2 | M43: UL | N43: 9 | O43: 140212.4124 | P43: 76.3268051 | Q43: Cultivated Crops | R43: 46737.4708 | S43: 46737.4708 | T43: 46737.4708 | U43: 0.0005443655365 | V43: All areas are prime farmland | W43: Well drained | X43: None | Y43: Poor | Z43: 0.5 | AA43: 0.25 | AB43: 0.25 | AC43: Not Hydric | AD43: 0.28 | AE43: 0.28 | AF43: 10.7 | AG43: None | AH43: 3.85 | AI43: Poor | AJ43: loam | AK43: Lester | AL43: MN079 | AM43: 106B
B44: 99 | C44: LES | D44: 2 | E44: 3 | F44: 6 | G44: 17 | H44: Le Sueur | I44: Upper Le Sueur | J44: LS AB UG | K44: AB | L44: 2 | M44: UL | N44: 9 | O44: 160709.3262 | P44: 79.4618683 | Q44: Cultivated Crops | R44: 53569.77541 | S44: 53569.77541 | T44: 53569.77541 | U44: 0.0004944446608 | V44: All areas are prime farmland | W44: Well drained | X44: None | Y44: Poor | Z44: 0.3333333 | AA44: 0.2708333 | AB44: 0.2708333 | AC44: Not Hydric | AD44: 0.28 | AE44: 0.28 | AF44: 4.108333333 | AG44: None | AH44: 4.65 | AI44: Poor | AJ44: loam | AK44: Lester | AL44: MN079 | AM44: 106B
B45: 120 | C45: LES | D45: 2 | E45: 3 | F45: 6 | G45: 17 | H45: Le Sueur | I45: Upper Le Sueur | J45: LS AB UG | K45: AB | L45: 2 | M45: UL | N45: 9 | O45: 401253.4576 | P45: 159.9391022 | Q45: Cultivated Crops | R45: 133751.1525 | S45: 133751.1525 | T45: 133751.1525 | U45: 0.0003985986891 | V45: Prime farmland if drained | W45: Somewhat poorly drained | X45: None | Y45: Poor | Z45: 0.5131579 | AA45: 0.2705263 | AB45: 0.2705263 | AC45: Partially Hydric | AD45: 0.28 | AE45: 0.28 | AF45: 3.894736842 | AG45: None | AH45: 3.607894737 | AI45: Poor | AJ45: clay loam | AK45: Derrynane | AL45: MN161 | AM45: L48A
B46: 163 | C46: LES | D46: 2 | E46: 3 | F46: 7 | G46: 17 | H46: Le Sueur | I46: Upper Le Sueur | J46: LS AB UG | K46: AB | L46: 2 | M46: UL | N46: 9 | O46: 23722.11156 | P46: 7.5055366 | Q46: Cultivated Crops | R46: 7907.370518 | S46: 7907.370518 | T46: 7907.370518 | U46: 0.0003163941196 | V46: Farmland of statewide importance | W46: Moderately well drained | X46: None | Y46: Poor | Z46: 0.5 | AA46: 0.272 | AB46: 0.272 | AC46: Partially Hydric | AD46: 0.28 | AE46: 0.28 | AF46: 3.842 | AG46: None | AH46: 3.28 | AI46: Poor | AJ46: loam | AK46: Lester | AL46: MN161 | AM46: L41C2
B47: 106 | C47: LES | D47: 2 | E47: 3 | F47: 8 | G47: 16 | H47: Le Sueur | I47: Upper Le Sueur | J47: LS btwn gauges | K47: AB | L47: 2 | M47: LO | N47: 9 | O47: 900.0000001 | P47: 0.0139664 | Q47: Cultivated Crops | R47: 300 | S47: 300 | T47: 300 | U47: 1.551822222e-05 | V47: Farmland of statewide importance | W47: Very poorly drained | X47: None | Y47: Poor | Z47: 1 | AA47: 0.02 | AB47: 0.02 | AC47: All Hydric | AD47: 0.02 | AE47: 0.02 | AF47: 57.75 | AG47: Frequent | AH47: 0.5 | AI47: Poor | AJ47: muck | AK47: Klossner | AL47: MN161 | AM47: L14A
B48: 105 | C48: LES | D48: 2 | E48: 3 | F48: 8 | G48: 16 | H48: Le Sueur | I48: Upper Le Sueur | J48: LS btwn gauges | K48: AB | L48: 2 | M48: LO | N48: 9 | O48: 1045.898437 | P48: 0.8538489 | Q48: Cultivated Crops | R48: 348.6328124 | S48: 348.6328124 | T48: 348.6328124 | U48: 0.000816378407 | V48: Farmland of statewide importance | W48: Moderately well drained | X48: None | Y48: Poor | Z48: 0.6666667 | AA48: 0.1933333 | AB48: 0.1933333 | AC48: Partially Hydric | AD48: 0.28 | AE48: 0.28 | AF48: 21.17666667 | AG48: None | AH48: 3.966666667 | AI48: Poor | AJ48: loam | AK48: Lester | AL48: MN161 | AM48: L41C2
B49: 27 | C49: LES | D49: 2 | E49: 3 | F49: 8 | G49: 16 | H49: Le Sueur | I49: Upper Le Sueur | J49: LS btwn gauges | K49: AB | L49: 2 | M49: LO | N49: 9 | O49: 4629.116172 | P49: 1.4729706 | Q49: Cultivated Crops | R49: 1543.038724 | S49: 1543.038724 | T49: 1543.038724 | U49: 0.0003181969398 | V49: Prime farmland if drained | W49: Poorly drained | X49: None | Y49: Poor | Z49: 0.4357143 | AA49: 0.2608571 | AB49: 0.2608571 | AC49: All Hydric | AD49: 0.28 | AE49: 0.28 | AF49: 5.602714286 | AG49: None | AH49: 3.035714286 | AI49: Poor | AJ49: clay loam | AK49: Cordova | AL49: MN079 | AM49: 109
B50: 21 | C50: LES | D50: 2 | E50: 3 | F50: 8 | G50: 16 | H50: Le Sueur | I50: Upper Le Sueur | J50: LS btwn gauges | K50: AB | L50: 2 | M50: LO | N50: 9 | O50: 16176.35272 | P50: 3.2874255 | Q50: Cultivated Crops | R50: 5392.117574 | S50: 5392.117574 | T50: 5392.117574 | U50: 0.000203224148 | V50: All areas are prime farmland | W50: Moderately well drained | X50: None | Y50: Poor | Z50: 0.3333333 | AA50: 0.2666667 | AB50: 0.2666667 | AC50: Not Hydric | AD50: 0.24 | AE50: 0.24 | AF50: 4.666666667 | AG50: None | AH50: 2.5 | AI50: Poor | AJ50: clay loam | AK50: Le Sueur | AL50: MN079 | AM50: 239B
B51: 168 | C51: LES | D51: 2 | E51: 3 | F51: 8 | G51: 16 | H51: Le Sueur | I51: Upper Le Sueur | J51: LS btwn gauges | K51: AB | L51: 2 | M51: LO | N51: 9 | O51: 58506.72264 | P51: 23.9994621 | Q51: Cultivated Crops | R51: 19502.24088 | S51: 19502.24088 | T51: 19502.24088 | U51: 0.0004102000765 | V51: Prime farmland if drained | W51: Very poorly drained | X51: None | Y51: Poor | Z51: 0.4305556 | AA51: 0.2644444 | AB51: 0.2644444 | AC51: All Hydric | AD51: 0.28 | AE51: 0.28 | AF51: 6.92 | AG51: Frequent | AH51: 6.930555556 | AI51: Poor | AJ51: silty clay loam | AK51: Glencoe | AL51: MN013 | AM51: 114
B52: 15 | C52: LES | D52: 2 | E52: 3 | F52: 8 | G52: 16 | H52: Le Sueur | I52: Upper Le Sueur | J52: LS btwn gauges | K52: AB | L52: 2 | M52: LO | N52: 9 | O52: 186877.8905 | P52: 41.9651794 | Q52: Cultivated Crops | R52: 62292.63018 | S52: 62292.63018 | T52: 62292.63018 | U52: 0.0002245593595 | V52: Prime farmland if drained | W52: Poorly drained | X52: None | Y52: Poor | Z52: 0.3333333 | AA52: 0.25 | AB52: 0.25 | AC52: All Hydric | AD52: 0.28 | AE52: 0.28 | AF52: 4.89 | AG52: None | AH52: 2.666666667 | AI52: Poor | AJ52: clay loam | AK52: Cordova | AL52: MN079 | AM52: 109
B53: 86 | C53: LES | D53: 2 | E53: 3 | F53: 8 | G53: 16 | H53: Le Sueur | I53: Upper Le Sueur | J53: LS btwn gauges | K53: AB | L53: 2 | M53: LO | N53: 9 | O53: 506775.8324 | P53: 124.356987 | Q53: Cultivated Crops | R53: 168925.2775 | S53: 168925.2775 | T53: 168925.2775 | U53: 0.0002453885506 | V53: All areas are prime farmland | W53: Moderately well drained | X53: None | Y53: Poor | Z53: 0.1904762 | AA53: 0.2628571 | AB53: 0.2628571 | AC53: Not Hydric | AD53: 0.24 | AE53: 0.24 | AF53: 4.536190476 | AG53: None | AH53: 3.257142857 | AI53: Poor | AJ53: clay loam | AK53: Le Sueur | AL53: MN079 | AM53: 239B
B54: 24 | C54: LES | D54: 2 | E54: 3 | F54: 8 | G54: 16 | H54: Le Sueur | I54: Upper Le Sueur | J54: LS btwn gauges | K54: AB | L54: 2 | M54: LO | N54: 9 | O54: 434294.8638 | P54: 131.1820526 | Q54: Cultivated Crops | R54: 144764.9546 | S54: 144764.9546 | T54: 144764.9546 | U54: 0.0003020575732 | V54: Prime farmland if drained | W54: Poorly drained | X54: None | Y54: Poor | Z54: 0.2380952 | AA54: 0.2590476 | AB54: 0.2590476 | AC54: All Hydric | AD54: 0.28 | AE54: 0.28 | AF54: 4.527619048 | AG54: None | AH54: 4.238095238 | AI54: Poor | AJ54: clay loam | AK54: Cordova | AL54: MN079 | AM54: 109
B55: 245 | C55: LES | D55: 2 | E55: 3 | F55: 8 | G55: 16 | H55: Le Sueur | I55: Upper Le Sueur | J55: LS btwn gauges | K55: AB | L55: 2 | M55: LO | N55: 9 | O55: 253208.807 | P55: 163.7680511 | Q55: Cultivated Crops | R55: 84402.93567 | S55: 84402.93567 | T55: 84402.93567 | U55: 0.0006467707543 | V55: All areas are prime farmland | W55: Well drained | X55: None | Y55: Poor | Z55: 0.5741935 | AA55: 0.255871 | AB55: 0.255871 | AC55: Partially Hydric | AD55: 0.28 | AE55: 0.28 | AF55: 7.953612903 | AG55: None | AH55: 5.460645161 | AI55: Poor | AJ55: clay loam | AK55: Angus | AL55: MN161 | AM55: L40B
B56: 108 | C56: LES | D56: 2 | E56: 3 | F56: 8 | G56: 16 | H56: Le Sueur | I56: Upper Le Sueur | J56: LS btwn gauges | K56: AB | L56: 2 | M56: LO | N56: 9 | O56: 782883.24 | P56: 256.9848633 | Q56: Cultivated Crops | R56: 260961.08 | S56: 260961.08 | T56: 260961.08 | U56: 0.0003282543937 | V56: All areas are prime farmland | W56: Well drained | X56: None | Y56: Poor | Z56: 0.5 | AA56: 0.2526923 | AB56: 0.2526923 | AC56: Partially Hydric | AD56: 0.28 | AE56: 0.28 | AF56: 7.579230769 | AG56: None | AH56: 3.942307692 | AI56: Poor | AJ56: clay loam | AK56: Angus | AL56: MN161 | AM56: L40B
B57: 87 | C57: LES | D57: 2 | E57: 3 | F57: 8 | G57: 16 | H57: Le Sueur | I57: Upper Le Sueur | J57: LS btwn gauges | K57: AB | L57: 2 | M57: LO | N57: 9 | O57: 841629.1961 | P57: 357.972168 | Q57: Cultivated Crops | R57: 280543.0654 | S57: 280543.0654 | T57: 280543.0654 | U57: 0.0004253324025 | V57: Prime farmland if drained | W57: Poorly drained | X57: None | Y57: Poor | Z57: 0.3541667 | AA57: 0.2597917 | AB57: 0.2597917 | AC57: All Hydric | AD57: 0.28 | AE57: 0.28 | AF57: 7.034166667 | AG57: None | AH57: 5.245833333 | AI57: Poor | AJ57: clay loam | AK57: Cordova | AL57: MN079 | AM57: 109
B58: 172 | C58: LES | D58: 2 | E58: 3 | F58: 8 | G58: 16 | H58: Le Sueur | I58: Upper Le Sueur | J58: LS btwn gauges | K58: AB | L58: 2 | M58: LO | N58: 9 | O58: 1848261.52 | P58: 883.0337524 | Q58: Cultivated Crops | R58: 616087.1734 | S58: 616087.1734 | T58: 616087.1734 | U58: 0.0004777645061 | V58: Not prime farmland | W58: Very poorly drained | X58: None | Y58: Poor | Z58: 0.547619 | AA58: 0.2633333 | AB58: 0.2633333 | AC58: All Hydric | AD58: 0.02 | AE58: 0.02 | AF58: 6.049642857 | AG58: Frequent | AH58: 4.985714286 | AI58: Poor | AJ58: muck | AK58: Houghton | AL58: MN161 | AM58: L16A
B59: 50 | C59: LES | D59: 3 | E59: 2 | F59: 9 | G59: 30 | H59: Le Sueur | I59: Lower LeSueur | J59: LS btwn gauges | K59: BT | L59: 3 | M59: LO | N59: 1 | O59: 900.0000003 | P59: 0.0099382 | Q59: Cultivated Crops | R59: 300.0000001 | S59: 300.0000001 | T59: 300.0000001 | U59: 1.104244444e-05 | V59: Not prime farmland | W59: Poorly drained | X59: None | Y59: Poor | Z59: 0.5 | AA59: 0.205 | AB59: 0.205 | AC59: All Hydric | AD59: 0.17 | AE59: 0.17 | AF59: 5.5 | AG59: None | AH59: 3 | AI59: Fair | AJ59: loamy fine sand | AK59: Beaches | AL59: MN013 | AM59: 1032
B60: 92 | C60: LES | D60: 3 | E60: 2 | F60: 9 | G60: 30 | H60: Le Sueur | I60: Lower LeSueur | J60: LS btwn gauges | K60: BT | L60: 3 | M60: LO | N60: 1 | O60: 13438.02747 | P60: 0.1359464 | Q60: Cultivated Crops | R60: 4479.342489 | S60: 4479.342489 | T60: 4479.342489 | U60: 1.011654429e-05 | V60: All areas are prime farmland | W60: Moderately well drained | X60: None | Y60: Poor | Z60: 0.5 | AA60: 0.205 | AB60: 0.205 | AC60: Not Hydric | AD60: 0.24 | AE60: 0.24 | AF60: 20 | AG60: None | AH60: 3 | AI60: Poor | AJ60: clay loam | AK60: Le Sueur | AL60: MN013 | AM60: 239
B61: 139 | C61: LES | D61: 3 | E61: 2 | F61: 9 | G61: 30 | H61: Le Sueur | I61: Lower LeSueur | J61: LS btwn gauges | K61: BT | L61: 3 | M61: LO | N61: 1 | O61: 3600 | P61: 0.3724632 | Q61: Cultivated Crops | R61: 1200 | S61: 1200 | T61: 1200 | U61: 0.000103462 | V61: All areas are prime farmland | W61: Moderately well drained | X61: None | Y61: Poor | Z61: 0 | AA61: 0.26 | AB61: 0.26 | AC61: Not Hydric | AD61: 0.24 | AE61: 0.24 | AF61: 3.75 | AG61: None | AH61: 5.5 | AI61: Poor | AJ61: clay loam | AK61: Le Sueur | AL61: MN013 | AM61: 239
B62: 184 | C62: LES | D62: 3 | E62: 2 | F62: 9 | G62: 30 | H62: Le Sueur | I62: Lower LeSueur | J62: LS btwn gauges | K62: BT | L62: 3 | M62: LO | N62: 1 | O62: 97194.04926 | P62: 0.4790754 | Q62: Cultivated Crops | R62: =$O62*1/3 -> 32398.01642 | S62: 32398.01642 | T62: 32398.01642 | U62: 4.929061024e-06 | V62: All areas are prime farmland | W62: Well drained | X62: None | Y62: Poor | Z62: 0.4166667 | AA62: 0.2733333 | AB62: 0.2733333 | AC62: Not Hydric | AD62: 0.28 | AE62: 0.28 | AF62: 4.75 | AG62: None | AH62: 2.75 | AI62: Poor | AJ62: clay loam | AK62: Kilkenny | AL62: MN013 | AM62: 238B
B63: 275 | C63: LES | D63: 3 | E63: 2 | F63: 9 | G63: 30 | H63: Le Sueur | I63: Lower LeSueur | J63: LS btwn gauges | K63: BT | L63: 3 | M63: LO | N63: 1 | O63: 30988.8395 | P63: 1.0099845 | Q63: Cultivated Crops | R63: 10329.61317 | S63: 10329.61317 | T63: 10329.61317 | U63: 3.259187876e-05 | V63: All areas are prime farmland | W63: Well drained | X63: None | Y63: Poor | Z63: 0.4634146 | AA63: 0.2717073 | AB63: 0.2717073 | AC63: Not Hydric | AD63: 0.28 | AE63: 0.28 | AF63: 6.068536585 | AG63: None | AH63: 4.66097561 | AI63: Poor | AJ63: clay loam | AK63: Kilkenny | AL63: MN013 | AM63: 238B
B64: 151 | C64: LES | D64: 3 | E64: 2 | F64: 9 | G64: 30 | H64: Le Sueur | I64: Lower LeSueur | J64: LS btwn gauges | K64: BT | L64: 3 | M64: LO | N64: 1 | O64: 18686.80433 | P64: 1.2490906 | Q64: Cultivated Crops | R64: 6228.934778 | S64: 6228.934778 | T64: 6228.934778 | U64: 6.684345689e-05 | V64: All areas are prime farmland | W64: Moderately well drained | X64: None | Y64: Poor | Z64: 0.6666667 | AA64: 0.2966667 | AB64: 0.2966667 | AC64: Not Hydric | AD64: 0.24 | AE64: 0.24 | AF64: 4.833333333 | AG64: None | AH64: 1.166666667 | AI64: Poor | AJ64: clay loam | AK64: Le Sueur | AL64: MN013 | AM64: 239
B65: 31 | C65: LES | D65: 3 | E65: 2 | F65: 9 | G65: 30 | H65: Le Sueur | I65: Lower LeSueur | J65: LS btwn gauges | K65: BT | L65: 3 | M65: LO | N65: 1 | O65: 164007.1828 | P65: 1.5462096 | Q65: Cultivated Crops | R65: 54669.06095 | S65: 54669.06095 | T65: 54669.06095 | U65: 9.427694404e-06 | V65: All areas are prime farmland | W65: Moderately well drained | X65: None | Y65: Poor | Z65: 0.3809524 | AA65: 0.2609524 | AB65: 0.2609524 | AC65: Not Hydric | AD65: 0.24 | AE65: 0.24 | AF65: 5.428571429 | AG65: None | AH65: 2.047619048 | AI65: Poor | AJ65: clay loam | AK65: Le Sueur | AL65: MN013 | AM65: 239
B66: 128 | C66: LES | D66: 3 | E66: 2 | F66: 9 | G66: 30 | H66: Le Sueur | I66: Lower LeSueur | J66: LS btwn gauges | K66: BT | L66: 3 | M66: LO | N66: 1 | O66: 12248.49684 | P66: 1.9341092 | Q66: Cultivated Crops | R66: 4082.832281 | S66: 4082.832281 | T66: 4082.832281 | U66: =P66/O66 -> 0.0001579058414 | V66: Prime farmland if drained | W66: Very poorly drained | X66: None | Y66: Poor | Z66: 0.4 | AA66: 0.2433333 | AB66: 0.2433333 | AC66: All Hydric | AD66: 0.28 | AE66: 0.28 | AF66: 12.6 | AG66: Frequent | AH66: 4.166666667 | AI66: Poor | AJ66: silty clay loam | AK66: Glencoe | AL66: MN013 | AM66: 114
B67: 32 | C67: LES | D67: 3 | E67: 2 | F67: 9 | G67: 30 | H67: Le Sueur | I67: Lower LeSueur | J67: LS btwn gauges | K67: BT | L67: 3 | M67: LO | N67: 1 | O67: 140381.4297 | P67: 2.1489706 | Q67: Cultivated Crops | R67: 46793.80991 | S67: 46793.80991 | T67: 46793.80991 | U67: 1.530808316e-05 | V67: Prime farmland if drained | W67: Poorly drained | X67: None | Y67: Poor | Z67: 0.3636364 | AA67: 0.2581818 | AB67: 0.2581818 | AC67: All Hydric | AD67: 0.28 | AE67: 0.28 | AF67: 4.636363636 | AG67: None | AH67: 2.818181818 | AI67: Poor | AJ67: clay loam | AK67: Cordova | AL67: MN013 | AM67: 109
B68: 58 | C68: LES | D68: 3 | E68: 2 | F68: 9 | G68: 30 | H68: Le Sueur | I68: Lower LeSueur | J68: LS btwn gauges | K68: BT | L68: 3 | M68: LO | N68: 1 | O68: 53351.77429 | P68: 2.3515689 | Q68: Cultivated Crops | R68: 17783.92476 | S68: 17783.92476 | T68: 17783.92476 | U68: 4.407667657e-05 | V68: Prime farmland if drained | W68: Poorly drained | X68: None | Y68: Poor | Z68: 0.5 | AA68: 0.2666667 | AB68: 0.2666667 | AC68: All Hydric | AD68: 0.28 | AE68: 0.28 | AF68: 5.25 | AG68: None | AH68: 1.75 | AI68: Poor | AJ68: clay loam | AK68: Cordova | AL68: MN013 | AM68: 109
B69: 101 | C69: LES | D69: 3 | E69: 2 | F69: 9 | G69: 30 | H69: Le Sueur | I69: Lower LeSueur | J69: LS btwn gauges | K69: BT | L69: 3 | M69: LO | N69: 1 | O69: 8799.402694 | P69: 2.9777174 | Q69: Cultivated Crops | R69: 2933.134231 | S69: 2933.134231 | T69: 2933.134231 | U69: 0.0003383999464 | V69: All areas are prime farmland | W69: Well drained | X69: None | Y69: Poor | Z69: 0.3636364 | AA69: 0.2727273 | AB69: 0.2727273 | AC69: Not Hydric | AD69: 0.24 | AE69: 0.24 | AF69: 4.772727273 | AG69: None | AH69: 3.681818182 | AI69: Poor | AJ69: loam | AK69: Lester | AL69: MN013 | AM69: 106B
B70: 51 | C70: LES | D70: 3 | E70: 2 | F70: 9 | G70: 30 | H70: Le Sueur | I70: Lower LeSueur | J70: LS btwn gauges | K70: BT | L70: 3 | M70: LO | N70: 1 | O70: 46008.7166 | P70: 3.4027839 | Q70: Cultivated Crops | R70: 15336.23887 | S70: 15336.23887 | T70: 15336.23887 | U70: 7.395954835e-05 | V70: Prime farmland if drained | W70: Poorly drained | X70: None | Y70: Poor | Z70: 0.7142857 | AA70: 0.2314286 | AB70: 0.2314286 | AC70: All Hydric | AD70: 0.28 | AE70: 0.28 | AF70: 11.21428571 | AG70: None | AH70: 1.428571429 | AI70: Poor | AJ70: silty clay loam | AK70: Marna | AL70: MN013 | AM70: 110
B71: 145 | C71: LES | D71: 3 | E71: 2 | F71: 9 | G71: 30 | H71: Le Sueur | I71: Lower LeSueur | J71: LS btwn gauges | K71: BT | L71: 3 | M71: LO | N71: 1 | O71: 54163.90427 | P71: 22.9919605 | Q71: Cultivated Crops | R71: 18054.63476 | S71: 18054.63476 | T71: 18054.63476 | U71: 0.0004244886112 | V71: All areas are prime farmland | W71: Moderately well drained | X71: None | Y71: Poor | Z71: 0.5714286 | AA71: 0.25 | AB71: 0.25 | AC71: Not Hydric | AD71: 0.24 | AE71: 0.24 | AF71: 12.91714286 | AG71: None | AH71: 10.01428571 | AI71: Poor | AJ71: clay loam | AK71: Le Sueur | AL71: MN013 | AM71: 239
B72: 94 | C72: LES | D72: 3 | E72: 2 | F72: 9 | G72: 30 | H72: Le Sueur | I72: Lower LeSueur | J72: LS btwn gauges | K72: BT | L72: 3 | M72: LO | N72: 1 | O72: 158280.9305 | P72: 24.6046219 | Q72: Cultivated Crops | R72: 52760.31016 | S72: 52760.31016 | T72: 52760.31016 | U72: 0.0001554490603 | V72: All areas are prime farmland | W72: Well drained | X72: None | Y72: Poor | Z72: 0.3333333 | AA72: 0.2293333 | AB72: 0.2293333 | AC72: Not Hydric | AD72: 0.24 | AE72: 0.24 | AF72: 12.33333333 | AG72: None | AH72: 3.633333333 | AI72: Poor | AJ72: loam | AK72: Lester | AL72: MN013 | AM72: 106B
B73: 292 | C73: LES | D73: 3 | E73: 2 | F73: 9 | G73: 30 | H73: Le Sueur | I73: Lower LeSueur | J73: LS btwn gauges | K73: BT | L73: 3 | M73: LO | N73: 1 | O73: 56220.39707 | P73: 28.0921478 | Q73: Cultivated Crops | R73: 18740.13236 | S73: 18740.13236 | T73: 18740.13236 | U73: 0.0004996789291 | V73: Farmland of statewide importance | W73: Very poorly drained | X73: None | Y73: Poor | Z73: 0.4184397 | AA73: 0.2661702 | AB73: 0.2661702 | AC73: All Hydric | AD73: 0.02 | AE73: 0.02 | AF73: 6.925531915 | AG73: Frequent | AH73: 3.163120567 | AI73: Poor | AJ73: muck | AK73: Palms | AL73: MN013 | AM73: 539
B74: 96 | C74: LES | D74: 3 | E74: 2 | F74: 9 | G74: 30 | H74: Le Sueur | I74: Lower LeSueur | J74: LS btwn gauges | K74: BT | L74: 3 | M74: LO | N74: 1 | O74: 162990.6444 | P74: 30.2747688 | Q74: Cultivated Crops | R74: 54330.21482 | S74: 54330.21482 | T74: 54330.21482 | U74: 0.000185745439 | V74: Prime farmland if drained | W74: Very poorly drained | X74: None | Y74: Poor | Z74: 0.4545455 | AA74: 0.2181818 | AB74: 0.2181818 | AC74: All Hydric | AD74: 0.28 | AE74: 0.28 | AF74: 15.43909091 | AG74: Frequent | AH74: 3.681818182 | AI74: Poor | AJ74: silty clay loam | AK74: Glencoe | AL74: MN013 | AM74: 114
B75: 154 | C75: LES | D75: 3 | E75: 2 | F75: 9 | G75: 30 | H75: Le Sueur | I75: Lower LeSueur | J75: LS btwn gauges | K75: BT | L75: 3 | M75: LO | N75: 1 | O75: 134520.6058 | P75: 38.5803375 | Q75: Cultivated Crops | R75: 44840.20193 | S75: 44840.20193 | T75: 44840.20193 | U75: 0.0002867987196 | V75: All areas are prime farmland | W75: Well drained | X75: None | Y75: Poor | Z75: 0.3333333 | AA75: 0.2722222 | AB75: 0.2722222 | AC75: Not Hydric | AD75: 0.24 | AE75: 0.24 | AF75: 4.222222222 | AG75: None | AH75: 4.277777778 | AI75: Poor | AJ75: loam | AK75: Lester | AL75: MN013 | AM75: 106B
B76: 47 | C76: LES | D76: 3 | E76: 5 | F76: 10 | G76: 12 | H76: Le Sueur | I76: Lower LeSueur | J76: LS btwn gauges | K76: BT | L76: 3 | M76: LO | N76: 1 | O76: 7488.063055 | P76: 0.0275072 | Q76: Cultivated Crops | R76: 2496.021018 | S76: 2496.021018 | T76: 2496.021018 | U76: 3.67347334e-06 | V76: All areas are prime farmland | W76: Well drained | X76: None | Y76: Poor | Z76: 0.1428571 | AA76: 0.2514286 | AB76: 0.2514286 | AC76: Not Hydric | AD76: 0.24 | AE76: 0.24 | AF76: 4.428571429 | AG76: None | AH76: 3.428571429 | AI76: Poor | AJ76: loam | AK76: Lester | AL76: MN013 | AM76: 106B
B77: 198 | C77: LES | D77: 3 | E77: 5 | F77: 10 | G77: 12 | H77: Le Sueur | I77: Lower LeSueur | J77: LS btwn gauges | K77: BT | L77: 3 | M77: LO | N77: 1 | O77: 8400.609732 | P77: 0.9857016 | Q77: Cultivated Crops | R77: 2800.203244 | S77: 2800.203244 | T77: 2800.203244 | U77: 0.0001173369114 | V77: Not prime farmland | W77: Very poorly drained | X77: None | Y77: Poor | Z77: 0.6666667 | AA77: 0.0933333 | AB77: 0.0933333 | AC77: All Hydric | AD77: 0.02 | AE77: 0.02 | AF77: 37.16666667 | AG77: Frequent | AH77: 1.833333333 | AI77: Poor | AJ77: muck | AK77: Marsh | AL77: MN013 | AM77: 1053
B78: 49 | C78: LES | D78: 3 | E78: 5 | F78: 10 | G78: 12 | H78: Le Sueur | I78: Lower LeSueur | J78: LS btwn gauges | K78: BT | L78: 3 | M78: LO | N78: 1 | O78: 12531.31248 | P78: 1.0568511 | Q78: Cultivated Crops | R78: 4177.104161 | S78: 4177.104161 | T78: 4177.104161 | U78: 8.433682436e-05 | V78: All areas are prime farmland | W78: Well drained | X78: None | Y78: Poor | Z78: 0.2 | AA78: 0.256 | AB78: 0.256 | AC78: Not Hydric | AD78: 0.28 | AE78: 0.28 | AF78: 5 | AG78: None | AH78: 2.5 | AI78: Poor | AJ78: clay loam | AK78: Kilkenny | AL78: MN013 | AM78: 238B
B79: 148 | C79: LES | D79: 3 | E79: 5 | F79: 10 | G79: 12 | H79: Le Sueur | I79: Lower LeSueur | J79: LS btwn gauges | K79: BT | L79: 3 | M79: LO | N79: 1 | O79: 17008.14238 | P79: 2.3506718 | Q79: Cultivated Crops | R79: 5669.380792 | S79: 5669.380792 | T79: 5669.380792 | U79: 0.0001382086149 | V79: Farmland of statewide importance | W79: Very poorly drained | X79: None | Y79: Poor | Z79: 0.75 | AA79: 0.14 | AB79: 0.14 | AC79: All Hydric | AD79: 0.02 | AE79: 0.02 | AF79: 35.25 | AG79: Frequent | AH79: 1 | AI79: Poor | AJ79: muck | AK79: Caron | AL79: MN013 | AM79: 524
B80: 301 | C80: LES | D80: 3 | E80: 5 | F80: 10 | G80: 12 | H80: Le Sueur | I80: Lower LeSueur | J80: LS btwn gauges | K80: BT | L80: 3 | M80: LO | N80: 1 | O80: 107947.1471 | P80: 16.2752838 | Q80: Cultivated Crops | R80: 35982.38237 | S80: 35982.38237 | T80: 35982.38237 | U80: 0.0001507708563 | V80: Prime farmland if drained | W80: Poorly drained | X80: None | Y80: Poor | Z80: 0.2818792 | AA80: 0.2449664 | AB80: 0.2449664 | AC80: All Hydric | AD80: 0.28 | AE80: 0.28 | AF80: 7.600134228 | AG80: None | AH80: 3.943624161 | AI80: Poor | AJ80: clay loam | AK80: Cordova | AL80: MN013 | AM80: 109
B81: 43 | C81: LES | D81: 3 | E81: 5 | F81: 10 | G81: 12 | H81: Le Sueur | I81: Lower LeSueur | J81: LS btwn gauges | K81: BT | L81: 3 | M81: LO | N81: 1 | O81: 106268.4953 | P81: 32.2925415 | Q81: Cultivated Crops | R81: 35422.83177 | S81: 35422.83177 | T81: 35422.83177 | U81: 0.0003038769054 | V81: All areas are prime farmland | W81: Well drained | X81: None | Y81: Poor | Z81: 0.2698413 | AA81: 0.26 | AB81: 0.26 | AC81: Not Hydric | AD81: 0.24 | AE81: 0.24 | AF81: 6.325396825 | AG81: None | AH81: 4.373015873 | AI81: Poor | AJ81: loam | AK81: Lester | AL81: MN013 | AM81: 106B
B82: 254 | C82: LES | D82: 3 | E82: 5 | F82: 10 | G82: 12 | H82: Le Sueur | I82: Lower LeSueur | J82: LS btwn gauges | K82: BT | L82: 3 | M82: LO | N82: 1 | O82: 368327.9214 | P82: 39.6841545 | Q82: Cultivated Crops | R82: =$O82*1/3 -> 122775.9738 | S82: 122775.9738 | T82: 122775.9738 | U82: 0.000107741369 | V82: Not prime farmland | W82: Very poorly drained | X82: None | Y82: Poor | Z82: 0.4821429 | AA82: 0.2432143 | AB82: 0.2432143 | AC82: All Hydric | AD82: 0.02 | AE82: 0.02 | AF82: 10.35714286 | AG82: Frequent | AH82: 2.196428571 | AI82: Poor | AJ82: muck | AK82: Marsh | AL82: MN013 | AM82: 1053
B83: 196 | C83: LES | D83: 3 | E83: 5 | F83: 10 | G83: 12 | H83: Le Sueur | I83: Lower LeSueur | J83: LS btwn gauges | K83: BT | L83: 3 | M83: LO | N83: 1 | O83: 287035.5242 | P83: 84.2817841 | Q83: Cultivated Crops | R83: 95678.50807 | S83: 95678.50807 | T83: 95678.50807 | U83: 0.0002936284083 | V83: Farmland of statewide importance | W83: Very poorly drained | X83: None | Y83: Poor | Z83: 0.4736842 | AA83: 0.2433333 | AB83: 0.2433333 | AC83: All Hydric | AD83: 0.02 | AE83: 0.02 | AF83: 10.60526316 | AG83: Frequent | AH83: 2.131578947 | AI83: Poor | AJ83: muck | AK83: Caron | AL83: MN013 | AM83: 524
B84: 166 | C84: LES | D84: 3 | E84: 5 | F84: 11 | G84: 12 | H84: Le Sueur | I84: Lower LeSueur | J84: LS btwn gauges | K84: BT | L84: 3 | M84: LO | N84: 1 | O84: 899.9999997 | P84: 0.1150632 | Q84: Cultivated Crops | R84: 299.9999999 | S84: 299.9999999 | T84: 299.9999999 | U84: 0.000127848 | V84: Prime farmland if drained | W84: Poorly drained | X84: None | Y84: Poor | Z84: 0.5 | AA84: 0.26 | AB84: 0.26 | AC84: All Hydric | AD84: 0.28 | AE84: 0.28 | AF84: 4.75 | AG84: None | AH84: 2.5 | AI84: Poor | AJ84: clay loam | AK84: Cordova | AL84: MN013 | AM84: 109
B85: 293 | C85: LES | D85: 3 | E85: 5 | F85: 11 | G85: 12 | H85: Le Sueur | I85: Lower LeSueur | J85: LS btwn gauges | K85: BT | L85: 3 | M85: LO | N85: 1 | O85: 637.7732889 | P85: 0.3152151 | Q85: Cultivated Crops | R85: 212.5910963 | S85: 212.5910963 | T85: 212.5910963 | U85: 0.0004942431825 | V85: Farmland of statewide importance | W85: Very poorly drained | X85: None | Y85: Poor | Z85: 0.4184397 | AA85: 0.2661702 | AB85: 0.2661702 | AC85: All Hydric | AD85: 0.02 | AE85: 0.02 | AF85: 6.925531915 | AG85: Frequent | AH85: 3.163120567 | AI85: Poor | AJ85: muck | AK85: Palms | AL85: MN013 | AM85: 539
B86: 161 | C86: LES | D86: 3 | E86: 5 | F86: 11 | G86: 12 | H86: Le Sueur | I86: Lower LeSueur | J86: LS btwn gauges | K86: BT | L86: 3 | M86: LO | N86: 1 | O86: 925494.0364 | P86: 110.2362976 | Q86: Cultivated Crops | R86: 308498.0121 | S86: 308498.0121 | T86: 308498.0121 | U86: 0.0001191107595 | V86: Prime farmland if drained | W86: Poorly drained | X86: None | Y86: Poor | Z86: 0.4259259 | AA86: 0.2522222 | AB86: 0.2522222 | AC86: All Hydric | AD86: 0.28 | AE86: 0.28 | AF86: 7.555555556 | AG86: None | AH86: 2.009259259 | AI86: Poor | AJ86: clay loam | AK86: Cordova | AL86: MN013 | AM86: 109
B87: 304 | C87: LES | D87: 3 | E87: 5 | F87: 11 | G87: 12 | H87: Le Sueur | I87: Lower LeSueur | J87: LS btwn gauges | K87: BT | L87: 3 | M87: LO | N87: 1 | O87: 994454.3704 | P87: 113.7431793 | Q87: Cultivated Crops | R87: 331484.7901 | S87: 331484.7901 | T87: 331484.7901 | U87: 0.0001143774744 | V87: Prime farmland if drained | W87: Poorly drained | X87: None | Y87: Poor | Z87: 0.4693878 | AA87: 0.2444898 | AB87: 0.2444898 | AC87: All Hydric | AD87: 0.28 | AE87: 0.28 | AF87: 9.295918367 | AG87: None | AH87: 1.780612245 | AI87: Poor | AJ87: clay loam | AK87: Cordova | AL87: MN013 | AM87: 109
B88: 302 | C88: LES | D88: 3 | E88: 5 | F88: 11 | G88: 12 | H88: Le Sueur | I88: Lower LeSueur | J88: LS btwn gauges | K88: BT | L88: 3 | M88: LO | N88: 1 | O88: 1277517.426 | P88: 243.1835022 | Q88: Cultivated Crops | R88: 425839.142 | S88: 425839.142 | T88: 425839.142 | U88: 0.0001903563092 | V88: Prime farmland if drained | W88: Poorly drained | X88: None | Y88: Poor | Z88: 0.2818792 | AA88: 0.2449664 | AB88: 0.2449664 | AC88: All Hydric | AD88: 0.28 | AE88: 0.28 | AF88: 7.600134228 | AG88: None | AH88: 3.943624161 | AI88: Poor | AJ88: clay loam | AK88: Cordova | AL88: MN013 | AM88: 109
B89: 199 | C89: LES | D89: 3 | E89: 5 | F89: 13 | G89: 28 | H89: Le Sueur | I89: Lower LeSueur | J89: LS btwn gauges | K89: BT | L89: 3 | M89: LO | N89: 1 | O89: 5247.618891 | P89: 0.4928508 | Q89: Cultivated Crops | R89: 1749.206297 | S89: 1749.206297 | T89: 1749.206297 | U89: 9.391893927e-05 | V89: Not prime farmland | W89: Very poorly drained | X89: None | Y89: Poor | Z89: 0.6666667 | AA89: 0.0933333 | AB89: 0.0933333 | AC89: All Hydric | AD89: 0.02 | AE89: 0.02 | AF89: 37.16666667 | AG89: Frequent | AH89: 1.833333333 | AI89: Poor | AJ89: muck | AK89: Marsh | AL89: MN013 | AM89: 1053
B90: 48 | C90: LES | D90: 3 | E90: 5 | F90: 13 | G90: 28 | H90: Le Sueur | I90: Lower LeSueur | J90: LS btwn gauges | K90: BT | L90: 3 | M90: LO | N90: 1 | O90: 10615.2818 | P90: 1.7249779 | Q90: Cultivated Crops | R90: 3538.427268 | S90: 3538.427268 | T90: 3538.427268 | U90: 0.000162499492 | V90: All areas are prime farmland | W90: Well drained | X90: None | Y90: Poor | Z90: 0.1428571 | AA90: 0.2514286 | AB90: 0.2514286 | AC90: Not Hydric | AD90: 0.24 | AE90: 0.24 | AF90: 4.428571429 | AG90: None | AH90: 3.428571429 | AI90: Poor | AJ90: loam | AK90: Lester | AL90: MN013 | AM90: 106B
B91: 149 | C91: LES | D91: 3 | E91: 5 | F91: 13 | G91: 28 | H91: Le Sueur | I91: Lower LeSueur | J91: LS btwn gauges | K91: BT | L91: 3 | M91: LO | N91: 1 | O91: 37169.18852 | P91: 3.0407147 | Q91: Cultivated Crops | R91: 12389.72951 | S91: 12389.72951 | T91: 12389.72951 | U91: 8.180740073e-05 | V91: Farmland of statewide importance | W91: Very poorly drained | X91: None | Y91: Poor | Z91: 0.75 | AA91: 0.14 | AB91: 0.14 | AC91: All Hydric | AD91: 0.02 | AE91: 0.02 | AF91: 35.25 | AG91: Frequent | AH91: 1 | AI91: Poor | AJ91: muck | AK91: Caron | AL91: MN013 | AM91: 524
B92: 194 | C92: LES | D92: 3 | E92: 5 | F92: 13 | G92: 28 | H92: Le Sueur | I92: Lower LeSueur | J92: LS btwn gauges | K92: BT | L92: 3 | M92: LO | N92: 1 | O92: 40613.98762 | P92: 5.5298705 | Q92: Cultivated Crops | R92: 13537.99587 | S92: 13537.99587 | T92: 13537.99587 | U92: 0.0001361567978 | V92: Prime farmland if drained | W92: Poorly drained | X92: None | Y92: Poor | Z92: 0.5 | AA92: 0.2666667 | AB92: 0.2666667 | AC92: All Hydric | AD92: 0.28 | AE92: 0.28 | AF92: 5.916666667 | AG92: None | AH92: 1.666666667 | AI92: Poor | AJ92: clay loam | AK92: Cordova | AL92: MN013 | AM92: 109
B93: 567 | C93: LES | D93: 3 | E93: 5 | F93: 13 | G93: 28 | H93: Le Sueur | I93: Lower LeSueur | J93: LS btwn gauges | K93: BT | L93: 3 | M93: LO | N93: 1 | O93: 220940.5528 | P93: 29.2616158 | Q93: Cultivated Crops | R93: 73646.85094 | S93: 73646.85094 | T93: 73646.85094 | U93: 0.0001324411269 | V93: Prime farmland if drained | W93: Poorly drained | X93: None | Y93: Poor | Z93: 0.6206896 | AA93: 0.2618966 | AB93: 0.2618966 | AC93: All Hydric | AD93: 0.28 | AE93: 0.28 | AF93: 8.400862069 | AG93: None | AH93: 2.043103448 | AI93: Poor | AJ93: silty clay loam | AK93: Marna | AL93: MN013 | AM93: 110
B94: 252 | C94: LES | D94: 3 | E94: 5 | F94: 13 | G94: 28 | H94: Le Sueur | I94: Lower LeSueur | J94: LS btwn gauges | K94: BT | L94: 3 | M94: LO | N94: 1 | O94: 386459.5995 | P94: 48.4155502 | Q94: Cultivated Crops | R94: 128819.8665 | S94: 128819.8665 | T94: 128819.8665 | U94: 0.0001252797195 | V94: Prime farmland if drained | W94: Poorly drained | X94: None | Y94: Poor | Z94: 0.5 | AA94: 0.272 | AB94: 0.272 | AC94: All Hydric | AD94: 0.28 | AE94: 0.28 | AF94: 6.15 | AG94: None | AH94: 2 | AI94: Poor | AJ94: silty clay loam | AK94: Marna | AL94: MN013 | AM94: 110
B95: 255 | C95: LES | D95: 3 | E95: 5 | F95: 13 | G95: 28 | H95: Le Sueur | I95: Lower LeSueur | J95: LS btwn gauges | K95: BT | L95: 3 | M95: LO | N95: 1 | O95: 712511.8875 | P95: 127.3241882 | Q95: Cultivated Crops | R95: 237503.9625 | S95: 237503.9625 | T95: 237503.9625 | U95: 0.0001786976336 | V95: Not prime farmland | W95: Very poorly drained | X95: None | Y95: Poor | Z95: 0.4821429 | AA95: 0.2432143 | AB95: 0.2432143 | AC95: All Hydric | AD95: 0.02 | AE95: 0.02 | AF95: 10.35714286 | AG95: Frequent | AH95: 2.196428571 | AI95: Poor | AJ95: muck | AK95: Marsh | AL95: MN013 | AM95: 1053
B96: 197 | C96: LES | D96: 3 | E96: 5 | F96: 13 | G96: 28 | H96: Le Sueur | I96: Lower LeSueur | J96: LS btwn gauges | K96: BT | L96: 3 | M96: LO | N96: 1 | O96: 1074261.41 | P96: 142.0995483 | Q96: Cultivated Crops | R96: 358087.1366 | S96: 358087.1366 | T96: 358087.1366 | U96: 0.0001322765083 | V96: Farmland of statewide importance | W96: Very poorly drained | X96: None | Y96: Poor | Z96: 0.4736842 | AA96: 0.2433333 | AB96: 0.2433333 | AC96: All Hydric | AD96: 0.02 | AE96: 0.02 | AF96: 10.60526316 | AG96: Frequent | AH96: 2.131578947 | AI96: Poor | AJ96: muck | AK96: Caron | AL96: MN013 | AM96: 524
B97: 136 | C97: LES | D97: 2 | E97: 3 | F97: 14 | G97: 7 | H97: Le Sueur | I97: Upper Le Sueur | J97: LS AB UG | K97: AB | L97: 2 | M97: UL | N97: 9 | O97: 899.9999999 | P97: 0.8445519 | Q97: Cultivated Crops | R97: 300 | S97: 300 | T97: 300 | U97: 0.0009383910001 | V97: All areas are prime farmland | W97: Well drained | X97: None | Y97: Poor | Z97: 0.5 | AA97: 0.28 | AB97: 0.28 | AC97: Partially Hydric | AD97: 0.28 | AE97: 0.28 | AF97: 2.89 | AG97: None | AH97: 5.7 | AI97: Poor | AJ97: clay loam | AK97: Angus | AL97: MN161 | AM97: L40B
B98: 126 | C98: LES | D98: 2 | E98: 3 | F98: 14 | G98: 7 | H98: Le Sueur | I98: Upper Le Sueur | J98: LS AB UG | K98: AB | L98: 2 | M98: UL | N98: 9 | O98: 22443.55294 | P98: 2.0213883 | Q98: Cultivated Crops | R98: 7481.184312 | S98: 7481.184312 | T98: 7481.184312 | U98: 9.006543241e-05 | V98: Prime farmland if drained | W98: Somewhat poorly drained | X98: None | Y98: Poor | Z98: 0.5 | AA98: 0.2742857 | AB98: 0.2742857 | AC98: Partially Hydric | AD98: 0.28 | AE98: 0.28 | AF98: 3.26 | AG98: None | AH98: 7.314285714 | AI98: Poor | AJ98: loam | AK98: Hamel | AL98: MN161 | AM98: L36A
B99: 150 | C99: LES | D99: 2 | E99: 3 | F99: 14 | G99: 7 | H99: Le Sueur | I99: Upper Le Sueur | J99: LS AB UG | K99: AB | L99: 2 | M99: UL | N99: 9 | O99: 43402.01511 | P99: 2.2538593 | Q99: Cultivated Crops | R99: 14467.33837 | S99: 14467.33837 | T99: 14467.33837 | U99: 5.192983078e-05 | V99: Not prime farmland | W99: Poorly drained | X99: None | Y99: Poor | Z99: 0.5 | AA99: 0.255 | AB99: 0.255 | AC99: Partially Hydric | AD99: 0.17 | AE99: 0.17 | AF99: 5.125 | AG99: None | AH99: 3.116666667 | AI99: Fair | AJ99: loamy fine sand | AK99: Less sandy soil | AL99: MN161 | AM99: L64A
B100: 133 | C100: LES | D100: 2 | E100: 3 | F100: 14 | G100: 7 | H100: Le Sueur | I100: Upper Le Sueur | J100: LS AB UG | K100: AB | L100: 2 | M100: UL | N100: 9 | O100: 16263.65344 | P100: 2.7106273 | Q100: Cultivated Crops | R100: 5421.217814 | S100: 5421.217814 | T100: 5421.217814 | U100: 0.0001666677976 | V100: Not prime farmland | W100: Well drained | X100: None | Y100: Poor | Z100: 0.5833333 | AA100: 0.2516667 | AB100: 0.2516667 | AC100: Partially Hydric | AD100: 0.28 | AE100: 0.28 | AF100: 9.259166667 | AG100: None | AH100: 5.866666667 | AI100: Poor | AJ100: loam | AK100: Ridgeton | AL100: MN161 | AM100: L41D2
B101: 164 | C101: LES | D101: 2 | E101: 3 | F101: 14 | G101: 7 | H101: Le Sueur | I101: Upper Le Sueur | J101: LS AB UG | K101: AB | L101: 2 | M101: UL | N101: 9 | O101: 23887.73164 | P101: 5.4269662 | Q101: Cultivated Crops | R101: 7962.577214 | S101: 7962.577214 | T101: 7962.577214 | U101: 0.0002271863349 | V101: Farmland of statewide importance | W101: Moderately well drained | X101: None | Y101: Poor | Z101: 0.5 | AA101: 0.272 | AB101: 0.272 | AC101: Partially Hydric | AD101: 0.28 | AE101: 0.28 | AF101: 3.842 | AG101: None | AH101: 3.28 | AI101: Poor | AJ101: loam | AK101: Lester | AL101: MN161 | AM101: L41C2
B102: 130 | C102: LES | D102: 2 | E102: 3 | F102: 14 | G102: 7 | H102: Le Sueur | I102: Upper Le Sueur | J102: LS AB UG | K102: AB | L102: 2 | M102: UL | N102: 9 | O102: 38736.59747 | P102: 13.7057476 | Q102: Cultivated Crops | R102: =$O102*1/3 -> 12912.19916 | S102: 12912.19916 | T102: 12912.19916 | U102: 0.0003538190883 | V102: Farmland of statewide importance | W102: Well drained | X102: None | Y102: Poor | Z102: 0.5 | AA102: 0.2733333 | AB102: 0.2733333 | AC102: Partially Hydric | AD102: 0.28 | AE102: 0.28 | AF102: 3.765 | AG102: None | AH102: 8.083333333 | AI102: Poor | AJ102: loam | AK102: Lester | AL102: MN161 | AM102: L80C2
B103: 217 | C103: LES | D103: 2 | E103: 3 | F103: 14 | G103: 7 | H103: Le Sueur | I103: Upper Le Sueur | J103: LS AB UG | K103: AB | L103: 2 | M103: UL | N103: 9 | O103: 452767.5107 | P103: 241.8694458 | Q103: Cultivated Crops | R103: 150922.5036 | S103: 150922.5036 | T103: 150922.5036 | U103: 0.0005342023005 | V103: Not prime farmland | W103: Well drained | X103: None | Y103: Poor | Z103: 0.5243902 | AA103: 0.257561 | AB103: 0.257561 | AC103: Partially Hydric | AD103: 0.28 | AE103: 0.28 | AF103: 6.370487805 | AG103: None | AH103: 5.86097561 | AI103: Poor | AJ103: loam | AK103: Ridgeton | AL103: MN161 | AM103: L41D2
B104: 209 | C104: LES | D104: 2 | E104: 3 | F104: 14 | G104: 7 | H104: Le Sueur | I104: Upper Le Sueur | J104: LS AB UG | K104: AB | L104: 2 | M104: UL | N104: 9 | O104: 622472.0123 | P104: 436.6877747 | Q104: Cultivated Crops | R104: 207490.6708 | S104: 207490.6708 | T104: 207490.6708 | U104: 0.0007015380066 | V104: Not prime farmland | W104: Poorly drained | X104: None | Y104: Poor | Z104: 0.5522388 | AA104: 0.2502985 | AB104: 0.2502985 | AC104: Partially Hydric | AD104: 0.17 | AE104: 0.17 | AF104: 8.463432836 | AG104: None | AH104: 5.588059701 | AI104: Fair | AJ104: loamy fine sand | AK104: Less sandy soil | AL104: MN161 | AM104: L64A
B105: 212 | C105: LES | D105: 2 | E105: 3 | F105: 14 | G105: 7 | H105: Le Sueur | I105: Upper Le Sueur | J105: LS AB UG | K105: AB | L105: 2 | M105: UL | N105: 9 | O105: 1259319.379 | P105: 673.5603638 | Q105: Cultivated Crops | R105: 419773.1263 | S105: 419773.1263 | T105: 419773.1263 | U105: 0.0005348606359 | V105: Prime farmland if drained | W105: Poorly drained | X105: None | Y105: Poor | Z105: 0.5319149 | AA105: 0.2595745 | AB105: 0.2595745 | AC105: Partially Hydric | AD105: 0.28 | AE105: 0.28 | AF105: 6.285531915 | AG105: None | AH105: 5.944680851 | AI105: Poor | AJ105: clay loam | AK105: Cordova | AL105: MN161 | AM105: L81A
B106: 229 | C106: LES | D106: 2 | E106: 3 | F106: 15 | G106: 16 | H106: Le Sueur | I106: Upper Le Sueur | J106: LS AB UG | K106: AB | L106: 2 | M106: LO | N106: 9 | O106: 134639.5508 | P106: 4.2446599 | Q106: Cultivated Crops | R106: 44879.85027 | S106: 44879.85027 | T106: 44879.85027 | U106: 3.152609968e-05 | V106: Not prime farmland | W106: Very poorly drained | X106: None | Y106: Poor | Z106: 0.6 | AA106: 0.254 | AB106: 0.254 | AC106: All Hydric | AD106: 0.02 | AE106: 0.02 | AF106: 9.438 | AG106: Frequent | AH106: 3.93 | AI106: Poor | AJ106: muck | AK106: Houghton | AL106: MN161 | AM106: L16A
B107: 171 | C107: LES | D107: 2 | E107: 3 | F107: 15 | G107: 16 | H107: Le Sueur | I107: Upper Le Sueur | J107: LS AB UG | K107: AB | L107: 2 | M107: LO | N107: 9 | O107: 24082.32301 | P107: 7.1739955 | Q107: Cultivated Crops | R107: 8027.441002 | S107: 8027.441002 | T107: 8027.441002 | U107: 0.0002978946632 | V107: Farmland of statewide importance | W107: Moderately well drained | X107: None | Y107: Poor | Z107: 0.5 | AA107: 0.272 | AB107: 0.272 | AC107: Partially Hydric | AD107: 0.28 | AE107: 0.28 | AF107: 3.502 | AG107: None | AH107: 4.5 | AI107: Poor | AJ107: loam | AK107: Lester | AL107: MN161 | AM107: L41C2
B108: 109 | C108: LES | D108: 2 | E108: 3 | F108: 15 | G108: 16 | H108: Le Sueur | I108: Upper Le Sueur | J108: LS AB UG | K108: AB | L108: 2 | M108: LO | N108: 9 | O108: 53989.06308 | P108: 17.4292507 | Q108: Cultivated Crops | R108: 17996.35436 | S108: 17996.35436 | T108: 17996.35436 | U108: 0.0003228292863 | V108: All areas are prime farmland | W108: Well drained | X108: None | Y108: Poor | Z108: 0.5 | AA108: 0.2526923 | AB108: 0.2526923 | AC108: Partially Hydric | AD108: 0.28 | AE108: 0.28 | AF108: 7.579230769 | AG108: None | AH108: 3.942307692 | AI108: Poor | AJ108: clay loam | AK108: Angus | AL108: MN161 | AM108: L40B
B109: 224 | C109: LES | D109: 2 | E109: 3 | F109: 15 | G109: 16 | H109: Le Sueur | I109: Upper Le Sueur | J109: LS AB UG | K109: AB | L109: 2 | M109: LO | N109: 9 | O109: 21810.24337 | P109: 28.6809273 | Q109: Cultivated Crops | R109: 7270.081125 | S109: 7270.081125 | T109: 7270.081125 | U109: 0.001315020965 | V109: Not prime farmland | W109: Well drained | X109: None | Y109: Poor | Z109: 0.5 | AA109: 0.27 | AB109: 0.27 | AC109: Partially Hydric | AD109: 0.28 | AE109: 0.28 | AF109: 3.375 | AG109: None | AH109: 11.1 | AI109: Poor | AJ109: loam | AK109: Ridgeton | AL109: MN161 | AM109: L41D2
B110: 179 | C110: LES | D110: 2 | E110: 3 | F110: 15 | G110: 16 | H110: Le Sueur | I110: Upper Le Sueur | J110: LS AB UG | K110: AB | L110: 2 | M110: LO | N110: 9 | O110: 117347.2916 | P110: 54.5661087 | Q110: Cultivated Crops | R110: 39115.76385 | S110: 39115.76385 | T110: 39115.76385 | U110: 0.0004649967458 | V110: Not prime farmland | W110: Very poorly drained | X110: None | Y110: Poor | Z110: 0.5416667 | AA110: 0.2483333 | AB110: 0.2483333 | AC110: All Hydric | AD110: 0.02 | AE110: 0.02 | AF110: 8.175 | AG110: Frequent | AH110: 4.658333333 | AI110: Poor | AJ110: muck | AK110: Houghton | AL110: MN161 | AM110: L16A
B111: 173 | C111: LES | D111: 2 | E111: 3 | F111: 15 | G111: 16 | H111: Le Sueur | I111: Upper Le Sueur | J111: LS AB UG | K111: AB | L111: 2 | M111: LO | N111: 9 | O111: 109313.0657 | P111: 75.7339478 | Q111: Cultivated Crops | R111: 36437.68858 | S111: 36437.68858 | T111: 36437.68858 | U111: 0.0006928169775 | V111: Not prime farmland | W111: Very poorly drained | X111: None | Y111: Poor | Z111: 0.547619 | AA111: 0.2633333 | AB111: 0.2633333 | AC111: All Hydric | AD111: 0.02 | AE111: 0.02 | AF111: 6.049642857 | AG111: Frequent | AH111: 4.985714286 | AI111: Poor | AJ111: muck | AK111: Houghton | AL111: MN161 | AM111: L16A
B112: 169 | C112: LES | D112: 2 | E112: 3 | F112: 15 | G112: 16 | H112: Le Sueur | I112: Upper Le Sueur | J112: LS AB UG | K112: AB | L112: 2 | M112: LO | N112: 9 | O112: 169720.9911 | P112: 83.8896713 | Q112: Cultivated Crops | R112: 56573.66368 | S112: 56573.66368 | T112: 56573.66368 | U112: 0.0004942798812 | V112: Prime farmland if drained | W112: Very poorly drained | X112: None | Y112: Poor | Z112: 0.4305556 | AA112: 0.2644444 | AB112: 0.2644444 | AC112: All Hydric | AD112: 0.28 | AE112: 0.28 | AF112: 6.92 | AG112: Frequent | AH112: 6.930555556 | AI112: Poor | AJ112: silty clay loam | AK112: Glencoe | AL112: MN013 | AM112: 114
B113: 345 | C113: LES | D113: 2 | E113: 3 | F113: 15 | G113: 16 | H113: Le Sueur | I113: Upper Le Sueur | J113: LS AB UG | K113: AB | L113: 2 | M113: LO | N113: 9 | O113: 265246.9247 | P113: 125.3907623 | Q113: Cultivated Crops | R113: 88415.64157 | S113: 88415.64157 | T113: 88415.64157 | U113: 0.0004727322001 | V113: All areas are prime farmland | W113: Well drained | X113: None | Y113: Poor | Z113: 0.5588235 | AA113: 0.2564706 | AB113: 0.2564706 | AC113: Partially Hydric | AD113: 0.28 | AE113: 0.28 | AF113: 7.475490196 | AG113: None | AH113: 5.884313725 | AI113: Poor | AJ113: clay loam | AK113: Angus | AL113: MN161 | AM113: L40B
B114: 337 | C114: LES | D114: 2 | E114: 3 | F114: 15 | G114: 16 | H114: Le Sueur | I114: Upper Le Sueur | J114: LS AB UG | K114: AB | L114: 2 | M114: LO | N114: 9 | O114: 600405.428 | P114: 336.2849426 | Q114: Cultivated Crops | R114: 200135.1427 | S114: 200135.1427 | T114: 200135.1427 | U114: 0.0005600964397 | V114: Not prime farmland | W114: Very poorly drained | X114: None | Y114: Poor | Z114: 0.5877863 | AA114: 0.250229 | AB114: 0.250229 | AC114: All Hydric | AD114: 0.02 | AE114: 0.02 | AF114: 8.044503817 | AG114: Frequent | AH114: 5.03740458 | AI114: Poor | AJ114: muck | AK114: Houghton | AL114: MN161 | AM114: L16A
B115: 246 | C115: LES | D115: 2 | E115: 3 | F115: 15 | G115: 16 | H115: Le Sueur | I115: Upper Le Sueur | J115: LS AB UG | K115: AB | L115: 2 | M115: LO | N115: 9 | O115: 2325539.516 | P115: 1246.606079 | Q115: Cultivated Crops | R115: 775179.8388 | S115: 775179.8388 | T115: 775179.8388 | U115: 0.0005360502672 | V115: All areas are prime farmland | W115: Well drained | X115: None | Y115: Poor | Z115: 0.5741935 | AA115: 0.255871 | AB115: 0.255871 | AC115: Partially Hydric | AD115: 0.28 | AE115: 0.28 | AF115: 7.953612903 | AG115: None | AH115: 5.460645161 | AI115: Poor | AJ115: clay loam | AK115: Angus | AL115: MN161 | AM115: L40B
B116: 225 | C116: LES | D116: 2 | E116: 3 | F116: 16 | G116: 19 | H116: Le Sueur | I116: Upper Le Sueur | J116: LS AB UG | K116: AB | L116: 2 | M116: UL | N116: 9 | O116: 4073.706223 | P116: 6.55e-05 | Q116: Cultivated Crops | R116: 1357.902074 | S116: 1357.902074 | T116: 1357.902074 | U116: 1.607872449e-08 | V116: Not prime farmland | W116: Very poorly drained | X116: None | Y116: Poor | Z116: 0.6666667 | AA116: 0.18 | AB116: 0.18 | AC116: All Hydric | AD116: 0.02 | AE116: 0.02 | AF116: 21.98333333 | AG116: Frequent | AH116: 7.966666667 | AI116: Poor | AJ116: muck | AK116: Houghton | AL116: MN161 | AM116: L16A
B117: 195 | C117: LES | D117: 2 | E117: 3 | F117: 16 | G117: 19 | H117: Le Sueur | I117: Upper Le Sueur | J117: LS AB UG | K117: AB | L117: 2 | M117: UL | N117: 9 | O117: 1800.000001 | P117: 0.0175855 | Q117: Cultivated Crops | R117: 600.0000002 | S117: 600.0000002 | T117: 600.0000002 | U117: 9.769722219e-06 | V117: Not prime farmland | W117: Very poorly drained | X117: None | Y117: Poor | Z117: 0.75 | AA117: 0.15 | AB117: 0.15 | AC117: All Hydric | AD117: 0.02 | AE117: 0.02 | AF117: 37.015 | AG117: Frequent | AH117: 1.25 | AI117: Poor | AJ117: muck | AK117: Houghton | AL117: MN161 | AM117: L50A
B118: 230 | C118: LES | D118: 2 | E118: 3 | F118: 16 | G118: 19 | H118: Le Sueur | I118: Upper Le Sueur | J118: LS AB UG | K118: AB | L118: 2 | M118: UL | N118: 9 | O118: 27362.37236 | P118: 3.3024204 | Q118: Cultivated Crops | R118: 9120.790788 | S118: 9120.790788 | T118: 9120.790788 | U118: 0.0001206920349 | V118: Not prime farmland | W118: Very poorly drained | X118: None | Y118: Poor | Z118: 0.6 | AA118: 0.254 | AB118: 0.254 | AC118: All Hydric | AD118: 0.02 | AE118: 0.02 | AF118: 9.438 | AG118: Frequent | AH118: 3.93 | AI118: Poor | AJ118: muck | AK118: Houghton | AL118: MN161 | AM118: L16A
B119: 285 | C119: LES | D119: 2 | E119: 3 | F119: 16 | G119: 19 | H119: Le Sueur | I119: Upper Le Sueur | J119: LS AB UG | K119: AB | L119: 2 | M119: UL | N119: 9 | O119: 24458.69489 | P119: 7.5561104 | Q119: Cultivated Crops | R119: 8152.898298 | S119: 8152.898298 | T119: 8152.898298 | U119: 0.0003089335074 | V119: Farmland of statewide importance | W119: Moderately well drained | X119: None | Y119: Poor | Z119: 0.5657895 | AA119: 0.2378947 | AB119: 0.2378947 | AC119: Partially Hydric | AD119: 0.28 | AE119: 0.28 | AF119: 10.41789474 | AG119: None | AH119: 5.7 | AI119: Poor | AJ119: loam | AK119: Lester | AL119: MN161 | AM119: L41C2
B120: 242 | C120: LES | D120: 2 | E120: 3 | F120: 16 | G120: 19 | H120: Le Sueur | I120: Upper Le Sueur | J120: LS AB UG | K120: AB | L120: 2 | M120: UL | N120: 9 | O120: 35928.72043 | P120: 16.518877 | Q120: Cultivated Crops | R120: 11976.24014 | S120: 11976.24014 | T120: 11976.24014 | U120: 0.0004597680296 | V120: All areas are prime farmland | W120: Moderately well drained | X120: None | Y120: Poor | Z120: 0.625 | AA120: 0.21 | AB120: 0.21 | AC120: Partially Hydric | AD120: 0.24 | AE120: 0.24 | AF120: 17.0175 | AG120: None | AH120: 4.1875 | AI120: Poor | AJ120: loam | AK120: Terril | AL120: MN161 | AM120: L129B
B121: 232 | C121: LES | D121: 2 | E121: 3 | F121: 16 | G121: 19 | H121: Le Sueur | I121: Upper Le Sueur | J121: LS AB UG | K121: AB | L121: 2 | M121: UL | N121: 9 | O121: 100526.285 | P121: 50.4339981 | Q121: Cultivated Crops | R121: 33508.76168 | S121: 33508.76168 | T121: 33508.76168 | U121: 0.0005016996111 | V121: Not prime farmland | W121: Very poorly drained | X121: None | Y121: Poor | Z121: 0.5625 | AA121: 0.2475 | AB121: 0.2475 | AC121: All Hydric | AD121: 0.02 | AE121: 0.02 | AF121: 11.69375 | AG121: Frequent | AH121: 4.425 | AI121: Poor | AJ121: muck | AK121: Houghton | AL121: MN161 | AM121: L50A
B122: 176 | C122: LES | D122: 2 | E122: 3 | F122: 16 | G122: 19 | H122: Le Sueur | I122: Upper Le Sueur | J122: LS AB UG | K122: AB | L122: 2 | M122: UL | N122: 9 | O122: 170222.2756 | P122: 98.4625931 | Q122: Cultivated Crops | R122: =$O122*1/3 -> 56740.75854 | S122: 56740.75854 | T122: 56740.75854 | U122: 0.0005784354177 | V122: Prime farmland if drained | W122: Somewhat poorly drained | X122: None | Y122: Poor | Z122: 0.5819672 | AA122: 0.2657377 | AB122: 0.2657377 | AC122: Partially Hydric | AD122: 0.28 | AE122: 0.28 | AF122: 6.429344262 | AG122: None | AH122: 4.281967213 | AI122: Poor | AJ122: clay loam | AK122: Derrynane | AL122: MN161 | AM122: L48A
B123: 226 | C123: LES | D123: 2 | E123: 3 | F123: 16 | G123: 19 | H123: Le Sueur | I123: Upper Le Sueur | J123: LS AB UG | K123: AB | L123: 2 | M123: UL | N123: 9 | O123: 270522.4388 | P123: 154.3948975 | Q123: Cultivated Crops | R123: 90174.14626 | S123: 90174.14626 | T123: 90174.14626 | U123: 0.0005707286175 | V123: Not prime farmland | W123: Very poorly drained | X123: None | Y123: Poor | Z123: 0.625 | AA123: 0.2075 | AB123: 0.2075 | AC123: All Hydric | AD123: 0.02 | AE123: 0.02 | AF123: 17.014375 | AG123: Frequent | AH123: 4.2125 | AI123: Poor | AJ123: muck | AK123: Houghton | AL123: MN161 | AM123: L16A
B124: 174 | C124: LES | D124: 2 | E124: 3 | F124: 16 | G124: 19 | H124: Le Sueur | I124: Upper Le Sueur | J124: LS AB UG | K124: AB | L124: 2 | M124: UL | N124: 9 | O124: 277351.655 | P124: 177.6969147 | Q124: Cultivated Crops | R124: 92450.55165 | S124: 92450.55165 | T124: 92450.55165 | U124: 0.000640691741 | V124: Not prime farmland | W124: Very poorly drained | X124: None | Y124: Poor | Z124: 0.547619 | AA124: 0.2633333 | AB124: 0.2633333 | AC124: All Hydric | AD124: 0.02 | AE124: 0.02 | AF124: 6.049642857 | AG124: Frequent | AH124: 4.985714286 | AI124: Poor | AJ124: muck | AK124: Houghton | AL124: MN161 | AM124: L16A
B125: 238 | C125: LES | D125: 2 | E125: 3 | F125: 17 | G125: 19 | H125: Le Sueur | I125: Upper Le Sueur | J125: LS AB UG | K125: AB | L125: 2 | M125: UL | N125: 9 | O125: 616.2222861 | P125: 0.2907684 | Q125: Cultivated Crops | R125: 205.4074287 | S125: 205.4074287 | T125: 205.4074287 | U125: 0.0004718563521 | V125: Prime farmland if drained | W125: Poorly drained | X125: None | Y125: Poor | Z125: 0.5 | AA125: 0.28 | AB125: 0.28 | AC125: Partially Hydric | AD125: 0.28 | AE125: 0.28 | AF125: 4.28 | AG125: None | AH125: 2.2 | AI125: Poor | AJ125: silty clay loam | AK125: Mazaska | AL125: MN161 | AM125: L91A
B126: 193 | C126: LES | D126: 2 | E126: 3 | F126: 17 | G126: 19 | H126: Le Sueur | I126: Upper Le Sueur | J126: LS AB UG | K126: AB | L126: 2 | M126: UL | N126: 9 | O126: 899.9999998 | P126: 0.4063203 | Q126: Cultivated Crops | R126: 299.9999999 | S126: 299.9999999 | T126: 299.9999999 | U126: 0.0004514670001 | V126: Farmland of statewide importance | W126: Well drained | X126: None | Y126: Poor | Z126: 0.5 | AA126: 0.24 | AB126: 0.24 | AC126: Partially Hydric | AD126: 0.24 | AE126: 0.24 | AF126: 3.9 | AG126: None | AH126: 3.6 | AI126: Poor | AJ126: loam | AK126: Reedslake | AL126: MN161 | AM126: L122B
B127: 116 | C127: LES | D127: 2 | E127: 3 | F127: 17 | G127: 19 | H127: Le Sueur | I127: Upper Le Sueur | J127: LS AB UG | K127: AB | L127: 2 | M127: UL | N127: 9 | O127: 11069.80008 | P127: 1.7346005 | Q127: Cultivated Crops | R127: 3689.933358 | S127: 3689.933358 | T127: 3689.933358 | U127: 0.0001566966421 | V127: Farmland of statewide importance | W127: Moderately well drained | X127: None | Y127: Poor | Z127: 0.5833333 | AA127: 0.2666667 | AB127: 0.2666667 | AC127: Partially Hydric | AD127: 0.28 | AE127: 0.28 | AF127: 4.881666667 | AG127: None | AH127: 2.966666667 | AI127: Poor | AJ127: loam | AK127: Lester | AL127: MN161 | AM127: L41C2
B128: 220 | C128: LES | D128: 2 | E128: 3 | F128: 17 | G128: 19 | H128: Le Sueur | I128: Upper Le Sueur | J128: LS AB UG | K128: AB | L128: 2 | M128: UL | N128: 9 | O128: 10267.60254 | P128: 1.8349524 | Q128: Cultivated Crops | R128: 3422.53418 | S128: 3422.53418 | T128: 3422.53418 | U128: 0.0001787128391 | V128: All areas are prime farmland | W128: Well drained | X128: None | Y128: Poor | Z128: 0.5 | AA128: 0.28 | AB128: 0.28 | AC128: Partially Hydric | AD128: 0.28 | AE128: 0.28 | AF128: 2.76 | AG128: None | AH128: 8.1 | AI128: Poor | AJ128: clay loam | AK128: Angus | AL128: MN161 | AM128: L40B
B129: 637 | C129: LES | D129: 2 | E129: 3 | F129: 17 | G129: 19 | H129: Le Sueur | I129: Upper Le Sueur | J129: LS AB UG | K129: AB | L129: 2 | M129: UL | N129: 9 | O129: 44897.99958 | P129: 19.7154903 | Q129: Cultivated Crops | R129: 14965.99986 | S129: 14965.99986 | T129: 14965.99986 | U129: 0.0004391173434 | V129: Prime farmland if drained | W129: Poorly drained | X129: None | Y129: Poor | Z129: 0.5668317 | AA129: 0.2441584 | AB129: 0.2441584 | AC129: Partially Hydric | AD129: 0.28 | AE129: 0.28 | AF129: 7.922722772 | AG129: None | AH129: 4.652475248 | AI129: Poor | AJ129: silty clay loam | AK129: Mazaska | AL129: MN161 | AM129: L91A
B130: 122 | C130: LES | D130: 2 | E130: 3 | F130: 17 | G130: 19 | H130: Le Sueur | I130: Upper Le Sueur | J130: LS AB UG | K130: AB | L130: 2 | M130: UL | N130: 9 | O130: 109073.5171 | P130: 20.8112411 | Q130: Cultivated Crops | R130: 36357.83904 | S130: 36357.83904 | T130: 36357.83904 | U130: =P130/O130 -> 0.0001908001287 | V130: Prime farmland if drained | W130: Somewhat poorly drained | X130: None | Y130: Poor | Z130: 0.5131579 | AA130: 0.2705263 | AB130: 0.2705263 | AC130: Partially Hydric | AD130: 0.28 | AE130: 0.28 | AF130: 3.894736842 | AG130: None | AH130: 3.607894737 | AI130: Poor | AJ130: clay loam | AK130: Derrynane | AL130: MN161 | AM130: L48A
B131: 165 | C131: LES | D131: 2 | E131: 3 | F131: 17 | G131: 19 | H131: Le Sueur | I131: Upper Le Sueur | J131: LS AB UG | K131: AB | L131: 2 | M131: UL | N131: 9 | O131: 80806.9467 | P131: 22.9430866 | Q131: Cultivated Crops | R131: 26935.6489 | S131: 26935.6489 | T131: 26935.6489 | U131: 0.0002839246814 | V131: Farmland of statewide importance | W131: Moderately well drained | X131: None | Y131: Poor | Z131: 0.5 | AA131: 0.272 | AB131: 0.272 | AC131: Partially Hydric | AD131: 0.28 | AE131: 0.28 | AF131: 3.842 | AG131: None | AH131: 3.28 | AI131: Poor | AJ131: loam | AK131: Lester | AL131: MN161 | AM131: L41C2
B132: 266 | C132: LES | D132: 2 | E132: 3 | F132: 17 | G132: 19 | H132: Le Sueur | I132: Upper Le Sueur | J132: LS AB UG | K132: AB | L132: 2 | M132: UL | N132: 9 | O132: 94965.20074 | P132: 36.2622299 | Q132: Cultivated Crops | R132: 31655.06691 | S132: 31655.06691 | T132: 31655.06691 | U132: 0.000381847557 | V132: Not prime farmland | W132: Very poorly drained | X132: None | Y132: Poor | Z132: 0.5555556 | AA132: 0.2422222 | AB132: 0.2422222 | AC132: All Hydric | AD132: 0.02 | AE132: 0.02 | AF132: 9.626666667 | AG132: Frequent | AH132: 4.544444444 | AI132: Poor | AJ132: muck | AK132: Houghton | AL132: MN161 | AM132: L16A
B133: 218 | C133: LES | D133: 2 | E133: 3 | F133: 17 | G133: 19 | H133: Le Sueur | I133: Upper Le Sueur | J133: LS AB UG | K133: AB | L133: 2 | M133: UL | N133: 9 | O133: 545587.6957 | P133: 187.9329681 | Q133: Cultivated Crops | R133: 181862.5652 | S133: 181862.5652 | T133: 181862.5652 | U133: 0.0003444596892 | V133: Not prime farmland | W133: Well drained | X133: None | Y133: Poor | Z133: 0.5243902 | AA133: 0.257561 | AB133: 0.257561 | AC133: Partially Hydric | AD133: 0.28 | AE133: 0.28 | AF133: 6.370487805 | AG133: None | AH133: 5.86097561 | AI133: Poor | AJ133: loam | AK133: Ridgeton | AL133: MN161 | AM133: L41D2
B134: 271 | C134: LES | D134: 2 | E134: 3 | F134: 17 | G134: 19 | H134: Le Sueur | I134: Upper Le Sueur | J134: LS AB UG | K134: AB | L134: 2 | M134: UL | N134: 9 | O134: 818551.2272 | P134: 236.0020447 | Q134: Cultivated Crops | R134: 272850.4091 | S134: 272850.4091 | T134: 272850.4091 | U134: 0.0002883167685 | V134: All areas are prime farmland | W134: Well drained | X134: None | Y134: Poor | Z134: 0.5416667 | AA134: 0.25875 | AB134: 0.25875 | AC134: Partially Hydric | AD134: 0.28 | AE134: 0.28 | AF134: 6.815208333 | AG134: None | AH134: 5.135416667 | AI134: Poor | AJ134: clay loam | AK134: Angus | AL134: MN161 | AM134: L40B
B135: 177 | C135: LES | D135: 2 | E135: 3 | F135: 17 | G135: 19 | H135: Le Sueur | I135: Upper Le Sueur | J135: LS AB UG | K135: AB | L135: 2 | M135: UL | N135: 9 | O135: 851088.7388 | P135: 356.1775513 | Q135: Cultivated Crops | R135: 283696.2463 | S135: 283696.2463 | T135: 283696.2463 | U135: 0.0004184963742 | V135: Prime farmland if drained | W135: Somewhat poorly drained | X135: None | Y135: Poor | Z135: 0.5819672 | AA135: 0.2657377 | AB135: 0.2657377 | AC135: Partially Hydric | AD135: 0.28 | AE135: 0.28 | AF135: 6.429344262 | AG135: None | AH135: 4.281967213 | AI135: Poor | AJ135: clay loam | AK135: Derrynane | AL135: MN161 | AM135: L48A
B136: 219 | C136: LES | D136: 2 | E136: 1 | F136: 18 | G136: 14 | H136: Le Sueur | I136: Upper Le Sueur | J136: LS AB UG | K136: AB | L136: 2 | M136: UL | N136: 9 | O136: 24978.28372 | P136: 5.0385518 | Q136: Cultivated Crops | R136: 8326.094572 | S136: 8326.094572 | T136: 8326.094572 | U136: 0.000201717294 | V136: Not prime farmland | W136: Well drained | X136: None | Y136: Poor | Z136: 0.5243902 | AA136: 0.257561 | AB136: 0.257561 | AC136: Partially Hydric | AD136: 0.28 | AE136: 0.28 | AF136: 6.370487805 | AG136: None | AH136: 5.86097561 | AI136: Poor | AJ136: loam | AK136: Ridgeton | AL136: MN161 | AM136: L41D2
B137: 272 | C137: LES | D137: 2 | E137: 1 | F137: 18 | G137: 14 | H137: Le Sueur | I137: Upper Le Sueur | J137: LS AB UG | K137: AB | L137: 2 | M137: UL | N137: 9 | O137: 70935.27181 | P137: 24.52174 | Q137: Cultivated Crops | R137: 23645.0906 | S137: 23645.0906 | T137: 23645.0906 | U137: 0.0003456917747 | V137: All areas are prime farmland | W137: Well drained | X137: None | Y137: Poor | Z137: 0.5416667 | AA137: 0.25875 | AB137: 0.25875 | AC137: Partially Hydric | AD137: 0.28 | AE137: 0.28 | AF137: 6.815208333 | AG137: None | AH137: 5.135416667 | AI137: Poor | AJ137: clay loam | AK137: Angus | AL137: MN161 | AM137: L40B
B138: 351 | C138: LES | D138: 2 | E138: 1 | F138: 18 | G138: 14 | H138: Le Sueur | I138: Upper Le Sueur | J138: LS AB UG | K138: AB | L138: 2 | M138: UL | N138: 9 | O138: 159907.7982 | P138: 47.3230629 | Q138: Cultivated Crops | R138: 53302.5994 | S138: 53302.5994 | T138: 53302.5994 | U138: 0.0002959396817 | V138: All areas are prime farmland | W138: Somewhat poorly drained | X138: None | Y138: Poor | Z138: 0.5 | AA138: 0.2571428 | AB138: 0.2571428 | AC138: Partially Hydric | AD138: 0.24 | AE138: 0.24 | AF138: 4.155714286 | AG138: None | AH138: 2.271428571 | AI138: Poor | AJ138: clay loam | AK138: Mazaska | AL138: MN161 | AM138: L116A
B139: 352 | C139: LES | D139: 2 | E139: 1 | F139: 18 | G139: 14 | H139: Le Sueur | I139: Upper Le Sueur | J139: LS AB UG | K139: AB | L139: 2 | M139: UL | N139: 9 | O139: 64322.33563 | P139: 48.4914131 | Q139: Cultivated Crops | R139: 21440.77854 | S139: 21440.77854 | T139: 21440.77854 | U139: 0.0007538814103 | V139: All areas are prime farmland | W139: Well drained | X139: None | Y139: Poor | Z139: 0.537037 | AA139: 0.2674074 | AB139: 0.2674074 | AC139: Partially Hydric | AD139: 0.28 | AE139: 0.28 | AF139: 4.265555556 | AG139: None | AH139: 7.314814815 | AI139: Poor | AJ139: clay loam | AK139: Angus | AL139: MN161 | AM139: L40B
B140: 257 | C140: LES | D140: 2 | E140: 1 | F140: 18 | G140: 14 | H140: Le Sueur | I140: Upper Le Sueur | J140: LS AB UG | K140: AB | L140: 2 | M140: UL | N140: 9 | O140: 154567.6589 | P140: 86.647789 | Q140: Cultivated Crops | R140: 51522.55296 | S140: 51522.55296 | T140: 51522.55296 | U140: 0.0005605816224 | V140: Prime farmland if protected from flooding or not frequently flooded during the growing season | W140: Poorly drained | X140: Occasional | Y140: Poor | Z140: 0.5153846 | AA140: 0.2686154 | AB140: 0.2686154 | AC140: Partially Hydric | AD140: 0.24 | AE140: 0.24 | AF140: 4.897076923 | AG140: None | AH140: 6.672307692 | AI140: Poor | AJ140: silty clay loam | AK140: Coland | AL140: MN161 | AM140: L126A
B141: 471 | C141: LES | D141: 2 | E141: 1 | F141: 18 | G141: 14 | H141: Le Sueur | I141: Upper Le Sueur | J141: LS AB UG | K141: AB | L141: 2 | M141: UL | N141: 9 | O141: 338721.6941 | P141: 91.905571 | Q141: Cultivated Crops | R141: 112907.2314 | S141: 112907.2314 | T141: 112907.2314 | U141: 0.000271330631 | V141: Prime farmland if drained | W141: Poorly drained | X141: None | Y141: Poor | Z141: 0.5489131 | AA141: 0.2560869 | AB141: 0.2560869 | AC141: Partially Hydric | AD141: 0.28 | AE141: 0.28 | AF141: 6.18173913 | AG141: None | AH141: 3.580434783 | AI141: Poor | AJ141: silty clay loam | AK141: Mazaska | AL141: MN161 | AM141: L91A
B142: 403 | C142: LES | D142: 2 | E142: 1 | F142: 18 | G142: 14 | H142: Le Sueur | I142: Upper Le Sueur | J142: LS AB UG | K142: AB | L142: 2 | M142: UL | N142: 9 | O142: 302726.26 | P142: 137.4730988 | Q142: Cultivated Crops | R142: =$O142*1/3 -> 100908.7533 | S142: 100908.7533 | T142: 100908.7533 | U142: 0.0004541168605 | V142: All areas are prime farmland | W142: Well drained | X142: None | Y142: Poor | Z142: 0.53125 | AA142: 0.2497917 | AB142: 0.2497917 | AC142: Partially Hydric | AD142: 0.24 | AE142: 0.24 | AF142: 6.054583333 | AG142: None | AH142: 4.817708333 | AI142: Poor | AJ142: loam | AK142: Reedslake | AL142: MN161 | AM142: L113B
B143: 332 | C143: LES | D143: 2 | E143: 1 | F143: 18 | G143: 14 | H143: Le Sueur | I143: Upper Le Sueur | J143: LS AB UG | K143: AB | L143: 2 | M143: UL | N143: 9 | O143: 1183231.022 | P143: 722.87677 | Q143: Cultivated Crops | R143: 394410.3405 | S143: 394410.3405 | T143: 394410.3405 | U143: 0.0006109345992 | V143: All areas are prime farmland | W143: Well drained | X143: None | Y143: Poor | Z143: 0.5479452 | AA143: 0.2569863 | AB143: 0.2569863 | AC143: Partially Hydric | AD143: 0.28 | AE143: 0.28 | AF143: 6.667534247 | AG143: None | AH143: 6.209589041 | AI143: Poor | AJ143: clay loam | AK143: Angus | AL143: MN161 | AM143: L40B
B144: 231 | C144: LES | D144: 2 | E144: 3 | F144: 19 | G144: 31 | H144: Le Sueur | I144: Upper Le Sueur | J144: LS AB UG | K144: AB | L144: 2 | M144: UL | N144: 9 | O144: 58271.97743 | P144: 1.3382667 | Q144: Cultivated Crops | R144: 19423.99248 | S144: 19423.99248 | T144: 19423.99248 | U144: 2.296587071e-05 | V144: Not prime farmland | W144: Very poorly drained | X144: None | Y144: Poor | Z144: 0.6 | AA144: 0.254 | AB144: 0.254 | AC144: All Hydric | AD144: 0.02 | AE144: 0.02 | AF144: 9.438 | AG144: Frequent | AH144: 3.93 | AI144: Poor | AJ144: muck | AK144: Houghton | AL144: MN161 | AM144: L16A
B145: 235 | C145: LES | D145: 2 | E145: 3 | F145: 19 | G145: 31 | H145: Le Sueur | I145: Upper Le Sueur | J145: LS AB UG | K145: AB | L145: 2 | M145: UL | N145: 9 | O145: 12255.63557 | P145: 4.2747645 | Q145: Cultivated Crops | R145: 4085.211856 | S145: 4085.211856 | T145: 4085.211856 | U145: 0.0003487999032 | V145: All areas are prime farmland | W145: Well drained | X145: None | Y145: Poor | Z145: 0.6666667 | AA145: 0.1933333 | AB145: 0.1933333 | AC145: Partially Hydric | AD145: 0.28 | AE145: 0.28 | AF145: 21.07666667 | AG145: None | AH145: 5.566666667 | AI145: Poor | AJ145: clay loam | AK145: Angus | AL145: MN161 | AM145: L40B
B146: 243 | C146: LES | D146: 2 | E146: 3 | F146: 19 | G146: 31 | H146: Le Sueur | I146: Upper Le Sueur | J146: LS AB UG | K146: AB | L146: 2 | M146: UL | N146: 9 | O146: 20618.4809 | P146: 8.7045288 | Q146: Cultivated Crops | R146: 6872.826965 | S146: 6872.826965 | T146: 6872.826965 | U146: 0.0004221711989 | V146: All areas are prime farmland | W146: Moderately well drained | X146: None | Y146: Poor | Z146: 0.625 | AA146: 0.21 | AB146: 0.21 | AC146: Partially Hydric | AD146: 0.24 | AE146: 0.24 | AF146: 17.0175 | AG146: None | AH146: 4.1875 | AI146: Poor | AJ146: loam | AK146: Terril | AL146: MN161 | AM146: L129B
B147: 227 | C147: LES | D147: 2 | E147: 3 | F147: 19 | G147: 31 | H147: Le Sueur | I147: Upper Le Sueur | J147: LS AB UG | K147: AB | L147: 2 | M147: UL | N147: 9 | O147: 63107.49031 | P147: 19.3334389 | Q147: Cultivated Crops | R147: 21035.8301 | S147: 21035.8301 | T147: 21035.8301 | U147: 0.0003063572771 | V147: Not prime farmland | W147: Very poorly drained | X147: None | Y147: Poor | Z147: 0.625 | AA147: 0.2075 | AB147: 0.2075 | AC147: All Hydric | AD147: 0.02 | AE147: 0.02 | AF147: 17.014375 | AG147: Frequent | AH147: 4.2125 | AI147: Poor | AJ147: muck | AK147: Houghton | AL147: MN161 | AM147: L16A
B148: 476 | C148: LES | D148: 2 | E148: 3 | F148: 19 | G148: 31 | H148: Le Sueur | I148: Upper Le Sueur | J148: LS AB UG | K148: AB | L148: 2 | M148: UL | N148: 9 | O148: 57961.06351 | P148: 29.5002041 | Q148: Cultivated Crops | R148: 19320.3545 | S148: 19320.3545 | T148: 19320.3545 | U148: 0.000508965887 | V148: Farmland of statewide importance | W148: Moderately well drained | X148: None | Y148: Poor | Z148: 0.5555556 | AA148: 0.2485185 | AB148: 0.2485185 | AC148: Partially Hydric | AD148: 0.28 | AE148: 0.28 | AF148: 7.550740741 | AG148: None | AH148: 6.587037037 | AI148: Poor | AJ148: loam | AK148: Lester | AL148: MN161 | AM148: L41C2
B149: 346 | C149: LES | D149: 2 | E149: 3 | F149: 19 | G149: 31 | H149: Le Sueur | I149: Upper Le Sueur | J149: LS AB UG | K149: AB | L149: 2 | M149: UL | N149: 9 | O149: 346750.8696 | P149: 164.3610382 | Q149: Cultivated Crops | R149: 115583.6232 | S149: 115583.6232 | T149: 115583.6232 | U149: 0.0004740032473 | V149: All areas are prime farmland | W149: Well drained | X149: None | Y149: Poor | Z149: 0.5588235 | AA149: 0.2564706 | AB149: 0.2564706 | AC149: Partially Hydric | AD149: 0.28 | AE149: 0.28 | AF149: 7.475490196 | AG149: None | AH149: 5.884313725 | AI149: Poor | AJ149: clay loam | AK149: Angus | AL149: MN161 | AM149: L40B
B150: 286 | C150: LES | D150: 2 | E150: 3 | F150: 19 | G150: 31 | H150: Le Sueur | I150: Upper Le Sueur | J150: LS AB UG | K150: AB | L150: 2 | M150: UL | N150: 9 | O150: 574505.7614 | P150: 269.0586853 | Q150: Cultivated Crops | R150: 191501.9205 | S150: 191501.9205 | T150: 191501.9205 | U150: 0.0004683306998 | V150: Farmland of statewide importance | W150: Moderately well drained | X150: None | Y150: Poor | Z150: 0.5657895 | AA150: 0.2378947 | AB150: 0.2378947 | AC150: Partially Hydric | AD150: 0.28 | AE150: 0.28 | AF150: 10.41789474 | AG150: None | AH150: 5.7 | AI150: Poor | AJ150: loam | AK150: Lester | AL150: MN161 | AM150: L41C2
B151: 233 | C151: LES | D151: 2 | E151: 1 | F151: 23 | G151: 14 | H151: Le Sueur | I151: Upper Le Sueur | J151: LS AB UG | K151: AB | L151: 2 | M151: UL | N151: 9 | O151: 616.2222862 | P151: 0.1813257 | Q151: Cultivated Crops | R151: 205.4074287 | S151: 205.4074287 | T151: 205.4074287 | U151: 0.0002942537199 | V151: All areas are prime farmland | W151: Well drained | X151: None | Y151: Poor | Z151: 0.5 | AA151: 0.2666667 | AB151: 0.2666667 | AC151: Partially Hydric | AD151: 0.28 | AE151: 0.28 | AF151: 3.31 | AG151: None | AH151: 4.433333333 | AI151: Poor | AJ151: clay loam | AK151: Angus | AL151: MN161 | AM151: L40B
B152: 237 | C152: LES | D152: 2 | E152: 1 | F152: 23 | G152: 14 | H152: Le Sueur | I152: Upper Le Sueur | J152: LS AB UG | K152: AB | L152: 2 | M152: UL | N152: 9 | O152: 21036.05342 | P152: 3.0607769 | Q152: Cultivated Crops | R152: 7012.017806 | S152: 7012.017806 | T152: 7012.017806 | U152: 0.0001455014797 | V152: Prime farmland if drained | W152: Somewhat poorly drained | X152: None | Y152: Poor | Z152: 0.5 | AA152: 0.272 | AB152: 0.272 | AC152: Partially Hydric | AD152: 0.28 | AE152: 0.28 | AF152: 4.516 | AG152: None | AH152: 5.62 | AI152: Poor | AJ152: clay loam | AK152: Derrynane | AL152: MN161 | AM152: L48A
B153: 228 | C153: LES | D153: 2 | E153: 1 | F153: 23 | G153: 14 | H153: Le Sueur | I153: Upper Le Sueur | J153: LS AB UG | K153: AB | L153: 2 | M153: UL | N153: 9 | O153: 22536.84921 | P153: 7.5991707 | Q153: Cultivated Crops | R153: 7512.283071 | S153: 7512.283071 | T153: 7512.283071 | U153: 0.0003371886917 | V153: Prime farmland if drained | W153: Somewhat poorly drained | X153: None | Y153: Poor | Z153: 0.5227273 | AA153: 0.2572727 | AB153: 0.2572727 | AC153: Partially Hydric | AD153: 0.28 | AE153: 0.28 | AF153: 6.456363636 | AG153: None | AH153: 4.436363636 | AI153: Poor | AJ153: clay loam | AK153: Derrynane | AL153: MN161 | AM153: L48A
B154: 333 | C154: LES | D154: 2 | E154: 1 | F154: 23 | G154: 14 | H154: Le Sueur | I154: Upper Le Sueur | J154: LS AB UG | K154: AB | L154: 2 | M154: UL | N154: 9 | O154: 84413.23584 | P154: 41.1575508 | Q154: Cultivated Crops | R154: 28137.74528 | S154: 28137.74528 | T154: 28137.74528 | U154: 0.0004875722437 | V154: All areas are prime farmland | W154: Well drained | X154: None | Y154: Poor | Z154: 0.5479452 | AA154: 0.2569863 | AB154: 0.2569863 | AC154: Partially Hydric | AD154: 0.28 | AE154: 0.28 | AF154: 6.667534247 | AG154: None | AH154: 6.209589041 | AI154: Poor | AJ154: clay loam | AK154: Angus | AL154: MN161 | AM154: L40B
B155: 213 | C155: LES | D155: 2 | E155: 1 | F155: 23 | G155: 14 | H155: Le Sueur | I155: Upper Le Sueur | J155: LS AB UG | K155: AB | L155: 2 | M155: UL | N155: 9 | O155: 212632.4556 | P155: 55.8400688 | Q155: Cultivated Crops | R155: 70877.48522 | S155: 70877.48522 | T155: 70877.48522 | U155: 0.0002626131022 | V155: Prime farmland if drained | W155: Poorly drained | X155: None | Y155: Poor | Z155: 0.5319149 | AA155: 0.2595745 | AB155: 0.2595745 | AC155: Partially Hydric | AD155: 0.28 | AE155: 0.28 | AF155: 6.285531915 | AG155: None | AH155: 5.944680851 | AI155: Poor | AJ155: clay loam | AK155: Cordova | AL155: MN161 | AM155: L81A
B156: 404 | C156: LES | D156: 2 | E156: 1 | F156: 23 | G156: 14 | H156: Le Sueur | I156: Upper Le Sueur | J156: LS AB UG | K156: AB | L156: 2 | M156: UL | N156: 9 | O156: 638374.9402 | P156: 287.9730225 | Q156: Cultivated Crops | R156: 212791.6467 | S156: 212791.6467 | T156: 212791.6467 | U156: 0.0004511032692 | V156: All areas are prime farmland | W156: Well drained | X156: None | Y156: Poor | Z156: 0.53125 | AA156: 0.2497917 | AB156: 0.2497917 | AC156: Partially Hydric | AD156: 0.24 | AE156: 0.24 | AF156: 6.054583333 | AG156: None | AH156: 4.817708333 | AI156: Poor | AJ156: loam | AK156: Reedslake | AL156: MN161 | AM156: L113B
B157: 500 | C157: LES | D157: 2 | E157: 1 | F157: 23 | G157: 14 | H157: Le Sueur | I157: Upper Le Sueur | J157: LS AB UG | K157: AB | L157: 2 | M157: UL | N157: 9 | O157: 814543.1455 | P157: 360.4904785 | Q157: Cultivated Crops | R157: 271514.3818 | S157: 271514.3818 | T157: 271514.3818 | U157: 0.0004425676902 | V157: Prime farmland if drained | W157: Somewhat poorly drained | X157: None | Y157: Poor | Z157: 0.5306122 | AA157: 0.2569388 | AB157: 0.2569388 | AC157: Partially Hydric | AD157: 0.28 | AE157: 0.28 | AF157: 5.755102041 | AG157: None | AH157: 6.223469388 | AI157: Poor | AJ157: loam | AK157: Hamel | AL157: MN161 | AM157: L36A
B158: 253 | C158: LES | D158: 2 | E158: 1 | F158: 23 | G158: 14 | H158: Le Sueur | I158: Upper Le Sueur | J158: LS AB UG | K158: AB | L158: 2 | M158: UL | N158: 9 | O158: 816295.931 | P158: 395.6506348 | Q158: Cultivated Crops | R158: 272098.6437 | S158: 272098.6437 | T158: 272098.6437 | U158: 0.000484690196 | V158: All areas are prime farmland | W158: Well drained | X158: None | Y158: Poor | Z158: 0.5319149 | AA158: 0.2548936 | AB158: 0.2548936 | AC158: Partially Hydric | AD158: 0.28 | AE158: 0.28 | AF158: 7.419787234 | AG158: None | AH158: 6.5 | AI158: Poor | AJ158: clay loam | AK158: Angus | AL158: MN161 | AM158: L40B
B159: 258 | C159: LES | D159: 2 | E159: 1 | F159: 23 | G159: 14 | H159: Le Sueur | I159: Upper Le Sueur | J159: LS AB UG | K159: AB | L159: 2 | M159: UL | N159: 9 | O159: 1089579.879 | P159: 564.2774048 | Q159: Cultivated Crops | R159: 363193.2931 | S159: 363193.2931 | T159: 363193.2931 | U159: 0.0005178853019 | V159: Prime farmland if protected from flooding or not frequently flooded during the growing season | W159: Poorly drained | X159: Occasional | Y159: Poor | Z159: 0.5153846 | AA159: 0.2686154 | AB159: 0.2686154 | AC159: Partially Hydric | AD159: 0.24 | AE159: 0.24 | AF159: 4.897076923 | AG159: None | AH159: 6.672307692 | AI159: Poor | AJ159: silty clay loam | AK159: Coland | AL159: MN161 | AM159: L126A
B160: 210 | C160: LES | D160: 2 | E160: 1 | F160: 23 | G160: 14 | H160: Le Sueur | I160: Upper Le Sueur | J160: LS AB UG | K160: AB | L160: 2 | M160: UL | N160: 9 | O160: 914948.2411 | P160: 611.0774536 | Q160: Cultivated Crops | R160: 304982.747 | S160: 304982.747 | T160: 304982.747 | U160: 0.0006678819917 | V160: Not prime farmland | W160: Poorly drained | X160: None | Y160: Poor | Z160: 0.5522388 | AA160: 0.2502985 | AB160: 0.2502985 | AC160: Partially Hydric | AD160: 0.17 | AE160: 0.17 | AF160: 8.463432836 | AG160: None | AH160: 5.588059701 | AI160: Fair | AJ160: loamy fine sand | AK160: Less sandy soil | AL160: MN161 | AM160: L64A
B161: 501 | C161: LES | D161: 2 | E161: 1 | F161: 24 | G161: 23 | H161: Le Sueur | I161: Upper Le Sueur | J161: LS AB UG | K161: AB | L161: 2 | M161: UL | N161: 9 | O161: 31585.44285 | P161: 16.5413475 | Q161: Cultivated Crops | R161: 10528.48095 | S161: 10528.48095 | T161: 10528.48095 | U161: 0.0005237016172 | V161: Prime farmland if drained | W161: Somewhat poorly drained | X161: None | Y161: Poor | Z161: 0.5306122 | AA161: 0.2569388 | AB161: 0.2569388 | AC161: Partially Hydric | AD161: 0.28 | AE161: 0.28 | AF161: 5.755102041 | AG161: None | AH161: 6.223469388 | AI161: Poor | AJ161: loam | AK161: Hamel | AL161: MN161 | AM161: L36A
B162: 119 | C162: LES | D162: 3 | E162: 5 | F162: 25 | G162: 29 | H162: Le Sueur | I162: Lower LeSueur | J162: LS btwn gauges | K162: BT | L162: 3 | M162: LO | N162: 1 | O162: 1996.703228 | P162: 0.0073855 | Q162: Cultivated Crops | R162: =$O162*1/3 -> 665.5677427 | S162: 665.5677427 | T162: 665.5677427 | U162: 3.698847128e-06 | V162: Farmland of statewide importance | W162: Very poorly drained | X162: None | Y162: Poor | Z162: 0.5 | AA162: 0.195 | AB162: 0.195 | AC162: All Hydric | AD162: 0.02 | AE162: 0.02 | AF162: 34 | AG162: Frequent | AH162: 5.5 | AI162: Poor | AJ162: muck | AK162: Muskego | AL162: MN013 | AM162: 525
B163: 431 | C163: LES | D163: 3 | E163: 5 | F163: 25 | G163: 29 | H163: Le Sueur | I163: Lower LeSueur | J163: LS btwn gauges | K163: BT | L163: 3 | M163: LO | N163: 1 | O163: 42353.60782 | P163: 7.1535411 | Q163: Cultivated Crops | R163: 14117.86927 | S163: 14117.86927 | T163: 14117.86927 | U163: 0.0001689003952 | V163: Prime farmland if drained | W163: Very poorly drained | X163: None | Y163: Poor | Z163: 0.4166667 | AA163: 0.2633333 | AB163: 0.2633333 | AC163: All Hydric | AD163: 0.28 | AE163: 0.28 | AF163: 5 | AG163: Frequent | AH163: 3.333333333 | AI163: Poor | AJ163: silty clay loam | AK163: Glencoe | AL163: MN013 | AM163: 114
B164: 102 | C164: LES | D164: 3 | E164: 5 | F164: 25 | G164: 29 | H164: Le Sueur | I164: Lower LeSueur | J164: LS btwn gauges | K164: BT | L164: 3 | M164: LO | N164: 1 | O164: 62007.86766 | P164: 7.5866094 | Q164: Cultivated Crops | R164: 20669.28922 | S164: 20669.28922 | T164: 20669.28922 | U164: 0.0001223491419 | V164: All areas are prime farmland | W164: Well drained | X164: None | Y164: Poor | Z164: 0.3636364 | AA164: 0.2727273 | AB164: 0.2727273 | AC164: Not Hydric | AD164: 0.24 | AE164: 0.24 | AF164: 4.772727273 | AG164: None | AH164: 3.681818182 | AI164: Poor | AJ164: loam | AK164: Lester | AL164: MN013 | AM164: 106B
B165: 427 | C165: LES | D165: 3 | E165: 5 | F165: 25 | G165: 29 | H165: Le Sueur | I165: Lower LeSueur | J165: LS btwn gauges | K165: BT | L165: 3 | M165: LO | N165: 1 | O165: 69334.26326 | P165: 20.1754284 | Q165: Cultivated Crops | R165: 23111.42109 | S165: 23111.42109 | T165: 23111.42109 | U165: 0.0002909878529 | V165: Prime farmland if drained | W165: Very poorly drained | X165: None | Y165: Poor | Z165: 0.5652174 | AA165: 0.2782609 | AB165: 0.2782609 | AC165: All Hydric | AD165: 0.28 | AE165: 0.28 | AF165: 5 | AG165: Frequent | AH165: 3.5 | AI165: Poor | AJ165: silty clay | AK165: Lura | AL165: MN013 | AM165: 211
B166: 328 | C166: LES | D166: 3 | E166: 5 | F166: 25 | G166: 29 | H166: Le Sueur | I166: Lower LeSueur | J166: LS btwn gauges | K166: BT | L166: 3 | M166: LO | N166: 1 | O166: 112110.9178 | P166: 27.9398785 | Q166: Cultivated Crops | R166: 37370.30594 | S166: 37370.30594 | T166: 37370.30594 | U166: 0.0002492163925 | V166: All areas are prime farmland | W166: Moderately well drained | X166: None | Y166: Poor | Z166: 0.4520548 | AA166: 0.2673973 | AB166: 0.2673973 | AC166: Not Hydric | AD166: 0.24 | AE166: 0.24 | AF166: 7.506849315 | AG166: None | AH166: 3.253424658 | AI166: Poor | AJ166: clay loam | AK166: Le Sueur | AL166: MN013 | AM166: 239
